Workbook

Sheet Apoio (hidden)
B2: Tipo de Projeto | C2: Tipo de Atividade | D2: Patrimônio Líquido (R$) | E2: Ativo Circulante - AC (R$) | F2: Realizável a Longo Prazo - RLP (R$) | G2: Passivo Circulante - PC (R$) | H2: Passivo Não Circulante - PNC (R$) | I2: Ativo Total - AT (R$) | J2: Investimento Total (R$) | K2: Investimento PEE (R$) | L2: Benefício Anualizado PEE (R$) | M2: Custo Anualizado PEE (R$) | N2: Investimento PEE em Equipamentos (R$) | O2: Investimento em treinamento (R$) | P2: Investimento em marketing (R$) | Q2: Investimento em gestão energética (R$) | R2: Energia economizada (MWh/ano) | S2: Redução na ponta (kW)
B3: =VLOOKUP(Apresentação!M4,Apoio!A13:F21,2,FALSE) -> Residencial | C3: =VLOOKUP(Apresentação!E15,Apoio!A47:F49,2,FALSE) -> Selecione o tipo de atividade | D3: =IndFinanceiro!F8 -> 0 | E3: =IndFinanceiro!F10 -> 0 | F3: =IndFinanceiro!F12 -> 0 | G3: =IndFinanceiro!L8 -> 0 | H3: =IndFinanceiro!L10 -> 0 | I3: =IndFinanceiro!L12 -> 0 | J3: ='Custo Contábil'!D20 -> 3125 | K3: ='Custo Contábil'!F20 -> 3125 | L3: =RCB!F13 -> 0 | M3: =RCB!E13 -> 0 | N3: ='Custo Contábil'!F7 -> 0 | O3: =Treinamento!K15 -> 0 | P3: =Marketing!K15 -> 0 | Q3: =Treinamento!K28 -> 0 | R3: =RCB!C13 -> 0 | S3: =RCB!D13 -> 0
B6: Tipo de empresa | H6: Tabela de Fator de Carga para k=0,15 | U6: Código | V6: C1 | W6: C2 | X6: Cp | Y6: Cfp | AD6: Anos | AF6: Dist. BELEM (km) | AK6: Código 1 | AL6: Código 2 | AM6: Código 3 | AN6: CEP | AO6: CEFP | AP6: CDP | AQ6: CDFP | AR6: MWhP | AS6: MWhFP
B7: Selecione o Tipo de empresa | H7: Fator de Carga | I7: LP | J7: LE | K7: LE1 | L7: LE2 | M7: LE3 | N7: LE4 | O7: LEp | P7: LEfp | U7: =Apresentação!E18 -> 5 | V7: =IFERROR(INDEX(I45:I49, MATCH(U7, K45:K49, 0)), "Code not found") -> 797.57 | W7: =IFERROR(INDEX(J45:J49, MATCH(U7, K45:K49, 0)), "Code not found") -> 1906.44 | X7: =IFERROR(INDEX(I45:I49, MATCH(U7, K45:K49, 0)), "Code not found") -> 797.57 | Y7: =IFERROR(DGET($R$11:$Y$132,Y6,$T$6:$U$7),0) -> 0 | AF7: 1 | AG7: SELECIONE A CIDADE | AH7: 0 | AK7: =Apresentação!E7 -> 12 | AL7: =IF(Apresentação!E17=6,3,Apresentação!E17) -> 3 | AM7: =Apresentação!E18 -> 5 | AN7: =IFERROR(DGET($AL$12:$AV$243,AN6,$AK$6:$AM$7),0) -> 0 | AO7: 0 | AP7: 0 | AQ7: 0 | AR7: 0 | AS7: 0
B8: Micro ou Pequena Empresa | P8: LEfp | AF8: 2 | AG8: DIVERSAS CIDADES | AH8: 0
B9: Outras Empresas | H9: 0.1 | I9: 0.1444 | J9: 0.20586 | K9: 0.23139 | L9: 0.16197 | M9: -0.1099 | N9: -0.0776 | O9: 0.202465 | P9: -0.09644166667 | AF9: 3 | AG9: Aparecida | AH9: 0
H10: 0.15 | I10: 0.1681 | J10: 0.36464 | K10: 0.24102 | L10: 0.16871 | M10: -0.02643 | N10: -0.01867 | O10: 0.2108908333 | P10: -0.02319666667 | AD10: SELECIONE O ANO | AF10: 4 | AG10: Biritiba Mirim | AH10: 0 | AK10: Ano | AL10: Código 1 | AM10: Código 2 | AN10: Código 3 | AO10: Modalidade | AP10: Subgrupo | AQ10: Demanda | AS10: Energia
H11: 0.2 | I11: 0.1936 | J11: 0.56064 | K11: 0.25119 | L11: 0.17583 | M11: 0.07832 | N11: 0.0553 | O11: 0.21979 | P11: 0.06872833333 | AF11: 5 | AG11: Caçapava | AH11: 0 | AQ11: Bandeira Verde | AS11: tusd | AT11: te | AU11: tusd | AV11: te
B12: Tabela de Tipo de Projeto | H12: 0.25 | I12: 0.2209 | J12: 0.79388 | K12: 0.2619 | L12: 0.18333 | M12: 0.20435 | N12: 0.1443 | O12: 0.2291625 | P12: 0.1793291667 | AF12: 6 | AG12: Cachoeira Paulista | AH12: 0 | AK12: Ano | AL12: Código 1 | AM12: Código 2 | AN12: Código 3 | AO12: Modalidade | AP12: Subgrupo | AQ12: CDP | AR12: CDFP | AS12: MWhP | AT12: CEP | AU12: MWhFP | AV12: CEFP | AW12: CEP | AX12: CEFP
A13: 1 | B13: Selecione o Tipo de Projeto | H13: 0.3 | I13: 0.25 | J13: 1.06434 | K13: 0.27315 | L13: 0.19121 | M13: 0.35166 | N13: 0.24832 | O13: 0.2390083333 | P13: 0.3086016667 | AD13: 2017 | AF13: 7 | AG13: Canas | AH13: 0 | AK13: 2015 | AL13: 2 | AM13: 2 | AN13: 5 | AO13: Convencional | AP13: A3a - 30 a 44 kV | AQ13: 0 | AR13: 0 | AS13: 0 | AT13: 0 | AU13: 0 | AV13: 0 | AW13: =AS13+AT13 -> 0 | AX13: =AU13+AV13 -> 0
A14: 2 | B14: Industrial | H14: 0.35 | I14: 0.2809 | J14: 1.372035 | K14: 0.28494 | L14: 0.19946 | M14: 0.52026 | N14: 0.36738 | O14: 0.2493233333 | P14: 0.45656 | AD14: 2018 | AF14: 8 | AG14: Caraguatatuba | AH14: 0 | AL14: =AL13 -> 2 | AM14: =AM13 -> 2 | AN14: 6 | AP14: A4 - 2,3 kV a 25 kV | AQ14: 0 | AR14: 0 | AS14: 0 | AT14: 0 | AU14: 0 | AV14: 0 | AW14: =AS14+AT14 -> 0 | AX14: =AU14+AV14 -> 0
A15: 3 | B15: Comércio e Serviços | H15: 0.4 | I15: 0.3136 | J15: 1.71696 | K15: 0.29727 | L15: 0.20809 | M15: 0.71014 | N15: 0.50146 | O15: 0.2601116667 | P15: 0.62319 | AD15: 2019 | AF15: 9 | AG15: Cruzeiro | AH15: 0 | AL15: =AL14 -> 2 | AM15: =AM13 -> 2 | AN15: 7 | AP15: B1 - Residencial | AQ15: 0 | AR15: 0 | AW15: =AS15+AT15 -> 0 | AX15: =AU15+AV15 -> 0
A16: 4 | B16: Poder Público | H16: 0.45 | I16: 0.3481 | J16: 2.099115 | K16: 0.31014 | L16: 0.2171 | M16: 0.9213 | N16: 0.65057 | O16: 0.2713733333 | P16: 0.8084958333 | AD16: 2020 | AF16: 10 | AG16: Ferraz de Vasconcelos | AH16: 0 | AL16: 2 | AM16: =AM13 -> 2 | AN16: 8 | AP16: B2 - Rural | AQ16: 0 | AR16: 0 | AW16: 0 | AX16: 0
A17: 5 | B17: Serviços Públicos | H17: 0.5 | I17: 0.3844 | J17: 2.5185 | K17: 0.32355 | L17: 0.22649 | M17: 1.15375 | N17: 0.81472 | O17: 0.2831083333 | P17: 1.0124875 | AD17: 2021 | AF17: 11 | AG17: Guararema | AH17: 0 | AL17: 2 | AM17: =AM13 -> 2 | AN17: 9 | AP17: B2 - Cooperativa | AQ17: 0 | AR17: 0 | AW17: 0 | AX17: 0
A18: 6 | B18: Rural | H18: 0.55 | I18: 0.4225 | J18: 2.975115 | K18: 0.3375 | L18: 0.23625 | M18: 1.40748 | N18: 0.99389 | O18: 0.2953125 | P18: 1.235150833 | AD18: 2022 | AF18: 12 | AG18: Guaratinguetá | AH18: 0 | AL18: 2 | AM18: =AM14 -> 2 | AN18: 10 | AP18: B2 - Irrigação | AQ18: 0 | AR18: 0 | AW18: 0 | AX18: 0
A19: 7 | B19: Residencial | H19: 0.6 | I19: 0.4624 | J19: 3.46896 | K19: 0.35199 | L19: 0.24639 | M19: 1.68249 | N19: 1.18808 | O19: 0.30799 | P19: 1.476485833 | AD19: 2023 | AF19: 13 | AG19: Guarulhos | AH19: 0 | AL19: 2 | AM19: =AM15 -> 2 | AN19: 11 | AP19: B3 - Demais Classes | AQ19: 0 | AR19: 0 | AW19: =AS19+AT19 -> 0 | AX19: =AU19+AV19 -> 0
A20: 9 | B20: Iluminação Pública | H20: 0.65 | I20: 0.5041 | J20: 4.000035 | K20: 0.3695 | L20: 0.25865 | M20: 1.97632 | N20: 1.39557 | O20: 0.3233125 | P20: 1.734340833 | AD20: 2024 | AF20: 14 | AG20: Itaquaquecetuba | AH20: 0 | AL20: 2 | AM20: =AM16 -> 2 | AN20: 12 | AP20: B4 - IP | AQ20: 0 | AR20: 0 | AW20: 0 | AX20: 0
H21: 0.7 | I21: 0.5476 | J21: 4.56834 | K21: 0.38516 | L21: 0.26961 | M21: 2.29381 | N21: 1.61977 | O21: 0.3370141667 | P21: 2.01296 | AD21: 2025 | AF21: 15 | AG21: Jacareí | AH21: 0 | AL21: =AL17 -> 2 | AM21: 3 | AN21: 2 | AO21: Tarifa Azul | AP21: A1 - ≥ 230 kV | AQ21: 0 | AR21: 0 | AS21: 0 | AT21: 0 | AU21: 0 | AV21: 0 | AW21: 0 | AX21: 0
H22: 0.75 | I22: 0.5929 | J22: 5.17388 | K22: 0.40136 | L22: 0.28095 | M22: 2.63258 | N22: 1.85899 | O22: 0.3511891667 | P22: 2.310250833 | AD22: 2026 | AF22: 16 | AG22: Jambeiro | AH22: 0 | AL22: =AL17 -> 2 | AM22: =AM21 -> 3 | AN22: 3 | AP22: A2 - 88 a 138 kV | AW22: 0 | AX22: 0
B23: Tabela de Subgrupo Tarifário | H23: 0.8 | I23: 0.64 | J23: 5.81664 | K23: 0.418095 | L23: 0.292667 | M23: 2.992639 | N23: 2.11324 | O23: 0.3658333333 | P23: 2.62622275 | AD23: 2027 | AF23: 17 | AG23: Lorena | AH23: 0 | AL23: =AL22 -> 2 | AM23: =AM21 -> 3 | AN23: 4 | AP23: A3 - 69 kV | AW23: 0 | AX23: 0
B24: Subgrupo | D24: Código | E24: Fator CED | F24: Fator CEE | H24: 0.85 | I24: 0.6889 | J24: 6.496635 | K24: 0.435375 | L24: 0.304763 | M24: 3.373977 | N24: 2.38252 | O24: 0.3809533333 | P24: 2.960869917 | AF24: 18 | AG24: Mogi das Cruzes | AH24: 0 | AL24: =AL23 -> 2 | AM24: =AM23 -> 3 | AN24: 5 | AP24: A3a - 30 a 44 kV | AW24: =AS24+AT24 -> 0 | AX24: =AU24+AV24 -> 0
B25: Selecione o Subgrupo | D25: 0 | H25: 0.9 | I25: 0.7396 | J25: 7.21386 | K25: 0.453195 | L25: 0.317237 | M25: 3.776599 | N25: 2.66683 | O25: 0.3965458333 | P25: 3.31419525 | AF25: 19 | AG25: Monteiro Lobato | AH25: 0 | AL25: =AL24 -> 2 | AM25: =AM24 -> 3 | AN25: 6 | AP25: A4 - 2,3 kV a 25 kV | AW25: =AS25+AT25 -> 0 | AX25: =AU25+AV25 -> 0
B26: A1 - ≥ 230 kV | D26: 0 | E26: 1 | F26: 1 | AF26: 20 | AG26: Pindamonhangaba | AH26: 0 | AL26: =AL25 -> 2 | AM26: 4 | AN26: 5 | AO26: Tarifa Verde | AP26: A3a - 30 a 44 kV | AW26: 0 | AX26: 0
B27: A2 - 88 a 138 kV | D27: 1 | E27: 1 | F27: 1 | H27: Fator de Carga | I27: LP | J27: LE | K27: LE1 | L27: LE2 | M27: LE3 | N27: LE4 | O27: LEp | P27: LEfp | AF27: 21 | AG27: Poá | AH27: 0 | AL27: =AL26 -> 2 | AM27: 4 | AN27: 6 | AP27: A4 - 2,3 kV a 25 kV | AW27: 0 | AX27: 0
B28: A3 - 69 kV | D28: 0 | E28: 1 | F28: 1 | H28: =Apresentação!N7 -> 0.75 | I28: =VLOOKUP($H$28,$H$9:$P$25,2,FALSE) -> 0.5929 | J28: =VLOOKUP($H$28,$H$9:$P$25,3,FALSE) -> 5.17388 | K28: =VLOOKUP($H$28,$H$9:$P$25,4,FALSE) -> 0.40136 | L28: =VLOOKUP($H$28,$H$9:$P$25,5,FALSE) -> 0.28095 | M28: =VLOOKUP($H$28,$H$9:$P$25,6,FALSE) -> 2.63258 | N28: =VLOOKUP($H$28,$H$9:$P$25,7,FALSE) -> 1.85899 | O28: =VLOOKUP($H$28,$H$9:$P$25,8,FALSE) -> 0.3511891667 | P28: =VLOOKUP($H$28,$H$9:$P$25,9,FALSE) -> 2.310250833 | AF28: 22 | AG28: Potim | AH28: 0 | AL28: =AL27 -> 2 | AM28: 5 | AN28: 7 | AO28: Tarifa Branca | AP28: B1 - Residencial | AW28: =AT28 -> 0 | AX28: =AV28 -> 0
B29: A3a - 30 a 44 kV | D29: 2 | E29: 1 | F29: 1 | AF29: 23 | AG29: Roseira | AH29: 0 | AL29: 2 | AM29: 5 | AN29: 8 | AP29: B2 - Rural | AW29: =AT29 -> 0 | AX29: =AV29 -> 0
B30: A4 - 2,3 kV a 25 kV | D30: 3 | E30: 1 | F30: 1 | AF30: 24 | AG30: Salesópolis | AH30: 0 | AL30: 2 | AM30: 5 | AN30: 9 | AP30: B2 - Cooperativa | AW30: =AT30 -> 0 | AX30: =AV30 -> 0
B31: B1 - Residencial | D31: 4 | E31: 1.2 | F31: 1.08 | H31: As linhas destacadas referem-se a valores de fator de carga atípicos, devendo, | AF31: 25 | AG31: Santa Branca | AH31: 0 | AL31: 2 | AM31: 5 | AN31: 10 | AP31: B2 - Irrigação | AW31: =AT31 -> 0 | AX31: =AV31 -> 0
B32: B2 - Rural | D32: 0 | E32: 1.2 | F32: 1.08 | H32: portanto, quando utilizados pela concessionária/permissionária, | AF32: 26 | AG32: São José dos Campos | AH32: 0 | AL32: 2 | AM32: 5 | AN32: 11 | AP32: B3 - Demais Classes | AW32: =AT32 -> 0 | AX32: =AV32 -> 0
B33: B2 - Cooperativa | D33: 0 | E33: 1.2 | F33: 1.08 | H33: serem apresentadas as devidas justificativas | AF33: 27 | AG33: São Sebastião | AH33: 0 | AL33: 2 | AM33: 5 | AN33: 12 | AP33: B4 - IP
B34: B2 - Irrigação | D34: 0 | E34: 1.2 | F34: 1.08 | K34: BR B1 | L34: AZ A4 | M34: BR B3 | AF34: 28 | AG34: Suzano | AH34: 0 | AK34: 2016 | AL34: 3 | AM34: 2 | AN34: 5 | AO34: Convencional | AP34: A3a - 30 a 44 kV | AW34: =AS34+AT34 -> 0 | AX34: =AU34+AV34 -> 0
B35: B3 - Demais Classes | D35: 5 | E35: 1.2 | F35: 1.08 | H35: CEE | I35: =V7 -> 797.57 | AF35: 29 | AG35: Taubaté | AH35: 0 | AL35: =AL34 -> 3 | AM35: 2 | AN35: 6 | AP35: A4 - 2,3 kV a 25 kV | AW35: 0 | AX35: 0
B36: B4 - IP | D36: 0 | E36: 1.2 | F36: 1.08 | H36: CED | I36: =W7 -> 1906.44 | AF36: 30 | AG36: Tremembé | AH36: 0 | AL36: 3 | AM36: =AM34 -> 2 | AN36: 7 | AP36: B1 - Residencial | AW36: 0 | AX36: 0
AF37: 31 | AG37: Ibitirama | AH37: 0 | AL37: 3 | AM37: =AM34 -> 2 | AN37: 8 | AP37: B2 - Rural | AW37: 0 | AX37: 0
B38: Tabela de Tarifas | H38: Retorno do Investimento | J38: =IF(Apresentação!M4>3,0,IF(Apresentação!E16=1,0,IF(Apresentação!E16=2,0.8,1))) -> 0 | AF38: 32 | AG38: Iconha | AH38: 0 | AL38: 3 | AM38: =AM34 -> 2 | AN38: 9 | AP38: B2 - Cooperativa | AW38: 0 | AX38: 0
B39: Selecione a Tarifa | AF39: 33 | AG39: Irupi | AH39: 0 | AL39: 3 | AM39: =AM35 -> 2 | AN39: 10 | AP39: B2 - Irrigação | AW39: 0 | AX39: 0
B40: Convencional | AF40: 34 | AG40: Itaguaçu | AH40: 0 | AL40: 3 | AM40: =AM36 -> 2 | AN40: 11 | AP40: B3 - Demais Classes | AW40: 0 | AX40: 0
B41: Tarifa Azul | AF41: 35 | AG41: Itapemirim | AH41: 0 | AL41: 3 | AM41: =AM37 -> 2 | AN41: 12 | AP41: B4 - IP | AW41: 0 | AX41: 0
B42: Tarifa Verde | AF42: 36 | AG42: Itarana | AH42: 0 | AL42: =AL38 -> 3 | AM42: 3 | AN42: 2 | AO42: Tarifa Azul | AP42: A1 - ≥ 230 kV | AX42: 0
B43: Tarifa Branca | AF43: 37 | AG43: Iúna | AH43: 0 | AL43: =AL38 -> 3 | AM43: =AM42 -> 3 | AN43: 3 | AP43: A2 - 88 a 138 kV | AW43: 0 | AX43: 0
B44: Consumidor Livre | H44: NIVEIS DE TENSÃO | I44: CEE (R$/MWh) | J44: CED (R$/kW ano) | AF44: 38 | AG44: Jaguaré | AH44: 0 | AL44: =AL43 -> 3 | AM44: =AM42 -> 3 | AN44: 4 | AP44: A3 - 69 kV | AW44: 0 | AX44: 0
H45: A2 88 a 138 kV | I45: 414.4 | J45: 304.61 | K45: 1 | AF45: 39 | AG45: Jerônimo Monteiro | AH45: 0 | AL45: 3 | AM45: 3 | AN45: 5 | AP45: A3a - 30 a 44 kV | AW45: 0 | AX45: 0
B46: Tipo de Atividade | H46: A3a 30 kV a 44 kV | I46: 469.32 | J46: 669.32 | K46: 2 | AF46: 40 | AG46: João Neiva | AH46: 0 | AL46: 3 | AM46: 3 | AN46: 6 | AP46: A4 - 2,3 kV a 25 kV | AW46: 0 | AX46: 0
A47: 1 | B47: Selecione o tipo de atividade | H47: A4 2,3 kV a 25 kV | I47: 469.32 | J47: 662.79 | K47: 3 | AF47: 41 | AG47: Laranja da Terra | AH47: 0 | AL47: 3 | AM47: 4 | AN47: 5 | AO47: Tarifa Verde | AP47: A3a - 30 a 44 kV | AW47: 0 | AX47: 0
A48: 2 | B48: Contrato de Desempenho | H48: B1 Residencial | I48: 751.05 | J48: 1678 | K48: 4 | AF48: 42 | AG48: Linhares | AH48: 0 | AL48: 3 | AM48: 4 | AN48: 6 | AP48: A4 - 2,3 kV a 25 kV | AW48: 0 | AX48: 0
A49: 3 | B49: Fundo Perdido | H49: B3 Demais Classes | I49: 797.57 | J49: 1906.44 | K49: 5 | AF49: 43 | AG49: Mantenópolis | AH49: 0 | AL49: 3 | AM49: 5 | AN49: 7 | AO49: Tarifa Branca | AP49: B1 - Residencial | AW49: 0 | AX49: 0
AF50: 44 | AG50: Marataízes | AH50: 0 | AL50: 3 | AM50: 5 | AN50: 8 | AP50: B2 - Rural | AW50: 0 | AX50: 0
B51: Horas de Ponta em um mês: | AF51: 45 | AG51: Marechal Floriano | AH51: 0 | AL51: 3 | AM51: 5 | AN51: 9 | AP51: B2 - Cooperativa | AW51: 0 | AX51: 0
B52: Horas Fora da Ponta em um mês: | AF52: 46 | AG52: Marilândia | AH52: 0 | AL52: =AL51 -> 3 | AM52: 5 | AN52: 10 | AP52: B2 - Irrigação | AW52: 0 | AX52: 0
AF53: 47 | AG53: Mimoso do Sul | AH53: 0 | AL53: 3 | AM53: 5 | AN53: 11 | AP53: B3 - Demais Classes | AW53: 0 | AX53: 0
B54: AQUECIMENTO SOLAR DE ÁGUA | AF54: 48 | AG54: Montanha | AH54: 0 | AL54: 3 | AM54: 5 | AN54: 12 | AP54: B4 - IP | AW54: 0 | AX54: 0
B55: Cidade | D55: Fator de correção | AF55: 49 | AG55: Mucurici | AH55: 0 | AK55: 2017 | AL55: 4 | AM55: 2 | AN55: 5 | AO55: Convencional | AP55: A3a - 30 a 44 kV | AW55: 0 | AX55: 0
B56: ARACAJU | C56: 1 | D56: 0.84 | AF56: 50 | AG56: Muniz Freire | AH56: 0 | AL56: =AL55 -> 4 | AM56: 2 | AN56: 6 | AP56: A4 - 2,3 kV a 25 kV | AW56: 0 | AX56: 0
B57: BELÉM | C57: 2 | D57: 0.65 | AF57: 51 | AG57: Muqui | AH57: 0 | AL57: 4 | AM57: =AM55 -> 2 | AN57: 7 | AP57: B1 - Residencial | AW57: 0 | AX57: 0
B58: BELO HORIZONTE | C58: 3 | D58: 0.68 | AF58: 52 | AG58: Nova Venécia | AH58: 0 | AL58: 4 | AM58: =AM55 -> 2 | AN58: 8 | AP58: B2 - Rural | AW58: 0 | AX58: 0
B59: BRASÍLIA | C59: 4 | D59: 0.7 | AF59: 53 | AG59: Pancas | AH59: 0 | AL59: 4 | AM59: =AM55 -> 2 | AN59: 9 | AP59: B2 - Cooperativa | AW59: 0 | AX59: 0
B60: CAMPO GRANDE | C60: 5 | D60: 0.73 | AF60: 54 | AG60: Pedro Canário | AH60: 0 | AL60: 4 | AM60: =AM56 -> 2 | AN60: 10 | AP60: B2 - Irrigação | AW60: 0 | AX60: 0
B61: CUIABÁ | C61: 6 | D61: 0.74 | AF61: 55 | AG61: Pinheiros | AH61: 0 | AL61: 4 | AM61: =AM57 -> 2 | AN61: 11 | AP61: B3 - Demais Classes | AW61: 0 | AX61: 0
B62: CURITIBA | C62: 7 | D62: 0.49 | AF62: 56 | AG62: Piúma | AH62: 0 | AL62: 4 | AM62: =AM58 -> 2 | AN62: 12 | AP62: B4 - IP | AW62: 0 | AX62: 0
B63: FLORIANÓPOLIS | C63: 8 | D63: 0.55 | AF63: 57 | AG63: Ponto Belo | AH63: 0 | AL63: =AL59 -> 4 | AM63: 3 | AN63: 2 | AO63: Tarifa Azul | AP63: A1 - ≥ 230 kV
B64: FORTALEZA | C64: 9 | D64: 0.82 | AF64: 58 | AG64: Presidente Kennedy | AH64: 0 | AL64: =AL59 -> 4 | AM64: =AM63 -> 3 | AN64: 3 | AP64: A2 - 88 a 138 kV
B65: GOIÂNIA | C65: 10 | D65: 0.78 | AF65: 59 | AG65: Rio Bananal | AH65: 0 | AL65: =AL64 -> 4 | AM65: =AM63 -> 3 | AN65: 4 | AP65: A3 - 69 kV
B66: JOÃO PESSOA | C66: 11 | D66: 0.76 | AF66: 60 | AG66: Rio Novo do Sul | AH66: 0 | AL66: 4 | AM66: 3 | AN66: 5 | AP66: A3a - 30 a 44 kV
B67: MACAPÁ | C67: 12 | D67: 0.7 | AF67: 61 | AG67: Santa Leopoldina | AH67: 0 | AL67: 4 | AM67: 3 | AN67: 6 | AP67: A4 - 2,3 kV a 25 kV
B68: MACEIÓ | C68: 13 | D68: 0.8 | AF68: 62 | AG68: Santa Maria de Jetibá | AH68: 0 | AL68: 4 | AM68: 4 | AN68: 5 | AO68: Tarifa Verde | AP68: A3a - 30 a 44 kV
B69: MANAUS | C69: 14 | D69: 0.55 | AF69: 63 | AG69: Santa Teresa | AH69: 0 | AL69: 4 | AM69: 4 | AN69: 6 | AP69: A4 - 2,3 kV a 25 kV
B70: NATAL | C70: 15 | D70: 0.81 | AF70: 64 | AG70: São Gabriel da Palha | AH70: 0 | AL70: 4 | AM70: 5 | AN70: 7 | AO70: Tarifa Branca | AP70: B1 - Residencial
B71: PORTO ALEGRE | C71: 16 | D71: 0.57 | AF71: 65 | AG71: São José do Calçado | AH71: 0 | AL71: 4 | AM71: 5 | AN71: 8 | AP71: B2 - Rural
B72: PORTO NACIONAL | C72: 17 | D72: 0.74 | AF72: 66 | AG72: São Mateus | AH72: 0 | AL72: 4 | AM72: 5 | AN72: 9 | AP72: B2 - Cooperativa
B73: PORTO VELHO | C73: 18 | D73: 0.6 | AF73: 67 | AG73: Serra | AH73: 0 | AL73: 4 | AM73: 5 | AN73: 10 | AP73: B2 - Irrigação
B74: RECIFE | C74: 19 | D74: 0.77 | AF74: 68 | AG74: Sooretama | AH74: 0 | AL74: 4 | AM74: 5 | AN74: 11 | AP74: B3 - Demais Classes
B75: RIBEIRÃO PRETO | C75: 20 | D75: 0.69 | AF75: 69 | AG75: Vargem Alta | AH75: 0 | AL75: 4 | AM75: 5 | AN75: 12 | AP75: B4 - IP
B76: RIO DE JANEIRO | C76: 21 | D76: 0.6 | AF76: 70 | AG76: Venda Nova do Imigrante | AH76: 0 | AK76: 2018 | AL76: 5 | AM76: 2 | AN76: 5 | AO76: Convencional | AP76: A3a - 30 a 44 kV | AW76: =AS76+AT76 -> 0 | AX76: =AU76+AV76 -> 0
B77: SALVADOR | C77: 22 | D77: 0.7 | AF77: 71 | AG77: Viana | AH77: 0 | AL77: =AL76 -> 5 | AM77: 2 | AN77: 6 | AP77: A4 - 2,3 kV a 25 kV | AW77: 0 | AX77: 0
B78: SÃO LUÍS | C78: 23 | D78: 0.73 | AF78: 72 | AG78: Vila Pavão | AH78: 0 | AL78: 5 | AM78: =AM76 -> 2 | AN78: 7 | AP78: B1 - Residencial | AW78: 0 | AX78: 0
B79: SÃO PAULO | C79: 24 | D79: 0.5 | AF79: 73 | AG79: Vila Valério | AH79: 0 | AL79: 5 | AM79: =AM76 -> 2 | AN79: 8 | AP79: B2 - Rural | AW79: 0 | AX79: 0
B80: TERESINA | C80: 25 | D80: 0.86 | AF80: 74 | AG80: Vila Velha | AH80: 0 | AL80: 5 | AM80: =AM76 -> 2 | AN80: 9 | AP80: B2 - Cooperativa | AW80: 0 | AX80: 0
B81: VITÓRIA | C81: 26 | D81: 0.65 | AF81: 75 | AG81: Vitória | AH81: 0 | AL81: 5 | AM81: =AM77 -> 2 | AN81: 10 | AP81: B2 - Irrigação | AW81: 0 | AX81: 0
B82: Condições: | AL82: 5 | AM82: =AM78 -> 2 | AN82: 11 | AP82: B3 - Demais Classes | AW82: 0 | AX82: 0
B83: Temperatura de armazenamento = 40°C | AL83: 5 | AM83: =AM79 -> 2 | AN83: 12 | AP83: B4 - IP | AW83: 0 | AX83: 0
B84: Volume armazenado = Volume consumido | AL84: =AL80 -> 5 | AM84: 3 | AN84: 2 | AO84: Tarifa Azul | AP84: A1 - ≥ 230 kV | AW84: 0 | AX84: 0
AL85: =AL80 -> 5 | AM85: =AM84 -> 3 | AN85: 3 | AP85: A2 - 88 a 138 kV | AW85: 0 | AX85: 0
B86: =SolarBenef!M14 -> 0 | C86: =VLOOKUP(B86,C55:D81,2,FALSE) ->  | AL86: =AL85 -> 5 | AM86: =AM84 -> 3 | AN86: 4 | AP86: A3 - 69 kV | AW86: 0 | AX86: 0
AL87: 5 | AM87: 3 | AN87: 5 | AP87: A3a - 30 a 44 kV | AQ87: 0 | AR87: 0 | AS87: 0 | AT87: 0 | AU87: 0 | AV87: 0 | AW87: 0 | AX87: 0
AL88: 5 | AM88: 3 | AN88: 6 | AP88: A4 - 2,3 kV a 25 kV | AQ88: 68.16 | AR88: 22.83 | AS88: 52.53 | AT88: 431.6 | AU88: 52.53 | AV88: 267.1 | AW88: 484.13 | AX88: 319.63
AL89: 5 | AM89: 4 | AN89: 5 | AO89: Tarifa Verde | AP89: A3a - 30 a 44 kV | AW89: 0 | AX89: 0
AL90: 5 | AM90: 4 | AN90: 6 | AP90: A4 - 2,3 kV a 25 kV | AW90: 0 | AX90: 0
AL91: 5 | AM91: 5 | AN91: 7 | AO91: Tarifa Branca | AP91: B1 - Residencial | AQ91: 0 | AR91: 0 | AS91: 971.1 | AT91: 431.6 | AU91: 261.84 | AV91: 267.1 | AW91: 1402.7 | AX91: 528.94
AL92: 5 | AM92: 5 | AN92: 8 | AP92: B2 - Rural | AQ92: 0 | AR92: 0 | AW92: 0 | AX92: 0
AL93: 5 | AM93: 5 | AN93: 9 | AP93: B2 - Cooperativa | AQ93: 0 | AR93: 0 | AW93: 0 | AX93: 0
AL94: 5 | AM94: 5 | AN94: 10 | AP94: B2 - Irrigação | AQ94: 0 | AR94: 0 | AW94: 0 | AX94: 0
AL95: 5 | AM95: 5 | AN95: 11 | AP95: B3 - Demais Classes | AQ95: 0 | AR95: 0 | AS95: 1000.17 | AT95: 431.6 | AU95: 267.66 | AV95: 267.1 | AW95: 1431.77 | AX95: 534.76
AL96: 5 | AM96: 5 | AN96: 12 | AP96: B4 - IP | AS96: 1000.17 | AT96: 431.6 | AU96: 267.66 | AV96: 267.1 | AW96: 1431.77 | AX96: 534.76
AK97: 2019 | AL97: 6 | AM97: 2 | AN97: 5 | AO97: Convencional | AP97: A3a - 30 a 44 kV | AW97: =AS97+AT97 -> 0 | AX97: =AU97+AV97 -> 0
AL98: =AL97 -> 6 | AM98: 2 | AN98: 6 | AP98: A4 - 2,3 kV a 25 kV | AW98: 0 | AX98: 0
AL99: 6 | AM99: =AM97 -> 2 | AN99: 7 | AP99: B1 - Residencial | AW99: 0 | AX99: 0
AL100: 6 | AM100: =AM97 -> 2 | AN100: 8 | AP100: B2 - Rural | AW100: 0 | AX100: 0
AL101: 6 | AM101: =AM97 -> 2 | AN101: 9 | AP101: B2 - Cooperativa | AW101: 0 | AX101: 0
AL102: 6 | AM102: =AM98 -> 2 | AN102: 10 | AP102: B2 - Irrigação | AW102: 0 | AX102: 0
AL103: 6 | AM103: =AM99 -> 2 | AN103: 11 | AP103: B3 - Demais Classes | AW103: 0 | AX103: 0
AL104: 6 | AM104: =AM100 -> 2 | AN104: 12 | AP104: B4 - IP | AW104: 0 | AX104: 0
AL105: =AL101 -> 6 | AM105: 3 | AN105: 2 | AO105: Tarifa Azul | AP105: A1 - ≥ 230 kV | AW105: 0 | AX105: 0
AL106: =AL101 -> 6 | AM106: =AM105 -> 3 | AN106: 3 | AP106: A2 - 88 a 138 kV | AW106: 0 | AX106: 0
AL107: =AL106 -> 6 | AM107: =AM105 -> 3 | AN107: 4 | AP107: A3 - 69 kV | AW107: 0 | AX107: 0
AL108: 6 | AM108: 3 | AN108: 5 | AP108: A3a - 30 a 44 kV | AW108: 0 | AX108: 0
AL109: 6 | AM109: 3 | AN109: 6 | AP109: A4 - 2,3 kV a 25 kV | AQ109: 43.52 | AR109: 15.87 | AS109: 68.52 | AT109: 363.74 | AU109: 68.52 | AV109: 219.07 | AW109: 432.26 | AX109: 287.59
AL110: 6 | AM110: 4 | AN110: 5 | AO110: Tarifa Verde | AP110: A3a - 30 a 44 kV | AW110: 0 | AX110: 0
AL111: 6 | AM111: 4 | AN111: 6 | AP111: A4 - 2,3 kV a 25 kV | AW111: 0 | AX111: 0
AL112: 6 | AM112: 5 | AN112: 7 | AO112: Tarifa Branca | AP112: B1 - Residencial | AQ112: 0 | AS112: 759.85 | AT112: 363.74 | AU112: 233.24 | AV112: 219.07 | AW112: 1123.59 | AX112: 452.31
AL113: 6 | AM113: 5 | AN113: 8 | AP113: B2 - Rural | AW113: 0 | AX113: 0
AL114: 6 | AM114: 5 | AN114: 9 | AP114: B2 - Cooperativa | AW114: 0 | AX114: 0
AL115: 6 | AM115: 5 | AN115: 10 | AP115: B2 - Irrigação | AW115: 0 | AX115: 0
AL116: 6 | AM116: 5 | AN116: 11 | AP116: B3 - Demais Classes | AS116: 749.73 | AT116: 363.74 | AU116: 231.22 | AV116: 219.07 | AW116: 1113.47 | AX116: 450.29
AL117: 6 | AM117: 5 | AN117: 12 | AP117: B4 - IP | AS117: 749.73 | AT117: 363.74 | AU117: 231.22 | AV117: 219.07 | AW117: =AS117+AT117 -> 1113.47 | AX117: =AU117+AV117 -> 450.29
AK118: 2020 | AL118: 7 | AM118: 2 | AN118: 5 | AO118: Convencional | AP118: A3a - 30 a 44 kV | AW118: =AS118+AT118 -> 0 | AX118: =AU118+AV118 -> 0
AL119: =AL118 -> 7 | AM119: 2 | AN119: 6 | AP119: A4 - 2,3 kV a 25 kV | AW119: 0 | AX119: 0
AL120: 7 | AM120: =AM118 -> 2 | AN120: 7 | AP120: B1 - Residencial | AW120: 0 | AX120: 0
AL121: 7 | AM121: =AM118 -> 2 | AN121: 8 | AP121: B2 - Rural | AW121: 0 | AX121: 0
AL122: 7 | AM122: =AM118 -> 2 | AN122: 9 | AP122: B2 - Cooperativa | AW122: 0 | AX122: 0
AL123: 7 | AM123: =AM119 -> 2 | AN123: 10 | AP123: B2 - Irrigação | AW123: 0 | AX123: 0
AL124: 7 | AM124: =AM120 -> 2 | AN124: 11 | AP124: B3 - Demais Classes | AW124: 0 | AX124: 0
AL125: 7 | AM125: =AM121 -> 2 | AN125: 12 | AP125: B4 - IP | AW125: 0 | AX125: 0
AL126: =AL122 -> 7 | AM126: 3 | AN126: 2 | AO126: Tarifa Azul | AP126: A1 - ≥ 230 kV | AW126: 0 | AX126: 0
AL127: =AL122 -> 7 | AM127: =AM126 -> 3 | AN127: 3 | AP127: A2 - 88 a 138 kV | AW127: 0 | AX127: 0
AL128: =AL127 -> 7 | AM128: =AM126 -> 3 | AN128: 4 | AP128: A3 - 69 kV | AW128: 0 | AX128: 0
AL129: 7 | AM129: 3 | AN129: 5 | AP129: A3a - 30 a 44 kV | AW129: 0 | AX129: 0
AL130: 7 | AM130: 3 | AN130: 6 | AP130: A4 - 2,3 kV a 25 kV | AQ130: =61.1 -> 61.1 | AR130: =22.19 -> 22.19 | AS130: =71.32 -> 71.32 | AT130: =331.19 -> 331.19 | AU130: =71.32 -> 71.32 | AV130: =197.09 -> 197.09 | AW130: 402.51 | AX130: 268.41
AL131: 7 | AM131: 4 | AN131: 5 | AO131: Tarifa Verde | AP131: A3a - 30 a 44 kV | AW131: 0 | AX131: 0
AL132: 7 | AM132: 4 | AN132: 6 | AP132: A4 - 2,3 kV a 25 kV | AW132: 0 | AX132: 0
AL133: 7 | AM133: 5 | AN133: 7 | AO133: Tarifa Branca | AP133: B1 - Residencial | AS133: =1000.64 -> 1000.64 | AT133: =331.19 -> 331.19 | AU133: =282.56 -> 282.56 | AV133: =197.09 -> 197.09 | AW133: 1331.83 | AX133: 479.65
AL134: 7 | AM134: 5 | AN134: 8 | AP134: B2 - Rural | AW134: 0 | AX134: 0
AL135: 7 | AM135: 5 | AN135: 9 | AP135: B2 - Cooperativa | AW135: 0 | AX135: 0
AL136: 7 | AM136: 5 | AN136: 10 | AP136: B2 - Irrigação | AW136: 0 | AX136: 0
AL137: 7 | AM137: 5 | AN137: 11 | AP137: B3 - Demais Classes | AS137: =1000.64 -> 1000.64 | AT137: =331.19 -> 331.19 | AU137: =282.56 -> 282.56 | AV137: =197.09 -> 197.09 | AW137: 1331.83 | AX137: 479.65
AL138: 7 | AM138: 5 | AN138: 12 | AP138: B4 - IP | AS138: =1000.64 -> 1000.64 | AT138: =331.19 -> 331.19 | AU138: =282.56 -> 282.56 | AV138: =197.09 -> 197.09 | AW138: 1331.83 | AX138: 479.65
AK139: 2021 | AL139: 8 | AM139: 2 | AN139: 5 | AO139: Convencional | AP139: A3a - 30 a 44 kV | AW139: =AS139+AT139 -> 0 | AX139: =AU139+AV139 -> 0
AL140: =AL139 -> 8 | AM140: 2 | AN140: 6 | AP140: A4 - 2,3 kV a 25 kV | AW140: 0 | AX140: 0
AL141: 8 | AM141: =AM139 -> 2 | AN141: 7 | AP141: B1 - Residencial | AW141: 0 | AX141: 0
AL142: 8 | AM142: =AM139 -> 2 | AN142: 8 | AP142: B2 - Rural | AW142: 0 | AX142: 0
AL143: 8 | AM143: =AM139 -> 2 | AN143: 9 | AP143: B2 - Cooperativa | AW143: 0 | AX143: 0
AL144: 8 | AM144: =AM140 -> 2 | AN144: 10 | AP144: B2 - Irrigação | AW144: 0 | AX144: 0
AL145: 8 | AM145: =AM141 -> 2 | AN145: 11 | AP145: B3 - Demais Classes | AW145: 0 | AX145: 0
AL146: 8 | AM146: =AM142 -> 2 | AN146: 12 | AP146: B4 - IP | AS146: 206.27 | AT146: 114.55 | AU146: 206.27 | AV146: 114.55 | AW146: 320.82 | AX146: 320.82
AL147: =AL143 -> 8 | AM147: 3 | AN147: 2 | AO147: Tarifa Azul | AP147: A1 - ≥ 230 kV | AW147: 0 | AX147: 0
AL148: =AL143 -> 8 | AM148: =AM147 -> 3 | AN148: 3 | AP148: A2 - 88 a 138 kV | AW148: 0 | AX148: 0
AL149: =AL148 -> 8 | AM149: =AM147 -> 3 | AN149: 4 | AP149: A3 - 69 kV | AQ149: 24.75 | AR149: 14.75 | AS149: 39.86 | AT149: 331.19 | AU149: 39.86 | AV149: 197.09 | AW149: 371.05 | AX149: 236.95
AL150: 8 | AM150: 3 | AN150: 5 | AP150: A3a - 30 a 44 kV | AW150: 0 | AX150: 0
AL151: 8 | AM151: 3 | AN151: 6 | AP151: A4 - 2,3 kV a 25 kV | AQ151: 61.1 | AR151: 22.19 | AS151: 71.32 | AT151: 331.19 | AU151: 71.32 | AV151: 197.09 | AW151: 402.51 | AX151: 268.41
AL152: 8 | AM152: 4 | AN152: 5 | AO152: Tarifa Verde | AP152: A3a - 30 a 44 kV | AW152: 0 | AX152: 0
AL153: 8 | AM153: 4 | AN153: 6 | AP153: A4 - 2,3 kV a 25 kV | AW153: 0 | AX153: 0
AL154: 8 | AM154: 5 | AN154: 7 | AO154: Tarifa Branca | AP154: B1 - Residencial | AW154: 0 | AX154: 0
AL155: 8 | AM155: 5 | AN155: 8 | AP155: B2 - Rural | AW155: 0 | AX155: 0
AL156: 8 | AM156: 5 | AN156: 9 | AP156: B2 - Cooperativa | AW156: 0 | AX156: 0
AL157: 8 | AM157: 5 | AN157: 10 | AP157: B2 - Irrigação | AW157: 0 | AX157: 0
AL158: 8 | AM158: 5 | AN158: 11 | AP158: B3 - Demais Classes | AS158: 1000.64 | AT158: 331.19 | AU158: 282.56 | AV158: 197.09 | AW158: 1331.83 | AX158: 479.65
AL159: 8 | AM159: 5 | AN159: 12 | AP159: B4 - IP | AS159: =AS158 -> 1000.64 | AT159: =AT158 -> 331.19 | AU159: =AU158 -> 282.56 | AV159: =AV158 -> 197.09 | AW159: 1331.83 | AX159: 479.65
AK160: 2022 | AL160: 9 | AM160: 2 | AN160: 5 | AO160: Convencional | AP160: A3a - 30 a 44 kV | AW160: =AS160+AT160 -> 0 | AX160: =AU160+AV160 -> 0
AL161: =AL160 -> 9 | AM161: 2 | AN161: 6 | AP161: A4 - 2,3 kV a 25 kV | AW161: 0 | AX161: 0
AL162: 9 | AM162: =AM160 -> 2 | AN162: 7 | AP162: B1 - Residencial | AW162: 0 | AX162: 0
AL163: 9 | AM163: =AM160 -> 2 | AN163: 8 | AP163: B2 - Rural | AW163: 0 | AX163: 0
AL164: 9 | AM164: =AM160 -> 2 | AN164: 9 | AP164: B2 - Cooperativa | AW164: 0 | AX164: 0
AL165: 9 | AM165: =AM161 -> 2 | AN165: 10 | AP165: B2 - Irrigação | AW165: 0 | AX165: 0
AL166: 9 | AM166: =AM162 -> 2 | AN166: 11 | AP166: B3 - Demais Classes | AW166: 0 | AX166: 0
AL167: 9 | AM167: =AM163 -> 2 | AN167: 12 | AP167: B4 - IP | AW167: 0 | AX167: 0
AL168: =AL164 -> 9 | AM168: 3 | AN168: 2 | AO168: Tarifa Azul | AP168: A1 - ≥ 230 kV | AW168: 0 | AX168: 0
AL169: =AL164 -> 9 | AM169: =AM168 -> 3 | AN169: 3 | AP169: A2 - 88 a 138 kV | AW169: 0 | AX169: 0
AL170: =AL169 -> 9 | AM170: =AM168 -> 3 | AN170: 4 | AP170: A3 - 69 kV | AQ170: 30.34 | AR170: 16.34 | AS170: 76.24 | AT170: 423.9 | AU170: 76.24 | AV170: 271.14 | AW170: 500.14 | AX170: =AU170+AV170 -> 347.38
AL171: 9 | AM171: 3 | AN171: 5 | AP171: A3a - 30 a 44 kV | AW171: 0 | AX171: 0
AL172: 9 | AM172: 3 | AN172: 6 | AP172: A4 - 2,3 kV a 25 kV | AQ172: 69.26 | AR172: 24.67 | AS172: 117.59 | AT172: 423.9 | AU172: 117.59 | AV172: 271.14 | AW172: 541.49 | AX172: =AU172+AV172 -> 388.73
AL173: 9 | AM173: 4 | AN173: 5 | AO173: Tarifa Verde | AP173: A3a - 30 a 44 kV | AW173: 0 | AX173: 0
AL174: 9 | AM174: 4 | AN174: 6 | AP174: A4 - 2,3 kV a 25 kV | AW174: 0 | AX174: 0
AL175: 9 | AM175: 5 | AN175: 7 | AO175: Tarifa Branca | AP175: B1 - Residencial | AQ175: 0 | AR175: 0 | AS175: 1178.19 | AT175: 423.9 | AU175: 361.43 | AV175: 271.14 | AW175: 1602.09 | AX175: =AU175+AV175 -> 632.57
AL176: 9 | AM176: 5 | AN176: 8 | AP176: B2 - Rural | AW176: 0 | AX176: 0
AL177: 9 | AM177: 5 | AN177: 9 | AP177: B2 - Cooperativa | AW177: 0 | AX177: 0
AL178: 9 | AM178: 5 | AN178: 10 | AP178: B2 - Irrigação | AW178: 0 | AX178: 0
AL179: 9 | AM179: 5 | AN179: 11 | AP179: B3 - Demais Classes | AQ179: 0 | AR179: 0 | AS179: 1178.19 | AT179: 423.9 | AU179: 361.43 | AV179: 271.14 | AW179: 1602.09 | AX179: 632.57
AL180: 9 | AM180: 5 | AN180: 12 | AP180: B4 - IP
AK181: 2023 | AL181: 10 | AM181: 2 | AN181: 5 | AO181: Convencional | AP181: A3a - 30 a 44 kV | AW181: =AS181+AT181 -> 0 | AX181: =AU181+AV181 -> 0
AL182: =AL181 -> 10 | AM182: 2 | AN182: 6 | AP182: A4 - 2,3 kV a 25 kV | AW182: 0 | AX182: 0
AL183: 10 | AM183: =AM181 -> 2 | AN183: 7 | AP183: B1 - Residencial | AW183: 0 | AX183: 0
AL184: 10 | AM184: =AM181 -> 2 | AN184: 8 | AP184: B2 - Rural | AW184: 0 | AX184: 0
AL185: 10 | AM185: =AM181 -> 2 | AN185: 9 | AP185: B2 - Cooperativa | AW185: 0 | AX185: 0
AL186: 10 | AM186: =AM182 -> 2 | AN186: 10 | AP186: B2 - Irrigação | AW186: 0 | AX186: 0
AL187: 10 | AM187: =AM183 -> 2 | AN187: 11 | AP187: B3 - Demais Classes | AW187: 0 | AX187: 0
AL188: 10 | AM188: =AM184 -> 2 | AN188: 12 | AP188: B4 - IP | AW188: 0 | AX188: 0
AL189: =AL185 -> 10 | AM189: 3 | AN189: 2 | AO189: Tarifa Azul | AP189: A1 - ≥ 230 kV | AW189: 0 | AX189: 0
AL190: =AL185 -> 10 | AM190: =AM189 -> 3 | AN190: 3 | AP190: A2 - 88 a 138 kV | AQ190: 20.35 | AR190: 14.59 | AS190: 60.56 | AT190: 419.465 | AU190: 60.56 | AV190: 266.925 | AW190: 480.025 | AX190: 327.485
AL191: =AL190 -> 10 | AM191: =AM189 -> 3 | AN191: 4 | AP191: A3 - 69 kV | AQ191: 30.33 | AR191: 16.32 | AS191: 68.84 | AT191: 419.47 | AU191: 68.84 | AV191: 266.93 | AW191: 488.31 | AX191: 335.77
AL192: 10 | AM192: 3 | AN192: 5 | AP192: A3a - 30 a 44 kV | AQ192: 60.85 | AR192: 25.22 | AS192: 97.83 | AT192: 421.04 | AU192: 97.83 | AV192: 268.5 | AW192: 518.87 | AX192: 366.33
AL193: 10 | AM193: 3 | AN193: 6 | AP193: A4 - 2,3 kV a 25 kV | AQ193: 60.85 | AR193: 25.22 | AS193: 97.83 | AT193: 421.04 | AU193: 97.83 | AV193: 268.5 | AW193: 518.87 | AX193: 366.33
AL194: 10 | AM194: 4 | AN194: 5 | AO194: Tarifa Verde | AP194: A3a - 30 a 44 kV | AW194: 0 | AX194: 0
AL195: 10 | AM195: 4 | AN195: 6 | AP195: A4 - 2,3 kV a 25 kV | AW195: 0 | AX195: 0
AL196: 10 | AM196: 5 | AN196: 7 | AO196: Tarifa Branca | AP196: B1 - Residencial | AQ196: 0 | AR196: 0 | AS196: 959.88 | AT196: 422.17 | AU196: 304.73 | AV196: 269.63 | AW196: 1382.05 | AX196: 574.36
AL197: 10 | AM197: 5 | AN197: 8 | AP197: B2 - Rural | AQ197: 0 | AR197: 0 | AS197: 1017.35 | AT197: 422.17 | AU197: 316.22 | AV197: 269.63 | AW197: 1439.52 | AX197: 585.85
AL198: 10 | AM198: 5 | AN198: 9 | AP198: B2 - Cooperativa | AW198: 0 | AX198: 0
AL199: 10 | AM199: 5 | AN199: 10 | AP199: B2 - Irrigação | AW199: 0 | AX199: 0
AL200: 10 | AM200: 5 | AN200: 11 | AP200: B3 - Demais Classes | AQ200: 0 | AR200: 0 | AS200: 1017.35 | AT200: 422.17 | AU200: 316.22 | AV200: 269.63 | AW200: 1439.52 | AX200: 585.85
AL201: 10 | AM201: 5 | AN201: 12 | AP201: B4 - IP | AQ201: 0 | AR201: 0 | AS201: =AS200 -> 1017.35 | AT201: =AT200 -> 422.17 | AU201: =AU200 -> 316.22 | AV201: =AV200 -> 269.63 | AW201: 1439.52 | AX201: 585.85
AK202: 2024 | AL202: 11 | AM202: 2 | AN202: 5 | AO202: Convencional | AP202: A3a - 30 a 44 kV | AW202: =AS202+AT202 -> 0 | AX202: =AU202+AV202 -> 0
AL203: =AL202 -> 11 | AM203: 2 | AN203: 6 | AP203: A4 - 2,3 kV a 25 kV | AW203: 0 | AX203: 0
... 40 more rows

Sheet Apresentação
C1: VERSÃO 1.5 - SP
R2: DADOS GERAIS
C3: 1. Identificação do Projeto
C4: Concessionária: | E4: EDP SP | L4: Tipo do projeto: | M4: 7
C5: Nome do Projeto: | E5: NOME DO PROJETO
C6: Cidade do Projeto: | E6: 18 | F6: =VLOOKUP(E6,Apoio!AF7:AG255,2) -> Mogi das Cruzes | G6: =VLOOKUP(E6,Apoio!AF7:AH255,3) -> 0 | L6: Taxa de Desconto i: | N6: 0.08
C7: Ano de Tarifa: | E7: 12 | L7: Fator de Carga: | N7: 0.75
C9: 2. Identificação do Consumidor
C10: Nome: | E10: NOME DO CONSUMIDOR
C11: Endereço: | E11: ENDEREÇO DO CONSUMIDOR
C12: CNPJ: | L12: Unidade Consumidora (UC) :
C13: Responsável: | E13: COORDENADOR DO PROJETO
C14: Telefone: | E14: 0 | H14: E-mail: | J14: responsavel@consumidor.com.br | R14: CONSUMIDOR COM FINS LUCRATIVOS
C15: Modalidade: | E15: 1
C16: Tipo de empresa: | E16: 1
C17: Modalidade Tarifária: | E17: 3
C18: Subgrupo Tarifário: | E18: 5 | O18: 203.85
R19: ILUMINAÇÃO
C20: Valores de CEE e CED: | G20: CEE = | H20: =Apoio!I35 -> 797.57 | I20: R$/MWh | K20: CED = | L20: =Apoio!I36 -> 1906.44 | M20: R$/kW.ano | P20: Ö
C22: Informações | R22: CONDICIONAMENTO AMBIENTAL
C23: 1) Deverão ser preenchidas apenas as células com fundo branco
C24: 2) O horário de ponta da Concesionária é das 18:00 às 21:00.
C25: 3) Serão considerados 115 dias não úteis - sem ponta e 250 dias úteis - com ponta | R25: MOTORES
C29: R E S U M O: | L29: þ | M29: o
C30: O presente projeto preve ações no(s) seguinte(s) uso(s) final(is): | R30: SISTEMAS DE REFRIGERAÇÃO
C31: =IF(RCB!G5>0,Apresentação!$L$29,Apresentação!$M$29) -> o | D31: Iluminação | G31: =IF(RCB!G7>0,Apresentação!$L$29,Apresentação!$M$29) -> o | H31: Motores | K31: =IF(RCB!G9>0,Apresentação!$L$29,Apresentação!$M$29) -> o | L31: Aquecimento Solar de Água | N31: =IF(RCB!G11>0,Apresentação!$L$29,Apresentação!$M$29) -> o | O31: Outros
C32: =IF(RCB!G6>0,Apresentação!$L$29,Apresentação!$M$29) -> o | D32: Cond. Ambiental | G32: =IF(RCB!G8>0,Apresentação!$L$29,Apresentação!$M$29) -> o | H32: Sistema de Refrigeração | K32: =IF(RCB!G10>0,Apresentação!$L$29,Apresentação!$M$29) -> o | L32: Equip. Hospitalares | N32: =IF(RCB!G12>0,Apresentação!$L$29,Apresentação!$M$29) -> o | O32: Fonte Incentivada | R32: AQUECIMENTO SOLAR DE ÁGUA
C34: Custo Total do Projeto | G34: ='Custo Contábil'!D20 -> 3125 | J34: Valor Total Solicitado ao PEE | N34: ='Custo Contábil'!F20 -> 3125
R35: EQUIPAMENTOS HOSPITALARES
C37: Contrapartida Consumidor | G37: ='Custo Contábil'!H20 -> 0 | J37: Contrapartida Terceiros | N37: ='Custo Contábil'!G20 -> 0
C39: Energia Economizada (MWh/ano) | G39: =RCB!C13 -> 0 | J39: Vida Útil Média (anos) | N39: =ContrDesemp!H16 -> 0
C40: Redução de Demanda na Ponta (kW) | G40: =RCB!D13 -> 0 | J40: Economia mensal aproximada | N40: =ContrDesemp!H19 -> 0 | R40: OUTROS SISTEMAS
C42: RCBPEE | F42: SISTEMA ELÉTRICO | H42: CONSUMIDOR | J42: RCBtotal | M42: SISTEMA ELÉTRICO | O42: CONSUMIDOR
F43: =RCB!H5 -> 0 | H43: =RCB!H25 -> 0 | M43: =RCB!K5 -> 0 | O43: =RCB!K25 -> 0 | R43: FONTES INCENTIVADAS
C45: R$/MWh | F45: RECURSO PEE | H45: COM CONTRAPARTIDA | J45: R$/kW | M45: RECURSO PEE | O45: COM CONTRAPARTIDA
F46: =RCB!D19 -> 0 | H46: =RCB!F19 -> 0 | M46: =RCB!D20 -> 0 | O46: =RCB!F20 -> 0
C49: Contrato de Desempenho (SIMULAÇÃO):
C50: Nº de parcelas p/ recuperação do investimento | H50: =ContrDesemp!H17 -> 0 | J50: Valor da parcela inicial p/ recuperação do investimento | O50: =ContrDesemp!D19 -> 0
C53: RCB LIMITE | D53: =IF(Apresentação!M4>3,0.8,0.9) -> 0.8

Sheet Custo Contábil
A1: 1
B2: CUSTO CONTÁBIL - PROJETO TOTAL
B3: Tipo de Custo | D3: CUSTOS TOTAIS | F3: ORIGEM DOS RECURSOS
D4: R$ | E4: % | F4: Recursos PEE | G4: Recursos de Terceiros | H4: Recursos do Consumidor
B5: Custos Diretos
B6: Diagnóstico Energético | C6: Previsto | D6: =SUM(F6:H6) -> 0 | E6: =IFERROR(D6/$D$20,0) -> 0 | F6: =Diagnóstico!M10 -> 0 | G6: =Diagnóstico!N10 -> 0 | H6: =Diagnóstico!O10 -> 0
B7: Equipamentos e materiais | C7: Previsto | D7: 0 | E7: 0 | F7: =SUM(IlumCusto!L109,CondAmbCusto!L49,MotorCusto!L109,RefrigCusto!L49,SolarCusto!L49,HospCusto!L49,OutrosCusto!L49,FICusto!L49) -> 0 | G7: =SUM(IlumCusto!M109,CondAmbCusto!M49,MotorCusto!M109,RefrigCusto!M49,SolarCusto!M49,HospCusto!M49,OutrosCusto!M49,FICusto!M49) -> 0 | H7: =SUM(IlumCusto!N109,CondAmbCusto!N49,MotorCusto!N109,RefrigCusto!N49,SolarCusto!N49,HospCusto!N49,OutrosCusto!N49,FICusto!N49) -> 0
B8: Mão de Obra Própria (EDP ES) | C8: Previsto | D8: =SUM(F8:H8) -> 125 | E8: 0.04 | F8: =(SUM(F6,F7,F9,F10,F11,F14,F15,F16,F17,F19,F18)*4/96) -> 125 | G8: 0 | H8: 0
B9: Serviços de instalação - MOT | C9: Previsto | D9: 0 | E9: 0 | F9: =SUM(IlumCusto!L120,CondAmbCusto!L60,MotorCusto!L120,RefrigCusto!L60,SolarCusto!L60,HospCusto!L60,OutrosCusto!L60,FICusto!L60) -> 0 | G9: =SUM(IlumCusto!M120,CondAmbCusto!M60,MotorCusto!M120,RefrigCusto!M60,SolarCusto!M60,HospCusto!M60,OutrosCusto!M60,FICusto!M60) -> 0 | H9: =SUM(IlumCusto!N120,CondAmbCusto!N60,MotorCusto!N120,RefrigCusto!N60,SolarCusto!N60,HospCusto!N60,OutrosCusto!N60,FICusto!N60) -> 0
B10: Transporte (EDP ES) | C10: Previsto | D10: 1000 | E10: 0.32 | F10: 1000 | G10: 0 | H10: 0
B11: Outros custos diretos | C11: Previsto | D11: 0 | E11: 0 | F11: =SUM(IlumCusto!L129,CondAmbCusto!L68,MotorCusto!L129,RefrigCusto!L69,SolarCusto!L69,HospCusto!L69,OutrosCusto!L69,FICusto!L69) -> 0 | G11: =SUM(IlumCusto!M129,CondAmbCusto!M68,MotorCusto!M129,RefrigCusto!M69,SolarCusto!M69,HospCusto!M69,OutrosCusto!M69,FICusto!M69) -> 0 | H11: =SUM(IlumCusto!N129,CondAmbCusto!N68,MotorCusto!N129,RefrigCusto!N69,SolarCusto!N69,HospCusto!N69,OutrosCusto!N69,FICusto!N69) -> 0
B12: Custos Indiretos
B13: Administração Própria | C13: Previsto | D13: =SUM(F13:H13) -> 0 | E13: =IFERROR(D13/$D$20,0) -> 0 | F13: 0 | G13: 0 | H13: 0
B14: Marketing e divulgação (EDP ES) | C14: Previsto | D14: =SUM(F14:H14) -> 0 | E14: 0 | F14: =Marketing!L15 -> 0 | G14: =Marketing!M15 -> 0 | H14: =Marketing!N15 -> 0
B15: Auditoria contábil e financeira (EDP ES) | C15: Previsto | D15: =SUM(F15:H15) -> 2000 | E15: 0.64 | F15: 2000 | G15: 0 | H15: 0
B16: Descarte de materiais (EDP ES) | C16: Previsto | D16: 0 | E16: 0 | F16: =Descarte!K96 -> 0 | G16: =Descarte!M96 -> 0 | H16: =Descarte!N96 -> 0
B17: Medição & Verificação - M&V | C17: Previsto | D17: 0 | E17: 0 | F17: ='M&V'!N467 -> 0 | G17: ='M&V'!O467 -> 0 | H17: ='M&V'!P467 -> 0
B18: Treinamento e Capacitação | C18: Previsto | D18: =SUM(F18:H18) -> 0 | E18: 0 | F18: =Treinamento!L29 -> 0 | G18: =Treinamento!M29 -> 0 | H18: =Treinamento!N29 -> 0
B19: Outros custos indiretos | C19: Previsto | D19: 0 | E19: 0 | F19: =SUM(IlumCusto!L144,CondAmbCusto!L84,MotorCusto!L144,RefrigCusto!L84,SolarCusto!L84,HospCusto!L84,OutrosCusto!L84,FICusto!L84) -> 0 | G19: =SUM(IlumCusto!M144,CondAmbCusto!M84,MotorCusto!M144,RefrigCusto!M84,SolarCusto!M84,HospCusto!M84,OutrosCusto!M84,FICusto!M84) -> 0 | H19: =SUM(IlumCusto!N144,CondAmbCusto!N84,MotorCusto!N144,RefrigCusto!N84,SolarCusto!N84,HospCusto!N84,OutrosCusto!N84,FICusto!N84) -> 0
B20: Total | D20: =SUM(D6:D11,D13:D19) -> 3125 | E20: 1 | F20: =SUM(F6:F19) -> 3125 | G20: =SUM(G13:G19,G6:G11) -> 0 | H20: =SUM(H13:H19,H6:H11) -> 0
B22: Total de serviços | D22: =D20-D7 -> 3125
B23: Total de serviços menos Auditoria | D23: =D22-D15 -> 1125
B25: LIMITADORES
B26: Descrição | E26: Limites | F26: Calculado
B27: Limite Acessórios (Acessórios/ Materiais e Equipamentos) | D27: =SUM(IlumCusto!K108,CondAmbCusto!K48,MotorCusto!K108,RefrigCusto!K48,SolarCusto!K48,HospCusto!K48,OutrosCusto!K48,FICusto!K48) -> 0 | E27: 0.02 | F27: =IFERROR(D27/F7,) -> 0
B28: Treinamento e Capacitação / Custo da Parcela de Recursos PEE | D28: =F18 -> 0 | E28: 0.02 | F28: =IFERROR(D28/F20,) -> 0
B29: Diagnóstico energético | D29: =Diagnóstico!M21 -> 0 | E29: 0.1 | F29: =IFERROR(D29/F20,) -> 0
B30: Descarte de materiais | D30: =F16 -> 0 | E30: 0.02 | F30: =IFERROR(D30/F20,) -> 0
B31: Marketing / Custo da Parcela de Recursos PEE | E31: 0.03 | F31: =IFERROR(F14/F20,0) -> 0
B32: M&V/Custo da Parcela de Recursos PEE | E32: 0.05 | F32: =IFERROR(F17/F20,0) -> 0
B34: Custo Contábil - Por Uso Final
B35: Sistema Tipo de Custo | D35: Iluminação | E35: Cond. Ambiental | F35: Motores | G35: Sistema de Refrigeração | H35: Aquecimento Solar de Água | I35: Equipamentos Hospitalares | J35: Outros | K35: Fonte Incentivada | L35: TOTAL
B37: Custos Diretos
B38: Materiais e Equipamentos | C38: Previsto | D38: =IlumCusto!K109 -> 0 | E38: =CondAmbCusto!K49 -> 0 | F38: =MotorCusto!K109 -> 0 | G38: =RefrigCusto!K49 -> 0 | H38: =SolarCusto!K49 -> 0 | I38: =HospCusto!K49 -> 0 | J38: =OutrosCusto!K49 -> 0 | K38: =FICusto!K49 -> 0 | L38: =SUM(D38:K38) -> 0
C39: % | D39: =IFERROR(D38/$L$38,0) -> 0 | E39: 0 | F39: 0 | G39: 0 | H39: 0 | I39: 0 | J39: 0 | K39: 0 | L39: 0
B40: Elaboração do Projeto (pré-diagnóstico e diagnóstico) | C40: Previsto | D40: =Diagnóstico!L13 -> 0 | E40: =Diagnóstico!L14 -> 0 | F40: =Diagnóstico!L15 -> 0 | G40: =Diagnóstico!L16 -> 0 | H40: =Diagnóstico!L17 -> 0 | I40: =Diagnóstico!L18 -> 0 | J40: =Diagnóstico!L19 -> 0 | K40: =Diagnóstico!L20 -> 0 | L40: =SUM(D40:K40) -> 0
B41: Mão de Obra Própria (Concessionária) | C41: Previsto | D41: =D39*$D$8 -> 0 | E41: 0 | F41: 0 | G41: 0 | H41: 0 | I41: 0 | J41: 0 | K41: 0 | L41: =SUM(D41:K41) -> 0
B42: Mão de Obra de Terceiros | C42: Previsto | D42: =IlumCusto!K120 -> 0 | E42: =CondAmbCusto!K60 -> 0 | F42: =MotorCusto!K120 -> 0 | G42: =RefrigCusto!K60 -> 0 | H42: =SolarCusto!K60 -> 0 | I42: =HospCusto!K60 -> 0 | J42: =OutrosCusto!K60 -> 0 | K42: =FICusto!K60 -> 0 | L42: =SUM(D42:K42) -> 0
B43: Transporte | C43: Previsto | D43: =D39*$D$10 -> 0 | E43: =E39*$D$10 -> 0 | F43: 0 | G43: 0 | H43: 0 | I43: 0 | J43: 0 | K43: 0 | L43: =SUM(D43:K43) -> 0
B44: Custos Indiretos
B45: Administração Própria | C45: Previsto | D45: =D39*D13 -> 0 | E45: =E39*$D$13 -> 0 | F45: 0 | G45: 0 | H45: 0 | I45: 0 | J45: 0 | K45: 0 | L45: =SUM(D45:K45) -> 0
B46: Marketing (Divulgação) | C46: Previsto | D46: =Marketing!K18 -> 0 | E46: =Marketing!K19 -> 0 | F46: =Marketing!K20 -> 0 | G46: =Marketing!K21 -> 0 | H46: =Marketing!K22 -> 0 | I46: =Marketing!K23 -> 0 | J46: =Marketing!K24 -> 0 | K46: =Marketing!K25 -> 0 | L46: =SUM(D46:K46) -> 0
B47: Auditoria Contábil Financeira | C47: Previsto | D47: =D39*$D$15 -> 0 | E47: =E39*$D$15 -> 0 | F47: 0 | G47: 0 | H47: 0 | I47: 0 | J47: 0 | K47: 0 | L47: 0
B48: Descarte de Materiais | C48: Previsto | D48: =IlumCusto!K138 -> 0 | E48: =CondAmbCusto!K78 -> 0 | F48: =MotorCusto!K138 -> 0 | G48: =RefrigCusto!K78 -> 0 | H48: =SolarCusto!K78 -> 0 | I48: =HospCusto!K78 -> 0 | J48: =OutrosCusto!K78 -> 0 | K48: 0 | L48: 0
B49: Medição & Verificação | C49: Previsto | D49: =IlumCusto!K139 -> 0 | E49: =CondAmbCusto!K79 -> 0 | F49: =MotorCusto!K139 -> 0 | G49: =RefrigCusto!K79 -> 0 | H49: =SolarCusto!K79 -> 0 | I49: =HospCusto!K79 -> 0 | J49: =OutrosCusto!K79 -> 0 | K49: =FICusto!K79 -> 0 | L49: 0
B50: Treinamento e Capacitação | C50: Previsto | D50: =Treinamento!K32 -> 0 | E50: =Treinamento!K33 -> 0 | F50: =Treinamento!K34 -> 0 | G50: =Treinamento!K35 -> 0 | H50: =Treinamento!K36 -> 0 | I50: =Treinamento!K37 -> 0 | J50: =Treinamento!K38 -> 0 | K50: =Treinamento!K39 -> 0 | L50: 0
B51: Outros custos indiretos | C51: Previsto | D51: =IlumCusto!K144 -> 0 | E51: =CondAmbCusto!K84 -> 0 | F51: =MotorCusto!K144 -> 0 | G51: =RefrigCusto!K84 -> 0 | H51: =SolarCusto!K84 -> 0 | I51: =HospCusto!K84 -> 0 | J51: =OutrosCusto!K84 -> 0 | K51: =FICusto!K84 -> 0 | L51: 0
B52: Total | D52: =SUM(D45:D51,D40:D43,D38) -> 0 | E52: 0 | F52: 0 | G52: 0 | H52: 0 | I52: 0 | J52: 0 | K52: 0 | L52: 0
B53: Total de serviços | D53: =SUM(D40:D43,D45:D51) -> 0 | E53: 0 | F53: 0 | G53: 0 | H53: 0 | I53: 0 | J53: =SUM(J40:J43,J45:J51) -> 0 | K53: =SUM(K40:K43,K45:K51) -> 0 | L53: =L52-L38 -> 0
B54: Total de serviços menos Auditoria | D54: =D53-D47 -> 0 | E54: 0 | F54: 0 | G54: 0 | H54: 0 | I54: 0 | J54: =J53-J47 -> 0 | K54: =K53-K47 -> 0 | L54: =L53-L47 -> 0

Sheet IndFinanceiro (hidden)
B2: INDICADORES FINANCEIROS (BALANÇO PATRIMONIAL)
C3: Identificação do Consumidor
C4: Nome: | D4: =IF(Apresentação!E10="","",Apresentação!E10) -> NOME DO CONSUMIDOR
C5: Endereço: | D5: =IF(Apresentação!E11="","",Apresentação!E11) -> ENDEREÇO DO CONSUMIDOR
C6: CNPJ: | D6: =IF(Apresentação!E12="","",Apresentação!E12) -> 
C8: Patrimônio Líquido (PL) | I8: Passivo Circulante (PC)
C10: Ativo Circulante (AC) | I10: Passivo Não Circulante (PNC)
C12: Realizável a Longo Prazo (RLP) | I12: Ativo Total (AT)
C14: Índice de Liquidez Geral (ILG) | F14: =IF(F10="","",IFERROR((F10+F12)/(L8+L10),"")) ->  | I14: Avaliação Preliminar da Situação Financeira do Proponente
I15: =IF(F8="","",IF(F8<(0.1*'Custo Contábil'!D20),"Patrimônio Líquido é menor do que o exigido pelo Edital da Chamada Pública",IF(SUM(IF(IndFinanceiro!F14>1,1,0),IF(IndFinanceiro!F16>1,1,0),IF(IndFinanceiro!F18>1,1,0))>=2,"Situação Financeira OK","O Proponente não possui pelo menos dois dos indicadores solicitados maiores que 1 (um)"))) -> 
C16: Índice de Liquidez Corrente (ILC) | F16: =IF(F10="","",IFERROR((F10)/(L8),"")) -> 
C18: Índice de Solvência Geral (ISG) | F18: =IF(F10="","",IFERROR((L12)/(L8+L10),"")) -> 

Sheet RCB
B2: CÁLCULO DA RCB - PONTO DE VISTA DO SISTEMA ELÉTRICO
B3: RECURSO PEE | I3: COM CONTRAPARTIDA
B4: Uso final | C4: EE Energia Economizada (MWh/ano) | D4: RDP Redução de Demanda na Ponta (kW) | E4: CAT Custo Anualizado | F4: BA Benefício Anualizado | G4: RCB Por Uso Final | H4: RCBPEE | I4: CAT_CONTR Custo Anualizado com Contrapartida | J4: RCB Por Uso Final | K4: RCBTOTAL
B5: Iluminação | C5: =IlumBenef!G45 -> 0 | D5: =IlumBenef!G43 -> 0 | E5: =IlumCusto!X110 -> 0 | F5: =IlumBenef!G47 -> 0 | G5: =IF(F5=0,0,E5/F5) -> 0 | H5: =$G$13 -> 0 | I5: =IlumCusto!X109 -> 0 | J5: =IF(F5=0,0,I5/F5) -> 0 | K5: =$J$13 -> 0
B6: Cond. Ambiental | C6: =CondAmbBenef!G47 -> 0 | D6: =CondAmbBenef!G45 -> 0 | E6: =CondAmbCusto!X50 -> 0 | F6: =CondAmbBenef!G49 -> 0 | G6: =IF(F6=0,0,E6/F6) -> 0 | I6: =CondAmbCusto!X49 -> 0 | J6: =IF(F6=0,0,I6/F6) -> 0
B7: Motores | C7: =MotorBenef!G47 -> 0 | D7: =MotorBenef!G45 -> 0 | E7: =MotorCusto!X110 -> 0 | F7: =MotorBenef!G49 -> 0 | G7: 0 | I7: =MotorCusto!X109 -> 0 | J7: 0
B8: Refrigeração | C8: =RefrigBenef!G43 -> 0 | D8: =RefrigBenef!G41 -> 0 | E8: =RefrigCusto!X50 -> 0 | F8: =RefrigBenef!G45 -> 0 | G8: 0 | I8: =RefrigCusto!X49 -> 0 | J8: 0
B9: Aquecimento Solar | C9: =SolarBenef!G23 -> 0 | D9: =SolarBenef!G25 -> 0 | E9: =SolarCusto!X50 -> 0 | F9: =SolarBenef!G27 -> 0 | G9: 0 | I9: =SolarCusto!X49 -> 0 | J9: 0
B10: Equip. hospitalar | C10: =HospBenef!G47 -> 0 | D10: =HospBenef!G45 -> 0 | E10: =HospCusto!X50 -> 0 | F10: =HospBenef!G49 -> 0 | G10: 0 | I10: =HospCusto!X49 -> 0 | J10: 0
B11: Outros | C11: =OutrosBenef!G41 -> 0 | D11: =OutrosBenef!G39 -> 0 | E11: =OutrosCusto!X50 -> 0 | F11: =OutrosBenef!G43 -> 0 | G11: 0 | I11: =OutrosCusto!X49 -> 0 | J11: 0
B12: Fontes Incentivadas | C12: =FIBenef!G26 -> 0 | D12: =FIBenef!G19 -> 0 | E12: =FICusto!X50 -> 0 | F12: =FIBenef!G27 -> 0 | G12: 0 | I12: =FICusto!X49 -> 0 | J12: 0
B13: TOTAL | C13: =SUM(C5:C12) -> 0 | D13: =SUM(D5:D12) -> 0 | E13: =SUM(E5:E12) -> 0 | F13: =SUM(F5:F12) -> 0 | G13: 0 | I13: =SUM(I5:I12) -> 0 | J13: =IF(F13=0,0,I13/F13) -> 0
B15: AVALIAÇÃO PRELIMINAR DO PROJETO CONFORME CRITÉRIOS ANEEL | D15: =IF(H5=0,"-",IF(OR(H5<0,SMALL(G5:G11,1)<0),"AO MENOS UMA RCB NEGATIVA, OS CÁLCULOS DEVEM SER REVISADOS",IF(H5>Apresentação!D53,"RCB NÃO PERMITIDA",IF(AND(H5<=Apresentação!D53,LARGE(G5:G11,1)>Apresentação!D53),"RCB PERMITIDA, MAS AO MENOS UM USO FINAL POSSUI RCB ACIMA DO LIMITE PERMITIDO","RCB PERMITIDA")))) -> -
D18: RECURSO PEE | F18: COM CONTRAPARTIDA
B19: Energia economizada | D19: =IFERROR(ROUND(E13/C13,2),0) -> 0 | E19: R$/MWh | F19: =IFERROR(ROUND(I13/C13,2),0) -> 0 | H19: R$/MWh
B20: Redução de demanda na ponta | D20: =IFERROR(ROUND(E13/D13,2),0) -> 0 | E20: R$/kW | F20: =IFERROR(ROUND(I13/D13,2),0) -> 0 | H20: R$/kW
B22: CÁLCULO DA RCB - PONTO DE VISTA DO CONSUMIDOR
B23: RECURSO PEE | I23: COM CONTRAPARTIDA
B24: Uso final | C24: EE Energia Economizada (MWh/ano) | D24: RDP Redução de Demanda na Ponta (kW) | E24: CAT Custo Anualizado | F24: BA Benefício Anualizado | G24: RCB Por Uso Final | H24: RCBPEE | I24: CAT_CONTR Custo Anualizado com Contrapartida | J24: RCB Por Uso Final | K24: RCBTOTAL
B25: =B5 -> Iluminação | C25: =C5 -> 0 | D25: =D5 -> 0 | E25: =E5 -> 0 | F25: =12*(ContrDesemp!D4*ContrDesemp!M4+ContrDesemp!D5*ContrDesemp!M5)+ContrDesemp!D7*ContrDesemp!M7 -> 0 | G25: =IF(F25=0,0,E25/F25) -> 0 | H25: =$G$33 -> 0 | I25: =I5 -> 0 | J25: =IF(F25=0,0,I25/F25) -> 0 | K25: =$J$33 -> 0
B26: Cond. Ambiental | C26: =C6 -> 0 | D26: =D6 -> 0 | E26: 0 | F26: =12*(ContrDesemp!E4*ContrDesemp!M4+ContrDesemp!E5*ContrDesemp!M5)+ContrDesemp!E7*ContrDesemp!M7 -> 0 | G26: =IF(F26=0,0,E26/F26) -> 0 | I26: =I6 -> 0 | J26: =IF(F26=0,0,I26/F26) -> 0
B27: Motores | C27: 0 | D27: 0 | E27: 0 | F27: =12*(ContrDesemp!F4*ContrDesemp!M4+ContrDesemp!F5*ContrDesemp!M5)+ContrDesemp!F7*ContrDesemp!M7 -> 0 | G27: =IF(F27=0,0,E27/F27) -> 0 | I27: 0 | J27: 0
B28: Refrigeração | C28: 0 | D28: 0 | E28: 0 | F28: =12*(ContrDesemp!G4*ContrDesemp!M4+ContrDesemp!G5*ContrDesemp!M5)+ContrDesemp!G7*ContrDesemp!M7 -> 0 | G28: 0 | I28: 0 | J28: 0
B29: Aquecimento Solar | C29: 0 | D29: 0 | E29: 0 | F29: =12*(ContrDesemp!H4*ContrDesemp!M4+ContrDesemp!H5*ContrDesemp!M5)+ContrDesemp!H7*ContrDesemp!M7 -> 0 | G29: 0 | I29: 0 | J29: 0
B30: Equip. hospitalar | C30: 0 | D30: 0 | E30: 0 | F30: =12*(ContrDesemp!I4*ContrDesemp!M4+ContrDesemp!I5*ContrDesemp!M5)+ContrDesemp!I7*ContrDesemp!M7 -> 0 | G30: 0 | I30: 0 | J30: 0
B31: Outros | C31: 0 | D31: 0 | E31: 0 | F31: =12*(ContrDesemp!J4*ContrDesemp!M4+ContrDesemp!J5*ContrDesemp!M5)+ContrDesemp!J7*ContrDesemp!M7 -> 0 | G31: 0 | I31: 0 | J31: 0
B32: =B12 -> Fontes Incentivadas | C32: 0 | D32: 0 | E32: 0 | F32: =12*(ContrDesemp!K4*ContrDesemp!M4+ContrDesemp!K5*ContrDesemp!M5)+ContrDesemp!K7*ContrDesemp!M7 -> 0 | G32: 0 | I32: 0 | J32: =IF(F32=0,0,I32/F32) -> 0
B33: TOTAL | C33: =SUM(C25:C32) -> 0 | D33: =SUM(D25:D32) -> 0 | E33: =SUM(E25:E32) -> 0 | F33: =SUM(F25:F32) -> 0 | G33: 0 | I33: =SUM(I25:I32) -> 0 | J33: 0

Sheet MOP (hidden)
B2: Mão de Obra da Concessionária | G2: Mês 01 | I2: Mês 02 | K2: Mês 03 | M2: Mês 04 | O2: Mês 05 | Q2: Mês 06 | S2: Mês 07 | U2: Mês 08 | W2: Mês 09 | Y2: Mês 10 | AA2: Mês 11 | AC2: Mês 12
B3: Profissional | C3: % | D3: R$/h | E3: Total de horas | F3: Valor total (R$) | G3: Total de horas | H3: Valor total (R$) | I3: Total de horas | J3: Valor total (R$) | K3: Total de horas | L3: Valor total (R$) | M3: Total de horas | N3: Valor total (R$) | O3: Total de horas | P3: Valor total (R$) | Q3: Total de horas | R3: Valor total (R$) | S3: Total de horas | T3: Valor total (R$) | U3: Total de horas | V3: Valor total (R$) | W3: Total de horas | X3: Valor total (R$) | Y3: Total de horas | Z3: Valor total (R$) | AA3: Total de horas | AB3: Valor total (R$) | AC3: Total de horas | AD3: Valor total (R$)
B4: Engenheiro | C4: 0.5 | D4: 120 | E4: =IFERROR(F4/D4,0) -> 0.5208333333 | F4: =C4*'Custo Contábil'!$D$8 -> 62.5 | G4: =$E4/12 -> 0.04340277778 | H4: =$F4/12 -> 5.208333333 | I4: =$E4/12 -> 0.04340277778 | J4: =$F4/12 -> 5.208333333 | K4: =$E4/12 -> 0.04340277778 | L4: =$F4/12 -> 5.208333333 | M4: =$E4/12 -> 0.04340277778 | N4: =$F4/12 -> 5.208333333 | O4: =$E4/12 -> 0.04340277778 | P4: =$F4/12 -> 5.208333333 | Q4: =$E4/12 -> 0.04340277778 | R4: =$F4/12 -> 5.208333333 | S4: =$E4/12 -> 0.04340277778 | T4: =$F4/12 -> 5.208333333 | U4: =$E4/12 -> 0.04340277778 | V4: =$F4/12 -> 5.208333333 | W4: =$E4/12 -> 0.04340277778 | X4: =$F4/12 -> 5.208333333 | Y4: =$E4/12 -> 0.04340277778 | Z4: =$F4/12 -> 5.208333333 | AA4: =$E4/12 -> 0.04340277778 | AB4: =$F4/12 -> 5.208333333 | AC4: =$E4/12 -> 0.04340277778 | AD4: =$F4/12 -> 5.208333333
B5: Administrador | C5: 0.1 | D5: 80 | E5: =IFERROR(F5/D5,0) -> 0.15625 | F5: =C5*'Custo Contábil'!$D$8 -> 12.5 | G5: =$E5/12 -> 0.01302083333 | H5: =$F5/12 -> 1.041666667 | I5: 0.01302083333 | J5: 1.041666667 | K5: 0.01302083333 | L5: 1.041666667 | M5: 0.01302083333 | N5: 1.041666667 | O5: 0.01302083333 | P5: 1.041666667 | Q5: 0.01302083333 | R5: 1.041666667 | S5: 0.01302083333 | T5: 1.041666667 | U5: 0.01302083333 | V5: 1.041666667 | W5: =$E5/12 -> 0.01302083333 | X5: =$F5/12 -> 1.041666667 | Y5: =$E5/12 -> 0.01302083333 | Z5: =$F5/12 -> 1.041666667 | AA5: =$E5/12 -> 0.01302083333 | AB5: =$F5/12 -> 1.041666667 | AC5: =$E5/12 -> 0.01302083333 | AD5: =$F5/12 -> 1.041666667
B6: Assistente Administrativo | C6: 0.1 | D6: 50 | E6: =IFERROR(F6/D6,0) -> 0.25 | F6: =C6*'Custo Contábil'!$D$8 -> 12.5 | G6: 0.02083333333 | H6: 1.041666667 | I6: 0.02083333333 | J6: 1.041666667 | K6: 0.02083333333 | L6: 1.041666667 | M6: 0.02083333333 | N6: 1.041666667 | O6: 0.02083333333 | P6: 1.041666667 | Q6: 0.02083333333 | R6: 1.041666667 | S6: 0.02083333333 | T6: 1.041666667 | U6: 0.02083333333 | V6: 1.041666667 | W6: =$E6/12 -> 0.02083333333 | X6: =$F6/12 -> 1.041666667 | Y6: =$E6/12 -> 0.02083333333 | Z6: =$F6/12 -> 1.041666667 | AA6: =$E6/12 -> 0.02083333333 | AB6: =$F6/12 -> 1.041666667 | AC6: =$E6/12 -> 0.02083333333 | AD6: =$F6/12 -> 1.041666667
B7: Técnico | C7: 0.3 | D7: 70 | E7: =IFERROR(F7/D7,0) -> 0.5357142857 | F7: =C7*'Custo Contábil'!$D$8 -> 37.5 | G7: 0.04464285714 | H7: 3.125 | I7: 0.04464285714 | J7: 3.125 | K7: 0.04464285714 | L7: 3.125 | M7: 0.04464285714 | N7: 3.125 | O7: 0.04464285714 | P7: 3.125 | Q7: 0.04464285714 | R7: 3.125 | S7: 0.04464285714 | T7: 3.125 | U7: 0.04464285714 | V7: 3.125 | W7: =$E7/12 -> 0.04464285714 | X7: =$F7/12 -> 3.125 | Y7: =$E7/12 -> 0.04464285714 | Z7: =$F7/12 -> 3.125 | AA7: =$E7/12 -> 0.04464285714 | AB7: =$F7/12 -> 3.125 | AC7: =$E7/12 -> 0.04464285714 | AD7: =$F7/12 -> 3.125
B8: TOTAL | E8: =SUM(E4:E7) -> 1.462797619 | F8: =SUM(F4:F7) -> 125

Sheet Diagnóstico (ORÇ)
D2: ELABORAÇÃO DO PROJETO - ORÇAMENTOS
L3: Fornecedor 1 | M3: Fornecedor 2 | N3: Fornecedor 3 | O3: Fornecedor 4 | P3: Fornecedor 5 | Q3: Fornecedor 6
B4: Descrição do item | I4: Quantidade | J4: Horas | K4: Menor Preço unitário (Valor da Hora) | L4: Preço unitário (Valor da Hora) | M4: Preço unitário (Valor da Hora) | N4: Preço unitário (Valor da Hora) | O4: Preço unitário (Valor da Hora) | P4: Preço unitário (Valor da Hora) | Q4: Preço unitário (Valor da Hora)
B5: 1 | K5: =IFERROR(SMALL(L5:Q5,1),0) -> 0
B6: 2 | K6: =IFERROR(SMALL(L6:Q6,1),0) -> 0
B7: 3 | K7: =IFERROR(SMALL(L7:Q7,1),0) -> 0
B8: 4 | K8: =IFERROR(SMALL(L8:Q8,1),0) -> 0
B9: 5 | K9: =IFERROR(SMALL(L9:Q9,1),0) -> 0
C10: DADOS DO FORNECEDOR | L10: Fornecedor 1 | M10: Fornecedor 2 | N10: Fornecedor 3 | O10: Fornecedor 4 | P10: Fornecedor 5 | Q10: Fornecedor 6
B11: Nome do fornecedor
B12: CNPJ do fornecedor
B13: Data da proposta
B14: Validade da proposta
B15: Pessoa de contato
B16: Telefone
B17: e-mail
B18: Critério de julgamento | L18: Menor Valor Unitário

Sheet Diagnóstico
B2: ELABORAÇÃO DO PROJETO - ORIGEM DOS RECURSOS
M3: ORIGEM DOS RECURSOS
B4: Descrição do item | I4: Quantidade | J4: Horas | K4: Valor da hora | L4: Total | M4: PEE | N4: Terceiros | O4: Consumidor
B5: 1 | C5: =IF(ISBLANK('Diagnóstico (ORÇ)'!C5:H5)," ",'Diagnóstico (ORÇ)'!C5:H5) ->  | I5: ='Diagnóstico (ORÇ)'!I5 -> 0 | J5: ='Diagnóstico (ORÇ)'!J5 -> 0 | K5: ='Diagnóstico (ORÇ)'!K5 -> 0 | L5: =I5*K5*J5 -> 0 | M5: =L5-N5-O5 -> 0
B6: 2 | C6: =IF(ISBLANK('Diagnóstico (ORÇ)'!C6:H6)," ",'Diagnóstico (ORÇ)'!C6:H6) ->  | I6: ='Diagnóstico (ORÇ)'!I6 -> 0 | J6: ='Diagnóstico (ORÇ)'!J6 -> 0 | K6: ='Diagnóstico (ORÇ)'!K6 -> 0 | L6: =I6*K6*J6 -> 0 | M6: =L6-N6-O6 -> 0
B7: 3 | C7: =IF(ISBLANK('Diagnóstico (ORÇ)'!C7:H7)," ",'Diagnóstico (ORÇ)'!C7:H7) ->  | I7: ='Diagnóstico (ORÇ)'!I7 -> 0 | J7: ='Diagnóstico (ORÇ)'!J7 -> 0 | K7: ='Diagnóstico (ORÇ)'!K7 -> 0 | L7: =I7*K7*J7 -> 0 | M7: =L7-N7-O7 -> 0
B8: 4 | C8: =IF(ISBLANK('Diagnóstico (ORÇ)'!C8:H8)," ",'Diagnóstico (ORÇ)'!C8:H8) ->  | I8: ='Diagnóstico (ORÇ)'!I8 -> 0 | J8: ='Diagnóstico (ORÇ)'!J8 -> 0 | K8: ='Diagnóstico (ORÇ)'!K8 -> 0 | L8: =I8*K8*J8 -> 0 | M8: =L8-N8-O8 -> 0
B9: 5 | C9: =IF(ISBLANK('Diagnóstico (ORÇ)'!C9:H9)," ",'Diagnóstico (ORÇ)'!C9:H9) ->  | I9: ='Diagnóstico (ORÇ)'!I9 -> 0 | J9: ='Diagnóstico (ORÇ)'!J9 -> 0 | K9: ='Diagnóstico (ORÇ)'!K9 -> 0 | L9: =I9*K9*J9 -> 0 | M9: =L9-N9-O9 -> 0
B10: Elaboração do Projeto | L10: =SUM(L5:L9) -> 0 | M10: =SUM(M5:M9) -> 0 | N10: =SUM(N5:N9) -> 0 | O10: =SUM(O5:O9) -> 0
B11: DIVISÃO DOS CUSTOS POR USO FINAL | M11: ORIGEM DOS RECURSOS
B12: Uso Final | L12: Total | M12: PEE | N12: Terceiros | O12: Consumidor
C13: Iluminação | L13: =SUM(M13:O13) -> 0 | M13: ='Custo Contábil'!$D$39*M$10 -> 0 | N13: ='Custo Contábil'!$D$39*N$10 -> 0 | O13: ='Custo Contábil'!$D$39*O$10 -> 0
C14: Condicionamento Ambiental | L14: =SUM(M14:O14) -> 0 | M14: ='Custo Contábil'!$E$39*M$10 -> 0 | N14: ='Custo Contábil'!$E$39*N$10 -> 0 | O14: ='Custo Contábil'!$E$39*O$10 -> 0
C15: Motores | L15: 0 | M15: ='Custo Contábil'!$F$39*M$10 -> 0 | N15: ='Custo Contábil'!$F$39*N$10 -> 0 | O15: ='Custo Contábil'!$F$39*O$10 -> 0
C16: Sistemas de Refrigeração | L16: 0 | M16: ='Custo Contábil'!$G$39*M$10 -> 0 | N16: ='Custo Contábil'!$G$39*N$10 -> 0 | O16: ='Custo Contábil'!$G$39*O$10 -> 0
C17: Aquecimento Solar de Água | L17: 0 | M17: ='Custo Contábil'!$H$39*M$10 -> 0 | N17: ='Custo Contábil'!$H$39*N$10 -> 0 | O17: ='Custo Contábil'!$H$39*O$10 -> 0
C18: Equipamentos Hospitalares | L18: 0 | M18: ='Custo Contábil'!$I$39*M$10 -> 0 | N18: ='Custo Contábil'!$I$39*N$10 -> 0 | O18: ='Custo Contábil'!$I$39*O$10 -> 0
C19: Outros | L19: 0 | M19: ='Custo Contábil'!$J$39*M$10 -> 0 | N19: ='Custo Contábil'!$J$39*N$10 -> 0 | O19: ='Custo Contábil'!$J$39*O$10 -> 0
C20: Fonte Incentivada | L20: 0 | M20: ='Custo Contábil'!$K$39*M$10 -> 0 | N20: ='Custo Contábil'!$K$39*N$10 -> 0 | O20: ='Custo Contábil'!$K$39*O$10 -> 0
B21: Elaboração do Projeto | L21: =L10 -> 0 | M21: =M10 -> 0 | N21: =N10 -> 0 | O21: =O10 -> 0

Sheet Marketing (ORÇ)
B2: MARKETING - ORÇAMENTOS
K3: Fornecedor 1 | L3: Fornecedor 2 | M3: Fornecedor 3 | N3: Fornecedor 4 | O3: Fornecedor 5 | P3: Fornecedor 6
B4: Descrição do item | I4: Quantidade | J4: Menor Preço unitário | K4: Preço unitário | L4: Preço unitário | M4: Preço unitário | N4: Preço unitário | O4: Preço unitário | P4: Preço unitário
B5: 1 | J5: =IFERROR(SMALL(K5:P5,1),0) -> 0
B6: 2 | J6: =IFERROR(SMALL(K6:P6,1),0) -> 0
B7: 3 | J7: 0
B8: 4 | J8: 0
B9: 5 | J9: 0
B10: 6 | J10: 0
B11: 7 | J11: 0
B12: 8 | J12: 0
B13: 9 | J13: 0
B14: 10 | J14: 0
C15: DADOS DO FORNECEDOR | K15: Fornecedor 1 | L15: Fornecedor 2 | M15: Fornecedor 3 | N15: Fornecedor 4 | O15: Fornecedor 5 | P15: Fornecedor 6
B16: Nome do fornecedor
B17: CNPJ do fornecedor
B18: Data da proposta
B19: Validade da proposta
B20: Pessoa de contato
B21: Telefone
B22: e-mail
B23: Critério de julgamento | K23: Menor Valor Unitário

Sheet Marketing
B2: MARKETING - ORIGEM DOS RECURSOS
L3: ORIGEM DOS RECURSOS
B4: Descrição do item | I4: Quantidade | J4: Preço unitário | K4: Total | L4: PEE | M4: Terceiros | N4: Consumidor
B5: 1 | C5: =IF(ISBLANK('Marketing (ORÇ)'!C5:H5)," ",'Marketing (ORÇ)'!C5:H5) ->  | I5: ='Marketing (ORÇ)'!I5 -> 0 | J5: ='Marketing (ORÇ)'!J5 -> 0 | K5: =I5*J5 -> 0 | L5: =K5-M5-N5 -> 0
B6: 2 | C6: =IF(ISBLANK('Marketing (ORÇ)'!C6:H6)," ",'Marketing (ORÇ)'!C6:H6) ->  | I6: ='Marketing (ORÇ)'!I6 -> 0 | J6: ='Marketing (ORÇ)'!J6 -> 0 | K6: 0 | L6: 0
B7: 3 | C7: =IF(ISBLANK('Marketing (ORÇ)'!C7:H7)," ",'Marketing (ORÇ)'!C7:H7) ->  | I7: ='Marketing (ORÇ)'!I7 -> 0 | J7: ='Marketing (ORÇ)'!J7 -> 0 | K7: 0 | L7: 0
B8: 4 | C8: =IF(ISBLANK('Marketing (ORÇ)'!C8:H8)," ",'Marketing (ORÇ)'!C8:H8) ->  | I8: ='Marketing (ORÇ)'!I8 -> 0 | J8: ='Marketing (ORÇ)'!J8 -> 0 | K8: 0 | L8: 0
B9: 5 | C9: =IF(ISBLANK('Marketing (ORÇ)'!C9:H9)," ",'Marketing (ORÇ)'!C9:H9) ->  | I9: ='Marketing (ORÇ)'!I9 -> 0 | J9: ='Marketing (ORÇ)'!J9 -> 0 | K9: 0 | L9: 0
B10: 6 | C10: =IF(ISBLANK('Marketing (ORÇ)'!C10:H10)," ",'Marketing (ORÇ)'!C10:H10) ->  | I10: ='Marketing (ORÇ)'!I10 -> 0 | J10: ='Marketing (ORÇ)'!J10 -> 0 | K10: 0 | L10: 0
B11: 7 | C11: =IF(ISBLANK('Marketing (ORÇ)'!C11:H11)," ",'Marketing (ORÇ)'!C11:H11) ->  | I11: ='Marketing (ORÇ)'!I11 -> 0 | J11: ='Marketing (ORÇ)'!J11 -> 0 | K11: 0 | L11: 0
B12: 8 | C12: =IF(ISBLANK('Marketing (ORÇ)'!C12:H12)," ",'Marketing (ORÇ)'!C12:H12) ->  | I12: ='Marketing (ORÇ)'!I12 -> 0 | J12: ='Marketing (ORÇ)'!J12 -> 0 | K12: 0 | L12: 0
B13: 9 | C13: =IF(ISBLANK('Marketing (ORÇ)'!C13:H13)," ",'Marketing (ORÇ)'!C13:H13) ->  | I13: ='Marketing (ORÇ)'!I13 -> 0 | J13: ='Marketing (ORÇ)'!J13 -> 0 | K13: 0 | L13: 0
B14: 10 | C14: =IF(ISBLANK('Marketing (ORÇ)'!C14:H14)," ",'Marketing (ORÇ)'!C14:H14) ->  | I14: ='Marketing (ORÇ)'!I14 -> 0 | J14: ='Marketing (ORÇ)'!J14 -> 0 | K14: 0 | L14: 0
B15: Marketing | K15: =SUM(K5:K14) -> 0 | L15: =SUM(L5:L14) -> 0 | M15: =SUM(M5:M14) -> 0 | N15: =SUM(N5:N14) -> 0
B16: DIVISÃO DOS CUSTOS POR USO FINAL | L16: ORIGEM DOS RECURSOS
B17: Uso Final | K17: Total | L17: PEE | M17: Terceiros | N17: Consumidor
C18: Iluminação | K18: =SUM(L18:N18) -> 0 | L18: ='Custo Contábil'!$D$39*L$15 -> 0 | M18: ='Custo Contábil'!$D$39*M$15 -> 0 | N18: ='Custo Contábil'!$D$39*N$15 -> 0
C19: Condicionamento Ambiental | K19: =SUM(L19:N19) -> 0 | L19: ='Custo Contábil'!$E$39*L$15 -> 0 | M19: ='Custo Contábil'!$E$39*M$15 -> 0 | N19: ='Custo Contábil'!$E$39*N$15 -> 0
C20: Motores | K20: 0 | L20: ='Custo Contábil'!$F$39*L$15 -> 0 | M20: ='Custo Contábil'!$F$39*M$15 -> 0 | N20: ='Custo Contábil'!$F$39*N$15 -> 0
C21: Sistemas de Refrigeração | K21: 0 | L21: ='Custo Contábil'!$G$39*L$15 -> 0 | M21: ='Custo Contábil'!$G$39*M$15 -> 0 | N21: ='Custo Contábil'!$G$39*N$15 -> 0
C22: Aquecimento Solar de Água | K22: 0 | L22: ='Custo Contábil'!$H$39*L$15 -> 0 | M22: ='Custo Contábil'!$H$39*M$15 -> 0 | N22: ='Custo Contábil'!$H$39*N$15 -> 0
C23: Equipamentos Hospitalares | K23: 0 | L23: ='Custo Contábil'!$I$39*L$15 -> 0 | M23: ='Custo Contábil'!$I$39*M$15 -> 0 | N23: ='Custo Contábil'!$I$39*N$15 -> 0
C24: Outros | K24: 0 | L24: ='Custo Contábil'!$J$39*L$15 -> 0 | M24: ='Custo Contábil'!$J$39*M$15 -> 0 | N24: ='Custo Contábil'!$J$39*N$15 -> 0
C25: Fonte Incentivada | K25: =SUM(L25:N25) -> 0 | L25: ='Custo Contábil'!$K$39*L$15 -> 0 | M25: ='Custo Contábil'!$K$39*M$15 -> 0 | N25: ='Custo Contábil'!$K$39*N$15 -> 0
B26: Marketing | K26: =K15 -> 0 | L26: =L15 -> 0 | M26: =M15 -> 0 | N26: =N15 -> 0
B31: Descrição | H31: Limites | I31: Calculado
B32: Marketing / Custo Total do Projeto | H32: ='Custo Contábil'!E31 -> 0.03 | I32: ='Custo Contábil'!F31 -> 0

Sheet Transporte (hidden)
B2: Transporte | C2: VIAGEM
C3: N.º 01 | D3: N.º 02 | E3: N.º 03 | F3: N.º 04 | G3: N.º 05 | H3: N.º 06 | I3: N.º 07 | J3: N.º 08 | K3: N.º 09 | L3: N.º 10 | M3: N.º 11 | N3: N.º 12 | O3: TOTAL
B4: Objetivo | C4: Fiscalização, Diagnóstico, Medições e Implementação do projeto | D4: Fiscalização, Diagnóstico, Medições e Implementação do projeto | E4: Fiscalização, Diagnóstico, Medições e Implementação do projeto | F4: Fiscalização, Diagnóstico, Medições e Implementação do projeto | G4: Fiscalização, Diagnóstico, Medições e Implementação do projeto | H4: Fiscalização, Diagnóstico, Medições e Implementação do projeto | I4: Fiscalização, Diagnóstico, Medições e Implementação do projeto | J4: Fiscalização, Diagnóstico, Medições e Implementação do projeto | K4: Fiscalização, Diagnóstico, Medições e Implementação do projeto | L4: Fiscalização, Diagnóstico, Medições e Implementação do projeto | M4: Fiscalização, Diagnóstico, Medições e Implementação do projeto | N4: Fiscalização, Diagnóstico, Medições e Implementação do projeto | O4: =SUM(C16:N16) -> 0
B5: Origem / Destino | C5: SÃO LUIZ | D5: =C5 -> SÃO LUIZ | E5: Belem | F5: Belem | G5: Belem | H5: Belem | I5: Belem | J5: Belem | K5: Belem | L5: Belem | M5: Belem | N5: Belem
C6: 1 | D6: 1 | E6: 1 | F6: 1 | G6: 1 | H6: 1 | I6: 1 | J6: 1 | K6: 1 | L6: 1 | M6: 1 | N6: 1
B7: Distância em km | C7: =2*VLOOKUP(C6,Apoio!$AF$7:$AH$255,3) -> 0 | D7: =2*VLOOKUP(D6,Apoio!$AF$7:$AH$255,3) -> 0 | E7: =2*VLOOKUP(E6,Apoio!$AF$7:$AH$255,3) -> 0 | F7: =2*VLOOKUP(F6,Apoio!$AF$7:$AH$255,3) -> 0 | G7: =2*VLOOKUP(G6,Apoio!$AF$7:$AH$255,3) -> 0 | H7: =2*VLOOKUP(H6,Apoio!$AF$7:$AH$255,3) -> 0 | I7: =2*VLOOKUP(I6,Apoio!$AF$7:$AH$255,3) -> 0 | J7: =2*VLOOKUP(J6,Apoio!$AF$7:$AH$255,3) -> 0 | K7: =2*VLOOKUP(K6,Apoio!$AF$7:$AH$255,3) -> 0 | L7: =2*VLOOKUP(L6,Apoio!$AF$7:$AH$255,3) -> 0 | M7: =2*VLOOKUP(M6,Apoio!$AF$7:$AH$255,3) -> 0 | N7: =2*VLOOKUP(N6,Apoio!$AF$7:$AH$255,3) -> 0
B8: No. de viajantes | C8: 1 | D8: 1 | E8: 1 | F8: 1 | G8: 1 | H8: 1 | I8: 1 | J8: 1 | K8: 1 | L8: 1 | M8: 1 | N8: 1
B9: Custo do deslocamento (discriminar) | C9: Carro da empresa | D9: Carro da empresa | E9: Carro da empresa | F9: Carro da empresa | G9: Carro da empresa | H9: Carro da empresa | I9: Carro da empresa | J9: Carro da empresa | K9: Carro da empresa | L9: Carro da empresa | M9: Carro da empresa | N9: Carro da empresa
B10: Custo do valor médio do km rodado | C10: 0.7 | D10: 0.7 | E10: 0.7 | F10: 0.7 | G10: 0.7 | H10: 0.7 | I10: 0.7 | J10: 0.7 | K10: 0.7 | L10: 0.7 | M10: 0.7 | N10: 0.7
B11: Custo total do deslocamento | C11: =C10*C7 -> 0 | D11: =D10*D7 -> 0 | E11: 0 | F11: 0 | G11: 0 | H11: 0 | I11: 0 | J11: 0 | K11: 0 | L11: 0 | M11: 0 | N11: 0
B12: Custos de hospedagem e alimentação | C12: 120 | D12: 120 | E12: 120 | F12: 120 | G12: 120 | H12: 120 | I12: 120 | J12: 120 | K12: 120 | L12: 120 | M12: 120 | N12: 120
B13: Valor da diária | C13: 80 | D13: 80 | E13: 80 | F13: 80 | G13: 80 | H13: 80 | I13: 80 | J13: 80 | K13: 80 | L13: 80 | M13: 80 | N13: 80
B14: Número de diárias por viajante | C14: 2 | D14: 2 | E14: 2 | F14: 2 | G14: 2 | H14: 2 | I14: 2 | J14: 2 | K14: 2 | L14: 2 | M14: 2 | N14: 2
B15: Custo total de hospedagem e alimentação | C15: =IF(C11=0,0,(C14*C8*(C13+C12))) -> 0 | D15: =IF(D11=0,0,(D14*D8*(D13+D12))) -> 0 | E15: 0 | F15: 0 | G15: 0 | H15: 0 | I15: 0 | J15: 0 | K15: 0 | L15: 0 | M15: 0 | N15: 0
B16: Custo total das viagens | C16: =C15+C11 -> 0 | D16: 0 | E16: 0 | F16: 0 | G16: 0 | H16: 0 | I16: 0 | J16: 0 | K16: 0 | L16: 0 | M16: 0 | N16: 0

Sheet Descarte (ORÇ)
B2: DESCARTE - ORÇAMENTO
B3: DESCRIÇÃO DO EQUIPAMENTO | K3: Fornecedor 1 | L3: Fornecedor 2 | M3: Fornecedor 3 | N3: Fornecedor 4 | O3: Fornecedor 5 | P3: Fornecedor 6
B4: ILUMINAÇÃO | K4: Fornecedor 1 | L4: Fornecedor 2 | M4: Fornecedor 3 | N4: Fornecedor 4 | O4: Fornecedor 5 | P4: Fornecedor 6
B5: Descrição do equipamento | I5: Quantidade | J5: Menor Preço unitário | K5: Preço Unitário | L5: Preço Unitário | M5: Preço Unitário | N5: Preço Unitário | O5: Preço Unitário | P5: Preço Unitário
B6: 1 | J6: =IFERROR(SMALL(K6:P6,1),0) -> 0
B7: 2 | J7: =IFERROR(SMALL(K7:P7,1),0) -> 0
B8: 3 | J8: 0
B9: 4 | J9: 0
B10: 5 | J10: 0
B11: 6 | J11: 0
B12: 7 | J12: 0
B13: 8 | J13: 0
B14: 9 | J14: 0
B15: 10 | J15: 0
C16: DADOS DO FORNECEDOR | K16: Fornecedor 1 | L16: Fornecedor 2 | M16: Fornecedor 3 | N16: Fornecedor 4 | O16: Fornecedor 5 | P16: Fornecedor 6
B17: Nome do fornecedor
B18: CNPJ do fornecedor
B19: Data da proposta
B20: Validade da proposta
B21: Pessoa de contato
B22: Telefone
B23: e-mail
B24: Critério de julgamento | K24: Menor Valor Unitário | N24: Menor Valor Unitário
B25: CONDICIONAMENTO AMBIENTAL | K25: Fornecedor 1 | L25: Fornecedor 2 | M25: Fornecedor 3 | N25: Fornecedor 4 | O25: Fornecedor 5 | P25: Fornecedor 6
B26: Descrição do equipamento | I26: Quantidade | J26: Menor Preço unitário | K26: Preço Unitário | L26: Preço Unitário | M26: Preço Unitário | N26: Preço Unitário | O26: Preço Unitário | P26: Preço Unitário
B27: 1 | J27: =IFERROR(SMALL(K27:P27,1),0) -> 0
B28: 2 | J28: =IFERROR(SMALL(K28:P28,1),0) -> 0
B29: 3 | J29: 0
B30: 4 | J30: 0
B31: 5 | J31: 0
B32: 6 | J32: 0
B33: 7 | J33: 0
B34: 8 | J34: 0
B35: 9 | J35: 0
B36: 10 | J36: 0
C37: DADOS DO FORNECEDOR | K37: Fornecedor 1 | L37: Fornecedor 2 | M37: Fornecedor 3 | N37: Fornecedor 4 | O37: Fornecedor 5 | P37: Fornecedor 6
B38: Nome do fornecedor
B39: CNPJ do fornecedor
B40: Data da proposta
B41: Validade da proposta
B42: Pessoa de contato
B43: Telefone
B44: e-mail
B45: Critério de julgamento | K45: Menor Valor Unitário | N45: Menor Valor Unitário
B46: MOTORES | K46: Fornecedor 1 | L46: Fornecedor 2 | M46: Fornecedor 3 | N46: Fornecedor 4 | O46: Fornecedor 5 | P46: Fornecedor 6
B47: Descrição do equipamento | I47: Quantidade | J47: Menor Preço unitário | K47: Preço Unitário | L47: Preço Unitário | M47: Preço Unitário | N47: Preço Unitário | O47: Preço Unitário | P47: Preço Unitário
B48: 1 | J48: =IFERROR(SMALL(K48:P48,1),0) -> 0
B49: 2 | J49: =IFERROR(SMALL(K49:P49,1),0) -> 0
B50: 3 | J50: =IFERROR(SMALL(K50:P50,1),0) -> 0
B51: 4 | J51: 0
B52: 5 | J52: 0
B53: 6 | J53: 0
B54: 7 | J54: 0
B55: 8 | J55: 0
B56: 9 | J56: 0
B57: 10 | J57: 0
C58: DADOS DO FORNECEDOR | K58: Fornecedor 1 | L58: Fornecedor 2 | M58: Fornecedor 3 | N58: Fornecedor 4 | O58: Fornecedor 5 | P58: Fornecedor 6
B59: Nome do fornecedor
B60: CNPJ do fornecedor
B61: Data da proposta
B62: Validade da proposta
B63: Pessoa de contato
B64: Telefone
B65: e-mail
B66: Critério de julgamento | K66: Menor Valor Unitário | N66: Menor Valor Unitário
B67: SISTEMAS DE REFRIGERAÇÃO | K67: Fornecedor 1 | L67: Fornecedor 2 | M67: Fornecedor 3 | N67: Fornecedor 4 | O67: Fornecedor 5 | P67: Fornecedor 6
B68: Descrição do equipamento | I68: Quantidade | J68: Menor Preço unitário | K68: Preço Unitário | L68: Preço Unitário | M68: Preço Unitário | N68: Preço Unitário | O68: Preço Unitário | P68: Preço Unitário
B69: 1 | J69: =IFERROR(SMALL(K69:P69,1),0) -> 0
B70: 2 | J70: =IFERROR(SMALL(K70:P70,1),0) -> 0
B71: 3 | J71: 0
B72: 4 | J72: 0
B73: 5 | J73: 0
B74: 6 | J74: 0
B75: 7 | J75: 0
B76: 8 | J76: 0
B77: 9 | J77: 0
B78: 10 | J78: 0
C79: DADOS DO FORNECEDOR | K79: Fornecedor 1 | L79: Fornecedor 2 | M79: Fornecedor 3 | N79: Fornecedor 4 | O79: Fornecedor 5 | P79: Fornecedor 6
B80: Nome do fornecedor
B81: CNPJ do fornecedor
B82: Data da proposta
B83: Validade da proposta
B84: Pessoa de contato
B85: Telefone
B86: e-mail
B87: Critério de julgamento | K87: Menor Valor Unitário | N87: Menor Valor Unitário
B88: AQUECIMENTO SOLAR DE ÁGUA | K88: Fornecedor 1 | L88: Fornecedor 2 | M88: Fornecedor 3 | N88: Fornecedor 4 | O88: Fornecedor 5 | P88: Fornecedor 6
B89: Descrição do equipamento | I89: Quantidade | J89: Menor Preço unitário | K89: Preço Unitário | L89: Preço Unitário | M89: Preço Unitário | N89: Preço Unitário | O89: Preço Unitário | P89: Preço Unitário
B90: 1 | J90: =IFERROR(SMALL(K90:P90,1),0) -> 0
B91: 2 | J91: =IFERROR(SMALL(K91:P91,1),0) -> 0
B92: 3 | J92: 0
B93: 4 | J93: 0
B94: 5 | J94: 0
B95: 6 | J95: 0
B96: 7 | J96: 0
B97: 8 | J97: 0
B98: 9 | J98: 0
B99: 10 | J99: 0
C100: DADOS DO FORNECEDOR | K100: Fornecedor 1 | L100: Fornecedor 2 | M100: Fornecedor 3 | N100: Fornecedor 4 | O100: Fornecedor 5 | P100: Fornecedor 6
B101: Nome do fornecedor
B102: CNPJ do fornecedor
B103: Data da proposta
B104: Validade da proposta
B105: Pessoa de contato
B106: Telefone
B107: e-mail
B108: Critério de julgamento | K108: Menor Valor Unitário | N108: Menor Valor Unitário
B109: EQUIPAMENTOS HOSPITALARES | K109: Fornecedor 1 | L109: Fornecedor 2 | M109: Fornecedor 3 | N109: Fornecedor 4 | O109: Fornecedor 5 | P109: Fornecedor 6
B110: Descrição do equipamento | I110: Quantidade | J110: Menor Preço unitário | K110: Preço Unitário | L110: Preço Unitário | M110: Preço Unitário | N110: Preço Unitário | O110: Preço Unitário | P110: Preço Unitário
B111: 1 | J111: =IFERROR(SMALL(K111:P111,1),0) -> 0
B112: 2 | J112: =IFERROR(SMALL(K112:P112,1),0) -> 0
B113: 3 | J113: 0
B114: 4 | J114: 0
B115: 5 | J115: 0
B116: 6 | J116: 0
B117: 7 | J117: 0
B118: 8 | J118: 0
B119: 9 | J119: 0
B120: 10 | J120: 0
C121: DADOS DO FORNECEDOR | K121: Fornecedor 1 | L121: Fornecedor 2 | M121: Fornecedor 3 | N121: Fornecedor 4 | O121: Fornecedor 5 | P121: Fornecedor 6
B122: Nome do fornecedor
B123: CNPJ do fornecedor
B124: Data da proposta
B125: Validade da proposta
B126: Pessoa de contato
B127: Telefone
B128: e-mail
B129: Critério de julgamento | K129: Menor Valor Unitário | N129: Menor Valor Unitário
B130: OUTROS | K130: Fornecedor 1 | L130: Fornecedor 2 | M130: Fornecedor 3 | N130: Fornecedor 4 | O130: Fornecedor 5 | P130: Fornecedor 6
B131: Descrição do equipamento | I131: Quantidade | J131: Menor Preço unitário | K131: Preço Unitário | L131: Preço Unitário | M131: Preço Unitário | N131: Preço Unitário | O131: Preço Unitário | P131: Preço Unitário
B132: 1 | J132: =IFERROR(SMALL(K132:P132,1),0) -> 0
B133: 2 | J133: =IFERROR(SMALL(K133:P133,1),0) -> 0
B134: 3 | J134: 0
B135: 4 | J135: 0
B136: 5 | J136: 0
B137: 6 | J137: 0
B138: 7 | J138: 0
B139: 8 | J139: 0
B140: 9 | J140: 0
B141: 10 | J141: 0
C142: DADOS DO FORNECEDOR | K142: Fornecedor 1 | L142: Fornecedor 2 | M142: Fornecedor 3 | N142: Fornecedor 4 | O142: Fornecedor 5 | P142: Fornecedor 6
B143: Nome do fornecedor
B144: CNPJ do fornecedor
B145: Data da proposta
B146: Validade da proposta
B147: Pessoa de contato
B148: Telefone
B149: e-mail
B150: Critério de julgamento | K150: Menor Valor Unitário | N150: Menor Valor Unitário

Sheet Descarte
B2: DESCARTE - ORIGEM DOS RECURSOS
B3: DESCRIÇÃO DO EQUIPAMENTO | L3: ORIGEM DOS RECURSOS
L4: PEE | M4: Terceiros | N4: Consumidor
B5: ILUMINAÇÃO
B6: Descrição do equipamento | I6: Quantidade | J6: Preço unitário | K6: Total | L6: PEE | M6: Terceiros | N6: Consumidor
B7: 1 | C7: =IF(ISBLANK('Descarte (ORÇ)'!C6)," ",'Descarte (ORÇ)'!C6) ->  | I7: ='Descarte (ORÇ)'!I6 -> 0 | J7: ='Descarte (ORÇ)'!J6 -> 0 | K7: =I7*J7 -> 0 | L7: =K7-M7-N7 -> 0
B8: 2 | C8: =IF(ISBLANK('Descarte (ORÇ)'!C7)," ",'Descarte (ORÇ)'!C7) ->  | I8: ='Descarte (ORÇ)'!I7 -> 0 | J8: ='Descarte (ORÇ)'!J7 -> 0 | K8: =I8*J8 -> 0 | L8: =K8-M8-N8 -> 0
B9: 3 | C9: =IF(ISBLANK('Descarte (ORÇ)'!C8)," ",'Descarte (ORÇ)'!C8) ->  | I9: ='Descarte (ORÇ)'!I8 -> 0 | J9: ='Descarte (ORÇ)'!J8 -> 0 | K9: 0 | L9: 0
B10: 4 | C10: =IF(ISBLANK('Descarte (ORÇ)'!C9)," ",'Descarte (ORÇ)'!C9) ->  | I10: ='Descarte (ORÇ)'!I9 -> 0 | J10: ='Descarte (ORÇ)'!J9 -> 0 | K10: 0 | L10: 0
B11: 5 | C11: =IF(ISBLANK('Descarte (ORÇ)'!C10)," ",'Descarte (ORÇ)'!C10) ->  | I11: ='Descarte (ORÇ)'!I10 -> 0 | J11: ='Descarte (ORÇ)'!J10 -> 0 | K11: 0 | L11: 0
B12: 6 | C12: =IF(ISBLANK('Descarte (ORÇ)'!C11)," ",'Descarte (ORÇ)'!C11) ->  | I12: ='Descarte (ORÇ)'!I11 -> 0 | J12: ='Descarte (ORÇ)'!J11 -> 0 | K12: 0 | L12: 0
B13: 7 | C13: =IF(ISBLANK('Descarte (ORÇ)'!C12)," ",'Descarte (ORÇ)'!C12) ->  | I13: ='Descarte (ORÇ)'!I12 -> 0 | J13: ='Descarte (ORÇ)'!J12 -> 0 | K13: 0 | L13: 0
B14: 8 | C14: =IF(ISBLANK('Descarte (ORÇ)'!C13)," ",'Descarte (ORÇ)'!C13) ->  | I14: ='Descarte (ORÇ)'!I13 -> 0 | J14: ='Descarte (ORÇ)'!J13 -> 0 | K14: 0 | L14: 0
B15: 9 | C15: =IF(ISBLANK('Descarte (ORÇ)'!C14)," ",'Descarte (ORÇ)'!C14) ->  | I15: ='Descarte (ORÇ)'!I14 -> 0 | J15: ='Descarte (ORÇ)'!J14 -> 0 | K15: 0 | L15: 0
B16: 10 | C16: =IF(ISBLANK('Descarte (ORÇ)'!C15)," ",'Descarte (ORÇ)'!C15) ->  | I16: ='Descarte (ORÇ)'!I15 -> 0 | J16: ='Descarte (ORÇ)'!J15 -> 0 | K16: 0 | L16: 0
C17: Sub total - Custos descarte de equipamentos iluminação | K17: =SUM(K7:K16) -> 0 | L17: =SUM(L7:L16) -> 0 | M17: =SUM(M7:M16) -> 0 | N17: =SUM(N7:N16) -> 0
B18: CONDICIONAMENTO AMBIENTAL
B19: Descrição do equipamento | I19: Quantidade | J19: Preço unitário | K19: Total | L19: PEE | M19: Terceiros | N19: Consumidor
B20: 1 | C20: =IF(ISBLANK('Descarte (ORÇ)'!C27)," ",'Descarte (ORÇ)'!C27) ->  | I20: ='Descarte (ORÇ)'!I27 -> 0 | J20: ='Descarte (ORÇ)'!J27 -> 0 | K20: =I20*J20 -> 0 | L20: =K20-M20-N20 -> 0
B21: 2 | C21: =IF(ISBLANK('Descarte (ORÇ)'!C28)," ",'Descarte (ORÇ)'!C28) ->  | I21: ='Descarte (ORÇ)'!I28 -> 0 | J21: ='Descarte (ORÇ)'!J28 -> 0 | K21: 0 | L21: 0
B22: 3 | C22: =IF(ISBLANK('Descarte (ORÇ)'!C29)," ",'Descarte (ORÇ)'!C29) ->  | I22: ='Descarte (ORÇ)'!I29 -> 0 | J22: ='Descarte (ORÇ)'!J29 -> 0 | K22: 0 | L22: 0
B23: 4 | C23: =IF(ISBLANK('Descarte (ORÇ)'!C30)," ",'Descarte (ORÇ)'!C30) ->  | I23: ='Descarte (ORÇ)'!I30 -> 0 | J23: ='Descarte (ORÇ)'!J30 -> 0 | K23: 0 | L23: 0
B24: 5 | C24: =IF(ISBLANK('Descarte (ORÇ)'!C31)," ",'Descarte (ORÇ)'!C31) ->  | I24: ='Descarte (ORÇ)'!I31 -> 0 | J24: ='Descarte (ORÇ)'!J31 -> 0 | K24: 0 | L24: 0
B25: 6 | C25: =IF(ISBLANK('Descarte (ORÇ)'!C32)," ",'Descarte (ORÇ)'!C32) ->  | I25: ='Descarte (ORÇ)'!I32 -> 0 | J25: ='Descarte (ORÇ)'!J32 -> 0 | K25: 0 | L25: 0
B26: 7 | C26: =IF(ISBLANK('Descarte (ORÇ)'!C33)," ",'Descarte (ORÇ)'!C33) ->  | I26: ='Descarte (ORÇ)'!I33 -> 0 | J26: ='Descarte (ORÇ)'!J33 -> 0 | K26: 0 | L26: 0
B27: 8 | C27: =IF(ISBLANK('Descarte (ORÇ)'!C34)," ",'Descarte (ORÇ)'!C34) ->  | I27: ='Descarte (ORÇ)'!I34 -> 0 | J27: ='Descarte (ORÇ)'!J34 -> 0 | K27: 0 | L27: 0
B28: 9 | C28: =IF(ISBLANK('Descarte (ORÇ)'!C35)," ",'Descarte (ORÇ)'!C35) ->  | I28: ='Descarte (ORÇ)'!I35 -> 0 | J28: ='Descarte (ORÇ)'!J35 -> 0 | K28: 0 | L28: 0
B29: 10 | C29: =IF(ISBLANK('Descarte (ORÇ)'!C36)," ",'Descarte (ORÇ)'!C36) ->  | I29: ='Descarte (ORÇ)'!I36 -> 0 | J29: ='Descarte (ORÇ)'!J36 -> 0 | K29: 0 | L29: 0
C30: Sub total - Custos descarte de equipamentos condicionamento ambiental | K30: =SUM(K20:K29) -> 0 | L30: =SUM(L20:L29) -> 0 | M30: =SUM(M20:M29) -> 0 | N30: =SUM(N20:N29) -> 0
B31: MOTORES
B32: Descrição do equipamento | I32: Quantidade | J32: Preço unitário | K32: Total | L32: PEE | M32: Terceiros | N32: Consumidor
B33: 1 | C33: =IF(ISBLANK('Descarte (ORÇ)'!C48)," ",'Descarte (ORÇ)'!C48) ->  | I33: ='Descarte (ORÇ)'!I48 -> 0 | J33: ='Descarte (ORÇ)'!J48 -> 0 | K33: =I33*J33 -> 0 | L33: =K33-M33-N33 -> 0
B34: 2 | C34: =IF(ISBLANK('Descarte (ORÇ)'!C49)," ",'Descarte (ORÇ)'!C49) ->  | I34: ='Descarte (ORÇ)'!I49 -> 0 | J34: ='Descarte (ORÇ)'!J49 -> 0 | K34: 0 | L34: 0
B35: 3 | C35: =IF(ISBLANK('Descarte (ORÇ)'!C50)," ",'Descarte (ORÇ)'!C50) ->  | I35: ='Descarte (ORÇ)'!I50 -> 0 | J35: ='Descarte (ORÇ)'!J50 -> 0 | K35: 0 | L35: 0
B36: 4 | C36: =IF(ISBLANK('Descarte (ORÇ)'!C51)," ",'Descarte (ORÇ)'!C51) ->  | I36: ='Descarte (ORÇ)'!I51 -> 0 | J36: ='Descarte (ORÇ)'!J51 -> 0 | K36: 0 | L36: 0
B37: 5 | C37: =IF(ISBLANK('Descarte (ORÇ)'!C52)," ",'Descarte (ORÇ)'!C52) ->  | I37: ='Descarte (ORÇ)'!I52 -> 0 | J37: ='Descarte (ORÇ)'!J52 -> 0 | K37: 0 | L37: 0
B38: 6 | C38: =IF(ISBLANK('Descarte (ORÇ)'!C53)," ",'Descarte (ORÇ)'!C53) ->  | I38: ='Descarte (ORÇ)'!I53 -> 0 | J38: ='Descarte (ORÇ)'!J53 -> 0 | K38: 0 | L38: 0
B39: 7 | C39: =IF(ISBLANK('Descarte (ORÇ)'!C54)," ",'Descarte (ORÇ)'!C54) ->  | I39: ='Descarte (ORÇ)'!I54 -> 0 | J39: ='Descarte (ORÇ)'!J54 -> 0 | K39: 0 | L39: 0
B40: 8 | C40: =IF(ISBLANK('Descarte (ORÇ)'!C55)," ",'Descarte (ORÇ)'!C55) ->  | I40: ='Descarte (ORÇ)'!I55 -> 0 | J40: ='Descarte (ORÇ)'!J55 -> 0 | K40: 0 | L40: 0
B41: 9 | C41: =IF(ISBLANK('Descarte (ORÇ)'!C56)," ",'Descarte (ORÇ)'!C56) ->  | I41: ='Descarte (ORÇ)'!I56 -> 0 | J41: ='Descarte (ORÇ)'!J56 -> 0 | K41: 0 | L41: 0
B42: 10 | C42: =IF(ISBLANK('Descarte (ORÇ)'!C57)," ",'Descarte (ORÇ)'!C57) ->  | I42: ='Descarte (ORÇ)'!I57 -> 0 | J42: ='Descarte (ORÇ)'!J57 -> 0 | K42: 0 | L42: 0
C43: Sub total - Custos descarte de equipamentos motores | K43: =SUM(K33:K42) -> 0 | L43: =SUM(L33:L42) -> 0 | M43: =SUM(M33:M42) -> 0 | N43: =SUM(N33:N42) -> 0
B44: SISTEMAS DE REFRIGERAÇÃO
B45: Descrição do equipamento | I45: Quantidade | J45: Preço unitário | K45: Total | L45: PEE | M45: Terceiros | N45: Consumidor
B46: 1 | C46: =IF(ISBLANK('Descarte (ORÇ)'!C69)," ",'Descarte (ORÇ)'!C69) ->  | I46: ='Descarte (ORÇ)'!I69 -> 0 | J46: ='Descarte (ORÇ)'!J69 -> 0 | K46: =I46*J46 -> 0 | L46: =K46-M46-N46 -> 0
B47: 2 | C47: =IF(ISBLANK('Descarte (ORÇ)'!C70)," ",'Descarte (ORÇ)'!C70) ->  | I47: ='Descarte (ORÇ)'!I70 -> 0 | J47: ='Descarte (ORÇ)'!J70 -> 0 | K47: 0 | L47: 0
B48: 3 | C48: =IF(ISBLANK('Descarte (ORÇ)'!C71)," ",'Descarte (ORÇ)'!C71) ->  | I48: ='Descarte (ORÇ)'!I71 -> 0 | J48: ='Descarte (ORÇ)'!J71 -> 0 | K48: 0 | L48: 0
B49: 4 | C49: =IF(ISBLANK('Descarte (ORÇ)'!C72)," ",'Descarte (ORÇ)'!C72) ->  | I49: ='Descarte (ORÇ)'!I72 -> 0 | J49: ='Descarte (ORÇ)'!J72 -> 0 | K49: 0 | L49: 0
B50: 5 | C50: =IF(ISBLANK('Descarte (ORÇ)'!C73)," ",'Descarte (ORÇ)'!C73) ->  | I50: ='Descarte (ORÇ)'!I73 -> 0 | J50: ='Descarte (ORÇ)'!J73 -> 0 | K50: 0 | L50: 0
B51: 6 | C51: =IF(ISBLANK('Descarte (ORÇ)'!C74)," ",'Descarte (ORÇ)'!C74) ->  | I51: ='Descarte (ORÇ)'!I74 -> 0 | J51: ='Descarte (ORÇ)'!J74 -> 0 | K51: 0 | L51: 0
B52: 7 | C52: =IF(ISBLANK('Descarte (ORÇ)'!C75)," ",'Descarte (ORÇ)'!C75) ->  | I52: ='Descarte (ORÇ)'!I75 -> 0 | J52: ='Descarte (ORÇ)'!J75 -> 0 | K52: 0 | L52: 0
B53: 8 | C53: =IF(ISBLANK('Descarte (ORÇ)'!C76)," ",'Descarte (ORÇ)'!C76) ->  | I53: ='Descarte (ORÇ)'!I76 -> 0 | J53: ='Descarte (ORÇ)'!J76 -> 0 | K53: 0 | L53: 0
B54: 9 | C54: =IF(ISBLANK('Descarte (ORÇ)'!C77)," ",'Descarte (ORÇ)'!C77) ->  | I54: ='Descarte (ORÇ)'!I77 -> 0 | J54: ='Descarte (ORÇ)'!J77 -> 0 | K54: 0 | L54: 0
B55: 10 | C55: =IF(ISBLANK('Descarte (ORÇ)'!C78)," ",'Descarte (ORÇ)'!C78) ->  | I55: ='Descarte (ORÇ)'!I78 -> 0 | J55: ='Descarte (ORÇ)'!J78 -> 0 | K55: 0 | L55: 0
C56: Sub total - Custos descarte de equipamentos sistemas de refrigeração | K56: =SUM(K46:K55) -> 0 | L56: =SUM(L46:L55) -> 0 | M56: =SUM(M46:M55) -> 0 | N56: =SUM(N46:N55) -> 0
B57: AQUECIMENTO SOLAR DE ÁGUA
B58: Descrição do equipamento | I58: Quantidade | J58: Preço unitário | K58: Total | L58: PEE | M58: Terceiros | N58: Consumidor
B59: 1 | C59: =IF(ISBLANK('Descarte (ORÇ)'!C90)," ",'Descarte (ORÇ)'!C90) ->  | I59: ='Descarte (ORÇ)'!I90 -> 0 | J59: ='Descarte (ORÇ)'!J90 -> 0 | K59: =I59*J59 -> 0 | L59: =K59-M59-N59 -> 0
B60: 2 | C60: =IF(ISBLANK('Descarte (ORÇ)'!C91)," ",'Descarte (ORÇ)'!C91) ->  | I60: ='Descarte (ORÇ)'!I91 -> 0 | J60: ='Descarte (ORÇ)'!J91 -> 0 | K60: 0 | L60: 0
B61: 3 | C61: =IF(ISBLANK('Descarte (ORÇ)'!C92)," ",'Descarte (ORÇ)'!C92) ->  | I61: ='Descarte (ORÇ)'!I92 -> 0 | J61: ='Descarte (ORÇ)'!J92 -> 0 | K61: 0 | L61: 0
B62: 4 | C62: =IF(ISBLANK('Descarte (ORÇ)'!C93)," ",'Descarte (ORÇ)'!C93) ->  | I62: ='Descarte (ORÇ)'!I93 -> 0 | J62: ='Descarte (ORÇ)'!J93 -> 0 | K62: 0 | L62: 0
B63: 5 | C63: =IF(ISBLANK('Descarte (ORÇ)'!C94)," ",'Descarte (ORÇ)'!C94) ->  | I63: ='Descarte (ORÇ)'!I94 -> 0 | J63: ='Descarte (ORÇ)'!J94 -> 0 | K63: 0 | L63: 0
B64: 6 | C64: =IF(ISBLANK('Descarte (ORÇ)'!C95)," ",'Descarte (ORÇ)'!C95) ->  | I64: ='Descarte (ORÇ)'!I95 -> 0 | J64: ='Descarte (ORÇ)'!J95 -> 0 | K64: 0 | L64: 0
B65: 7 | C65: =IF(ISBLANK('Descarte (ORÇ)'!C96)," ",'Descarte (ORÇ)'!C96) ->  | I65: ='Descarte (ORÇ)'!I96 -> 0 | J65: ='Descarte (ORÇ)'!J96 -> 0 | K65: 0 | L65: 0
B66: 8 | C66: =IF(ISBLANK('Descarte (ORÇ)'!C97)," ",'Descarte (ORÇ)'!C97) ->  | I66: ='Descarte (ORÇ)'!I97 -> 0 | J66: ='Descarte (ORÇ)'!J97 -> 0 | K66: 0 | L66: 0
B67: 9 | C67: =IF(ISBLANK('Descarte (ORÇ)'!C98)," ",'Descarte (ORÇ)'!C98) ->  | I67: ='Descarte (ORÇ)'!I98 -> 0 | J67: ='Descarte (ORÇ)'!J98 -> 0 | K67: 0 | L67: 0
B68: 10 | C68: =IF(ISBLANK('Descarte (ORÇ)'!C99)," ",'Descarte (ORÇ)'!C99) ->  | I68: ='Descarte (ORÇ)'!I99 -> 0 | J68: ='Descarte (ORÇ)'!J99 -> 0 | K68: 0 | L68: 0
C69: Sub total - Custos descarte de equipamentos aquecimento solar de água | K69: =SUM(K59:K68) -> 0 | L69: =SUM(L59:L68) -> 0 | M69: =SUM(M59:M68) -> 0 | N69: =SUM(N59:N68) -> 0
B70: EQUIPAMENTOS HOSPITALARES
B71: Descrição do equipamento | I71: Quantidade | J71: Preço unitário | K71: Total | L71: PEE | M71: Terceiros | N71: Consumidor
B72: 1 | C72: =IF(ISBLANK('Descarte (ORÇ)'!C111)," ",'Descarte (ORÇ)'!C111) ->  | I72: ='Descarte (ORÇ)'!I111 -> 0 | J72: ='Descarte (ORÇ)'!J111 -> 0 | K72: =I72*J72 -> 0 | L72: =K72-M72-N72 -> 0
B73: 2 | C73: =IF(ISBLANK('Descarte (ORÇ)'!C112)," ",'Descarte (ORÇ)'!C112) ->  | I73: ='Descarte (ORÇ)'!I112 -> 0 | J73: ='Descarte (ORÇ)'!J112 -> 0 | K73: 0 | L73: 0
B74: 3 | C74: =IF(ISBLANK('Descarte (ORÇ)'!C113)," ",'Descarte (ORÇ)'!C113) ->  | I74: ='Descarte (ORÇ)'!I113 -> 0 | J74: ='Descarte (ORÇ)'!J113 -> 0 | K74: 0 | L74: 0
B75: 4 | C75: =IF(ISBLANK('Descarte (ORÇ)'!C114)," ",'Descarte (ORÇ)'!C114) ->  | I75: ='Descarte (ORÇ)'!I114 -> 0 | J75: ='Descarte (ORÇ)'!J114 -> 0 | K75: 0 | L75: 0
B76: 5 | C76: =IF(ISBLANK('Descarte (ORÇ)'!C115)," ",'Descarte (ORÇ)'!C115) ->  | I76: ='Descarte (ORÇ)'!I115 -> 0 | J76: ='Descarte (ORÇ)'!J115 -> 0 | K76: 0 | L76: 0
B77: 6 | C77: =IF(ISBLANK('Descarte (ORÇ)'!C116)," ",'Descarte (ORÇ)'!C116) ->  | I77: ='Descarte (ORÇ)'!I116 -> 0 | J77: ='Descarte (ORÇ)'!J116 -> 0 | K77: 0 | L77: 0
B78: 7 | C78: =IF(ISBLANK('Descarte (ORÇ)'!C117)," ",'Descarte (ORÇ)'!C117) ->  | I78: ='Descarte (ORÇ)'!I117 -> 0 | J78: ='Descarte (ORÇ)'!J117 -> 0 | K78: 0 | L78: 0
B79: 8 | C79: =IF(ISBLANK('Descarte (ORÇ)'!C118)," ",'Descarte (ORÇ)'!C118) ->  | I79: ='Descarte (ORÇ)'!I118 -> 0 | J79: ='Descarte (ORÇ)'!J118 -> 0 | K79: 0 | L79: 0
B80: 9 | C80: =IF(ISBLANK('Descarte (ORÇ)'!C119)," ",'Descarte (ORÇ)'!C119) ->  | I80: ='Descarte (ORÇ)'!I119 -> 0 | J80: ='Descarte (ORÇ)'!J119 -> 0 | K80: 0 | L80: 0
B81: 10 | C81: =IF(ISBLANK('Descarte (ORÇ)'!C120)," ",'Descarte (ORÇ)'!C120) ->  | I81: ='Descarte (ORÇ)'!I120 -> 0 | J81: ='Descarte (ORÇ)'!J120 -> 0 | K81: 0 | L81: 0
C82: Sub total - Custos descarte de equipamentos equipamentos hospitalares | K82: =SUM(K72:K81) -> 0 | L82: =SUM(L72:L81) -> 0 | M82: =SUM(M72:M81) -> 0 | N82: =SUM(N72:N81) -> 0
B83: OUTROS
B84: Descrição do equipamento | I84: Quantidade | J84: Preço unitário | K84: Total | L84: PEE | M84: Terceiros | N84: Consumidor
B85: 1 | C85: =IF(ISBLANK('Descarte (ORÇ)'!C132)," ",'Descarte (ORÇ)'!C132) ->  | I85: ='Descarte (ORÇ)'!I132 -> 0 | J85: ='Descarte (ORÇ)'!J132 -> 0 | K85: =I85*J85 -> 0 | L85: =K85-M85-N85 -> 0
B86: 2 | C86: =IF(ISBLANK('Descarte (ORÇ)'!C133)," ",'Descarte (ORÇ)'!C133) ->  | I86: ='Descarte (ORÇ)'!I133 -> 0 | J86: ='Descarte (ORÇ)'!J133 -> 0 | K86: 0 | L86: 0
B87: 3 | C87: =IF(ISBLANK('Descarte (ORÇ)'!C134)," ",'Descarte (ORÇ)'!C134) ->  | I87: ='Descarte (ORÇ)'!I134 -> 0 | J87: ='Descarte (ORÇ)'!J134 -> 0 | K87: 0 | L87: 0
B88: 4 | C88: =IF(ISBLANK('Descarte (ORÇ)'!C135)," ",'Descarte (ORÇ)'!C135) ->  | I88: ='Descarte (ORÇ)'!I135 -> 0 | J88: ='Descarte (ORÇ)'!J135 -> 0 | K88: 0 | L88: 0
B89: 5 | C89: =IF(ISBLANK('Descarte (ORÇ)'!C136)," ",'Descarte (ORÇ)'!C136) ->  | I89: ='Descarte (ORÇ)'!I136 -> 0 | J89: ='Descarte (ORÇ)'!J136 -> 0 | K89: 0 | L89: 0
B90: 6 | C90: =IF(ISBLANK('Descarte (ORÇ)'!C137)," ",'Descarte (ORÇ)'!C137) ->  | I90: ='Descarte (ORÇ)'!I137 -> 0 | J90: ='Descarte (ORÇ)'!J137 -> 0 | K90: 0 | L90: 0
B91: 7 | C91: =IF(ISBLANK('Descarte (ORÇ)'!C138)," ",'Descarte (ORÇ)'!C138) ->  | I91: ='Descarte (ORÇ)'!I138 -> 0 | J91: ='Descarte (ORÇ)'!J138 -> 0 | K91: 0 | L91: 0
B92: 8 | C92: =IF(ISBLANK('Descarte (ORÇ)'!C139)," ",'Descarte (ORÇ)'!C139) ->  | I92: ='Descarte (ORÇ)'!I139 -> 0 | J92: ='Descarte (ORÇ)'!J139 -> 0 | K92: 0 | L92: 0
B93: 9 | C93: =IF(ISBLANK('Descarte (ORÇ)'!C140)," ",'Descarte (ORÇ)'!C140) ->  | I93: ='Descarte (ORÇ)'!I140 -> 0 | J93: ='Descarte (ORÇ)'!J140 -> 0 | K93: 0 | L93: 0
B94: 10 | C94: =IF(ISBLANK('Descarte (ORÇ)'!C141)," ",'Descarte (ORÇ)'!C141) ->  | I94: ='Descarte (ORÇ)'!I141 -> 0 | J94: ='Descarte (ORÇ)'!J141 -> 0 | K94: 0 | L94: 0
C95: Sub total - Custos descarte de equipamentos outros | K95: =SUM(K85:K94) -> 0 | L95: =SUM(L85:L94) -> 0 | M95: =SUM(M85:M94) -> 0 | N95: =SUM(N85:N94) -> 0
C96: Sub total - Custos descarte de equipamentos | K96: =SUM(K17,K30,K43,K56,K69,K82,K95) -> 0 | L96: =SUM(L17,L30,L43,L56,L69,L82,L95) -> 0 | M96: =SUM(M17,M30,M43,M56,M69,M82,M95) -> 0 | N96: =SUM(N17,N30,N43,N56,N69,N82,N95) -> 0

Sheet M&V (ORÇ)
E2: M&V - PREMISSAS E ORÇAMENTOS
M3: FORNECEDORES
B4: Confiabilidade mínima aceitável: | F4: 0.95 | H4: Valor padrão da distribuição normal: | L4: 1.96
B5: Nível de precisão aceitável: | F5: 0.1
M6: Fornecedor 1 | N6: Fornecedor 2 | O6: Fornecedor 3 | P6: Fornecedor 4 | Q6: Fornecedor 5 | R6: Fornecedor 6
B7: ILUMINAÇÃO
B8: PERÍODO DE REFERÊNCIA | M8: Fornecedor 1 | N8: Fornecedor 2 | O8: Fornecedor 3 | P8: Fornecedor 4 | Q8: Fornecedor 5 | R8: Fornecedor 6
B9: Descrição do equipamento | I9: CV | J9: População | K9: Amostragem | L9: Menor Preço unitário | M9: Preço unitário | N9: Preço unitário | O9: Preço unitário | P9: Preço unitário | Q9: Preço unitário | R9: Preço unitário
B10: 1 | K10: =IF(OR(I10=0,J10=0),0,IF((((($L$4^2*I10^2)/$F$5^2)*J10)/((($L$4^2*I10^2)/$F$5^2)+J10))<(($L$4^2*I10^2)/$F$5^2),ROUND((((($L$4^2*I10^2)/$F$5^2)*J10)/((($L$4^2*I10^2)/$F$5^2)+J10)),0),ROUND((($L$4^2*I10^2)/$F$5^2),0))) -> 0 | L10: =IFERROR(SMALL(M10:R10,1),0) -> 0
B11: 2 | K11: =IF(OR(I11=0,J11=0),0,IF((((($L$4^2*I11^2)/$F$5^2)*J11)/((($L$4^2*I11^2)/$F$5^2)+J11))<(($L$4^2*I11^2)/$F$5^2),ROUND((((($L$4^2*I11^2)/$F$5^2)*J11)/((($L$4^2*I11^2)/$F$5^2)+J11)),0),ROUND((($L$4^2*I11^2)/$F$5^2),0))) -> 0 | L11: =IFERROR(SMALL(M11:R11,1),0) -> 0
B12: 3 | K12: 0 | L12: 0
B13: 4 | K13: 0 | L13: 0
B14: 5 | K14: 0 | L14: 0
B15: 6 | K15: 0 | L15: 0
B16: 7 | K16: 0 | L16: 0
B17: 8 | K17: 0 | L17: 0
B18: 9 | K18: 0 | L18: 0
B19: 10 | K19: 0 | L19: 0
B20: 11 | K20: 0 | L20: 0
B21: 12 | K21: 0 | L21: 0
B22: 13 | K22: 0 | L22: 0
B23: 14 | K23: 0 | L23: 0
B24: 15 | K24: 0 | L24: 0
B25: 16 | K25: 0 | L25: 0
B26: 17 | K26: 0 | L26: 0
B27: 18 | K27: 0 | L27: 0
B28: 19 | K28: 0 | L28: 0
B29: 20 | K29: 0 | L29: 0
B30: 21 | K30: 0 | L30: 0
B31: 22 | K31: 0 | L31: 0
B32: 23 | K32: 0 | L32: 0
B33: 24 | K33: 0 | L33: 0
B34: 25 | K34: 0 | L34: 0
B35: 26 | K35: 0 | L35: 0
B36: 27 | K36: 0 | L36: 0
B37: 28 | K37: 0 | L37: 0
B38: 29 | K38: 0 | L38: 0
B39: 30 | K39: 0 | L39: 0
B40: 31 | K40: 0 | L40: 0
B41: 32 | K41: 0 | L41: 0
B42: 33 | K42: 0 | L42: 0
B43: 34 | K43: 0 | L43: 0
B44: 35 | K44: 0 | L44: 0
B45: 36 | K45: 0 | L45: 0
B46: 37 | K46: 0 | L46: 0
B47: 38 | K47: 0 | L47: 0
B48: 39 | K48: 0 | L48: 0
B49: 40 | K49: 0 | L49: 0
B50: 41 | K50: 0 | L50: 0
B51: 42 | K51: 0 | L51: 0
B52: 43 | K52: 0 | L52: 0
B53: 44 | K53: 0 | L53: 0
B54: 45 | K54: 0 | L54: 0
B55: 46 | K55: 0 | L55: 0
B56: 47 | K56: 0 | L56: 0
B57: 48 | K57: 0 | L57: 0
B58: 49 | K58: 0 | L58: 0
B59: 50 | K59: 0 | L59: 0
B60: PERÍODO PÓS-RETROFIT | M60: Fornecedor 1 | N60: Fornecedor 2 | O60: Fornecedor 3 | P60: Fornecedor 4 | Q60: Fornecedor 5 | R60: Fornecedor 6
B61: Descrição do equipamento | I61: CV | J61: População | K61: Amostragem | L61: Menor Preço unitário | M61: Preço unitário | N61: Preço unitário | O61: Preço unitário | P61: Preço unitário | Q61: Preço unitário | R61: Preço unitário
B62: 1 | K62: =IF(OR(I62=0,J62=0),0,IF((((($L$4^2*I62^2)/$F$5^2)*J62)/((($L$4^2*I62^2)/$F$5^2)+J62))<(($L$4^2*I62^2)/$F$5^2),ROUND((((($L$4^2*I62^2)/$F$5^2)*J62)/((($L$4^2*I62^2)/$F$5^2)+J62)),0),ROUND((($L$4^2*I62^2)/$F$5^2),0))) -> 0 | L62: =IFERROR(SMALL(M62:R62,1),0) -> 0
B63: 2 | K63: =IF(OR(I63=0,J63=0),0,IF((((($L$4^2*I63^2)/$F$5^2)*J63)/((($L$4^2*I63^2)/$F$5^2)+J63))<(($L$4^2*I63^2)/$F$5^2),ROUND((((($L$4^2*I63^2)/$F$5^2)*J63)/((($L$4^2*I63^2)/$F$5^2)+J63)),0),ROUND((($L$4^2*I63^2)/$F$5^2),0))) -> 0 | L63: =IFERROR(SMALL(M63:R63,1),0) -> 0
B64: 3 | K64: 0 | L64: 0
B65: 4 | K65: 0 | L65: 0
B66: 5 | K66: 0 | L66: 0
B67: 6 | K67: 0 | L67: 0
B68: 7 | K68: 0 | L68: 0
B69: 8 | K69: 0 | L69: 0
B70: 9 | K70: 0 | L70: 0
B71: 10 | K71: 0 | L71: 0
B72: 11 | K72: 0 | L72: 0
B73: 12 | K73: 0 | L73: 0
B74: 13 | K74: 0 | L74: 0
B75: 14 | K75: 0 | L75: 0
B76: 15 | K76: 0 | L76: 0
B77: 16 | K77: 0 | L77: 0
B78: 17 | K78: 0 | L78: 0
B79: 18 | K79: 0 | L79: 0
B80: 19 | K80: 0 | L80: 0
B81: 20 | K81: 0 | L81: 0
B82: 21 | K82: 0 | L82: 0
B83: 22 | K83: 0 | L83: 0
B84: 23 | K84: 0 | L84: 0
B85: 24 | K85: 0 | L85: 0
B86: 25 | K86: 0 | L86: 0
B87: 26 | K87: 0 | L87: 0
B88: 27 | K88: 0 | L88: 0
B89: 28 | K89: 0 | L89: 0
B90: 29 | K90: 0 | L90: 0
B91: 30 | K91: 0 | L91: 0
B92: 31 | K92: 0 | L92: 0
B93: 32 | K93: 0 | L93: 0
B94: 33 | K94: 0 | L94: 0
B95: 34 | K95: 0 | L95: 0
B96: 35 | K96: 0 | L96: 0
B97: 36 | K97: 0 | L97: 0
B98: 37 | K98: 0 | L98: 0
B99: 38 | K99: 0 | L99: 0
B100: 39 | K100: 0 | L100: 0
B101: 40 | K101: 0 | L101: 0
B102: 41 | K102: 0 | L102: 0
B103: 42 | K103: 0 | L103: 0
B104: 43 | K104: 0 | L104: 0
B105: 44 | K105: 0 | L105: 0
B106: 45 | K106: 0 | L106: 0
B107: 46 | K107: 0 | L107: 0
B108: 47 | K108: 0 | L108: 0
B109: 48 | K109: 0 | L109: 0
B110: 49 | K110: 0 | L110: 0
B111: 50 | K111: 0 | L111: 0
B112: CONDICIONAMENTO AMBIENTAL
B113: PERÍODO DE REFERÊNCIA | M113: Fornecedor 1 | N113: Fornecedor 2 | O113: Fornecedor 3 | P113: Fornecedor 4 | Q113: Fornecedor 5 | R113: Fornecedor 6
B114: Descrição do equipamento | I114: CV | J114: População | K114: Amostragem | L114: Menor Preço unitário | M114: Preço unitário | N114: Preço unitário | O114: Preço unitário | P114: Preço unitário | Q114: Preço unitário | R114: Preço unitário
B115: 1 | K115: =IF(OR(I115=0,J115=0),0,IF((((($L$4^2*I115^2)/$F$5^2)*J115)/((($L$4^2*I115^2)/$F$5^2)+J115))<(($L$4^2*I115^2)/$F$5^2),ROUND((((($L$4^2*I115^2)/$F$5^2)*J115)/((($L$4^2*I115^2)/$F$5^2)+J115)),0),ROUND((($L$4^2*I115^2)/$F$5^2),0))) -> 0 | L115: =IFERROR(SMALL(M115:R115,1),0) -> 0
B116: 2 | K116: 0 | L116: 0
B117: 3 | K117: 0 | L117: 0
B118: 4 | K118: 0 | L118: 0
B119: 5 | K119: 0 | L119: 0
B120: 6 | K120: 0 | L120: 0
B121: 7 | K121: 0 | L121: 0
B122: 8 | K122: 0 | L122: 0
B123: 9 | K123: 0 | L123: 0
B124: 10 | K124: 0 | L124: 0
B125: 11 | K125: 0 | L125: 0
B126: 12 | K126: 0 | L126: 0
B127: 13 | K127: 0 | L127: 0
B128: 14 | K128: 0 | L128: 0
B129: 15 | K129: 0 | L129: 0
B130: 16 | K130: 0 | L130: 0
B131: 17 | K131: 0 | L131: 0
B132: 18 | K132: 0 | L132: 0
B133: 19 | K133: 0 | L133: 0
B134: 20 | K134: 0 | L134: 0
B135: PERÍODO PÓS-RETROFIT | M135: Fornecedor 1 | N135: Fornecedor 2 | O135: Fornecedor 3 | P135: Fornecedor 4 | Q135: Fornecedor 5 | R135: Fornecedor 6
B136: Descrição do equipamento | I136: CV | J136: População | K136: Amostragem | L136: Menor Preço unitário | M136: Preço unitário | N136: Preço unitário | O136: Preço unitário | P136: Preço unitário | Q136: Preço unitário | R136: Preço unitário
B137: 1 | K137: =IF(OR(I137=0,J137=0),0,IF((((($L$4^2*I137^2)/$F$5^2)*J137)/((($L$4^2*I137^2)/$F$5^2)+J137))<(($L$4^2*I137^2)/$F$5^2),ROUND((((($L$4^2*I137^2)/$F$5^2)*J137)/((($L$4^2*I137^2)/$F$5^2)+J137)),0),ROUND((($L$4^2*I137^2)/$F$5^2),0))) -> 0 | L137: =IFERROR(SMALL(M137:R137,1),0) -> 0
B138: 2 | K138: 0 | L138: 0
B139: 3 | K139: 0 | L139: 0
B140: 4 | K140: 0 | L140: 0
B141: 5 | K141: 0 | L141: 0
B142: 6 | K142: 0 | L142: 0
B143: 7 | K143: 0 | L143: 0
B144: 8 | K144: 0 | L144: 0
B145: 9 | K145: 0 | L145: 0
B146: 10 | K146: 0 | L146: 0
B147: 11 | K147: 0 | L147: 0
B148: 12 | K148: 0 | L148: 0
B149: 13 | K149: 0 | L149: 0
B150: 14 | K150: 0 | L150: 0
B151: 15 | K151: 0 | L151: 0
B152: 16 | K152: 0 | L152: 0
B153: 17 | K153: 0 | L153: 0
B154: 18 | K154: 0 | L154: 0
B155: 19 | K155: 0 | L155: 0
B156: 20 | K156: 0 | L156: 0
B157: MOTORES
B158: PERÍODO DE REFERÊNCIA | M158: Fornecedor 1 | N158: Fornecedor 2 | O158: Fornecedor 3 | P158: Fornecedor 4 | Q158: Fornecedor 5 | R158: Fornecedor 6
B159: Descrição do equipamento | I159: CV | J159: População | K159: Amostragem | L159: Menor Preço unitário | M159: Preço unitário | N159: Preço unitário | O159: Preço unitário | P159: Preço unitário | Q159: Preço unitário | R159: Preço unitário
B160: 1 | K160: =IF(OR(I160=0,J160=0),0,IF((((($L$4^2*I160^2)/$F$5^2)*J160)/((($L$4^2*I160^2)/$F$5^2)+J160))<(($L$4^2*I160^2)/$F$5^2),ROUND((((($L$4^2*I160^2)/$F$5^2)*J160)/((($L$4^2*I160^2)/$F$5^2)+J160)),0),ROUND((($L$4^2*I160^2)/$F$5^2),0))) -> 0 | L160: =IFERROR(SMALL(M160:R160,1),0) -> 0
B161: 2 | K161: 0 | L161: 0
B162: 3 | K162: 0 | L162: 0
B163: 4 | K163: 0 | L163: 0
B164: 5 | K164: 0 | L164: 0
B165: 6 | K165: 0 | L165: 0
B166: 7 | K166: 0 | L166: 0
B167: 8 | K167: 0 | L167: 0
B168: 9 | K168: 0 | L168: 0
B169: 10 | K169: 0 | L169: 0
B170: 11 | K170: 0 | L170: 0
B171: 12 | K171: 0 | L171: 0
B172: 13 | K172: 0 | L172: 0
B173: 14 | K173: 0 | L173: 0
B174: 15 | K174: 0 | L174: 0
B175: 16 | K175: 0 | L175: 0
B176: 17 | K176: 0 | L176: 0
B177: 18 | K177: 0 | L177: 0
B178: 19 | K178: 0 | L178: 0
B179: 20 | K179: 0 | L179: 0
B180: 21 | K180: 0 | L180: 0
B181: 22 | K181: 0 | L181: 0
B182: 23 | K182: 0 | L182: 0
B183: 24 | K183: 0 | L183: 0
B184: 25 | K184: 0 | L184: 0
B185: 26 | K185: 0 | L185: 0
B186: 27 | K186: 0 | L186: 0
B187: 28 | K187: 0 | L187: 0
B188: 29 | K188: 0 | L188: 0
B189: 30 | K189: 0 | L189: 0
B190: 31 | K190: 0 | L190: 0
B191: 32 | K191: 0 | L191: 0
B192: 33 | K192: 0 | L192: 0
B193: 34 | K193: 0 | L193: 0
B194: 35 | K194: 0 | L194: 0
B195: 36 | K195: 0 | L195: 0
B196: 37 | K196: 0 | L196: 0
B197: 38 | K197: 0 | L197: 0
B198: 39 | K198: 0 | L198: 0
B199: 40 | K199: 0 | L199: 0
B200: 41 | K200: 0 | L200: 0
B201: 42 | K201: 0 | L201: 0
... 252 more rows

Sheet M&V
B2: M&V - PREMISSAS E ORIGEM DOS RECURSOS
N3: ORIGEM DOS RECURSOS | R3: Descrição | U3: Limites | V3: Calculado
B4: Confiabilidade mínima aceitável: | F4: 0.95 | H4: Valor padrão da distribuição normal: | L4: 1.96 | R4: M&V/Custo Total do Projeto | U4: ='Custo Contábil'!E32 -> 0.05 | V4: ='Custo Contábil'!F32 -> 0
B5: Nível de precisão aceitável: | F5: 0.1
N6: PEE | O6: Terceiros | P6: Consumidor
B7: ILUMINAÇÃO
B8: PERÍODO DE REFERÊNCIA
B9: Descrição do equipamento | I9: CV | J9: População | K9: Amostragem | L9: Preço unitário | M9: Total | N9: PEE | O9: Terceiros | P9: Consumidor
B10: 1 | C10: =IF(ISBLANK('M&V (ORÇ)'!C10)," ",'M&V (ORÇ)'!C10) ->  | I10: =IF(ISBLANK('M&V (ORÇ)'!I10)," ",'M&V (ORÇ)'!I10) ->  | J10: =IF(ISBLANK('M&V (ORÇ)'!J10)," ",'M&V (ORÇ)'!J10) ->  | K10: ='M&V (ORÇ)'!K10 -> 0 | L10: ='M&V (ORÇ)'!L10 -> 0 | M10: =IF(J10="",0,K10*L10) -> 0 | N10: =M10-O10-P10 -> 0
B11: 2 | C11: =IF(ISBLANK('M&V (ORÇ)'!C11)," ",'M&V (ORÇ)'!C11) ->  | I11: =IF(ISBLANK('M&V (ORÇ)'!I11)," ",'M&V (ORÇ)'!I11) ->  | J11: =IF(ISBLANK('M&V (ORÇ)'!J11)," ",'M&V (ORÇ)'!J11) ->  | K11: ='M&V (ORÇ)'!K11 -> 0 | L11: ='M&V (ORÇ)'!L11 -> 0 | M11: =IF(J11="",0,K11*L11) -> 0 | N11: 0
B12: 3 | C12: =IF(ISBLANK('M&V (ORÇ)'!C12)," ",'M&V (ORÇ)'!C12) ->  | I12: =IF(ISBLANK('M&V (ORÇ)'!I12)," ",'M&V (ORÇ)'!I12) ->  | J12: =IF(ISBLANK('M&V (ORÇ)'!J12)," ",'M&V (ORÇ)'!J12) ->  | K12: ='M&V (ORÇ)'!K12 -> 0 | L12: ='M&V (ORÇ)'!L12 -> 0 | M12: 0 | N12: 0
B13: 4 | C13: =IF(ISBLANK('M&V (ORÇ)'!C13)," ",'M&V (ORÇ)'!C13) ->  | I13: =IF(ISBLANK('M&V (ORÇ)'!I13)," ",'M&V (ORÇ)'!I13) ->  | J13: =IF(ISBLANK('M&V (ORÇ)'!J13)," ",'M&V (ORÇ)'!J13) ->  | K13: ='M&V (ORÇ)'!K13 -> 0 | L13: ='M&V (ORÇ)'!L13 -> 0 | M13: 0 | N13: 0
B14: 5 | C14: =IF(ISBLANK('M&V (ORÇ)'!C14)," ",'M&V (ORÇ)'!C14) ->  | I14: =IF(ISBLANK('M&V (ORÇ)'!I14)," ",'M&V (ORÇ)'!I14) ->  | J14: =IF(ISBLANK('M&V (ORÇ)'!J14)," ",'M&V (ORÇ)'!J14) ->  | K14: ='M&V (ORÇ)'!K14 -> 0 | L14: ='M&V (ORÇ)'!L14 -> 0 | M14: 0 | N14: 0
B15: 6 | C15: =IF(ISBLANK('M&V (ORÇ)'!C15)," ",'M&V (ORÇ)'!C15) ->  | I15: =IF(ISBLANK('M&V (ORÇ)'!I15)," ",'M&V (ORÇ)'!I15) ->  | J15: =IF(ISBLANK('M&V (ORÇ)'!J15)," ",'M&V (ORÇ)'!J15) ->  | K15: ='M&V (ORÇ)'!K15 -> 0 | L15: ='M&V (ORÇ)'!L15 -> 0 | M15: 0 | N15: 0
B16: 7 | C16: =IF(ISBLANK('M&V (ORÇ)'!C16)," ",'M&V (ORÇ)'!C16) ->  | I16: =IF(ISBLANK('M&V (ORÇ)'!I16)," ",'M&V (ORÇ)'!I16) ->  | J16: =IF(ISBLANK('M&V (ORÇ)'!J16)," ",'M&V (ORÇ)'!J16) ->  | K16: ='M&V (ORÇ)'!K16 -> 0 | L16: ='M&V (ORÇ)'!L16 -> 0 | M16: 0 | N16: 0
B17: 8 | C17: =IF(ISBLANK('M&V (ORÇ)'!C17)," ",'M&V (ORÇ)'!C17) ->  | I17: =IF(ISBLANK('M&V (ORÇ)'!I17)," ",'M&V (ORÇ)'!I17) ->  | J17: =IF(ISBLANK('M&V (ORÇ)'!J17)," ",'M&V (ORÇ)'!J17) ->  | K17: ='M&V (ORÇ)'!K17 -> 0 | L17: ='M&V (ORÇ)'!L17 -> 0 | M17: 0 | N17: 0
B18: 9 | C18: =IF(ISBLANK('M&V (ORÇ)'!C18)," ",'M&V (ORÇ)'!C18) ->  | I18: =IF(ISBLANK('M&V (ORÇ)'!I18)," ",'M&V (ORÇ)'!I18) ->  | J18: =IF(ISBLANK('M&V (ORÇ)'!J18)," ",'M&V (ORÇ)'!J18) ->  | K18: ='M&V (ORÇ)'!K18 -> 0 | L18: ='M&V (ORÇ)'!L18 -> 0 | M18: 0 | N18: 0
B19: 10 | C19: =IF(ISBLANK('M&V (ORÇ)'!C19)," ",'M&V (ORÇ)'!C19) ->  | I19: =IF(ISBLANK('M&V (ORÇ)'!I19)," ",'M&V (ORÇ)'!I19) ->  | J19: =IF(ISBLANK('M&V (ORÇ)'!J19)," ",'M&V (ORÇ)'!J19) ->  | K19: ='M&V (ORÇ)'!K19 -> 0 | L19: ='M&V (ORÇ)'!L19 -> 0 | M19: 0 | N19: 0
B20: 11 | C20: =IF(ISBLANK('M&V (ORÇ)'!C20)," ",'M&V (ORÇ)'!C20) ->  | I20: =IF(ISBLANK('M&V (ORÇ)'!I20)," ",'M&V (ORÇ)'!I20) ->  | J20: =IF(ISBLANK('M&V (ORÇ)'!J20)," ",'M&V (ORÇ)'!J20) ->  | K20: ='M&V (ORÇ)'!K20 -> 0 | L20: ='M&V (ORÇ)'!L20 -> 0 | M20: 0 | N20: 0
B21: 12 | C21: =IF(ISBLANK('M&V (ORÇ)'!C21)," ",'M&V (ORÇ)'!C21) ->  | I21: =IF(ISBLANK('M&V (ORÇ)'!I21)," ",'M&V (ORÇ)'!I21) ->  | J21: =IF(ISBLANK('M&V (ORÇ)'!J21)," ",'M&V (ORÇ)'!J21) ->  | K21: ='M&V (ORÇ)'!K21 -> 0 | L21: ='M&V (ORÇ)'!L21 -> 0 | M21: 0 | N21: 0
B22: 13 | C22: =IF(ISBLANK('M&V (ORÇ)'!C22)," ",'M&V (ORÇ)'!C22) ->  | I22: =IF(ISBLANK('M&V (ORÇ)'!I22)," ",'M&V (ORÇ)'!I22) ->  | J22: =IF(ISBLANK('M&V (ORÇ)'!J22)," ",'M&V (ORÇ)'!J22) ->  | K22: ='M&V (ORÇ)'!K22 -> 0 | L22: ='M&V (ORÇ)'!L22 -> 0 | M22: 0 | N22: 0
B23: 14 | C23: =IF(ISBLANK('M&V (ORÇ)'!C23)," ",'M&V (ORÇ)'!C23) ->  | I23: =IF(ISBLANK('M&V (ORÇ)'!I23)," ",'M&V (ORÇ)'!I23) ->  | J23: =IF(ISBLANK('M&V (ORÇ)'!J23)," ",'M&V (ORÇ)'!J23) ->  | K23: ='M&V (ORÇ)'!K23 -> 0 | L23: ='M&V (ORÇ)'!L23 -> 0 | M23: 0 | N23: 0
B24: 15 | C24: =IF(ISBLANK('M&V (ORÇ)'!C24)," ",'M&V (ORÇ)'!C24) ->  | I24: =IF(ISBLANK('M&V (ORÇ)'!I24)," ",'M&V (ORÇ)'!I24) ->  | J24: =IF(ISBLANK('M&V (ORÇ)'!J24)," ",'M&V (ORÇ)'!J24) ->  | K24: ='M&V (ORÇ)'!K24 -> 0 | L24: ='M&V (ORÇ)'!L24 -> 0 | M24: 0 | N24: 0
B25: 16 | C25: =IF(ISBLANK('M&V (ORÇ)'!C25)," ",'M&V (ORÇ)'!C25) ->  | I25: =IF(ISBLANK('M&V (ORÇ)'!I25)," ",'M&V (ORÇ)'!I25) ->  | J25: =IF(ISBLANK('M&V (ORÇ)'!J25)," ",'M&V (ORÇ)'!J25) ->  | K25: ='M&V (ORÇ)'!K25 -> 0 | L25: ='M&V (ORÇ)'!L25 -> 0 | M25: 0 | N25: 0
B26: 17 | C26: =IF(ISBLANK('M&V (ORÇ)'!C26)," ",'M&V (ORÇ)'!C26) ->  | I26: =IF(ISBLANK('M&V (ORÇ)'!I26)," ",'M&V (ORÇ)'!I26) ->  | J26: =IF(ISBLANK('M&V (ORÇ)'!J26)," ",'M&V (ORÇ)'!J26) ->  | K26: ='M&V (ORÇ)'!K26 -> 0 | L26: ='M&V (ORÇ)'!L26 -> 0 | M26: 0 | N26: 0
B27: 18 | C27: =IF(ISBLANK('M&V (ORÇ)'!C27)," ",'M&V (ORÇ)'!C27) ->  | I27: =IF(ISBLANK('M&V (ORÇ)'!I27)," ",'M&V (ORÇ)'!I27) ->  | J27: =IF(ISBLANK('M&V (ORÇ)'!J27)," ",'M&V (ORÇ)'!J27) ->  | K27: ='M&V (ORÇ)'!K27 -> 0 | L27: ='M&V (ORÇ)'!L27 -> 0 | M27: 0 | N27: 0
B28: 19 | C28: =IF(ISBLANK('M&V (ORÇ)'!C28)," ",'M&V (ORÇ)'!C28) ->  | I28: =IF(ISBLANK('M&V (ORÇ)'!I28)," ",'M&V (ORÇ)'!I28) ->  | J28: =IF(ISBLANK('M&V (ORÇ)'!J28)," ",'M&V (ORÇ)'!J28) ->  | K28: ='M&V (ORÇ)'!K28 -> 0 | L28: ='M&V (ORÇ)'!L28 -> 0 | M28: 0 | N28: 0
B29: 20 | C29: =IF(ISBLANK('M&V (ORÇ)'!C29)," ",'M&V (ORÇ)'!C29) ->  | I29: =IF(ISBLANK('M&V (ORÇ)'!I29)," ",'M&V (ORÇ)'!I29) ->  | J29: =IF(ISBLANK('M&V (ORÇ)'!J29)," ",'M&V (ORÇ)'!J29) ->  | K29: ='M&V (ORÇ)'!K29 -> 0 | L29: ='M&V (ORÇ)'!L29 -> 0 | M29: 0 | N29: 0
B30: 21 | C30: =IF(ISBLANK('M&V (ORÇ)'!C30)," ",'M&V (ORÇ)'!C30) ->  | I30: =IF(ISBLANK('M&V (ORÇ)'!I30)," ",'M&V (ORÇ)'!I30) ->  | J30: =IF(ISBLANK('M&V (ORÇ)'!J30)," ",'M&V (ORÇ)'!J30) ->  | K30: ='M&V (ORÇ)'!K30 -> 0 | L30: ='M&V (ORÇ)'!L30 -> 0 | M30: 0 | N30: 0
B31: 22 | C31: =IF(ISBLANK('M&V (ORÇ)'!C31)," ",'M&V (ORÇ)'!C31) ->  | I31: =IF(ISBLANK('M&V (ORÇ)'!I31)," ",'M&V (ORÇ)'!I31) ->  | J31: =IF(ISBLANK('M&V (ORÇ)'!J31)," ",'M&V (ORÇ)'!J31) ->  | K31: ='M&V (ORÇ)'!K31 -> 0 | L31: ='M&V (ORÇ)'!L31 -> 0 | M31: 0 | N31: 0
B32: 23 | C32: =IF(ISBLANK('M&V (ORÇ)'!C32)," ",'M&V (ORÇ)'!C32) ->  | I32: =IF(ISBLANK('M&V (ORÇ)'!I32)," ",'M&V (ORÇ)'!I32) ->  | J32: =IF(ISBLANK('M&V (ORÇ)'!J32)," ",'M&V (ORÇ)'!J32) ->  | K32: ='M&V (ORÇ)'!K32 -> 0 | L32: ='M&V (ORÇ)'!L32 -> 0 | M32: 0 | N32: 0
B33: 24 | C33: =IF(ISBLANK('M&V (ORÇ)'!C33)," ",'M&V (ORÇ)'!C33) ->  | I33: =IF(ISBLANK('M&V (ORÇ)'!I33)," ",'M&V (ORÇ)'!I33) ->  | J33: =IF(ISBLANK('M&V (ORÇ)'!J33)," ",'M&V (ORÇ)'!J33) ->  | K33: ='M&V (ORÇ)'!K33 -> 0 | L33: ='M&V (ORÇ)'!L33 -> 0 | M33: 0 | N33: 0
B34: 25 | C34: =IF(ISBLANK('M&V (ORÇ)'!C34)," ",'M&V (ORÇ)'!C34) ->  | I34: =IF(ISBLANK('M&V (ORÇ)'!I34)," ",'M&V (ORÇ)'!I34) ->  | J34: =IF(ISBLANK('M&V (ORÇ)'!J34)," ",'M&V (ORÇ)'!J34) ->  | K34: ='M&V (ORÇ)'!K34 -> 0 | L34: ='M&V (ORÇ)'!L34 -> 0 | M34: 0 | N34: 0
B35: 26 | C35: =IF(ISBLANK('M&V (ORÇ)'!C35)," ",'M&V (ORÇ)'!C35) ->  | I35: =IF(ISBLANK('M&V (ORÇ)'!I35)," ",'M&V (ORÇ)'!I35) ->  | J35: =IF(ISBLANK('M&V (ORÇ)'!J35)," ",'M&V (ORÇ)'!J35) ->  | K35: ='M&V (ORÇ)'!K35 -> 0 | L35: ='M&V (ORÇ)'!L35 -> 0 | M35: 0 | N35: 0
B36: 27 | C36: =IF(ISBLANK('M&V (ORÇ)'!C36)," ",'M&V (ORÇ)'!C36) ->  | I36: =IF(ISBLANK('M&V (ORÇ)'!I36)," ",'M&V (ORÇ)'!I36) ->  | J36: =IF(ISBLANK('M&V (ORÇ)'!J36)," ",'M&V (ORÇ)'!J36) ->  | K36: ='M&V (ORÇ)'!K36 -> 0 | L36: ='M&V (ORÇ)'!L36 -> 0 | M36: 0 | N36: 0
B37: 28 | C37: =IF(ISBLANK('M&V (ORÇ)'!C37)," ",'M&V (ORÇ)'!C37) ->  | I37: =IF(ISBLANK('M&V (ORÇ)'!I37)," ",'M&V (ORÇ)'!I37) ->  | J37: =IF(ISBLANK('M&V (ORÇ)'!J37)," ",'M&V (ORÇ)'!J37) ->  | K37: ='M&V (ORÇ)'!K37 -> 0 | L37: ='M&V (ORÇ)'!L37 -> 0 | M37: 0 | N37: 0
B38: 29 | C38: =IF(ISBLANK('M&V (ORÇ)'!C38)," ",'M&V (ORÇ)'!C38) ->  | I38: =IF(ISBLANK('M&V (ORÇ)'!I38)," ",'M&V (ORÇ)'!I38) ->  | J38: =IF(ISBLANK('M&V (ORÇ)'!J38)," ",'M&V (ORÇ)'!J38) ->  | K38: ='M&V (ORÇ)'!K38 -> 0 | L38: ='M&V (ORÇ)'!L38 -> 0 | M38: 0 | N38: 0
B39: 30 | C39: =IF(ISBLANK('M&V (ORÇ)'!C39)," ",'M&V (ORÇ)'!C39) ->  | I39: =IF(ISBLANK('M&V (ORÇ)'!I39)," ",'M&V (ORÇ)'!I39) ->  | J39: =IF(ISBLANK('M&V (ORÇ)'!J39)," ",'M&V (ORÇ)'!J39) ->  | K39: ='M&V (ORÇ)'!K39 -> 0 | L39: ='M&V (ORÇ)'!L39 -> 0 | M39: 0 | N39: 0
B40: 31 | C40: =IF(ISBLANK('M&V (ORÇ)'!C40)," ",'M&V (ORÇ)'!C40) ->  | I40: =IF(ISBLANK('M&V (ORÇ)'!I40)," ",'M&V (ORÇ)'!I40) ->  | J40: =IF(ISBLANK('M&V (ORÇ)'!J40)," ",'M&V (ORÇ)'!J40) ->  | K40: ='M&V (ORÇ)'!K40 -> 0 | L40: ='M&V (ORÇ)'!L40 -> 0 | M40: 0 | N40: 0
B41: 32 | C41: =IF(ISBLANK('M&V (ORÇ)'!C41)," ",'M&V (ORÇ)'!C41) ->  | I41: =IF(ISBLANK('M&V (ORÇ)'!I41)," ",'M&V (ORÇ)'!I41) ->  | J41: =IF(ISBLANK('M&V (ORÇ)'!J41)," ",'M&V (ORÇ)'!J41) ->  | K41: ='M&V (ORÇ)'!K41 -> 0 | L41: ='M&V (ORÇ)'!L41 -> 0 | M41: 0 | N41: 0
B42: 33 | C42: =IF(ISBLANK('M&V (ORÇ)'!C42)," ",'M&V (ORÇ)'!C42) ->  | I42: =IF(ISBLANK('M&V (ORÇ)'!I42)," ",'M&V (ORÇ)'!I42) ->  | J42: =IF(ISBLANK('M&V (ORÇ)'!J42)," ",'M&V (ORÇ)'!J42) ->  | K42: ='M&V (ORÇ)'!K42 -> 0 | L42: ='M&V (ORÇ)'!L42 -> 0 | M42: 0 | N42: =M42-O42-P42 -> 0
B43: 34 | C43: =IF(ISBLANK('M&V (ORÇ)'!C43)," ",'M&V (ORÇ)'!C43) ->  | I43: =IF(ISBLANK('M&V (ORÇ)'!I43)," ",'M&V (ORÇ)'!I43) ->  | J43: =IF(ISBLANK('M&V (ORÇ)'!J43)," ",'M&V (ORÇ)'!J43) ->  | K43: ='M&V (ORÇ)'!K43 -> 0 | L43: ='M&V (ORÇ)'!L43 -> 0 | M43: 0 | N43: 0
B44: 35 | C44: =IF(ISBLANK('M&V (ORÇ)'!C44)," ",'M&V (ORÇ)'!C44) ->  | I44: =IF(ISBLANK('M&V (ORÇ)'!I44)," ",'M&V (ORÇ)'!I44) ->  | J44: =IF(ISBLANK('M&V (ORÇ)'!J44)," ",'M&V (ORÇ)'!J44) ->  | K44: ='M&V (ORÇ)'!K44 -> 0 | L44: ='M&V (ORÇ)'!L44 -> 0 | M44: 0 | N44: 0
B45: 36 | C45: =IF(ISBLANK('M&V (ORÇ)'!C45)," ",'M&V (ORÇ)'!C45) ->  | I45: =IF(ISBLANK('M&V (ORÇ)'!I45)," ",'M&V (ORÇ)'!I45) ->  | J45: =IF(ISBLANK('M&V (ORÇ)'!J45)," ",'M&V (ORÇ)'!J45) ->  | K45: ='M&V (ORÇ)'!K45 -> 0 | L45: ='M&V (ORÇ)'!L45 -> 0 | M45: 0 | N45: 0
B46: 37 | C46: =IF(ISBLANK('M&V (ORÇ)'!C46)," ",'M&V (ORÇ)'!C46) ->  | I46: =IF(ISBLANK('M&V (ORÇ)'!I46)," ",'M&V (ORÇ)'!I46) ->  | J46: =IF(ISBLANK('M&V (ORÇ)'!J46)," ",'M&V (ORÇ)'!J46) ->  | K46: ='M&V (ORÇ)'!K46 -> 0 | L46: ='M&V (ORÇ)'!L46 -> 0 | M46: 0 | N46: 0
B47: 38 | C47: =IF(ISBLANK('M&V (ORÇ)'!C47)," ",'M&V (ORÇ)'!C47) ->  | I47: =IF(ISBLANK('M&V (ORÇ)'!I47)," ",'M&V (ORÇ)'!I47) ->  | J47: =IF(ISBLANK('M&V (ORÇ)'!J47)," ",'M&V (ORÇ)'!J47) ->  | K47: ='M&V (ORÇ)'!K47 -> 0 | L47: ='M&V (ORÇ)'!L47 -> 0 | M47: 0 | N47: 0
B48: 39 | C48: =IF(ISBLANK('M&V (ORÇ)'!C48)," ",'M&V (ORÇ)'!C48) ->  | I48: =IF(ISBLANK('M&V (ORÇ)'!I48)," ",'M&V (ORÇ)'!I48) ->  | J48: =IF(ISBLANK('M&V (ORÇ)'!J48)," ",'M&V (ORÇ)'!J48) ->  | K48: ='M&V (ORÇ)'!K48 -> 0 | L48: ='M&V (ORÇ)'!L48 -> 0 | M48: 0 | N48: 0
B49: 40 | C49: =IF(ISBLANK('M&V (ORÇ)'!C49)," ",'M&V (ORÇ)'!C49) ->  | I49: =IF(ISBLANK('M&V (ORÇ)'!I49)," ",'M&V (ORÇ)'!I49) ->  | J49: =IF(ISBLANK('M&V (ORÇ)'!J49)," ",'M&V (ORÇ)'!J49) ->  | K49: ='M&V (ORÇ)'!K49 -> 0 | L49: ='M&V (ORÇ)'!L49 -> 0 | M49: 0 | N49: 0
B50: 41 | C50: =IF(ISBLANK('M&V (ORÇ)'!C50)," ",'M&V (ORÇ)'!C50) ->  | I50: =IF(ISBLANK('M&V (ORÇ)'!I50)," ",'M&V (ORÇ)'!I50) ->  | J50: =IF(ISBLANK('M&V (ORÇ)'!J50)," ",'M&V (ORÇ)'!J50) ->  | K50: ='M&V (ORÇ)'!K50 -> 0 | L50: ='M&V (ORÇ)'!L50 -> 0 | M50: 0 | N50: 0
B51: 42 | C51: =IF(ISBLANK('M&V (ORÇ)'!C51)," ",'M&V (ORÇ)'!C51) ->  | I51: =IF(ISBLANK('M&V (ORÇ)'!I51)," ",'M&V (ORÇ)'!I51) ->  | J51: =IF(ISBLANK('M&V (ORÇ)'!J51)," ",'M&V (ORÇ)'!J51) ->  | K51: ='M&V (ORÇ)'!K51 -> 0 | L51: ='M&V (ORÇ)'!L51 -> 0 | M51: 0 | N51: 0
B52: 43 | C52: =IF(ISBLANK('M&V (ORÇ)'!C52)," ",'M&V (ORÇ)'!C52) ->  | I52: =IF(ISBLANK('M&V (ORÇ)'!I52)," ",'M&V (ORÇ)'!I52) ->  | J52: =IF(ISBLANK('M&V (ORÇ)'!J52)," ",'M&V (ORÇ)'!J52) ->  | K52: ='M&V (ORÇ)'!K52 -> 0 | L52: ='M&V (ORÇ)'!L52 -> 0 | M52: 0 | N52: 0
B53: 44 | C53: =IF(ISBLANK('M&V (ORÇ)'!C53)," ",'M&V (ORÇ)'!C53) ->  | I53: =IF(ISBLANK('M&V (ORÇ)'!I53)," ",'M&V (ORÇ)'!I53) ->  | J53: =IF(ISBLANK('M&V (ORÇ)'!J53)," ",'M&V (ORÇ)'!J53) ->  | K53: ='M&V (ORÇ)'!K53 -> 0 | L53: ='M&V (ORÇ)'!L53 -> 0 | M53: 0 | N53: 0
B54: 45 | C54: =IF(ISBLANK('M&V (ORÇ)'!C54)," ",'M&V (ORÇ)'!C54) ->  | I54: =IF(ISBLANK('M&V (ORÇ)'!I54)," ",'M&V (ORÇ)'!I54) ->  | J54: =IF(ISBLANK('M&V (ORÇ)'!J54)," ",'M&V (ORÇ)'!J54) ->  | K54: ='M&V (ORÇ)'!K54 -> 0 | L54: ='M&V (ORÇ)'!L54 -> 0 | M54: 0 | N54: 0
B55: 46 | C55: =IF(ISBLANK('M&V (ORÇ)'!C55)," ",'M&V (ORÇ)'!C55) ->  | I55: =IF(ISBLANK('M&V (ORÇ)'!I55)," ",'M&V (ORÇ)'!I55) ->  | J55: =IF(ISBLANK('M&V (ORÇ)'!J55)," ",'M&V (ORÇ)'!J55) ->  | K55: ='M&V (ORÇ)'!K55 -> 0 | L55: ='M&V (ORÇ)'!L55 -> 0 | M55: 0 | N55: 0
B56: 47 | C56: =IF(ISBLANK('M&V (ORÇ)'!C56)," ",'M&V (ORÇ)'!C56) ->  | I56: =IF(ISBLANK('M&V (ORÇ)'!I56)," ",'M&V (ORÇ)'!I56) ->  | J56: =IF(ISBLANK('M&V (ORÇ)'!J56)," ",'M&V (ORÇ)'!J56) ->  | K56: ='M&V (ORÇ)'!K56 -> 0 | L56: ='M&V (ORÇ)'!L56 -> 0 | M56: 0 | N56: 0
B57: 48 | C57: =IF(ISBLANK('M&V (ORÇ)'!C57)," ",'M&V (ORÇ)'!C57) ->  | I57: =IF(ISBLANK('M&V (ORÇ)'!I57)," ",'M&V (ORÇ)'!I57) ->  | J57: =IF(ISBLANK('M&V (ORÇ)'!J57)," ",'M&V (ORÇ)'!J57) ->  | K57: ='M&V (ORÇ)'!K57 -> 0 | L57: ='M&V (ORÇ)'!L57 -> 0 | M57: 0 | N57: 0
B58: 49 | C58: =IF(ISBLANK('M&V (ORÇ)'!C58)," ",'M&V (ORÇ)'!C58) ->  | I58: =IF(ISBLANK('M&V (ORÇ)'!I58)," ",'M&V (ORÇ)'!I58) ->  | J58: =IF(ISBLANK('M&V (ORÇ)'!J58)," ",'M&V (ORÇ)'!J58) ->  | K58: ='M&V (ORÇ)'!K58 -> 0 | L58: ='M&V (ORÇ)'!L58 -> 0 | M58: 0 | N58: 0
B59: 50 | C59: =IF(ISBLANK('M&V (ORÇ)'!C59)," ",'M&V (ORÇ)'!C59) ->  | I59: =IF(ISBLANK('M&V (ORÇ)'!I59)," ",'M&V (ORÇ)'!I59) ->  | J59: =IF(ISBLANK('M&V (ORÇ)'!J59)," ",'M&V (ORÇ)'!J59) ->  | K59: ='M&V (ORÇ)'!K59 -> 0 | L59: ='M&V (ORÇ)'!L59 -> 0 | M59: 0 | N59: 0
C60: Sub total - Custos medição e verificação iluminação - Período de referência | M60: =SUM(M10:M59) -> 0 | N60: =SUM(N10:N59) -> 0 | O60: =SUM(O10:O59) -> 0 | P60: =SUM(P10:P59) -> 0
B61: PERÍODO PÓS-RETROFIT | O61: =B61 -> PERÍODO PÓS-RETROFIT
B62: Descrição do equipamento | I62: CV | J62: População | K62: Amostragem | L62: Preço unitário | M62: Total | N62: PEE | O62: Terceiros | P62: Consumidor
B63: 1 | C63: =IF(ISBLANK('M&V (ORÇ)'!C62)," ",'M&V (ORÇ)'!C62) ->  | I63: =IF(ISBLANK('M&V (ORÇ)'!I62)," ",'M&V (ORÇ)'!I62) ->  | J63: =IF(ISBLANK('M&V (ORÇ)'!J62)," ",'M&V (ORÇ)'!J62) ->  | K63: ='M&V (ORÇ)'!K62 -> 0 | L63: ='M&V (ORÇ)'!L62 -> 0 | M63: =IF(J63="",0,K63*L63) -> 0 | N63: =M63-O63-P63 -> 0
B64: 2 | C64: =IF(ISBLANK('M&V (ORÇ)'!C63)," ",'M&V (ORÇ)'!C63) ->  | I64: =IF(ISBLANK('M&V (ORÇ)'!I63)," ",'M&V (ORÇ)'!I63) ->  | J64: =IF(ISBLANK('M&V (ORÇ)'!J63)," ",'M&V (ORÇ)'!J63) ->  | K64: ='M&V (ORÇ)'!K63 -> 0 | L64: ='M&V (ORÇ)'!L63 -> 0 | M64: 0 | N64: 0
B65: 3 | C65: =IF(ISBLANK('M&V (ORÇ)'!C64)," ",'M&V (ORÇ)'!C64) ->  | I65: =IF(ISBLANK('M&V (ORÇ)'!I64)," ",'M&V (ORÇ)'!I64) ->  | J65: =IF(ISBLANK('M&V (ORÇ)'!J64)," ",'M&V (ORÇ)'!J64) ->  | K65: ='M&V (ORÇ)'!K64 -> 0 | L65: ='M&V (ORÇ)'!L64 -> 0 | M65: 0 | N65: 0
B66: 4 | C66: =IF(ISBLANK('M&V (ORÇ)'!C65)," ",'M&V (ORÇ)'!C65) ->  | I66: =IF(ISBLANK('M&V (ORÇ)'!I65)," ",'M&V (ORÇ)'!I65) ->  | J66: =IF(ISBLANK('M&V (ORÇ)'!J65)," ",'M&V (ORÇ)'!J65) ->  | K66: ='M&V (ORÇ)'!K65 -> 0 | L66: ='M&V (ORÇ)'!L65 -> 0 | M66: 0 | N66: 0
B67: 5 | C67: =IF(ISBLANK('M&V (ORÇ)'!C66)," ",'M&V (ORÇ)'!C66) ->  | I67: =IF(ISBLANK('M&V (ORÇ)'!I66)," ",'M&V (ORÇ)'!I66) ->  | J67: =IF(ISBLANK('M&V (ORÇ)'!J66)," ",'M&V (ORÇ)'!J66) ->  | K67: ='M&V (ORÇ)'!K66 -> 0 | L67: ='M&V (ORÇ)'!L66 -> 0 | M67: 0 | N67: 0
B68: 6 | C68: =IF(ISBLANK('M&V (ORÇ)'!C67)," ",'M&V (ORÇ)'!C67) ->  | I68: =IF(ISBLANK('M&V (ORÇ)'!I67)," ",'M&V (ORÇ)'!I67) ->  | J68: =IF(ISBLANK('M&V (ORÇ)'!J67)," ",'M&V (ORÇ)'!J67) ->  | K68: ='M&V (ORÇ)'!K67 -> 0 | L68: ='M&V (ORÇ)'!L67 -> 0 | M68: 0 | N68: 0
B69: 7 | C69: =IF(ISBLANK('M&V (ORÇ)'!C68)," ",'M&V (ORÇ)'!C68) ->  | I69: =IF(ISBLANK('M&V (ORÇ)'!I68)," ",'M&V (ORÇ)'!I68) ->  | J69: =IF(ISBLANK('M&V (ORÇ)'!J68)," ",'M&V (ORÇ)'!J68) ->  | K69: ='M&V (ORÇ)'!K68 -> 0 | L69: ='M&V (ORÇ)'!L68 -> 0 | M69: 0 | N69: 0
B70: 8 | C70: =IF(ISBLANK('M&V (ORÇ)'!C69)," ",'M&V (ORÇ)'!C69) ->  | I70: =IF(ISBLANK('M&V (ORÇ)'!I69)," ",'M&V (ORÇ)'!I69) ->  | J70: =IF(ISBLANK('M&V (ORÇ)'!J69)," ",'M&V (ORÇ)'!J69) ->  | K70: ='M&V (ORÇ)'!K69 -> 0 | L70: ='M&V (ORÇ)'!L69 -> 0 | M70: 0 | N70: 0
B71: 9 | C71: =IF(ISBLANK('M&V (ORÇ)'!C70)," ",'M&V (ORÇ)'!C70) ->  | I71: =IF(ISBLANK('M&V (ORÇ)'!I70)," ",'M&V (ORÇ)'!I70) ->  | J71: =IF(ISBLANK('M&V (ORÇ)'!J70)," ",'M&V (ORÇ)'!J70) ->  | K71: ='M&V (ORÇ)'!K70 -> 0 | L71: ='M&V (ORÇ)'!L70 -> 0 | M71: 0 | N71: 0
B72: 10 | C72: =IF(ISBLANK('M&V (ORÇ)'!C71)," ",'M&V (ORÇ)'!C71) ->  | I72: =IF(ISBLANK('M&V (ORÇ)'!I71)," ",'M&V (ORÇ)'!I71) ->  | J72: =IF(ISBLANK('M&V (ORÇ)'!J71)," ",'M&V (ORÇ)'!J71) ->  | K72: ='M&V (ORÇ)'!K71 -> 0 | L72: ='M&V (ORÇ)'!L71 -> 0 | M72: 0 | N72: 0
B73: 11 | C73: =IF(ISBLANK('M&V (ORÇ)'!C72)," ",'M&V (ORÇ)'!C72) ->  | I73: =IF(ISBLANK('M&V (ORÇ)'!I72)," ",'M&V (ORÇ)'!I72) ->  | J73: =IF(ISBLANK('M&V (ORÇ)'!J72)," ",'M&V (ORÇ)'!J72) ->  | K73: ='M&V (ORÇ)'!K72 -> 0 | L73: ='M&V (ORÇ)'!L72 -> 0 | M73: 0 | N73: 0
B74: 12 | C74: =IF(ISBLANK('M&V (ORÇ)'!C73)," ",'M&V (ORÇ)'!C73) ->  | I74: =IF(ISBLANK('M&V (ORÇ)'!I73)," ",'M&V (ORÇ)'!I73) ->  | J74: =IF(ISBLANK('M&V (ORÇ)'!J73)," ",'M&V (ORÇ)'!J73) ->  | K74: ='M&V (ORÇ)'!K73 -> 0 | L74: ='M&V (ORÇ)'!L73 -> 0 | M74: 0 | N74: 0
B75: 13 | C75: =IF(ISBLANK('M&V (ORÇ)'!C74)," ",'M&V (ORÇ)'!C74) ->  | I75: =IF(ISBLANK('M&V (ORÇ)'!I74)," ",'M&V (ORÇ)'!I74) ->  | J75: =IF(ISBLANK('M&V (ORÇ)'!J74)," ",'M&V (ORÇ)'!J74) ->  | K75: ='M&V (ORÇ)'!K74 -> 0 | L75: ='M&V (ORÇ)'!L74 -> 0 | M75: 0 | N75: 0
B76: 14 | C76: =IF(ISBLANK('M&V (ORÇ)'!C75)," ",'M&V (ORÇ)'!C75) ->  | I76: =IF(ISBLANK('M&V (ORÇ)'!I75)," ",'M&V (ORÇ)'!I75) ->  | J76: =IF(ISBLANK('M&V (ORÇ)'!J75)," ",'M&V (ORÇ)'!J75) ->  | K76: ='M&V (ORÇ)'!K75 -> 0 | L76: ='M&V (ORÇ)'!L75 -> 0 | M76: 0 | N76: 0
B77: 15 | C77: =IF(ISBLANK('M&V (ORÇ)'!C76)," ",'M&V (ORÇ)'!C76) ->  | I77: =IF(ISBLANK('M&V (ORÇ)'!I76)," ",'M&V (ORÇ)'!I76) ->  | J77: =IF(ISBLANK('M&V (ORÇ)'!J76)," ",'M&V (ORÇ)'!J76) ->  | K77: ='M&V (ORÇ)'!K76 -> 0 | L77: ='M&V (ORÇ)'!L76 -> 0 | M77: 0 | N77: 0
B78: 16 | C78: =IF(ISBLANK('M&V (ORÇ)'!C77)," ",'M&V (ORÇ)'!C77) ->  | I78: =IF(ISBLANK('M&V (ORÇ)'!I77)," ",'M&V (ORÇ)'!I77) ->  | J78: =IF(ISBLANK('M&V (ORÇ)'!J77)," ",'M&V (ORÇ)'!J77) ->  | K78: ='M&V (ORÇ)'!K77 -> 0 | L78: ='M&V (ORÇ)'!L77 -> 0 | M78: 0 | N78: 0
B79: 17 | C79: =IF(ISBLANK('M&V (ORÇ)'!C78)," ",'M&V (ORÇ)'!C78) ->  | I79: =IF(ISBLANK('M&V (ORÇ)'!I78)," ",'M&V (ORÇ)'!I78) ->  | J79: =IF(ISBLANK('M&V (ORÇ)'!J78)," ",'M&V (ORÇ)'!J78) ->  | K79: ='M&V (ORÇ)'!K78 -> 0 | L79: ='M&V (ORÇ)'!L78 -> 0 | M79: 0 | N79: 0
B80: 18 | C80: =IF(ISBLANK('M&V (ORÇ)'!C79)," ",'M&V (ORÇ)'!C79) ->  | I80: =IF(ISBLANK('M&V (ORÇ)'!I79)," ",'M&V (ORÇ)'!I79) ->  | J80: =IF(ISBLANK('M&V (ORÇ)'!J79)," ",'M&V (ORÇ)'!J79) ->  | K80: ='M&V (ORÇ)'!K79 -> 0 | L80: ='M&V (ORÇ)'!L79 -> 0 | M80: 0 | N80: 0
B81: 19 | C81: =IF(ISBLANK('M&V (ORÇ)'!C80)," ",'M&V (ORÇ)'!C80) ->  | I81: =IF(ISBLANK('M&V (ORÇ)'!I80)," ",'M&V (ORÇ)'!I80) ->  | J81: =IF(ISBLANK('M&V (ORÇ)'!J80)," ",'M&V (ORÇ)'!J80) ->  | K81: ='M&V (ORÇ)'!K80 -> 0 | L81: ='M&V (ORÇ)'!L80 -> 0 | M81: 0 | N81: 0
B82: 20 | C82: =IF(ISBLANK('M&V (ORÇ)'!C81)," ",'M&V (ORÇ)'!C81) ->  | I82: =IF(ISBLANK('M&V (ORÇ)'!I81)," ",'M&V (ORÇ)'!I81) ->  | J82: =IF(ISBLANK('M&V (ORÇ)'!J81)," ",'M&V (ORÇ)'!J81) ->  | K82: ='M&V (ORÇ)'!K81 -> 0 | L82: ='M&V (ORÇ)'!L81 -> 0 | M82: 0 | N82: 0
B83: 21 | C83: =IF(ISBLANK('M&V (ORÇ)'!C82)," ",'M&V (ORÇ)'!C82) ->  | I83: =IF(ISBLANK('M&V (ORÇ)'!I82)," ",'M&V (ORÇ)'!I82) ->  | J83: =IF(ISBLANK('M&V (ORÇ)'!J82)," ",'M&V (ORÇ)'!J82) ->  | K83: ='M&V (ORÇ)'!K82 -> 0 | L83: ='M&V (ORÇ)'!L82 -> 0 | M83: 0 | N83: 0
B84: 22 | C84: =IF(ISBLANK('M&V (ORÇ)'!C83)," ",'M&V (ORÇ)'!C83) ->  | I84: =IF(ISBLANK('M&V (ORÇ)'!I83)," ",'M&V (ORÇ)'!I83) ->  | J84: =IF(ISBLANK('M&V (ORÇ)'!J83)," ",'M&V (ORÇ)'!J83) ->  | K84: ='M&V (ORÇ)'!K83 -> 0 | L84: ='M&V (ORÇ)'!L83 -> 0 | M84: 0 | N84: 0
B85: 23 | C85: =IF(ISBLANK('M&V (ORÇ)'!C84)," ",'M&V (ORÇ)'!C84) ->  | I85: =IF(ISBLANK('M&V (ORÇ)'!I84)," ",'M&V (ORÇ)'!I84) ->  | J85: =IF(ISBLANK('M&V (ORÇ)'!J84)," ",'M&V (ORÇ)'!J84) ->  | K85: ='M&V (ORÇ)'!K84 -> 0 | L85: ='M&V (ORÇ)'!L84 -> 0 | M85: 0 | N85: 0
B86: 24 | C86: =IF(ISBLANK('M&V (ORÇ)'!C85)," ",'M&V (ORÇ)'!C85) ->  | I86: =IF(ISBLANK('M&V (ORÇ)'!I85)," ",'M&V (ORÇ)'!I85) ->  | J86: =IF(ISBLANK('M&V (ORÇ)'!J85)," ",'M&V (ORÇ)'!J85) ->  | K86: ='M&V (ORÇ)'!K85 -> 0 | L86: ='M&V (ORÇ)'!L85 -> 0 | M86: 0 | N86: 0
B87: 25 | C87: =IF(ISBLANK('M&V (ORÇ)'!C86)," ",'M&V (ORÇ)'!C86) ->  | I87: =IF(ISBLANK('M&V (ORÇ)'!I86)," ",'M&V (ORÇ)'!I86) ->  | J87: =IF(ISBLANK('M&V (ORÇ)'!J86)," ",'M&V (ORÇ)'!J86) ->  | K87: ='M&V (ORÇ)'!K86 -> 0 | L87: ='M&V (ORÇ)'!L86 -> 0 | M87: 0 | N87: 0
B88: 26 | C88: =IF(ISBLANK('M&V (ORÇ)'!C87)," ",'M&V (ORÇ)'!C87) ->  | I88: =IF(ISBLANK('M&V (ORÇ)'!I87)," ",'M&V (ORÇ)'!I87) ->  | J88: =IF(ISBLANK('M&V (ORÇ)'!J87)," ",'M&V (ORÇ)'!J87) ->  | K88: ='M&V (ORÇ)'!K87 -> 0 | L88: ='M&V (ORÇ)'!L87 -> 0 | M88: 0 | N88: 0
B89: 27 | C89: =IF(ISBLANK('M&V (ORÇ)'!C88)," ",'M&V (ORÇ)'!C88) ->  | I89: =IF(ISBLANK('M&V (ORÇ)'!I88)," ",'M&V (ORÇ)'!I88) ->  | J89: =IF(ISBLANK('M&V (ORÇ)'!J88)," ",'M&V (ORÇ)'!J88) ->  | K89: ='M&V (ORÇ)'!K88 -> 0 | L89: ='M&V (ORÇ)'!L88 -> 0 | M89: 0 | N89: 0
B90: 28 | C90: =IF(ISBLANK('M&V (ORÇ)'!C89)," ",'M&V (ORÇ)'!C89) ->  | I90: =IF(ISBLANK('M&V (ORÇ)'!I89)," ",'M&V (ORÇ)'!I89) ->  | J90: =IF(ISBLANK('M&V (ORÇ)'!J89)," ",'M&V (ORÇ)'!J89) ->  | K90: ='M&V (ORÇ)'!K89 -> 0 | L90: ='M&V (ORÇ)'!L89 -> 0 | M90: 0 | N90: 0
B91: 29 | C91: =IF(ISBLANK('M&V (ORÇ)'!C90)," ",'M&V (ORÇ)'!C90) ->  | I91: =IF(ISBLANK('M&V (ORÇ)'!I90)," ",'M&V (ORÇ)'!I90) ->  | J91: =IF(ISBLANK('M&V (ORÇ)'!J90)," ",'M&V (ORÇ)'!J90) ->  | K91: ='M&V (ORÇ)'!K90 -> 0 | L91: ='M&V (ORÇ)'!L90 -> 0 | M91: 0 | N91: 0
B92: 30 | C92: =IF(ISBLANK('M&V (ORÇ)'!C91)," ",'M&V (ORÇ)'!C91) ->  | I92: =IF(ISBLANK('M&V (ORÇ)'!I91)," ",'M&V (ORÇ)'!I91) ->  | J92: =IF(ISBLANK('M&V (ORÇ)'!J91)," ",'M&V (ORÇ)'!J91) ->  | K92: ='M&V (ORÇ)'!K91 -> 0 | L92: ='M&V (ORÇ)'!L91 -> 0 | M92: 0 | N92: 0
B93: 31 | C93: =IF(ISBLANK('M&V (ORÇ)'!C92)," ",'M&V (ORÇ)'!C92) ->  | I93: =IF(ISBLANK('M&V (ORÇ)'!I92)," ",'M&V (ORÇ)'!I92) ->  | J93: =IF(ISBLANK('M&V (ORÇ)'!J92)," ",'M&V (ORÇ)'!J92) ->  | K93: ='M&V (ORÇ)'!K92 -> 0 | L93: ='M&V (ORÇ)'!L92 -> 0 | M93: 0 | N93: 0
B94: 32 | C94: =IF(ISBLANK('M&V (ORÇ)'!C93)," ",'M&V (ORÇ)'!C93) ->  | I94: =IF(ISBLANK('M&V (ORÇ)'!I93)," ",'M&V (ORÇ)'!I93) ->  | J94: =IF(ISBLANK('M&V (ORÇ)'!J93)," ",'M&V (ORÇ)'!J93) ->  | K94: ='M&V (ORÇ)'!K93 -> 0 | L94: ='M&V (ORÇ)'!L93 -> 0 | M94: 0 | N94: 0
B95: 33 | C95: =IF(ISBLANK('M&V (ORÇ)'!C94)," ",'M&V (ORÇ)'!C94) ->  | I95: =IF(ISBLANK('M&V (ORÇ)'!I94)," ",'M&V (ORÇ)'!I94) ->  | J95: =IF(ISBLANK('M&V (ORÇ)'!J94)," ",'M&V (ORÇ)'!J94) ->  | K95: ='M&V (ORÇ)'!K94 -> 0 | L95: ='M&V (ORÇ)'!L94 -> 0 | M95: 0 | N95: =M95-O95-P95 -> 0
B96: 34 | C96: =IF(ISBLANK('M&V (ORÇ)'!C95)," ",'M&V (ORÇ)'!C95) ->  | I96: =IF(ISBLANK('M&V (ORÇ)'!I95)," ",'M&V (ORÇ)'!I95) ->  | J96: =IF(ISBLANK('M&V (ORÇ)'!J95)," ",'M&V (ORÇ)'!J95) ->  | K96: ='M&V (ORÇ)'!K95 -> 0 | L96: ='M&V (ORÇ)'!L95 -> 0 | M96: 0 | N96: 0
B97: 35 | C97: =IF(ISBLANK('M&V (ORÇ)'!C96)," ",'M&V (ORÇ)'!C96) ->  | I97: =IF(ISBLANK('M&V (ORÇ)'!I96)," ",'M&V (ORÇ)'!I96) ->  | J97: =IF(ISBLANK('M&V (ORÇ)'!J96)," ",'M&V (ORÇ)'!J96) ->  | K97: ='M&V (ORÇ)'!K96 -> 0 | L97: ='M&V (ORÇ)'!L96 -> 0 | M97: 0 | N97: 0
B98: 36 | C98: =IF(ISBLANK('M&V (ORÇ)'!C97)," ",'M&V (ORÇ)'!C97) ->  | I98: =IF(ISBLANK('M&V (ORÇ)'!I97)," ",'M&V (ORÇ)'!I97) ->  | J98: =IF(ISBLANK('M&V (ORÇ)'!J97)," ",'M&V (ORÇ)'!J97) ->  | K98: ='M&V (ORÇ)'!K97 -> 0 | L98: ='M&V (ORÇ)'!L97 -> 0 | M98: 0 | N98: 0
B99: 37 | C99: =IF(ISBLANK('M&V (ORÇ)'!C98)," ",'M&V (ORÇ)'!C98) ->  | I99: =IF(ISBLANK('M&V (ORÇ)'!I98)," ",'M&V (ORÇ)'!I98) ->  | J99: =IF(ISBLANK('M&V (ORÇ)'!J98)," ",'M&V (ORÇ)'!J98) ->  | K99: ='M&V (ORÇ)'!K98 -> 0 | L99: ='M&V (ORÇ)'!L98 -> 0 | M99: 0 | N99: 0
B100: 38 | C100: =IF(ISBLANK('M&V (ORÇ)'!C99)," ",'M&V (ORÇ)'!C99) ->  | I100: =IF(ISBLANK('M&V (ORÇ)'!I99)," ",'M&V (ORÇ)'!I99) ->  | J100: =IF(ISBLANK('M&V (ORÇ)'!J99)," ",'M&V (ORÇ)'!J99) ->  | K100: ='M&V (ORÇ)'!K99 -> 0 | L100: ='M&V (ORÇ)'!L99 -> 0 | M100: 0 | N100: 0
B101: 39 | C101: =IF(ISBLANK('M&V (ORÇ)'!C100)," ",'M&V (ORÇ)'!C100) ->  | I101: =IF(ISBLANK('M&V (ORÇ)'!I100)," ",'M&V (ORÇ)'!I100) ->  | J101: =IF(ISBLANK('M&V (ORÇ)'!J100)," ",'M&V (ORÇ)'!J100) ->  | K101: ='M&V (ORÇ)'!K100 -> 0 | L101: ='M&V (ORÇ)'!L100 -> 0 | M101: 0 | N101: 0
B102: 40 | C102: =IF(ISBLANK('M&V (ORÇ)'!C101)," ",'M&V (ORÇ)'!C101) ->  | I102: =IF(ISBLANK('M&V (ORÇ)'!I101)," ",'M&V (ORÇ)'!I101) ->  | J102: =IF(ISBLANK('M&V (ORÇ)'!J101)," ",'M&V (ORÇ)'!J101) ->  | K102: ='M&V (ORÇ)'!K101 -> 0 | L102: ='M&V (ORÇ)'!L101 -> 0 | M102: 0 | N102: 0
B103: 41 | C103: =IF(ISBLANK('M&V (ORÇ)'!C102)," ",'M&V (ORÇ)'!C102) ->  | I103: =IF(ISBLANK('M&V (ORÇ)'!I102)," ",'M&V (ORÇ)'!I102) ->  | J103: =IF(ISBLANK('M&V (ORÇ)'!J102)," ",'M&V (ORÇ)'!J102) ->  | K103: ='M&V (ORÇ)'!K102 -> 0 | L103: ='M&V (ORÇ)'!L102 -> 0 | M103: 0 | N103: 0
B104: 42 | C104: =IF(ISBLANK('M&V (ORÇ)'!C103)," ",'M&V (ORÇ)'!C103) ->  | I104: =IF(ISBLANK('M&V (ORÇ)'!I103)," ",'M&V (ORÇ)'!I103) ->  | J104: =IF(ISBLANK('M&V (ORÇ)'!J103)," ",'M&V (ORÇ)'!J103) ->  | K104: ='M&V (ORÇ)'!K103 -> 0 | L104: ='M&V (ORÇ)'!L103 -> 0 | M104: 0 | N104: 0
B105: 43 | C105: =IF(ISBLANK('M&V (ORÇ)'!C104)," ",'M&V (ORÇ)'!C104) ->  | I105: =IF(ISBLANK('M&V (ORÇ)'!I104)," ",'M&V (ORÇ)'!I104) ->  | J105: =IF(ISBLANK('M&V (ORÇ)'!J104)," ",'M&V (ORÇ)'!J104) ->  | K105: ='M&V (ORÇ)'!K104 -> 0 | L105: ='M&V (ORÇ)'!L104 -> 0 | M105: 0 | N105: 0
B106: 44 | C106: =IF(ISBLANK('M&V (ORÇ)'!C105)," ",'M&V (ORÇ)'!C105) ->  | I106: =IF(ISBLANK('M&V (ORÇ)'!I105)," ",'M&V (ORÇ)'!I105) ->  | J106: =IF(ISBLANK('M&V (ORÇ)'!J105)," ",'M&V (ORÇ)'!J105) ->  | K106: ='M&V (ORÇ)'!K105 -> 0 | L106: ='M&V (ORÇ)'!L105 -> 0 | M106: 0 | N106: 0
B107: 45 | C107: =IF(ISBLANK('M&V (ORÇ)'!C106)," ",'M&V (ORÇ)'!C106) ->  | I107: =IF(ISBLANK('M&V (ORÇ)'!I106)," ",'M&V (ORÇ)'!I106) ->  | J107: =IF(ISBLANK('M&V (ORÇ)'!J106)," ",'M&V (ORÇ)'!J106) ->  | K107: ='M&V (ORÇ)'!K106 -> 0 | L107: ='M&V (ORÇ)'!L106 -> 0 | M107: 0 | N107: 0
B108: 46 | C108: =IF(ISBLANK('M&V (ORÇ)'!C107)," ",'M&V (ORÇ)'!C107) ->  | I108: =IF(ISBLANK('M&V (ORÇ)'!I107)," ",'M&V (ORÇ)'!I107) ->  | J108: =IF(ISBLANK('M&V (ORÇ)'!J107)," ",'M&V (ORÇ)'!J107) ->  | K108: ='M&V (ORÇ)'!K107 -> 0 | L108: ='M&V (ORÇ)'!L107 -> 0 | M108: 0 | N108: 0
B109: 47 | C109: =IF(ISBLANK('M&V (ORÇ)'!C108)," ",'M&V (ORÇ)'!C108) ->  | I109: =IF(ISBLANK('M&V (ORÇ)'!I108)," ",'M&V (ORÇ)'!I108) ->  | J109: =IF(ISBLANK('M&V (ORÇ)'!J108)," ",'M&V (ORÇ)'!J108) ->  | K109: ='M&V (ORÇ)'!K108 -> 0 | L109: ='M&V (ORÇ)'!L108 -> 0 | M109: 0 | N109: 0
B110: 48 | C110: =IF(ISBLANK('M&V (ORÇ)'!C109)," ",'M&V (ORÇ)'!C109) ->  | I110: =IF(ISBLANK('M&V (ORÇ)'!I109)," ",'M&V (ORÇ)'!I109) ->  | J110: =IF(ISBLANK('M&V (ORÇ)'!J109)," ",'M&V (ORÇ)'!J109) ->  | K110: ='M&V (ORÇ)'!K109 -> 0 | L110: ='M&V (ORÇ)'!L109 -> 0 | M110: 0 | N110: 0
B111: 49 | C111: =IF(ISBLANK('M&V (ORÇ)'!C110)," ",'M&V (ORÇ)'!C110) ->  | I111: =IF(ISBLANK('M&V (ORÇ)'!I110)," ",'M&V (ORÇ)'!I110) ->  | J111: =IF(ISBLANK('M&V (ORÇ)'!J110)," ",'M&V (ORÇ)'!J110) ->  | K111: ='M&V (ORÇ)'!K110 -> 0 | L111: ='M&V (ORÇ)'!L110 -> 0 | M111: 0 | N111: 0
B112: 50 | C112: =IF(ISBLANK('M&V (ORÇ)'!C111)," ",'M&V (ORÇ)'!C111) ->  | I112: =IF(ISBLANK('M&V (ORÇ)'!I111)," ",'M&V (ORÇ)'!I111) ->  | J112: =IF(ISBLANK('M&V (ORÇ)'!J111)," ",'M&V (ORÇ)'!J111) ->  | K112: ='M&V (ORÇ)'!K111 -> 0 | L112: ='M&V (ORÇ)'!L111 -> 0 | M112: 0 | N112: 0
C113: Sub total - Custos medição e verificação iluminação - Período pós-retrofit | M113: =SUM(M63:M112) -> 0 | N113: =SUM(N63:N112) -> 0 | O113: =SUM(O63:O112) -> 0 | P113: =SUM(P63:P112) -> 0
C114: Sub total - Custos medição e verificação iluminação | M114: =SUM(M60,M113) -> 0 | N114: =SUM(N60,N113) -> 0 | O114: =SUM(O60,O113) -> 0 | P114: =SUM(P60,P113) -> 0
B115: CONDICIONAMENTO AMBIENTAL
B116: PERÍODO DE REFERÊNCIA | O116: =B116 -> PERÍODO DE REFERÊNCIA
B117: Descrição do equipamento | I117: CV | J117: População | K117: Amostragem | L117: Preço unitário | M117: Total | N117: PEE | O117: Terceiros | P117: Consumidor
B118: 1 | C118: =IF(ISBLANK('M&V (ORÇ)'!C115)," ",'M&V (ORÇ)'!C115) ->  | I118: =IF(ISBLANK('M&V (ORÇ)'!I115)," ",'M&V (ORÇ)'!I115) ->  | J118: =IF(ISBLANK('M&V (ORÇ)'!J115)," ",'M&V (ORÇ)'!J115) ->  | K118: ='M&V (ORÇ)'!K115 -> 0 | L118: ='M&V (ORÇ)'!L115 -> 0 | M118: =IF(J118="",0,K118*L118) -> 0 | N118: =M118-O118-P118 -> 0
B119: 2 | C119: =IF(ISBLANK('M&V (ORÇ)'!C116)," ",'M&V (ORÇ)'!C116) ->  | I119: =IF(ISBLANK('M&V (ORÇ)'!I116)," ",'M&V (ORÇ)'!I116) ->  | J119: =IF(ISBLANK('M&V (ORÇ)'!J116)," ",'M&V (ORÇ)'!J116) ->  | K119: ='M&V (ORÇ)'!K116 -> 0 | L119: ='M&V (ORÇ)'!L116 -> 0 | M119: 0 | N119: 0
B120: 3 | C120: =IF(ISBLANK('M&V (ORÇ)'!C117)," ",'M&V (ORÇ)'!C117) ->  | I120: =IF(ISBLANK('M&V (ORÇ)'!I117)," ",'M&V (ORÇ)'!I117) ->  | J120: =IF(ISBLANK('M&V (ORÇ)'!J117)," ",'M&V (ORÇ)'!J117) ->  | K120: ='M&V (ORÇ)'!K117 -> 0 | L120: ='M&V (ORÇ)'!L117 -> 0 | M120: 0 | N120: 0
B121: 4 | C121: =IF(ISBLANK('M&V (ORÇ)'!C118)," ",'M&V (ORÇ)'!C118) ->  | I121: =IF(ISBLANK('M&V (ORÇ)'!I118)," ",'M&V (ORÇ)'!I118) ->  | J121: =IF(ISBLANK('M&V (ORÇ)'!J118)," ",'M&V (ORÇ)'!J118) ->  | K121: ='M&V (ORÇ)'!K118 -> 0 | L121: ='M&V (ORÇ)'!L118 -> 0 | M121: 0 | N121: 0
B122: 5 | C122: =IF(ISBLANK('M&V (ORÇ)'!C119)," ",'M&V (ORÇ)'!C119) ->  | I122: =IF(ISBLANK('M&V (ORÇ)'!I119)," ",'M&V (ORÇ)'!I119) ->  | J122: =IF(ISBLANK('M&V (ORÇ)'!J119)," ",'M&V (ORÇ)'!J119) ->  | K122: ='M&V (ORÇ)'!K119 -> 0 | L122: ='M&V (ORÇ)'!L119 -> 0 | M122: 0 | N122: 0
B123: 6 | C123: =IF(ISBLANK('M&V (ORÇ)'!C120)," ",'M&V (ORÇ)'!C120) ->  | I123: =IF(ISBLANK('M&V (ORÇ)'!I120)," ",'M&V (ORÇ)'!I120) ->  | J123: =IF(ISBLANK('M&V (ORÇ)'!J120)," ",'M&V (ORÇ)'!J120) ->  | K123: ='M&V (ORÇ)'!K120 -> 0 | L123: ='M&V (ORÇ)'!L120 -> 0 | M123: 0 | N123: 0
B124: 7 | C124: =IF(ISBLANK('M&V (ORÇ)'!C121)," ",'M&V (ORÇ)'!C121) ->  | I124: =IF(ISBLANK('M&V (ORÇ)'!I121)," ",'M&V (ORÇ)'!I121) ->  | J124: =IF(ISBLANK('M&V (ORÇ)'!J121)," ",'M&V (ORÇ)'!J121) ->  | K124: ='M&V (ORÇ)'!K121 -> 0 | L124: ='M&V (ORÇ)'!L121 -> 0 | M124: 0 | N124: 0
B125: 8 | C125: =IF(ISBLANK('M&V (ORÇ)'!C122)," ",'M&V (ORÇ)'!C122) ->  | I125: =IF(ISBLANK('M&V (ORÇ)'!I122)," ",'M&V (ORÇ)'!I122) ->  | J125: =IF(ISBLANK('M&V (ORÇ)'!J122)," ",'M&V (ORÇ)'!J122) ->  | K125: ='M&V (ORÇ)'!K122 -> 0 | L125: ='M&V (ORÇ)'!L122 -> 0 | M125: 0 | N125: 0
B126: 9 | C126: =IF(ISBLANK('M&V (ORÇ)'!C123)," ",'M&V (ORÇ)'!C123) ->  | I126: =IF(ISBLANK('M&V (ORÇ)'!I123)," ",'M&V (ORÇ)'!I123) ->  | J126: =IF(ISBLANK('M&V (ORÇ)'!J123)," ",'M&V (ORÇ)'!J123) ->  | K126: ='M&V (ORÇ)'!K123 -> 0 | L126: ='M&V (ORÇ)'!L123 -> 0 | M126: 0 | N126: 0
B127: 10 | C127: =IF(ISBLANK('M&V (ORÇ)'!C124)," ",'M&V (ORÇ)'!C124) ->  | I127: =IF(ISBLANK('M&V (ORÇ)'!I124)," ",'M&V (ORÇ)'!I124) ->  | J127: =IF(ISBLANK('M&V (ORÇ)'!J124)," ",'M&V (ORÇ)'!J124) ->  | K127: ='M&V (ORÇ)'!K124 -> 0 | L127: ='M&V (ORÇ)'!L124 -> 0 | M127: 0 | N127: 0
B128: 11 | C128: =IF(ISBLANK('M&V (ORÇ)'!C125)," ",'M&V (ORÇ)'!C125) ->  | I128: =IF(ISBLANK('M&V (ORÇ)'!I125)," ",'M&V (ORÇ)'!I125) ->  | J128: =IF(ISBLANK('M&V (ORÇ)'!J125)," ",'M&V (ORÇ)'!J125) ->  | K128: ='M&V (ORÇ)'!K125 -> 0 | L128: ='M&V (ORÇ)'!L125 -> 0 | M128: 0 | N128: 0
B129: 12 | C129: =IF(ISBLANK('M&V (ORÇ)'!C126)," ",'M&V (ORÇ)'!C126) ->  | I129: =IF(ISBLANK('M&V (ORÇ)'!I126)," ",'M&V (ORÇ)'!I126) ->  | J129: =IF(ISBLANK('M&V (ORÇ)'!J126)," ",'M&V (ORÇ)'!J126) ->  | K129: ='M&V (ORÇ)'!K126 -> 0 | L129: ='M&V (ORÇ)'!L126 -> 0 | M129: 0 | N129: 0
B130: 13 | C130: =IF(ISBLANK('M&V (ORÇ)'!C127)," ",'M&V (ORÇ)'!C127) ->  | I130: =IF(ISBLANK('M&V (ORÇ)'!I127)," ",'M&V (ORÇ)'!I127) ->  | J130: =IF(ISBLANK('M&V (ORÇ)'!J127)," ",'M&V (ORÇ)'!J127) ->  | K130: ='M&V (ORÇ)'!K127 -> 0 | L130: ='M&V (ORÇ)'!L127 -> 0 | M130: 0 | N130: 0
B131: 14 | C131: =IF(ISBLANK('M&V (ORÇ)'!C128)," ",'M&V (ORÇ)'!C128) ->  | I131: =IF(ISBLANK('M&V (ORÇ)'!I128)," ",'M&V (ORÇ)'!I128) ->  | J131: =IF(ISBLANK('M&V (ORÇ)'!J128)," ",'M&V (ORÇ)'!J128) ->  | K131: ='M&V (ORÇ)'!K128 -> 0 | L131: ='M&V (ORÇ)'!L128 -> 0 | M131: 0 | N131: 0
B132: 15 | C132: =IF(ISBLANK('M&V (ORÇ)'!C129)," ",'M&V (ORÇ)'!C129) ->  | I132: =IF(ISBLANK('M&V (ORÇ)'!I129)," ",'M&V (ORÇ)'!I129) ->  | J132: =IF(ISBLANK('M&V (ORÇ)'!J129)," ",'M&V (ORÇ)'!J129) ->  | K132: ='M&V (ORÇ)'!K129 -> 0 | L132: ='M&V (ORÇ)'!L129 -> 0 | M132: 0 | N132: 0
B133: 16 | C133: =IF(ISBLANK('M&V (ORÇ)'!C130)," ",'M&V (ORÇ)'!C130) ->  | I133: =IF(ISBLANK('M&V (ORÇ)'!I130)," ",'M&V (ORÇ)'!I130) ->  | J133: =IF(ISBLANK('M&V (ORÇ)'!J130)," ",'M&V (ORÇ)'!J130) ->  | K133: ='M&V (ORÇ)'!K130 -> 0 | L133: ='M&V (ORÇ)'!L130 -> 0 | M133: 0 | N133: 0
B134: 17 | C134: =IF(ISBLANK('M&V (ORÇ)'!C131)," ",'M&V (ORÇ)'!C131) ->  | I134: =IF(ISBLANK('M&V (ORÇ)'!I131)," ",'M&V (ORÇ)'!I131) ->  | J134: =IF(ISBLANK('M&V (ORÇ)'!J131)," ",'M&V (ORÇ)'!J131) ->  | K134: ='M&V (ORÇ)'!K131 -> 0 | L134: ='M&V (ORÇ)'!L131 -> 0 | M134: 0 | N134: 0
B135: 18 | C135: =IF(ISBLANK('M&V (ORÇ)'!C132)," ",'M&V (ORÇ)'!C132) ->  | I135: =IF(ISBLANK('M&V (ORÇ)'!I132)," ",'M&V (ORÇ)'!I132) ->  | J135: =IF(ISBLANK('M&V (ORÇ)'!J132)," ",'M&V (ORÇ)'!J132) ->  | K135: ='M&V (ORÇ)'!K132 -> 0 | L135: ='M&V (ORÇ)'!L132 -> 0 | M135: 0 | N135: 0
B136: 19 | C136: =IF(ISBLANK('M&V (ORÇ)'!C133)," ",'M&V (ORÇ)'!C133) ->  | I136: =IF(ISBLANK('M&V (ORÇ)'!I133)," ",'M&V (ORÇ)'!I133) ->  | J136: =IF(ISBLANK('M&V (ORÇ)'!J133)," ",'M&V (ORÇ)'!J133) ->  | K136: ='M&V (ORÇ)'!K133 -> 0 | L136: ='M&V (ORÇ)'!L133 -> 0 | M136: 0 | N136: 0
B137: 20 | C137: =IF(ISBLANK('M&V (ORÇ)'!C134)," ",'M&V (ORÇ)'!C134) ->  | I137: =IF(ISBLANK('M&V (ORÇ)'!I134)," ",'M&V (ORÇ)'!I134) ->  | J137: =IF(ISBLANK('M&V (ORÇ)'!J134)," ",'M&V (ORÇ)'!J134) ->  | K137: ='M&V (ORÇ)'!K134 -> 0 | L137: ='M&V (ORÇ)'!L134 -> 0 | M137: 0 | N137: 0
C138: Sub total - Custos medição e verificação condicionamento ambiental - Período de referência | M138: =SUM(M118:M137) -> 0 | N138: =SUM(N118:N137) -> 0 | O138: =SUM(O118:O137) -> 0 | P138: =SUM(P118:P137) -> 0
B139: PERÍODO PÓS-RETROFIT | O139: =B139 -> PERÍODO PÓS-RETROFIT
B140: Descrição do equipamento | I140: CV | J140: População | K140: Amostragem | L140: Preço unitário | M140: Total | N140: PEE | O140: Terceiros | P140: Consumidor
B141: 1 | C141: =IF(ISBLANK('M&V (ORÇ)'!C137)," ",'M&V (ORÇ)'!C137) ->  | I141: =IF(ISBLANK('M&V (ORÇ)'!I137)," ",'M&V (ORÇ)'!I137) ->  | J141: =IF(ISBLANK('M&V (ORÇ)'!J137)," ",'M&V (ORÇ)'!J137) ->  | K141: ='M&V (ORÇ)'!K137 -> 0 | L141: ='M&V (ORÇ)'!L137 -> 0 | M141: =IF(J141="",0,K141*L141) -> 0 | N141: =M141-O141-P141 -> 0
B142: 2 | C142: =IF(ISBLANK('M&V (ORÇ)'!C138)," ",'M&V (ORÇ)'!C138) ->  | I142: =IF(ISBLANK('M&V (ORÇ)'!I138)," ",'M&V (ORÇ)'!I138) ->  | J142: =IF(ISBLANK('M&V (ORÇ)'!J138)," ",'M&V (ORÇ)'!J138) ->  | K142: ='M&V (ORÇ)'!K138 -> 0 | L142: ='M&V (ORÇ)'!L138 -> 0 | M142: 0 | N142: 0
B143: 3 | C143: =IF(ISBLANK('M&V (ORÇ)'!C139)," ",'M&V (ORÇ)'!C139) ->  | I143: =IF(ISBLANK('M&V (ORÇ)'!I139)," ",'M&V (ORÇ)'!I139) ->  | J143: =IF(ISBLANK('M&V (ORÇ)'!J139)," ",'M&V (ORÇ)'!J139) ->  | K143: ='M&V (ORÇ)'!K139 -> 0 | L143: ='M&V (ORÇ)'!L139 -> 0 | M143: 0 | N143: 0
B144: 4 | C144: =IF(ISBLANK('M&V (ORÇ)'!C140)," ",'M&V (ORÇ)'!C140) ->  | I144: =IF(ISBLANK('M&V (ORÇ)'!I140)," ",'M&V (ORÇ)'!I140) ->  | J144: =IF(ISBLANK('M&V (ORÇ)'!J140)," ",'M&V (ORÇ)'!J140) ->  | K144: ='M&V (ORÇ)'!K140 -> 0 | L144: ='M&V (ORÇ)'!L140 -> 0 | M144: 0 | N144: 0
B145: 5 | C145: =IF(ISBLANK('M&V (ORÇ)'!C141)," ",'M&V (ORÇ)'!C141) ->  | I145: =IF(ISBLANK('M&V (ORÇ)'!I141)," ",'M&V (ORÇ)'!I141) ->  | J145: =IF(ISBLANK('M&V (ORÇ)'!J141)," ",'M&V (ORÇ)'!J141) ->  | K145: ='M&V (ORÇ)'!K141 -> 0 | L145: ='M&V (ORÇ)'!L141 -> 0 | M145: 0 | N145: 0
B146: 6 | C146: =IF(ISBLANK('M&V (ORÇ)'!C142)," ",'M&V (ORÇ)'!C142) ->  | I146: =IF(ISBLANK('M&V (ORÇ)'!I142)," ",'M&V (ORÇ)'!I142) ->  | J146: =IF(ISBLANK('M&V (ORÇ)'!J142)," ",'M&V (ORÇ)'!J142) ->  | K146: ='M&V (ORÇ)'!K142 -> 0 | L146: ='M&V (ORÇ)'!L142 -> 0 | M146: 0 | N146: 0
B147: 7 | C147: =IF(ISBLANK('M&V (ORÇ)'!C143)," ",'M&V (ORÇ)'!C143) ->  | I147: =IF(ISBLANK('M&V (ORÇ)'!I143)," ",'M&V (ORÇ)'!I143) ->  | J147: =IF(ISBLANK('M&V (ORÇ)'!J143)," ",'M&V (ORÇ)'!J143) ->  | K147: ='M&V (ORÇ)'!K143 -> 0 | L147: ='M&V (ORÇ)'!L143 -> 0 | M147: 0 | N147: 0
B148: 8 | C148: =IF(ISBLANK('M&V (ORÇ)'!C144)," ",'M&V (ORÇ)'!C144) ->  | I148: =IF(ISBLANK('M&V (ORÇ)'!I144)," ",'M&V (ORÇ)'!I144) ->  | J148: =IF(ISBLANK('M&V (ORÇ)'!J144)," ",'M&V (ORÇ)'!J144) ->  | K148: ='M&V (ORÇ)'!K144 -> 0 | L148: ='M&V (ORÇ)'!L144 -> 0 | M148: 0 | N148: 0
B149: 9 | C149: =IF(ISBLANK('M&V (ORÇ)'!C145)," ",'M&V (ORÇ)'!C145) ->  | I149: =IF(ISBLANK('M&V (ORÇ)'!I145)," ",'M&V (ORÇ)'!I145) ->  | J149: =IF(ISBLANK('M&V (ORÇ)'!J145)," ",'M&V (ORÇ)'!J145) ->  | K149: ='M&V (ORÇ)'!K145 -> 0 | L149: ='M&V (ORÇ)'!L145 -> 0 | M149: 0 | N149: 0
B150: 10 | C150: =IF(ISBLANK('M&V (ORÇ)'!C146)," ",'M&V (ORÇ)'!C146) ->  | I150: =IF(ISBLANK('M&V (ORÇ)'!I146)," ",'M&V (ORÇ)'!I146) ->  | J150: =IF(ISBLANK('M&V (ORÇ)'!J146)," ",'M&V (ORÇ)'!J146) ->  | K150: ='M&V (ORÇ)'!K146 -> 0 | L150: ='M&V (ORÇ)'!L146 -> 0 | M150: 0 | N150: 0
B151: 11 | C151: =IF(ISBLANK('M&V (ORÇ)'!C147)," ",'M&V (ORÇ)'!C147) ->  | I151: =IF(ISBLANK('M&V (ORÇ)'!I147)," ",'M&V (ORÇ)'!I147) ->  | J151: =IF(ISBLANK('M&V (ORÇ)'!J147)," ",'M&V (ORÇ)'!J147) ->  | K151: ='M&V (ORÇ)'!K147 -> 0 | L151: ='M&V (ORÇ)'!L147 -> 0 | M151: 0 | N151: 0
B152: 12 | C152: =IF(ISBLANK('M&V (ORÇ)'!C148)," ",'M&V (ORÇ)'!C148) ->  | I152: =IF(ISBLANK('M&V (ORÇ)'!I148)," ",'M&V (ORÇ)'!I148) ->  | J152: =IF(ISBLANK('M&V (ORÇ)'!J148)," ",'M&V (ORÇ)'!J148) ->  | K152: ='M&V (ORÇ)'!K148 -> 0 | L152: ='M&V (ORÇ)'!L148 -> 0 | M152: 0 | N152: 0
B153: 13 | C153: =IF(ISBLANK('M&V (ORÇ)'!C149)," ",'M&V (ORÇ)'!C149) ->  | I153: =IF(ISBLANK('M&V (ORÇ)'!I149)," ",'M&V (ORÇ)'!I149) ->  | J153: =IF(ISBLANK('M&V (ORÇ)'!J149)," ",'M&V (ORÇ)'!J149) ->  | K153: ='M&V (ORÇ)'!K149 -> 0 | L153: ='M&V (ORÇ)'!L149 -> 0 | M153: 0 | N153: 0
B154: 14 | C154: =IF(ISBLANK('M&V (ORÇ)'!C150)," ",'M&V (ORÇ)'!C150) ->  | I154: =IF(ISBLANK('M&V (ORÇ)'!I150)," ",'M&V (ORÇ)'!I150) ->  | J154: =IF(ISBLANK('M&V (ORÇ)'!J150)," ",'M&V (ORÇ)'!J150) ->  | K154: ='M&V (ORÇ)'!K150 -> 0 | L154: ='M&V (ORÇ)'!L150 -> 0 | M154: 0 | N154: 0
B155: 15 | C155: =IF(ISBLANK('M&V (ORÇ)'!C151)," ",'M&V (ORÇ)'!C151) ->  | I155: =IF(ISBLANK('M&V (ORÇ)'!I151)," ",'M&V (ORÇ)'!I151) ->  | J155: =IF(ISBLANK('M&V (ORÇ)'!J151)," ",'M&V (ORÇ)'!J151) ->  | K155: ='M&V (ORÇ)'!K151 -> 0 | L155: ='M&V (ORÇ)'!L151 -> 0 | M155: 0 | N155: 0
B156: 16 | C156: =IF(ISBLANK('M&V (ORÇ)'!C152)," ",'M&V (ORÇ)'!C152) ->  | I156: =IF(ISBLANK('M&V (ORÇ)'!I152)," ",'M&V (ORÇ)'!I152) ->  | J156: =IF(ISBLANK('M&V (ORÇ)'!J152)," ",'M&V (ORÇ)'!J152) ->  | K156: ='M&V (ORÇ)'!K152 -> 0 | L156: ='M&V (ORÇ)'!L152 -> 0 | M156: 0 | N156: 0
B157: 17 | C157: =IF(ISBLANK('M&V (ORÇ)'!C153)," ",'M&V (ORÇ)'!C153) ->  | I157: =IF(ISBLANK('M&V (ORÇ)'!I153)," ",'M&V (ORÇ)'!I153) ->  | J157: =IF(ISBLANK('M&V (ORÇ)'!J153)," ",'M&V (ORÇ)'!J153) ->  | K157: ='M&V (ORÇ)'!K153 -> 0 | L157: ='M&V (ORÇ)'!L153 -> 0 | M157: 0 | N157: 0
B158: 18 | C158: =IF(ISBLANK('M&V (ORÇ)'!C154)," ",'M&V (ORÇ)'!C154) ->  | I158: =IF(ISBLANK('M&V (ORÇ)'!I154)," ",'M&V (ORÇ)'!I154) ->  | J158: =IF(ISBLANK('M&V (ORÇ)'!J154)," ",'M&V (ORÇ)'!J154) ->  | K158: ='M&V (ORÇ)'!K154 -> 0 | L158: ='M&V (ORÇ)'!L154 -> 0 | M158: 0 | N158: 0
B159: 19 | C159: =IF(ISBLANK('M&V (ORÇ)'!C155)," ",'M&V (ORÇ)'!C155) ->  | I159: =IF(ISBLANK('M&V (ORÇ)'!I155)," ",'M&V (ORÇ)'!I155) ->  | J159: =IF(ISBLANK('M&V (ORÇ)'!J155)," ",'M&V (ORÇ)'!J155) ->  | K159: ='M&V (ORÇ)'!K155 -> 0 | L159: ='M&V (ORÇ)'!L155 -> 0 | M159: 0 | N159: 0
B160: 20 | C160: =IF(ISBLANK('M&V (ORÇ)'!C156)," ",'M&V (ORÇ)'!C156) ->  | I160: =IF(ISBLANK('M&V (ORÇ)'!I156)," ",'M&V (ORÇ)'!I156) ->  | J160: =IF(ISBLANK('M&V (ORÇ)'!J156)," ",'M&V (ORÇ)'!J156) ->  | K160: ='M&V (ORÇ)'!K156 -> 0 | L160: ='M&V (ORÇ)'!L156 -> 0 | M160: 0 | N160: 0
C161: Sub total - Custos medição e verificação condicionamento ambiental - Período pós-retrofit | M161: =SUM(M141:M160) -> 0 | N161: =SUM(N141:N160) -> 0 | O161: =SUM(O141:O160) -> 0 | P161: =SUM(P141:P160) -> 0
C162: Sub total - Custos medição e verificação condicionamento ambiental | M162: =SUM(M138,M161) -> 0 | N162: =SUM(N138,N161) -> 0 | O162: =SUM(O138,O161) -> 0 | P162: =SUM(P138,P161) -> 0
B163: MOTORES
B164: PERÍODO DE REFERÊNCIA | O164: =B164 -> PERÍODO DE REFERÊNCIA
B165: Descrição do equipamento | I165: CV | J165: População | K165: Amostragem | L165: Preço unitário | M165: Total | N165: PEE | O165: Terceiros | P165: Consumidor
B166: 1 | C166: =IF(ISBLANK('M&V (ORÇ)'!C160)," ",'M&V (ORÇ)'!C160) ->  | I166: =IF(ISBLANK('M&V (ORÇ)'!I160)," ",'M&V (ORÇ)'!I160) ->  | J166: =IF(ISBLANK('M&V (ORÇ)'!J160)," ",'M&V (ORÇ)'!J160) ->  | K166: ='M&V (ORÇ)'!K160 -> 0 | L166: ='M&V (ORÇ)'!L160 -> 0 | M166: =IF(J166="",0,K166*L166) -> 0 | N166: =M166-O166-P166 -> 0
B167: 2 | C167: =IF(ISBLANK('M&V (ORÇ)'!C161)," ",'M&V (ORÇ)'!C161) ->  | I167: =IF(ISBLANK('M&V (ORÇ)'!I161)," ",'M&V (ORÇ)'!I161) ->  | J167: =IF(ISBLANK('M&V (ORÇ)'!J161)," ",'M&V (ORÇ)'!J161) ->  | K167: ='M&V (ORÇ)'!K161 -> 0 | L167: ='M&V (ORÇ)'!L161 -> 0 | M167: 0 | N167: 0
B168: 3 | C168: =IF(ISBLANK('M&V (ORÇ)'!C162)," ",'M&V (ORÇ)'!C162) ->  | I168: =IF(ISBLANK('M&V (ORÇ)'!I162)," ",'M&V (ORÇ)'!I162) ->  | J168: =IF(ISBLANK('M&V (ORÇ)'!J162)," ",'M&V (ORÇ)'!J162) ->  | K168: ='M&V (ORÇ)'!K162 -> 0 | L168: ='M&V (ORÇ)'!L162 -> 0 | M168: 0 | N168: 0
B169: 4 | C169: =IF(ISBLANK('M&V (ORÇ)'!C163)," ",'M&V (ORÇ)'!C163) ->  | I169: =IF(ISBLANK('M&V (ORÇ)'!I163)," ",'M&V (ORÇ)'!I163) ->  | J169: =IF(ISBLANK('M&V (ORÇ)'!J163)," ",'M&V (ORÇ)'!J163) ->  | K169: ='M&V (ORÇ)'!K163 -> 0 | L169: ='M&V (ORÇ)'!L163 -> 0 | M169: 0 | N169: 0
B170: 5 | C170: =IF(ISBLANK('M&V (ORÇ)'!C164)," ",'M&V (ORÇ)'!C164) ->  | I170: =IF(ISBLANK('M&V (ORÇ)'!I164)," ",'M&V (ORÇ)'!I164) ->  | J170: =IF(ISBLANK('M&V (ORÇ)'!J164)," ",'M&V (ORÇ)'!J164) ->  | K170: ='M&V (ORÇ)'!K164 -> 0 | L170: ='M&V (ORÇ)'!L164 -> 0 | M170: 0 | N170: 0
B171: 6 | C171: =IF(ISBLANK('M&V (ORÇ)'!C165)," ",'M&V (ORÇ)'!C165) ->  | I171: =IF(ISBLANK('M&V (ORÇ)'!I165)," ",'M&V (ORÇ)'!I165) ->  | J171: =IF(ISBLANK('M&V (ORÇ)'!J165)," ",'M&V (ORÇ)'!J165) ->  | K171: ='M&V (ORÇ)'!K165 -> 0 | L171: ='M&V (ORÇ)'!L165 -> 0 | M171: 0 | N171: 0
B172: 7 | C172: =IF(ISBLANK('M&V (ORÇ)'!C166)," ",'M&V (ORÇ)'!C166) ->  | I172: =IF(ISBLANK('M&V (ORÇ)'!I166)," ",'M&V (ORÇ)'!I166) ->  | J172: =IF(ISBLANK('M&V (ORÇ)'!J166)," ",'M&V (ORÇ)'!J166) ->  | K172: ='M&V (ORÇ)'!K166 -> 0 | L172: ='M&V (ORÇ)'!L166 -> 0 | M172: 0 | N172: 0
B173: 8 | C173: =IF(ISBLANK('M&V (ORÇ)'!C167)," ",'M&V (ORÇ)'!C167) ->  | I173: =IF(ISBLANK('M&V (ORÇ)'!I167)," ",'M&V (ORÇ)'!I167) ->  | J173: =IF(ISBLANK('M&V (ORÇ)'!J167)," ",'M&V (ORÇ)'!J167) ->  | K173: ='M&V (ORÇ)'!K167 -> 0 | L173: ='M&V (ORÇ)'!L167 -> 0 | M173: 0 | N173: 0
B174: 9 | C174: =IF(ISBLANK('M&V (ORÇ)'!C168)," ",'M&V (ORÇ)'!C168) ->  | I174: =IF(ISBLANK('M&V (ORÇ)'!I168)," ",'M&V (ORÇ)'!I168) ->  | J174: =IF(ISBLANK('M&V (ORÇ)'!J168)," ",'M&V (ORÇ)'!J168) ->  | K174: ='M&V (ORÇ)'!K168 -> 0 | L174: ='M&V (ORÇ)'!L168 -> 0 | M174: 0 | N174: 0
B175: 10 | C175: =IF(ISBLANK('M&V (ORÇ)'!C169)," ",'M&V (ORÇ)'!C169) ->  | I175: =IF(ISBLANK('M&V (ORÇ)'!I169)," ",'M&V (ORÇ)'!I169) ->  | J175: =IF(ISBLANK('M&V (ORÇ)'!J169)," ",'M&V (ORÇ)'!J169) ->  | K175: ='M&V (ORÇ)'!K169 -> 0 | L175: ='M&V (ORÇ)'!L169 -> 0 | M175: 0 | N175: 0
B176: 11 | C176: =IF(ISBLANK('M&V (ORÇ)'!C170)," ",'M&V (ORÇ)'!C170) ->  | I176: =IF(ISBLANK('M&V (ORÇ)'!I170)," ",'M&V (ORÇ)'!I170) ->  | J176: =IF(ISBLANK('M&V (ORÇ)'!J170)," ",'M&V (ORÇ)'!J170) ->  | K176: ='M&V (ORÇ)'!K170 -> 0 | L176: ='M&V (ORÇ)'!L170 -> 0 | M176: 0 | N176: 0
B177: 12 | C177: =IF(ISBLANK('M&V (ORÇ)'!C171)," ",'M&V (ORÇ)'!C171) ->  | I177: =IF(ISBLANK('M&V (ORÇ)'!I171)," ",'M&V (ORÇ)'!I171) ->  | J177: =IF(ISBLANK('M&V (ORÇ)'!J171)," ",'M&V (ORÇ)'!J171) ->  | K177: ='M&V (ORÇ)'!K171 -> 0 | L177: ='M&V (ORÇ)'!L171 -> 0 | M177: 0 | N177: 0
B178: 13 | C178: =IF(ISBLANK('M&V (ORÇ)'!C172)," ",'M&V (ORÇ)'!C172) ->  | I178: =IF(ISBLANK('M&V (ORÇ)'!I172)," ",'M&V (ORÇ)'!I172) ->  | J178: =IF(ISBLANK('M&V (ORÇ)'!J172)," ",'M&V (ORÇ)'!J172) ->  | K178: ='M&V (ORÇ)'!K172 -> 0 | L178: ='M&V (ORÇ)'!L172 -> 0 | M178: 0 | N178: 0
B179: 14 | C179: =IF(ISBLANK('M&V (ORÇ)'!C173)," ",'M&V (ORÇ)'!C173) ->  | I179: =IF(ISBLANK('M&V (ORÇ)'!I173)," ",'M&V (ORÇ)'!I173) ->  | J179: =IF(ISBLANK('M&V (ORÇ)'!J173)," ",'M&V (ORÇ)'!J173) ->  | K179: ='M&V (ORÇ)'!K173 -> 0 | L179: ='M&V (ORÇ)'!L173 -> 0 | M179: 0 | N179: 0
B180: 15 | C180: =IF(ISBLANK('M&V (ORÇ)'!C174)," ",'M&V (ORÇ)'!C174) ->  | I180: =IF(ISBLANK('M&V (ORÇ)'!I174)," ",'M&V (ORÇ)'!I174) ->  | J180: =IF(ISBLANK('M&V (ORÇ)'!J174)," ",'M&V (ORÇ)'!J174) ->  | K180: ='M&V (ORÇ)'!K174 -> 0 | L180: ='M&V (ORÇ)'!L174 -> 0 | M180: 0 | N180: 0
B181: 16 | C181: =IF(ISBLANK('M&V (ORÇ)'!C175)," ",'M&V (ORÇ)'!C175) ->  | I181: =IF(ISBLANK('M&V (ORÇ)'!I175)," ",'M&V (ORÇ)'!I175) ->  | J181: =IF(ISBLANK('M&V (ORÇ)'!J175)," ",'M&V (ORÇ)'!J175) ->  | K181: ='M&V (ORÇ)'!K175 -> 0 | L181: ='M&V (ORÇ)'!L175 -> 0 | M181: 0 | N181: 0
B182: 17 | C182: =IF(ISBLANK('M&V (ORÇ)'!C176)," ",'M&V (ORÇ)'!C176) ->  | I182: =IF(ISBLANK('M&V (ORÇ)'!I176)," ",'M&V (ORÇ)'!I176) ->  | J182: =IF(ISBLANK('M&V (ORÇ)'!J176)," ",'M&V (ORÇ)'!J176) ->  | K182: ='M&V (ORÇ)'!K176 -> 0 | L182: ='M&V (ORÇ)'!L176 -> 0 | M182: 0 | N182: 0
B183: 18 | C183: =IF(ISBLANK('M&V (ORÇ)'!C177)," ",'M&V (ORÇ)'!C177) ->  | I183: =IF(ISBLANK('M&V (ORÇ)'!I177)," ",'M&V (ORÇ)'!I177) ->  | J183: =IF(ISBLANK('M&V (ORÇ)'!J177)," ",'M&V (ORÇ)'!J177) ->  | K183: ='M&V (ORÇ)'!K177 -> 0 | L183: ='M&V (ORÇ)'!L177 -> 0 | M183: 0 | N183: 0
B184: 19 | C184: =IF(ISBLANK('M&V (ORÇ)'!C178)," ",'M&V (ORÇ)'!C178) ->  | I184: =IF(ISBLANK('M&V (ORÇ)'!I178)," ",'M&V (ORÇ)'!I178) ->  | J184: =IF(ISBLANK('M&V (ORÇ)'!J178)," ",'M&V (ORÇ)'!J178) ->  | K184: ='M&V (ORÇ)'!K178 -> 0 | L184: ='M&V (ORÇ)'!L178 -> 0 | M184: 0 | N184: 0
B185: 20 | C185: =IF(ISBLANK('M&V (ORÇ)'!C179)," ",'M&V (ORÇ)'!C179) ->  | I185: =IF(ISBLANK('M&V (ORÇ)'!I179)," ",'M&V (ORÇ)'!I179) ->  | J185: =IF(ISBLANK('M&V (ORÇ)'!J179)," ",'M&V (ORÇ)'!J179) ->  | K185: ='M&V (ORÇ)'!K179 -> 0 | L185: ='M&V (ORÇ)'!L179 -> 0 | M185: 0 | N185: 0
B186: 21 | C186: =IF(ISBLANK('M&V (ORÇ)'!C180)," ",'M&V (ORÇ)'!C180) ->  | I186: =IF(ISBLANK('M&V (ORÇ)'!I180)," ",'M&V (ORÇ)'!I180) ->  | J186: =IF(ISBLANK('M&V (ORÇ)'!J180)," ",'M&V (ORÇ)'!J180) ->  | K186: ='M&V (ORÇ)'!K180 -> 0 | L186: ='M&V (ORÇ)'!L180 -> 0 | M186: 0 | N186: 0
B187: 22 | C187: =IF(ISBLANK('M&V (ORÇ)'!C181)," ",'M&V (ORÇ)'!C181) ->  | I187: =IF(ISBLANK('M&V (ORÇ)'!I181)," ",'M&V (ORÇ)'!I181) ->  | J187: =IF(ISBLANK('M&V (ORÇ)'!J181)," ",'M&V (ORÇ)'!J181) ->  | K187: ='M&V (ORÇ)'!K181 -> 0 | L187: ='M&V (ORÇ)'!L181 -> 0 | M187: 0 | N187: 0
B188: 23 | C188: =IF(ISBLANK('M&V (ORÇ)'!C182)," ",'M&V (ORÇ)'!C182) ->  | I188: =IF(ISBLANK('M&V (ORÇ)'!I182)," ",'M&V (ORÇ)'!I182) ->  | J188: =IF(ISBLANK('M&V (ORÇ)'!J182)," ",'M&V (ORÇ)'!J182) ->  | K188: ='M&V (ORÇ)'!K182 -> 0 | L188: ='M&V (ORÇ)'!L182 -> 0 | M188: 0 | N188: 0
B189: 24 | C189: =IF(ISBLANK('M&V (ORÇ)'!C183)," ",'M&V (ORÇ)'!C183) ->  | I189: =IF(ISBLANK('M&V (ORÇ)'!I183)," ",'M&V (ORÇ)'!I183) ->  | J189: =IF(ISBLANK('M&V (ORÇ)'!J183)," ",'M&V (ORÇ)'!J183) ->  | K189: ='M&V (ORÇ)'!K183 -> 0 | L189: ='M&V (ORÇ)'!L183 -> 0 | M189: 0 | N189: 0
B190: 25 | C190: =IF(ISBLANK('M&V (ORÇ)'!C184)," ",'M&V (ORÇ)'!C184) ->  | I190: =IF(ISBLANK('M&V (ORÇ)'!I184)," ",'M&V (ORÇ)'!I184) ->  | J190: =IF(ISBLANK('M&V (ORÇ)'!J184)," ",'M&V (ORÇ)'!J184) ->  | K190: ='M&V (ORÇ)'!K184 -> 0 | L190: ='M&V (ORÇ)'!L184 -> 0 | M190: 0 | N190: 0
B191: 26 | C191: =IF(ISBLANK('M&V (ORÇ)'!C185)," ",'M&V (ORÇ)'!C185) ->  | I191: =IF(ISBLANK('M&V (ORÇ)'!I185)," ",'M&V (ORÇ)'!I185) ->  | J191: =IF(ISBLANK('M&V (ORÇ)'!J185)," ",'M&V (ORÇ)'!J185) ->  | K191: ='M&V (ORÇ)'!K185 -> 0 | L191: ='M&V (ORÇ)'!L185 -> 0 | M191: 0 | N191: 0
B192: 27 | C192: =IF(ISBLANK('M&V (ORÇ)'!C186)," ",'M&V (ORÇ)'!C186) ->  | I192: =IF(ISBLANK('M&V (ORÇ)'!I186)," ",'M&V (ORÇ)'!I186) ->  | J192: =IF(ISBLANK('M&V (ORÇ)'!J186)," ",'M&V (ORÇ)'!J186) ->  | K192: ='M&V (ORÇ)'!K186 -> 0 | L192: ='M&V (ORÇ)'!L186 -> 0 | M192: 0 | N192: 0
B193: 28 | C193: =IF(ISBLANK('M&V (ORÇ)'!C187)," ",'M&V (ORÇ)'!C187) ->  | I193: =IF(ISBLANK('M&V (ORÇ)'!I187)," ",'M&V (ORÇ)'!I187) ->  | J193: =IF(ISBLANK('M&V (ORÇ)'!J187)," ",'M&V (ORÇ)'!J187) ->  | K193: ='M&V (ORÇ)'!K187 -> 0 | L193: ='M&V (ORÇ)'!L187 -> 0 | M193: 0 | N193: 0
B194: 29 | C194: =IF(ISBLANK('M&V (ORÇ)'!C188)," ",'M&V (ORÇ)'!C188) ->  | I194: =IF(ISBLANK('M&V (ORÇ)'!I188)," ",'M&V (ORÇ)'!I188) ->  | J194: =IF(ISBLANK('M&V (ORÇ)'!J188)," ",'M&V (ORÇ)'!J188) ->  | K194: ='M&V (ORÇ)'!K188 -> 0 | L194: ='M&V (ORÇ)'!L188 -> 0 | M194: 0 | N194: 0
B195: 30 | C195: =IF(ISBLANK('M&V (ORÇ)'!C189)," ",'M&V (ORÇ)'!C189) ->  | I195: =IF(ISBLANK('M&V (ORÇ)'!I189)," ",'M&V (ORÇ)'!I189) ->  | J195: =IF(ISBLANK('M&V (ORÇ)'!J189)," ",'M&V (ORÇ)'!J189) ->  | K195: ='M&V (ORÇ)'!K189 -> 0 | L195: ='M&V (ORÇ)'!L189 -> 0 | M195: 0 | N195: 0
B196: 31 | C196: =IF(ISBLANK('M&V (ORÇ)'!C190)," ",'M&V (ORÇ)'!C190) ->  | I196: =IF(ISBLANK('M&V (ORÇ)'!I190)," ",'M&V (ORÇ)'!I190) ->  | J196: =IF(ISBLANK('M&V (ORÇ)'!J190)," ",'M&V (ORÇ)'!J190) ->  | K196: ='M&V (ORÇ)'!K190 -> 0 | L196: ='M&V (ORÇ)'!L190 -> 0 | M196: 0 | N196: 0
B197: 32 | C197: =IF(ISBLANK('M&V (ORÇ)'!C191)," ",'M&V (ORÇ)'!C191) ->  | I197: =IF(ISBLANK('M&V (ORÇ)'!I191)," ",'M&V (ORÇ)'!I191) ->  | J197: =IF(ISBLANK('M&V (ORÇ)'!J191)," ",'M&V (ORÇ)'!J191) ->  | K197: ='M&V (ORÇ)'!K191 -> 0 | L197: ='M&V (ORÇ)'!L191 -> 0 | M197: 0 | N197: 0
B198: 33 | C198: =IF(ISBLANK('M&V (ORÇ)'!C192)," ",'M&V (ORÇ)'!C192) ->  | I198: =IF(ISBLANK('M&V (ORÇ)'!I192)," ",'M&V (ORÇ)'!I192) ->  | J198: =IF(ISBLANK('M&V (ORÇ)'!J192)," ",'M&V (ORÇ)'!J192) ->  | K198: ='M&V (ORÇ)'!K192 -> 0 | L198: ='M&V (ORÇ)'!L192 -> 0 | M198: 0 | N198: =M198-O198-P198 -> 0
B199: 34 | C199: =IF(ISBLANK('M&V (ORÇ)'!C193)," ",'M&V (ORÇ)'!C193) ->  | I199: =IF(ISBLANK('M&V (ORÇ)'!I193)," ",'M&V (ORÇ)'!I193) ->  | J199: =IF(ISBLANK('M&V (ORÇ)'!J193)," ",'M&V (ORÇ)'!J193) ->  | K199: ='M&V (ORÇ)'!K193 -> 0 | L199: ='M&V (ORÇ)'!L193 -> 0 | M199: 0 | N199: 0
B200: 35 | C200: =IF(ISBLANK('M&V (ORÇ)'!C194)," ",'M&V (ORÇ)'!C194) ->  | I200: =IF(ISBLANK('M&V (ORÇ)'!I194)," ",'M&V (ORÇ)'!I194) ->  | J200: =IF(ISBLANK('M&V (ORÇ)'!J194)," ",'M&V (ORÇ)'!J194) ->  | K200: ='M&V (ORÇ)'!K194 -> 0 | L200: ='M&V (ORÇ)'!L194 -> 0 | M200: 0 | N200: 0
B201: 36 | C201: =IF(ISBLANK('M&V (ORÇ)'!C195)," ",'M&V (ORÇ)'!C195) ->  | I201: =IF(ISBLANK('M&V (ORÇ)'!I195)," ",'M&V (ORÇ)'!I195) ->  | J201: =IF(ISBLANK('M&V (ORÇ)'!J195)," ",'M&V (ORÇ)'!J195) ->  | K201: ='M&V (ORÇ)'!K195 -> 0 | L201: ='M&V (ORÇ)'!L195 -> 0 | M201: 0 | N201: 0
... 266 more rows

Sheet Treinamento (ORÇ)
B2: TREINAMENTO - ORÇAMENTOS
B3: TREINAMENTO E CAPACITAÇÃO | K3: Fornecedor 1 | L3: Fornecedor 2 | M3: Fornecedor 3 | N3: Fornecedor 4 | O3: Fornecedor 5 | P3: Fornecedor 6
B4: Descrição do item | I4: Quantidade | J4: Menor Preço unitário | K4: Preço unitário | L4: Preço unitário | M4: Preço unitário | N4: Preço unitário | O4: Preço unitário | P4: Preço unitário
B5: 1 | J5: =IFERROR(SMALL(K5:P5,1),0) -> 0
B6: 2 | J6: =IFERROR(SMALL(K6:P6,1),0) -> 0
B7: 3 | J7: 0
B8: 4 | J8: 0
B9: 5 | J9: 0
B10: 6 | J10: 0
B11: 7 | J11: 0
B12: 8 | J12: 0
B13: 9 | J13: 0
B14: 10 | J14: 0
C15: DADOS DO FORNECEDOR | K15: Fornecedor 1 | L15: Fornecedor 2 | M15: Fornecedor 3 | N15: Fornecedor 4 | O15: Fornecedor 5 | P15: Fornecedor 6
B16: Nome do fornecedor
B17: CNPJ do fornecedor
B18: Data da proposta
B19: Validade da proposta
B20: Pessoa de contato
B21: Telefone
B22: e-mail
B23: Critério de julgamento | K23: Menor Valor Unitário | N23: Menor Valor Unitário
B24: GESTÃO ENERGÉTICA | K24: Fornecedor 1 | L24: Fornecedor 2 | M24: Fornecedor 3 | N24: Fornecedor 4 | O24: Fornecedor 5 | P24: Fornecedor 6
B25: Descrição do item | I25: Quantidade | J25: Menor Preço unitário | K25: Preço unitário
B26: 1 | J26: =IFERROR(SMALL(K26:P26,1),0) -> 0
B27: 2 | J27: =IFERROR(SMALL(K27:P27,1),0) -> 0
B28: 3 | J28: 0
B29: 4 | J29: 0
B30: 5 | J30: 0
B31: 6 | J31: 0
B32: 7 | J32: 0
B33: 8 | J33: 0
B34: 9 | J34: 0
B35: 10 | J35: 0
C36: DADOS DO FORNECEDOR | K36: Fornecedor 1 | L36: Fornecedor 2 | M36: Fornecedor 3 | N36: Fornecedor 4 | O36: Fornecedor 5 | P36: Fornecedor 6
B37: Nome do fornecedor
B38: CNPJ do fornecedor
B39: Data da proposta
B40: Validade da proposta
B41: Pessoa de contato
B42: Telefone
B43: e-mail
B44: Critério de julgamento | K44: Menor Valor Unitário | N44: Menor Valor Unitário

Sheet Treinamento
B2: TREINAMENTO E CAPACITAÇÃO - ORIGEM DOS RECURSOS
B3: TRENAMENTO | L3: ORIGEM DOS RECURSOS | Q3: Descrição | V3: Limites | W3: Calculado
B4: Descrição do item | I4: Quantidade | J4: Preço unitário | K4: Total | L4: PEE | M4: Terceiros | N4: Consumidor | Q4: Treinamento e Capacitação / Custo Total do Projeto | V4: ='Custo Contábil'!E28 -> 0.02 | W4: ='Custo Contábil'!F28 -> 0
B5: 1 | C5: =IF(ISBLANK('Treinamento (ORÇ)'!C5:H5)," ",'Treinamento (ORÇ)'!C5:H5) ->  | I5: ='Treinamento (ORÇ)'!I5 -> 0 | J5: ='Treinamento (ORÇ)'!J5 -> 0 | K5: =I5*J5 -> 0 | L5: =K5-M5-N5 -> 0
B6: 2 | C6: =IF(ISBLANK('Treinamento (ORÇ)'!C6:H6)," ",'Treinamento (ORÇ)'!C6:H6) ->  | I6: ='Treinamento (ORÇ)'!I6 -> 0 | J6: ='Treinamento (ORÇ)'!J6 -> 0 | K6: 0 | L6: 0
B7: 3 | C7: =IF(ISBLANK('Treinamento (ORÇ)'!C7:H7)," ",'Treinamento (ORÇ)'!C7:H7) ->  | I7: ='Treinamento (ORÇ)'!I7 -> 0 | J7: ='Treinamento (ORÇ)'!J7 -> 0 | K7: 0 | L7: 0
B8: 4 | C8: =IF(ISBLANK('Treinamento (ORÇ)'!C8:H8)," ",'Treinamento (ORÇ)'!C8:H8) ->  | I8: ='Treinamento (ORÇ)'!I8 -> 0 | J8: ='Treinamento (ORÇ)'!J8 -> 0 | K8: 0 | L8: 0
B9: 5 | C9: =IF(ISBLANK('Treinamento (ORÇ)'!C9:H9)," ",'Treinamento (ORÇ)'!C9:H9) ->  | I9: ='Treinamento (ORÇ)'!I9 -> 0 | J9: ='Treinamento (ORÇ)'!J9 -> 0 | K9: 0 | L9: 0
B10: 6 | C10: =IF(ISBLANK('Treinamento (ORÇ)'!C10:H10)," ",'Treinamento (ORÇ)'!C10:H10) ->  | I10: ='Treinamento (ORÇ)'!I10 -> 0 | J10: ='Treinamento (ORÇ)'!J10 -> 0 | K10: 0 | L10: 0
B11: 7 | C11: =IF(ISBLANK('Treinamento (ORÇ)'!C11:H11)," ",'Treinamento (ORÇ)'!C11:H11) ->  | I11: ='Treinamento (ORÇ)'!I11 -> 0 | J11: ='Treinamento (ORÇ)'!J11 -> 0 | K11: 0 | L11: 0
B12: 8 | C12: =IF(ISBLANK('Treinamento (ORÇ)'!C12:H12)," ",'Treinamento (ORÇ)'!C12:H12) ->  | I12: ='Treinamento (ORÇ)'!I12 -> 0 | J12: ='Treinamento (ORÇ)'!J12 -> 0 | K12: 0 | L12: 0
B13: 9 | C13: =IF(ISBLANK('Treinamento (ORÇ)'!C13:H13)," ",'Treinamento (ORÇ)'!C13:H13) ->  | I13: ='Treinamento (ORÇ)'!I13 -> 0 | J13: ='Treinamento (ORÇ)'!J13 -> 0 | K13: 0 | L13: 0
B14: 10 | C14: =IF(ISBLANK('Treinamento (ORÇ)'!C14:H14)," ",'Treinamento (ORÇ)'!C14:H14) ->  | I14: ='Treinamento (ORÇ)'!I14 -> 0 | J14: ='Treinamento (ORÇ)'!J14 -> 0 | K14: 0 | L14: 0
B15: SUB-TOTAL - TREINAMENTO | K15: =SUM(K5:K14) -> 0 | L15: =SUM(L5:L14) -> 0 | M15: =SUM(M5:M14) -> 0 | N15: =SUM(N5:N14) -> 0
B16: GESTÃO ENERGÉTICA | L16: ORIGEM DOS RECURSOS
B17: Descrição do item | I17: Quantidade | J17: Preço unitário | K17: Total | L17: PEE | M17: Terceiros | N17: Consumidor
B18: 1 | C18: =IF(ISBLANK('Treinamento (ORÇ)'!C26:H26)," ",'Treinamento (ORÇ)'!C18:H18) ->  | I18: ='Treinamento (ORÇ)'!I26 -> 0 | J18: ='Treinamento (ORÇ)'!J26 -> 0 | K18: =I18*J18 -> 0 | L18: =K18-M18-N18 -> 0
B19: 2 | C19: =IF(ISBLANK('Treinamento (ORÇ)'!C27:H27)," ",'Treinamento (ORÇ)'!C19:H19) ->  | I19: ='Treinamento (ORÇ)'!I27 -> 0 | J19: ='Treinamento (ORÇ)'!J27 -> 0 | K19: 0 | L19: 0
B20: 3 | C20: =IF(ISBLANK('Treinamento (ORÇ)'!C28:H28)," ",'Treinamento (ORÇ)'!C20:H20) ->  | I20: ='Treinamento (ORÇ)'!I28 -> 0 | J20: ='Treinamento (ORÇ)'!J28 -> 0 | K20: 0 | L20: 0
B21: 4 | C21: =IF(ISBLANK('Treinamento (ORÇ)'!C29:H29)," ",'Treinamento (ORÇ)'!C21:H21) ->  | I21: ='Treinamento (ORÇ)'!I29 -> 0 | J21: ='Treinamento (ORÇ)'!J29 -> 0 | K21: 0 | L21: 0
B22: 5 | C22: =IF(ISBLANK('Treinamento (ORÇ)'!C30:H30)," ",'Treinamento (ORÇ)'!C22:H22) ->  | I22: ='Treinamento (ORÇ)'!I30 -> 0 | J22: ='Treinamento (ORÇ)'!J30 -> 0 | K22: 0 | L22: 0
B23: 6 | C23: =IF(ISBLANK('Treinamento (ORÇ)'!C31:H31)," ",'Treinamento (ORÇ)'!C23:H23) ->  | I23: ='Treinamento (ORÇ)'!I31 -> 0 | J23: ='Treinamento (ORÇ)'!J31 -> 0 | K23: 0 | L23: 0
B24: 7 | C24: =IF(ISBLANK('Treinamento (ORÇ)'!C32:H32)," ",'Treinamento (ORÇ)'!C24:H24) ->  | I24: ='Treinamento (ORÇ)'!I32 -> 0 | J24: ='Treinamento (ORÇ)'!J32 -> 0 | K24: 0 | L24: 0
B25: 8 | C25: =IF(ISBLANK('Treinamento (ORÇ)'!C33:H33)," ",'Treinamento (ORÇ)'!C25:H25) ->  | I25: ='Treinamento (ORÇ)'!I33 -> 0 | J25: ='Treinamento (ORÇ)'!J33 -> 0 | K25: 0 | L25: 0
B26: 9 | C26: =IF(ISBLANK('Treinamento (ORÇ)'!C34:H34)," ",'Treinamento (ORÇ)'!C26:H26) ->  | I26: ='Treinamento (ORÇ)'!I34 -> 0 | J26: ='Treinamento (ORÇ)'!J34 -> 0 | K26: 0 | L26: 0
B27: 10 | C27: =IF(ISBLANK('Treinamento (ORÇ)'!C35:H35)," ",'Treinamento (ORÇ)'!C27:H27) ->  | I27: ='Treinamento (ORÇ)'!I35 -> 0 | J27: ='Treinamento (ORÇ)'!J35 -> 0 | K27: 0 | L27: 0
B28: SUB-TOTAL GESTÃO ENERGÉTICA | K28: =SUM(K18:K27) -> 0 | L28: =SUM(L18:L27) -> 0 | M28: =SUM(M18:M27) -> 0 | N28: =SUM(N18:N27) -> 0
B29: TOTAL TREINAMENTO E CAPACITAÇÃO | K29: =SUM(K28,K15) -> 0 | L29: =SUM(L28,L15) -> 0 | M29: =SUM(M28,M15) -> 0 | N29: =SUM(N28,N15) -> 0
B30: DIVISÃO DOS CUSTOS POR USO FINAL | L30: ORIGEM DOS RECURSOS
B31: Uso Final | K31: Total | L31: PEE | M31: Terceiros | N31: Consumidor
C32: Iluminação | K32: =SUM(L32:N32) -> 0 | L32: ='Custo Contábil'!$D$39*L$29 -> 0 | M32: ='Custo Contábil'!$D$39*M$29 -> 0 | N32: ='Custo Contábil'!$D$39*N$29 -> 0
C33: Condicionamento Ambiental | K33: =SUM(L33:N33) -> 0 | L33: ='Custo Contábil'!$E$39*L$29 -> 0 | M33: ='Custo Contábil'!$E$39*M$29 -> 0 | N33: ='Custo Contábil'!$E$39*N$29 -> 0
C34: Motores | K34: 0 | L34: ='Custo Contábil'!$F$39*L$29 -> 0 | M34: ='Custo Contábil'!$F$39*M$29 -> 0 | N34: ='Custo Contábil'!$F$39*N$29 -> 0
C35: Sistemas de Refrigeração | K35: 0 | L35: ='Custo Contábil'!$G$39*L$29 -> 0 | M35: ='Custo Contábil'!$G$39*M$29 -> 0 | N35: ='Custo Contábil'!$G$39*N$29 -> 0
C36: Aquecimento Solar de Água | K36: 0 | L36: ='Custo Contábil'!$H$39*L$29 -> 0 | M36: ='Custo Contábil'!$H$39*M$29 -> 0 | N36: ='Custo Contábil'!$H$39*N$29 -> 0
C37: Equipamentos Hospitalares | K37: 0 | L37: ='Custo Contábil'!$I$39*L$29 -> 0 | M37: ='Custo Contábil'!$I$39*M$29 -> 0 | N37: ='Custo Contábil'!$I$39*N$29 -> 0
C38: Outros | K38: 0 | L38: ='Custo Contábil'!$J$39*L$29 -> 0 | M38: ='Custo Contábil'!$J$39*M$29 -> 0 | N38: ='Custo Contábil'!$J$39*N$29 -> 0
C39: Fonte Incentivada | K39: 0 | L39: ='Custo Contábil'!$K$39*L$29 -> 0 | M39: ='Custo Contábil'!$K$39*M$29 -> 0 | N39: ='Custo Contábil'!$K$39*N$29 -> 0
B40: TREINAMENTO E CAPACITAÇÃO | K40: =K15 -> 0 | L40: =L15 -> 0 | M40: =M15 -> 0 | N40: =N15 -> 0

Sheet ContrDesemp (hidden)
B2: ECONOMIA MENSAL PARA O CONSUMIDOR (SIMULAÇÃO)
D3: Iluminação | E3: Cond. Ambiental | F3: Motores | G3: Refrigeração | H3: Aq. solar de água | I3: Eq. Hospitalares | J3: Outros | K3: Fonte Incentivada | M3: Tarifa vigente
B4: Energia | C4: Horário de ponta: | D4: =IlumBenef!G62 -> 0 | E4: =CondAmbBenef!G64 -> 0 | F4: =MotorBenef!G64 -> 0 | G4: =RefrigBenef!G60 -> 0 | H4: =SolarBenef!G42 -> 0 | I4: =HospBenef!G64 -> 0 | J4: =OutrosBenef!G58 -> 0 | K4: =FIBenef!G42 -> 0 | L4: MWh/mês | M4: =Apoio!AN7+Apoio!AR7 -> 0 | O4: R$/MWh
C5: Horário fora de ponta: | D5: =IlumBenef!G63 -> 0 | E5: =CondAmbBenef!G65 -> 0 | F5: =MotorBenef!G65 -> 0 | G5: =RefrigBenef!G61 -> 0 | H5: =SolarBenef!G43 -> 0 | I5: =HospBenef!G65 -> 0 | J5: =OutrosBenef!G59 -> 0 | K5: =FIBenef!G43 -> 0 | L5: MWh/mês | M5: =Apoio!AO7+Apoio!AS7 -> 0 | O5: R$/MWh
C6: Total: | D6: =IlumBenef!G61 -> 0 | E6: =CondAmbBenef!G63 -> 0 | F6: =MotorBenef!G63 -> 0 | G6: =RefrigBenef!G59 -> 0 | H6: =SolarBenef!G41 -> 0 | I6: =HospBenef!G63 -> 0 | J6: =OutrosBenef!G57 -> 0 | K6: =FIBenef!G41 -> 0 | L6: MWh/mês
B7: Demanda | C7: Horário de ponta: | D7: =IlumBenef!G65 -> 0 | E7: =CondAmbBenef!G67 -> 0 | F7: =MotorBenef!G67 -> 0 | G7: =RefrigBenef!G63 -> 0 | H7: =SolarBenef!G45 -> 0 | I7: =HospBenef!G67 -> 0 | J7: =OutrosBenef!G61 -> 0 | K7: =FIBenef!G45 -> 0 | L7: kW/mês | M7: =Apoio!AP7 -> 0 | O7: R$/kW
C8: Horário fora de ponta: | D8: =IlumBenef!G66 -> 0 | E8: =CondAmbBenef!G68 -> 0 | F8: =MotorBenef!G68 -> 0 | G8: =RefrigBenef!G64 -> 0 | H8: =SolarBenef!G46 -> 0 | I8: =HospBenef!G68 -> 0 | J8: =OutrosBenef!G62 -> 0 | K8: =FIBenef!G46 -> 0 | L8: kW/mês | M8: =Apoio!AQ7 -> 0 | O8: R$/kW
C9: Total: | D9: =IlumBenef!G64 -> 0 | E9: =CondAmbBenef!G66 -> 0 | F9: =MotorBenef!G66 -> 0 | G9: =RefrigBenef!G62 -> 0 | H9: =SolarBenef!G44 -> 0 | I9: =HospBenef!G66 -> 0 | J9: =OutrosBenef!G60 -> 0 | K9: =FIBenef!G44 -> 0 | M9: Total do Projeto
C11: Economia mensal: | D11: =(D4*$M$4)+(D5*$M$5)+(D7*$M$7)+(D8*$M$8) -> 0 | E11: 0 | F11: 0 | G11: 0 | H11: 0 | I11: 0 | J11: 0 | K11: 0 | M11: =SUM(D11:K11) -> 0
C12: Vida útil média: | D12: =IlumCusto!V112 -> 0 | E12: =CondAmbCusto!V52 -> 0 | F12: =MotorCusto!V112 -> 0 | G12: =RefrigCusto!V52 -> 0 | H12: =SolarCusto!V52 -> 0 | I12: =HospCusto!V52 -> 0 | J12: =OutrosCusto!V52 -> 0 | K12: =FICusto!V52 -> 0 | L12: anos | M12: =IFERROR(SUM(D13:K13)/SUM(D6:K6),0) -> 0 | O12: anos
D13: =D12*D6 -> 0 | E13: 0 | F13: 0 | G13: 0 | H13: 0 | I13: 0 | J13: 0 | K13: 0
B14: PREMISSAS PARA O CÁLCULO DAS PARCELAS DO CONTRATO DE DESEMPENHO
B16: Retorno do investimento: | D16: =Apoio!J38 -> 0 | F16: Vida útil média dos equipamentos: | H16: =IFERROR(SUM(D13:K13)/SUM(D6:K6),0) -> 0 | I16: anos | J16: Correção Monetária: | L16: 0.06 | M16: ao ano (IGPM)
C17: Valor financiado: | D17: ='Custo Contábil'!F20-SUM('Custo Contábil'!F6) -> 3125 | F17: Mínimo de parcelas para quitação: | H17: =IFERROR(ROUNDUP(D18/H19,0),0) -> 0 | I17: meses | K17: Juros: | L17: 0 | M17: ao mês
C18: Valor a recuperar: | D18: =ContrDesemp!D17*D16 -> 0 | F18: Máximo de parcelas para quitação: | H18: =ROUNDUP($H$16*12,0) -> 0 | I18: meses
C19: Valor da Parcela Inicial: | D19: =IFERROR(D18/H17,0) -> 0 | F19: Economia mensal: | H19: =SUM($D$11:$K$11) -> 0

Sheet IlumCusto (ORÇ)
B2: CUSTOS - ILUMINAÇÃO (ORÇAMENTOS)
B3: TIPOS DE CUSTOS | K3: FORNECEDOR
K4: Fornecedor 1 | L4: Fornecedor 2 | M4: Fornecedor 3 | N4: Fornecedor 4 | O4: Fornecedor 5 | P4: Fornecedor 6
B5: CUSTOS DIRETOS
B6: MATERIAIS E EQUIPAMENTOS | K6: Fornecedor 1 | L6: Fornecedor 2 | M6: Fornecedor 3 | N6: Fornecedor 4 | O6: Fornecedor 5 | P6: Fornecedor 6
B7: Materiais e equipamentos | H7: Vida útil | I7: Quantidade | J7: Menor Preço Unitário | K7: Preço Unitário | L7: Preço Unitário | M7: Preço Unitário | N7: Preço Unitário | O7: Preço Unitário | P7: Preço Unitário
B8: 1 | J8: =IFERROR(SMALL(K8:P8,1),0) -> 0
B9: 2 | J9: =IFERROR(SMALL(K9:P9,1),0) -> 0
B10: 3 | J10: 0
B11: 4 | J11: 0
B12: 5 | J12: 0
B13: 6 | J13: 0
B14: 7 | J14: 0
B15: 8 | J15: 0
B16: 9 | J16: 0
B17: 10 | J17: 0
B18: 11 | J18: 0
B19: 12 | J19: 0
B20: 13 | J20: 0
B21: 14 | J21: 0
B22: 15 | J22: 0
B23: 16 | J23: 0
B24: 17 | J24: 0
B25: 18 | J25: 0
B26: 19 | J26: 0
B27: 20 | J27: 0
B28: 21 | J28: 0
B29: 22 | J29: 0
B30: 23 | J30: 0
B31: 24 | J31: 0
B32: 25 | J32: 0
B33: 26 | J33: 0
B34: 27 | J34: 0
B35: 28 | J35: 0
B36: 29 | J36: 0
B37: 30 | J37: 0
B38: 31 | J38: 0
B39: 32 | J39: 0
B40: 33 | J40: 0
B41: 34 | J41: 0
B42: 35 | J42: 0
B43: 36 | J43: 0
B44: 37 | J44: 0
B45: 38 | J45: 0
B46: 39 | J46: 0
B47: 40 | J47: 0
B48: 41 | J48: 0
B49: 42 | J49: 0
B50: 43 | J50: 0
B51: 44 | J51: 0
B52: 45 | J52: 0
B53: 46 | J53: 0
B54: 47 | J54: 0
B55: 48 | J55: 0
B56: 49 | J56: 0
B57: 50 | J57: 0
B58: 51 | J58: 0
B59: 52 | J59: 0
B60: 53 | J60: 0
B61: 54 | J61: 0
B62: 55 | J62: 0
B63: 56 | J63: 0
B64: 57 | J64: 0
B65: 58 | J65: 0
B66: 59 | J66: 0
B67: 60 | J67: 0
B68: 61 | J68: 0
B69: 62 | J69: 0
B70: 63 | J70: 0
B71: 64 | J71: 0
B72: 65 | J72: 0
B73: 66 | J73: =IFERROR(SMALL(K73:P73,1),0) -> 0
B74: 67 | J74: 0
B75: 68 | J75: 0
B76: 69 | J76: 0
B77: 70 | J77: 0
B78: 71 | J78: 0
B79: 72 | J79: 0
B80: 73 | J80: 0
B81: 74 | J81: 0
B82: 75 | J82: 0
B83: 76 | J83: 0
B84: 77 | J84: 0
B85: 78 | J85: 0
B86: 79 | J86: 0
B87: 80 | J87: 0
B88: 81 | J88: 0
B89: 82 | J89: 0
B90: 83 | J90: 0
B91: 84 | J91: 0
B92: 85 | J92: 0
B93: 86 | J93: 0
B94: 87 | J94: 0
B95: 88 | J95: 0
B96: 89 | J96: 0
B97: 90 | J97: 0
B98: 91 | J98: 0
B99: 92 | J99: 0
B100: 93 | J100: 0
B101: 94 | J101: 0
B102: 95 | J102: 0
B103: 96 | J103: 0
B104: 97 | J104: 0
B105: 98 | J105: 0
B106: 99 | J106: 0
B107: 100 | J107: 0
C108: Acessórios | H108: 20 | J108: 0
C109: DADOS DO FORNECEDOR | K109: Fornecedor 1 | L109: Fornecedor 2 | M109: Fornecedor 3 | N109: Fornecedor 4 | O109: Fornecedor 5 | P109: Fornecedor 6
B110: Nome do fornecedor | L110: 1
B111: CNPJ do fornecedor
B112: Data da proposta
B113: Validade da proposta
B114: Pessoa de contato
B115: Telefone
B116: e-mail
B117: Critério de julgamento | K117: Menor Valor Unitário | N117: Menor Valor Unitário
B118: MÃO DE OBRA | K118: Fornecedor 1 | L118: Fornecedor 2 | M118: Fornecedor 3 | N118: Fornecedor 4 | O118: Fornecedor 5 | P118: Fornecedor 6
C119: Mão de obra de terceiros | H119: Quantidade | I119: Horas | J119: Menor Preço Unitário (Valor da hora) | K119: Preço Unitário (Valor da hora) | L119: Preço Unitário (Valor da hora) | M119: Preço Unitário (Valor da hora) | N119: Preço Unitário (Valor da hora) | O119: Preço Unitário (Valor da hora) | P119: Preço Unitário (Valor da hora)
B120: 1 | J120: =IFERROR(SMALL(K120:P120,1),0) -> 0
B121: 2 | J121: =IFERROR(SMALL(K121:P121,1),0) -> 0
B122: 3 | J122: =IFERROR(SMALL(K122:P122,1),0) -> 0
B123: 4 | J123: =IFERROR(SMALL(K123:P123,1),0) -> 0
B124: 5 | J124: =IFERROR(SMALL(K124:P124,1),0) -> 0
C125: DADOS DO FORNECEDOR | K125: Fornecedor 1 | L125: Fornecedor 2 | M125: Fornecedor 3 | N125: Fornecedor 4 | O125: Fornecedor 5 | P125: Fornecedor 6
B126: Nome do fornecedor
B127: CNPJ do fornecedor
B128: Data da proposta
B129: Validade da proposta
B130: Pessoa de contato
B131: Telefone
B132: e-mail | N132: 1
B133: Critério de julgamento | K133: Menor Valor Unitário | N133: Menor Valor Unitário
B134: TRANSPORTE E OUTROS CUSTOS DIRETOS | K134: Fornecedor 1 | L134: Fornecedor 2 | M134: Fornecedor 3 | N134: Fornecedor 4 | O134: Fornecedor 5 | P134: Fornecedor 6
C135: Outros custos diretos | I135: Quantidade | J135: Menor Preço Unitário | K135: Preço Unitário | L135: Preço Unitário | M135: Preço Unitário | N135: Preço Unitário | O135: Preço Unitário | P135: Preço Unitário
B136: 1 | J136: =IFERROR(SMALL(K136:P136,1),0) -> 0
B137: 2 | J137: =IFERROR(SMALL(K137:P137,1),0) -> 0
B138: 3 | J138: =IFERROR(SMALL(K138:P138,1),0) -> 0
C139: DADOS DO FORNECEDOR | K139: Fornecedor 1 | L139: Fornecedor 2 | M139: Fornecedor 3 | N139: Fornecedor 4 | O139: Fornecedor 5 | P139: Fornecedor 6
B140: Nome do fornecedor
B141: CNPJ do fornecedor
B142: Data da proposta
B143: Validade da proposta
B144: Pessoa de contato
B145: Telefone
B146: e-mail
B147: Critério de julgamento | K147: Menor Valor Unitário | N147: Menor Valor Unitário
B148: CUSTOS INDIRETOS | K148: Fornecedor 1 | L148: Fornecedor 2 | M148: Fornecedor 3 | N148: Fornecedor 4 | O148: Fornecedor 5 | P148: Fornecedor 6
B149: Outros custos indiretos | I149: Quantidade | J149: Menor Preço Unitário | K149: Preço Unitário | L149: Preço Unitário | M149: Preço Unitário | N149: Preço Unitário | O149: Preço Unitário | P149: Preço Unitário
B150: 1 | J150: =IFERROR(SMALL(K150:P150,1),0) -> 0
B151: 2 | J151: =IFERROR(SMALL(K151:P151,1),0) -> 0
B152: 3 | J152: =IFERROR(SMALL(K152:P152,1),0) -> 0
C153: DADOS DO FORNECEDOR | K153: Fornecedor 1 | L153: Fornecedor 2 | M153: Fornecedor 3 | N153: Fornecedor 4 | O153: Fornecedor 5 | P153: Fornecedor 6
B154: Nome do fornecedor
B155: CNPJ do fornecedor
B156: Data da proposta
B157: Validade da proposta
B158: Pessoa de contato
B159: Telefone
B160: e-mail
B161: Critério de julgamento | K161: Menor Valor Unitário | N161: Menor Valor Unitário

Sheet IlumCusto
B2: CUSTOS - ILUMINAÇÃO (ORIGEM DOS RECURSOS) | P2: =B2 -> CUSTOS - ILUMINAÇÃO (ORIGEM DOS RECURSOS)
B3: TIPOS DE CUSTOS | L3: ORIGEM DOS RECURSOS | P3: CUSTOS ANUALIZADOS
L4: PEE | M4: Terceiros | N4: Consumidor
B5: CUSTOS DIRETOS
B6: MATERIAIS E EQUIPAMENTOS | P6: MATERIAIS E EQUIPAMENTOS
B7: Materiais e equipamentos | H7: Vida útil | I7: Quantidade | J7: Preço unitário | K7: Custo total | L7: PEE | M7: Terceiros | N7: Consumidor | P7: =B7 -> Materiais e equipamentos | V7: Vida útil | W7: FRC | X7: CA
B8: 1 | C8: =IF(ISBLANK('IlumCusto (ORÇ)'!C8)," ",'IlumCusto (ORÇ)'!C8) ->  | H8: ='IlumCusto (ORÇ)'!H8 -> 0 | I8: ='IlumCusto (ORÇ)'!I8 -> 0 | J8: ='IlumCusto (ORÇ)'!J8 -> 0 | K8: =I8*J8 -> 0 | L8: =K8-M8-N8 -> 0 | P8: =B8 -> 1 | Q8: =IF(OR(C8=0,C8=""),"",C8) ->  | V8: =IF(H8="",0,H8) -> 0 | W8: =IF(OR(V8="",V8=0),0,(Desc*((1+Desc)^V8))/(((1+Desc)^V8)-1)) -> 0 | X8: =IF(AND(K8>0,'Custo Contábil'!$D$7>0),ROUND(K8*('Custo Contábil'!$D$20/'Custo Contábil'!$D$7)*W8,2),0) -> 0 | Y8: =V8*X8 -> 0
B9: 2 | C9: =IF(ISBLANK('IlumCusto (ORÇ)'!C9)," ",'IlumCusto (ORÇ)'!C9) ->  | H9: ='IlumCusto (ORÇ)'!H9 -> 0 | I9: ='IlumCusto (ORÇ)'!I9 -> 0 | J9: ='IlumCusto (ORÇ)'!J9 -> 0 | K9: =I9*J9 -> 0 | L9: =K9-M9-N9 -> 0 | P9: =B9 -> 2 | Q9: =IF(OR(C9=0,C9=""),"",C9) ->  | V9: =IF(H9="",0,H9) -> 0 | W9: =IF(OR(V9="",V9=0),0,(Desc*((1+Desc)^V9))/(((1+Desc)^V9)-1)) -> 0 | X9: =IF(AND(K9>0,'Custo Contábil'!$D$7>0),ROUND(K9*('Custo Contábil'!$D$20/'Custo Contábil'!$D$7)*W9,2),0) -> 0 | Y9: =V9*X9 -> 0
B10: 3 | C10: =IF(ISBLANK('IlumCusto (ORÇ)'!C10)," ",'IlumCusto (ORÇ)'!C10) ->  | H10: ='IlumCusto (ORÇ)'!H10 -> 0 | I10: ='IlumCusto (ORÇ)'!I10 -> 0 | J10: ='IlumCusto (ORÇ)'!J10 -> 0 | K10: 0 | L10: 0 | P10: 3 | V10: 0 | W10: 0 | X10: =IF(AND(K10>0,'Custo Contábil'!$D$7>0),ROUND(K10*('Custo Contábil'!$D$20/'Custo Contábil'!$D$7)*W10,2),0) -> 0 | Y10: 0
B11: 4 | C11: =IF(ISBLANK('IlumCusto (ORÇ)'!C11)," ",'IlumCusto (ORÇ)'!C11) ->  | H11: ='IlumCusto (ORÇ)'!H11 -> 0 | I11: ='IlumCusto (ORÇ)'!I11 -> 0 | J11: ='IlumCusto (ORÇ)'!J11 -> 0 | K11: 0 | L11: 0 | P11: 4 | V11: 0 | W11: 0 | X11: =IF(AND(K11>0,'Custo Contábil'!$D$7>0),ROUND(K11*('Custo Contábil'!$D$20/'Custo Contábil'!$D$7)*W11,2),0) -> 0 | Y11: 0
B12: 5 | C12: =IF(ISBLANK('IlumCusto (ORÇ)'!C12)," ",'IlumCusto (ORÇ)'!C12) ->  | H12: ='IlumCusto (ORÇ)'!H12 -> 0 | I12: ='IlumCusto (ORÇ)'!I12 -> 0 | J12: ='IlumCusto (ORÇ)'!J12 -> 0 | K12: 0 | L12: 0 | P12: 5 | V12: 0 | W12: 0 | X12: =IF(AND(K12>0,'Custo Contábil'!$D$7>0),ROUND(K12*('Custo Contábil'!$D$20/'Custo Contábil'!$D$7)*W12,2),0) -> 0 | Y12: 0
B13: 6 | C13: =IF(ISBLANK('IlumCusto (ORÇ)'!C13)," ",'IlumCusto (ORÇ)'!C13) ->  | H13: ='IlumCusto (ORÇ)'!H13 -> 0 | I13: ='IlumCusto (ORÇ)'!I13 -> 0 | J13: ='IlumCusto (ORÇ)'!J13 -> 0 | K13: 0 | L13: 0 | P13: 6 | V13: 0 | W13: 0 | X13: =IF(AND(K13>0,'Custo Contábil'!$D$7>0),ROUND(K13*('Custo Contábil'!$D$20/'Custo Contábil'!$D$7)*W13,2),0) -> 0 | Y13: 0
B14: 7 | C14: =IF(ISBLANK('IlumCusto (ORÇ)'!C14)," ",'IlumCusto (ORÇ)'!C14) ->  | H14: ='IlumCusto (ORÇ)'!H14 -> 0 | I14: ='IlumCusto (ORÇ)'!I14 -> 0 | J14: ='IlumCusto (ORÇ)'!J14 -> 0 | K14: 0 | L14: 0 | P14: 7 | V14: 0 | W14: 0 | X14: =IF(AND(K14>0,'Custo Contábil'!$D$7>0),ROUND(K14*('Custo Contábil'!$D$20/'Custo Contábil'!$D$7)*W14,2),0) -> 0 | Y14: 0
B15: 8 | C15: =IF(ISBLANK('IlumCusto (ORÇ)'!C15)," ",'IlumCusto (ORÇ)'!C15) ->  | H15: ='IlumCusto (ORÇ)'!H15 -> 0 | I15: ='IlumCusto (ORÇ)'!I15 -> 0 | J15: ='IlumCusto (ORÇ)'!J15 -> 0 | K15: 0 | L15: 0 | P15: 8 | V15: 0 | W15: 0 | X15: =IF(AND(K15>0,'Custo Contábil'!$D$7>0),ROUND(K15*('Custo Contábil'!$D$20/'Custo Contábil'!$D$7)*W15,2),0) -> 0 | Y15: 0
B16: 9 | C16: =IF(ISBLANK('IlumCusto (ORÇ)'!C16)," ",'IlumCusto (ORÇ)'!C16) ->  | H16: ='IlumCusto (ORÇ)'!H16 -> 0 | I16: ='IlumCusto (ORÇ)'!I16 -> 0 | J16: ='IlumCusto (ORÇ)'!J16 -> 0 | K16: 0 | L16: 0 | P16: 9 | V16: 0 | W16: 0 | X16: =IF(AND(K16>0,'Custo Contábil'!$D$7>0),ROUND(K16*('Custo Contábil'!$D$20/'Custo Contábil'!$D$7)*W16,2),0) -> 0 | Y16: 0
B17: 10 | C17: =IF(ISBLANK('IlumCusto (ORÇ)'!C17)," ",'IlumCusto (ORÇ)'!C17) ->  | H17: ='IlumCusto (ORÇ)'!H17 -> 0 | I17: ='IlumCusto (ORÇ)'!I17 -> 0 | J17: ='IlumCusto (ORÇ)'!J17 -> 0 | K17: 0 | L17: 0 | P17: 10 | V17: 0 | W17: 0 | X17: =IF(AND(K17>0,'Custo Contábil'!$D$7>0),ROUND(K17*('Custo Contábil'!$D$20/'Custo Contábil'!$D$7)*W17,2),0) -> 0 | Y17: 0
B18: 11 | C18: =IF(ISBLANK('IlumCusto (ORÇ)'!C18)," ",'IlumCusto (ORÇ)'!C18) ->  | H18: ='IlumCusto (ORÇ)'!H18 -> 0 | I18: ='IlumCusto (ORÇ)'!I18 -> 0 | J18: ='IlumCusto (ORÇ)'!J18 -> 0 | K18: 0 | L18: 0 | P18: 11 | V18: 0 | W18: 0 | X18: =IF(AND(K18>0,'Custo Contábil'!$D$7>0),ROUND(K18*('Custo Contábil'!$D$20/'Custo Contábil'!$D$7)*W18,2),0) -> 0 | Y18: 0
B19: 12 | C19: =IF(ISBLANK('IlumCusto (ORÇ)'!C19)," ",'IlumCusto (ORÇ)'!C19) ->  | H19: ='IlumCusto (ORÇ)'!H19 -> 0 | I19: ='IlumCusto (ORÇ)'!I19 -> 0 | J19: ='IlumCusto (ORÇ)'!J19 -> 0 | K19: 0 | L19: 0 | P19: 12 | V19: 0 | W19: 0 | X19: =IF(AND(K19>0,'Custo Contábil'!$D$7>0),ROUND(K19*('Custo Contábil'!$D$20/'Custo Contábil'!$D$7)*W19,2),0) -> 0 | Y19: 0
B20: 13 | C20: =IF(ISBLANK('IlumCusto (ORÇ)'!C20)," ",'IlumCusto (ORÇ)'!C20) ->  | H20: ='IlumCusto (ORÇ)'!H20 -> 0 | I20: ='IlumCusto (ORÇ)'!I20 -> 0 | J20: ='IlumCusto (ORÇ)'!J20 -> 0 | K20: 0 | L20: 0 | P20: 13 | V20: 0 | W20: 0 | X20: =IF(AND(K20>0,'Custo Contábil'!$D$7>0),ROUND(K20*('Custo Contábil'!$D$20/'Custo Contábil'!$D$7)*W20,2),0) -> 0 | Y20: 0
B21: 14 | C21: =IF(ISBLANK('IlumCusto (ORÇ)'!C21)," ",'IlumCusto (ORÇ)'!C21) ->  | H21: ='IlumCusto (ORÇ)'!H21 -> 0 | I21: ='IlumCusto (ORÇ)'!I21 -> 0 | J21: ='IlumCusto (ORÇ)'!J21 -> 0 | K21: 0 | L21: 0 | P21: 14 | V21: 0 | W21: 0 | X21: =IF(AND(K21>0,'Custo Contábil'!$D$7>0),ROUND(K21*('Custo Contábil'!$D$20/'Custo Contábil'!$D$7)*W21,2),0) -> 0 | Y21: 0
B22: 15 | C22: =IF(ISBLANK('IlumCusto (ORÇ)'!C22)," ",'IlumCusto (ORÇ)'!C22) ->  | H22: ='IlumCusto (ORÇ)'!H22 -> 0 | I22: ='IlumCusto (ORÇ)'!I22 -> 0 | J22: ='IlumCusto (ORÇ)'!J22 -> 0 | K22: 0 | L22: 0 | P22: 15 | V22: 0 | W22: 0 | X22: =IF(AND(K22>0,'Custo Contábil'!$D$7>0),ROUND(K22*('Custo Contábil'!$D$20/'Custo Contábil'!$D$7)*W22,2),0) -> 0 | Y22: 0
B23: 16 | C23: =IF(ISBLANK('IlumCusto (ORÇ)'!C23)," ",'IlumCusto (ORÇ)'!C23) ->  | H23: ='IlumCusto (ORÇ)'!H23 -> 0 | I23: ='IlumCusto (ORÇ)'!I23 -> 0 | J23: ='IlumCusto (ORÇ)'!J23 -> 0 | K23: 0 | L23: 0 | P23: 16 | V23: 0 | W23: 0 | X23: =IF(AND(K23>0,'Custo Contábil'!$D$7>0),ROUND(K23*('Custo Contábil'!$D$20/'Custo Contábil'!$D$7)*W23,2),0) -> 0 | Y23: 0
B24: 17 | C24: =IF(ISBLANK('IlumCusto (ORÇ)'!C24)," ",'IlumCusto (ORÇ)'!C24) ->  | H24: ='IlumCusto (ORÇ)'!H24 -> 0 | I24: ='IlumCusto (ORÇ)'!I24 -> 0 | J24: ='IlumCusto (ORÇ)'!J24 -> 0 | K24: 0 | L24: 0 | P24: 17 | V24: 0 | W24: 0 | X24: =IF(AND(K24>0,'Custo Contábil'!$D$7>0),ROUND(K24*('Custo Contábil'!$D$20/'Custo Contábil'!$D$7)*W24,2),0) -> 0 | Y24: 0
B25: 18 | C25: =IF(ISBLANK('IlumCusto (ORÇ)'!C25)," ",'IlumCusto (ORÇ)'!C25) ->  | H25: ='IlumCusto (ORÇ)'!H25 -> 0 | I25: ='IlumCusto (ORÇ)'!I25 -> 0 | J25: ='IlumCusto (ORÇ)'!J25 -> 0 | K25: 0 | L25: 0 | P25: 18 | V25: 0 | W25: 0 | X25: =IF(AND(K25>0,'Custo Contábil'!$D$7>0),ROUND(K25*('Custo Contábil'!$D$20/'Custo Contábil'!$D$7)*W25,2),0) -> 0 | Y25: 0
B26: 19 | C26: =IF(ISBLANK('IlumCusto (ORÇ)'!C26)," ",'IlumCusto (ORÇ)'!C26) ->  | H26: ='IlumCusto (ORÇ)'!H26 -> 0 | I26: ='IlumCusto (ORÇ)'!I26 -> 0 | J26: ='IlumCusto (ORÇ)'!J26 -> 0 | K26: 0 | L26: 0 | P26: 19 | V26: 0 | W26: 0 | X26: =IF(AND(K26>0,'Custo Contábil'!$D$7>0),ROUND(K26*('Custo Contábil'!$D$20/'Custo Contábil'!$D$7)*W26,2),0) -> 0 | Y26: 0
B27: 20 | C27: =IF(ISBLANK('IlumCusto (ORÇ)'!C27)," ",'IlumCusto (ORÇ)'!C27) ->  | H27: ='IlumCusto (ORÇ)'!H27 -> 0 | I27: ='IlumCusto (ORÇ)'!I27 -> 0 | J27: ='IlumCusto (ORÇ)'!J27 -> 0 | K27: 0 | L27: 0 | P27: 20 | V27: 0 | W27: 0 | X27: =IF(AND(K27>0,'Custo Contábil'!$D$7>0),ROUND(K27*('Custo Contábil'!$D$20/'Custo Contábil'!$D$7)*W27,2),0) -> 0 | Y27: 0
B28: 21 | C28: =IF(ISBLANK('IlumCusto (ORÇ)'!C28)," ",'IlumCusto (ORÇ)'!C28) ->  | H28: ='IlumCusto (ORÇ)'!H28 -> 0 | I28: ='IlumCusto (ORÇ)'!I28 -> 0 | J28: ='IlumCusto (ORÇ)'!J28 -> 0 | K28: 0 | L28: 0 | P28: 21 | V28: 0 | W28: 0 | X28: =IF(AND(K28>0,'Custo Contábil'!$D$7>0),ROUND(K28*('Custo Contábil'!$D$20/'Custo Contábil'!$D$7)*W28,2),0) -> 0 | Y28: 0
B29: 22 | C29: =IF(ISBLANK('IlumCusto (ORÇ)'!C29)," ",'IlumCusto (ORÇ)'!C29) ->  | H29: ='IlumCusto (ORÇ)'!H29 -> 0 | I29: ='IlumCusto (ORÇ)'!I29 -> 0 | J29: ='IlumCusto (ORÇ)'!J29 -> 0 | K29: 0 | L29: 0 | P29: 22 | V29: 0 | W29: 0 | X29: =IF(AND(K29>0,'Custo Contábil'!$D$7>0),ROUND(K29*('Custo Contábil'!$D$20/'Custo Contábil'!$D$7)*W29,2),0) -> 0 | Y29: 0
B30: 23 | C30: =IF(ISBLANK('IlumCusto (ORÇ)'!C30)," ",'IlumCusto (ORÇ)'!C30) ->  | H30: ='IlumCusto (ORÇ)'!H30 -> 0 | I30: ='IlumCusto (ORÇ)'!I30 -> 0 | J30: ='IlumCusto (ORÇ)'!J30 -> 0 | K30: 0 | L30: 0 | P30: 23 | V30: 0 | W30: 0 | X30: =IF(AND(K30>0,'Custo Contábil'!$D$7>0),ROUND(K30*('Custo Contábil'!$D$20/'Custo Contábil'!$D$7)*W30,2),0) -> 0 | Y30: 0
B31: 24 | C31: =IF(ISBLANK('IlumCusto (ORÇ)'!C31)," ",'IlumCusto (ORÇ)'!C31) ->  | H31: ='IlumCusto (ORÇ)'!H31 -> 0 | I31: ='IlumCusto (ORÇ)'!I31 -> 0 | J31: ='IlumCusto (ORÇ)'!J31 -> 0 | K31: 0 | L31: 0 | P31: 24 | V31: 0 | W31: 0 | X31: =IF(AND(K31>0,'Custo Contábil'!$D$7>0),ROUND(K31*('Custo Contábil'!$D$20/'Custo Contábil'!$D$7)*W31,2),0) -> 0 | Y31: 0
B32: 25 | C32: =IF(ISBLANK('IlumCusto (ORÇ)'!C32)," ",'IlumCusto (ORÇ)'!C32) ->  | H32: ='IlumCusto (ORÇ)'!H32 -> 0 | I32: ='IlumCusto (ORÇ)'!I32 -> 0 | J32: ='IlumCusto (ORÇ)'!J32 -> 0 | K32: 0 | L32: 0 | P32: 25 | V32: 0 | W32: 0 | X32: =IF(AND(K32>0,'Custo Contábil'!$D$7>0),ROUND(K32*('Custo Contábil'!$D$20/'Custo Contábil'!$D$7)*W32,2),0) -> 0 | Y32: 0
B33: 26 | C33: =IF(ISBLANK('IlumCusto (ORÇ)'!C33)," ",'IlumCusto (ORÇ)'!C33) ->  | H33: ='IlumCusto (ORÇ)'!H33 -> 0 | I33: ='IlumCusto (ORÇ)'!I33 -> 0 | J33: ='IlumCusto (ORÇ)'!J33 -> 0 | K33: 0 | L33: 0 | P33: 26 | V33: 0 | W33: 0 | X33: =IF(AND(K33>0,'Custo Contábil'!$D$7>0),ROUND(K33*('Custo Contábil'!$D$20/'Custo Contábil'!$D$7)*W33,2),0) -> 0 | Y33: 0
B34: 27 | C34: =IF(ISBLANK('IlumCusto (ORÇ)'!C34)," ",'IlumCusto (ORÇ)'!C34) ->  | H34: ='IlumCusto (ORÇ)'!H34 -> 0 | I34: ='IlumCusto (ORÇ)'!I34 -> 0 | J34: ='IlumCusto (ORÇ)'!J34 -> 0 | K34: 0 | L34: 0 | P34: 27 | V34: 0 | W34: 0 | X34: =IF(AND(K34>0,'Custo Contábil'!$D$7>0),ROUND(K34*('Custo Contábil'!$D$20/'Custo Contábil'!$D$7)*W34,2),0) -> 0 | Y34: 0
B35: 28 | C35: =IF(ISBLANK('IlumCusto (ORÇ)'!C35)," ",'IlumCusto (ORÇ)'!C35) ->  | H35: ='IlumCusto (ORÇ)'!H35 -> 0 | I35: ='IlumCusto (ORÇ)'!I35 -> 0 | J35: ='IlumCusto (ORÇ)'!J35 -> 0 | K35: 0 | L35: 0 | P35: 28 | V35: 0 | W35: 0 | X35: =IF(AND(K35>0,'Custo Contábil'!$D$7>0),ROUND(K35*('Custo Contábil'!$D$20/'Custo Contábil'!$D$7)*W35,2),0) -> 0 | Y35: 0
B36: 29 | C36: =IF(ISBLANK('IlumCusto (ORÇ)'!C36)," ",'IlumCusto (ORÇ)'!C36) ->  | H36: ='IlumCusto (ORÇ)'!H36 -> 0 | I36: ='IlumCusto (ORÇ)'!I36 -> 0 | J36: ='IlumCusto (ORÇ)'!J36 -> 0 | K36: 0 | L36: 0 | P36: 29 | V36: 0 | W36: 0 | X36: =IF(AND(K36>0,'Custo Contábil'!$D$7>0),ROUND(K36*('Custo Contábil'!$D$20/'Custo Contábil'!$D$7)*W36,2),0) -> 0 | Y36: 0
B37: 30 | C37: =IF(ISBLANK('IlumCusto (ORÇ)'!C37)," ",'IlumCusto (ORÇ)'!C37) ->  | H37: ='IlumCusto (ORÇ)'!H37 -> 0 | I37: ='IlumCusto (ORÇ)'!I37 -> 0 | J37: ='IlumCusto (ORÇ)'!J37 -> 0 | K37: 0 | L37: 0 | P37: 30 | V37: 0 | W37: 0 | X37: =IF(AND(K37>0,'Custo Contábil'!$D$7>0),ROUND(K37*('Custo Contábil'!$D$20/'Custo Contábil'!$D$7)*W37,2),0) -> 0 | Y37: 0
B38: 31 | C38: =IF(ISBLANK('IlumCusto (ORÇ)'!C38)," ",'IlumCusto (ORÇ)'!C38) ->  | H38: ='IlumCusto (ORÇ)'!H38 -> 0 | I38: ='IlumCusto (ORÇ)'!I38 -> 0 | J38: ='IlumCusto (ORÇ)'!J38 -> 0 | K38: 0 | L38: 0 | P38: 31 | V38: 0 | W38: 0 | X38: =IF(AND(K38>0,'Custo Contábil'!$D$7>0),ROUND(K38*('Custo Contábil'!$D$20/'Custo Contábil'!$D$7)*W38,2),0) -> 0 | Y38: 0
B39: 32 | C39: =IF(ISBLANK('IlumCusto (ORÇ)'!C39)," ",'IlumCusto (ORÇ)'!C39) ->  | H39: ='IlumCusto (ORÇ)'!H39 -> 0 | I39: ='IlumCusto (ORÇ)'!I39 -> 0 | J39: ='IlumCusto (ORÇ)'!J39 -> 0 | K39: 0 | L39: 0 | P39: 32 | V39: 0 | W39: 0 | X39: =IF(AND(K39>0,'Custo Contábil'!$D$7>0),ROUND(K39*('Custo Contábil'!$D$20/'Custo Contábil'!$D$7)*W39,2),0) -> 0 | Y39: 0
B40: 33 | C40: =IF(ISBLANK('IlumCusto (ORÇ)'!C40)," ",'IlumCusto (ORÇ)'!C40) ->  | H40: ='IlumCusto (ORÇ)'!H40 -> 0 | I40: ='IlumCusto (ORÇ)'!I40 -> 0 | J40: ='IlumCusto (ORÇ)'!J40 -> 0 | K40: 0 | L40: 0 | P40: 33 | V40: 0 | W40: =IF(OR(V40="",V40=0),0,(Desc*((1+Desc)^V40))/(((1+Desc)^V40)-1)) -> 0 | X40: =IF(AND(K40>0,'Custo Contábil'!$D$7>0),ROUND(K40*('Custo Contábil'!$D$20/'Custo Contábil'!$D$7)*W40,2),0) -> 0 | Y40: 0
B41: 34 | C41: =IF(ISBLANK('IlumCusto (ORÇ)'!C41)," ",'IlumCusto (ORÇ)'!C41) ->  | H41: ='IlumCusto (ORÇ)'!H41 -> 0 | I41: ='IlumCusto (ORÇ)'!I41 -> 0 | J41: ='IlumCusto (ORÇ)'!J41 -> 0 | K41: 0 | L41: 0 | P41: 34 | V41: 0 | W41: 0 | X41: =IF(AND(K41>0,'Custo Contábil'!$D$7>0),ROUND(K41*('Custo Contábil'!$D$20/'Custo Contábil'!$D$7)*W41,2),0) -> 0 | Y41: 0
B42: 35 | C42: =IF(ISBLANK('IlumCusto (ORÇ)'!C42)," ",'IlumCusto (ORÇ)'!C42) ->  | H42: ='IlumCusto (ORÇ)'!H42 -> 0 | I42: ='IlumCusto (ORÇ)'!I42 -> 0 | J42: ='IlumCusto (ORÇ)'!J42 -> 0 | K42: 0 | L42: 0 | P42: 35 | V42: 0 | W42: 0 | X42: =IF(AND(K42>0,'Custo Contábil'!$D$7>0),ROUND(K42*('Custo Contábil'!$D$20/'Custo Contábil'!$D$7)*W42,2),0) -> 0 | Y42: 0
B43: 36 | C43: =IF(ISBLANK('IlumCusto (ORÇ)'!C43)," ",'IlumCusto (ORÇ)'!C43) ->  | H43: ='IlumCusto (ORÇ)'!H43 -> 0 | I43: ='IlumCusto (ORÇ)'!I43 -> 0 | J43: ='IlumCusto (ORÇ)'!J43 -> 0 | K43: 0 | L43: 0 | P43: 36 | V43: 0 | W43: 0 | X43: =IF(AND(K43>0,'Custo Contábil'!$D$7>0),ROUND(K43*('Custo Contábil'!$D$20/'Custo Contábil'!$D$7)*W43,2),0) -> 0 | Y43: 0
B44: 37 | C44: =IF(ISBLANK('IlumCusto (ORÇ)'!C44)," ",'IlumCusto (ORÇ)'!C44) ->  | H44: ='IlumCusto (ORÇ)'!H44 -> 0 | I44: ='IlumCusto (ORÇ)'!I44 -> 0 | J44: ='IlumCusto (ORÇ)'!J44 -> 0 | K44: 0 | L44: 0 | P44: 37 | V44: 0 | W44: 0 | X44: =IF(AND(K44>0,'Custo Contábil'!$D$7>0),ROUND(K44*('Custo Contábil'!$D$20/'Custo Contábil'!$D$7)*W44,2),0) -> 0 | Y44: 0
B45: 38 | C45: =IF(ISBLANK('IlumCusto (ORÇ)'!C45)," ",'IlumCusto (ORÇ)'!C45) ->  | H45: ='IlumCusto (ORÇ)'!H45 -> 0 | I45: ='IlumCusto (ORÇ)'!I45 -> 0 | J45: ='IlumCusto (ORÇ)'!J45 -> 0 | K45: 0 | L45: 0 | P45: 38 | V45: 0 | W45: 0 | X45: =IF(AND(K45>0,'Custo Contábil'!$D$7>0),ROUND(K45*('Custo Contábil'!$D$20/'Custo Contábil'!$D$7)*W45,2),0) -> 0 | Y45: 0
B46: 39 | C46: =IF(ISBLANK('IlumCusto (ORÇ)'!C46)," ",'IlumCusto (ORÇ)'!C46) ->  | H46: ='IlumCusto (ORÇ)'!H46 -> 0 | I46: ='IlumCusto (ORÇ)'!I46 -> 0 | J46: ='IlumCusto (ORÇ)'!J46 -> 0 | K46: 0 | L46: 0 | P46: 39 | V46: 0 | W46: 0 | X46: =IF(AND(K46>0,'Custo Contábil'!$D$7>0),ROUND(K46*('Custo Contábil'!$D$20/'Custo Contábil'!$D$7)*W46,2),0) -> 0 | Y46: 0
B47: 40 | C47: =IF(ISBLANK('IlumCusto (ORÇ)'!C47)," ",'IlumCusto (ORÇ)'!C47) ->  | H47: ='IlumCusto (ORÇ)'!H47 -> 0 | I47: ='IlumCusto (ORÇ)'!I47 -> 0 | J47: ='IlumCusto (ORÇ)'!J47 -> 0 | K47: 0 | L47: 0 | P47: 40 | V47: 0 | W47: 0 | X47: =IF(AND(K47>0,'Custo Contábil'!$D$7>0),ROUND(K47*('Custo Contábil'!$D$20/'Custo Contábil'!$D$7)*W47,2),0) -> 0 | Y47: 0
B48: 41 | C48: =IF(ISBLANK('IlumCusto (ORÇ)'!C48)," ",'IlumCusto (ORÇ)'!C48) ->  | H48: ='IlumCusto (ORÇ)'!H48 -> 0 | I48: ='IlumCusto (ORÇ)'!I48 -> 0 | J48: ='IlumCusto (ORÇ)'!J48 -> 0 | K48: 0 | L48: 0 | P48: 41 | V48: 0 | W48: 0 | X48: =IF(AND(K48>0,'Custo Contábil'!$D$7>0),ROUND(K48*('Custo Contábil'!$D$20/'Custo Contábil'!$D$7)*W48,2),0) -> 0 | Y48: 0
B49: 42 | C49: =IF(ISBLANK('IlumCusto (ORÇ)'!C49)," ",'IlumCusto (ORÇ)'!C49) ->  | H49: ='IlumCusto (ORÇ)'!H49 -> 0 | I49: ='IlumCusto (ORÇ)'!I49 -> 0 | J49: ='IlumCusto (ORÇ)'!J49 -> 0 | K49: 0 | L49: 0 | P49: 42 | V49: 0 | W49: 0 | X49: =IF(AND(K49>0,'Custo Contábil'!$D$7>0),ROUND(K49*('Custo Contábil'!$D$20/'Custo Contábil'!$D$7)*W49,2),0) -> 0 | Y49: 0
B50: 43 | C50: =IF(ISBLANK('IlumCusto (ORÇ)'!C50)," ",'IlumCusto (ORÇ)'!C50) ->  | H50: ='IlumCusto (ORÇ)'!H50 -> 0 | I50: ='IlumCusto (ORÇ)'!I50 -> 0 | J50: ='IlumCusto (ORÇ)'!J50 -> 0 | K50: 0 | L50: 0 | P50: 43 | V50: 0 | W50: 0 | X50: =IF(AND(K50>0,'Custo Contábil'!$D$7>0),ROUND(K50*('Custo Contábil'!$D$20/'Custo Contábil'!$D$7)*W50,2),0) -> 0 | Y50: 0
B51: 44 | C51: =IF(ISBLANK('IlumCusto (ORÇ)'!C51)," ",'IlumCusto (ORÇ)'!C51) ->  | H51: ='IlumCusto (ORÇ)'!H51 -> 0 | I51: ='IlumCusto (ORÇ)'!I51 -> 0 | J51: ='IlumCusto (ORÇ)'!J51 -> 0 | K51: 0 | L51: 0 | P51: 44 | V51: 0 | W51: 0 | X51: =IF(AND(K51>0,'Custo Contábil'!$D$7>0),ROUND(K51*('Custo Contábil'!$D$20/'Custo Contábil'!$D$7)*W51,2),0) -> 0 | Y51: 0
B52: 45 | C52: =IF(ISBLANK('IlumCusto (ORÇ)'!C52)," ",'IlumCusto (ORÇ)'!C52) ->  | H52: ='IlumCusto (ORÇ)'!H52 -> 0 | I52: ='IlumCusto (ORÇ)'!I52 -> 0 | J52: ='IlumCusto (ORÇ)'!J52 -> 0 | K52: 0 | L52: 0 | P52: 45 | V52: 0 | W52: 0 | X52: =IF(AND(K52>0,'Custo Contábil'!$D$7>0),ROUND(K52*('Custo Contábil'!$D$20/'Custo Contábil'!$D$7)*W52,2),0) -> 0 | Y52: 0
B53: 46 | C53: =IF(ISBLANK('IlumCusto (ORÇ)'!C53)," ",'IlumCusto (ORÇ)'!C53) ->  | H53: ='IlumCusto (ORÇ)'!H53 -> 0 | I53: ='IlumCusto (ORÇ)'!I53 -> 0 | J53: ='IlumCusto (ORÇ)'!J53 -> 0 | K53: 0 | L53: 0 | P53: 46 | V53: 0 | W53: 0 | X53: =IF(AND(K53>0,'Custo Contábil'!$D$7>0),ROUND(K53*('Custo Contábil'!$D$20/'Custo Contábil'!$D$7)*W53,2),0) -> 0 | Y53: 0
B54: 47 | C54: =IF(ISBLANK('IlumCusto (ORÇ)'!C54)," ",'IlumCusto (ORÇ)'!C54) ->  | H54: ='IlumCusto (ORÇ)'!H54 -> 0 | I54: ='IlumCusto (ORÇ)'!I54 -> 0 | J54: ='IlumCusto (ORÇ)'!J54 -> 0 | K54: 0 | L54: 0 | P54: 47 | V54: 0 | W54: 0 | X54: =IF(AND(K54>0,'Custo Contábil'!$D$7>0),ROUND(K54*('Custo Contábil'!$D$20/'Custo Contábil'!$D$7)*W54,2),0) -> 0 | Y54: 0
B55: 48 | C55: =IF(ISBLANK('IlumCusto (ORÇ)'!C55)," ",'IlumCusto (ORÇ)'!C55) ->  | H55: ='IlumCusto (ORÇ)'!H55 -> 0 | I55: ='IlumCusto (ORÇ)'!I55 -> 0 | J55: ='IlumCusto (ORÇ)'!J55 -> 0 | K55: 0 | L55: 0 | P55: 48 | V55: 0 | W55: 0 | X55: =IF(AND(K55>0,'Custo Contábil'!$D$7>0),ROUND(K55*('Custo Contábil'!$D$20/'Custo Contábil'!$D$7)*W55,2),0) -> 0 | Y55: 0
B56: 49 | C56: =IF(ISBLANK('IlumCusto (ORÇ)'!C56)," ",'IlumCusto (ORÇ)'!C56) ->  | H56: ='IlumCusto (ORÇ)'!H56 -> 0 | I56: ='IlumCusto (ORÇ)'!I56 -> 0 | J56: ='IlumCusto (ORÇ)'!J56 -> 0 | K56: 0 | L56: 0 | P56: 49 | V56: 0 | W56: 0 | X56: =IF(AND(K56>0,'Custo Contábil'!$D$7>0),ROUND(K56*('Custo Contábil'!$D$20/'Custo Contábil'!$D$7)*W56,2),0) -> 0 | Y56: 0
B57: 50 | C57: =IF(ISBLANK('IlumCusto (ORÇ)'!C57)," ",'IlumCusto (ORÇ)'!C57) ->  | H57: ='IlumCusto (ORÇ)'!H57 -> 0 | I57: ='IlumCusto (ORÇ)'!I57 -> 0 | J57: ='IlumCusto (ORÇ)'!J57 -> 0 | K57: 0 | L57: 0 | P57: 50 | V57: 0 | W57: 0 | X57: =IF(AND(K57>0,'Custo Contábil'!$D$7>0),ROUND(K57*('Custo Contábil'!$D$20/'Custo Contábil'!$D$7)*W57,2),0) -> 0 | Y57: 0
B58: 51 | C58: =IF(ISBLANK('IlumCusto (ORÇ)'!C58)," ",'IlumCusto (ORÇ)'!C58) ->  | H58: ='IlumCusto (ORÇ)'!H58 -> 0 | I58: ='IlumCusto (ORÇ)'!I58 -> 0 | J58: ='IlumCusto (ORÇ)'!J58 -> 0 | K58: 0 | L58: 0 | P58: 51 | V58: 0 | W58: 0 | X58: =IF(AND(K58>0,'Custo Contábil'!$D$7>0),ROUND(K58*('Custo Contábil'!$D$20/'Custo Contábil'!$D$7)*W58,2),0) -> 0 | Y58: 0
B59: 52 | C59: =IF(ISBLANK('IlumCusto (ORÇ)'!C59)," ",'IlumCusto (ORÇ)'!C59) ->  | H59: ='IlumCusto (ORÇ)'!H59 -> 0 | I59: ='IlumCusto (ORÇ)'!I59 -> 0 | J59: ='IlumCusto (ORÇ)'!J59 -> 0 | K59: 0 | L59: 0 | P59: 52 | V59: 0 | W59: 0 | X59: =IF(AND(K59>0,'Custo Contábil'!$D$7>0),ROUND(K59*('Custo Contábil'!$D$20/'Custo Contábil'!$D$7)*W59,2),0) -> 0 | Y59: 0
B60: 53 | C60: =IF(ISBLANK('IlumCusto (ORÇ)'!C60)," ",'IlumCusto (ORÇ)'!C60) ->  | H60: ='IlumCusto (ORÇ)'!H60 -> 0 | I60: ='IlumCusto (ORÇ)'!I60 -> 0 | J60: ='IlumCusto (ORÇ)'!J60 -> 0 | K60: 0 | L60: 0 | P60: 53 | V60: 0 | W60: 0 | X60: =IF(AND(K60>0,'Custo Contábil'!$D$7>0),ROUND(K60*('Custo Contábil'!$D$20/'Custo Contábil'!$D$7)*W60,2),0) -> 0 | Y60: 0
B61: 54 | C61: =IF(ISBLANK('IlumCusto (ORÇ)'!C61)," ",'IlumCusto (ORÇ)'!C61) ->  | H61: ='IlumCusto (ORÇ)'!H61 -> 0 | I61: ='IlumCusto (ORÇ)'!I61 -> 0 | J61: ='IlumCusto (ORÇ)'!J61 -> 0 | K61: 0 | L61: 0 | P61: 54 | V61: 0 | W61: 0 | X61: =IF(AND(K61>0,'Custo Contábil'!$D$7>0),ROUND(K61*('Custo Contábil'!$D$20/'Custo Contábil'!$D$7)*W61,2),0) -> 0 | Y61: 0
B62: 55 | C62: =IF(ISBLANK('IlumCusto (ORÇ)'!C62)," ",'IlumCusto (ORÇ)'!C62) ->  | H62: ='IlumCusto (ORÇ)'!H62 -> 0 | I62: ='IlumCusto (ORÇ)'!I62 -> 0 | J62: ='IlumCusto (ORÇ)'!J62 -> 0 | K62: 0 | L62: 0 | P62: 55 | V62: 0 | W62: 0 | X62: =IF(AND(K62>0,'Custo Contábil'!$D$7>0),ROUND(K62*('Custo Contábil'!$D$20/'Custo Contábil'!$D$7)*W62,2),0) -> 0 | Y62: 0
B63: 56 | C63: =IF(ISBLANK('IlumCusto (ORÇ)'!C63)," ",'IlumCusto (ORÇ)'!C63) ->  | H63: ='IlumCusto (ORÇ)'!H63 -> 0 | I63: ='IlumCusto (ORÇ)'!I63 -> 0 | J63: ='IlumCusto (ORÇ)'!J63 -> 0 | K63: 0 | L63: 0 | P63: 56 | V63: 0 | W63: 0 | X63: =IF(AND(K63>0,'Custo Contábil'!$D$7>0),ROUND(K63*('Custo Contábil'!$D$20/'Custo Contábil'!$D$7)*W63,2),0) -> 0 | Y63: 0
B64: 57 | C64: =IF(ISBLANK('IlumCusto (ORÇ)'!C64)," ",'IlumCusto (ORÇ)'!C64) ->  | H64: ='IlumCusto (ORÇ)'!H64 -> 0 | I64: ='IlumCusto (ORÇ)'!I64 -> 0 | J64: ='IlumCusto (ORÇ)'!J64 -> 0 | K64: 0 | L64: 0 | P64: 57 | V64: 0 | W64: 0 | X64: =IF(AND(K64>0,'Custo Contábil'!$D$7>0),ROUND(K64*('Custo Contábil'!$D$20/'Custo Contábil'!$D$7)*W64,2),0) -> 0 | Y64: 0
B65: 58 | C65: =IF(ISBLANK('IlumCusto (ORÇ)'!C65)," ",'IlumCusto (ORÇ)'!C65) ->  | H65: ='IlumCusto (ORÇ)'!H65 -> 0 | I65: ='IlumCusto (ORÇ)'!I65 -> 0 | J65: ='IlumCusto (ORÇ)'!J65 -> 0 | K65: 0 | L65: 0 | P65: 58 | V65: 0 | W65: 0 | X65: =IF(AND(K65>0,'Custo Contábil'!$D$7>0),ROUND(K65*('Custo Contábil'!$D$20/'Custo Contábil'!$D$7)*W65,2),0) -> 0 | Y65: 0
B66: 59 | C66: =IF(ISBLANK('IlumCusto (ORÇ)'!C66)," ",'IlumCusto (ORÇ)'!C66) ->  | H66: ='IlumCusto (ORÇ)'!H66 -> 0 | I66: ='IlumCusto (ORÇ)'!I66 -> 0 | J66: ='IlumCusto (ORÇ)'!J66 -> 0 | K66: 0 | L66: 0 | P66: 59 | V66: 0 | W66: 0 | X66: =IF(AND(K66>0,'Custo Contábil'!$D$7>0),ROUND(K66*('Custo Contábil'!$D$20/'Custo Contábil'!$D$7)*W66,2),0) -> 0 | Y66: 0
B67: 60 | C67: =IF(ISBLANK('IlumCusto (ORÇ)'!C67)," ",'IlumCusto (ORÇ)'!C67) ->  | H67: ='IlumCusto (ORÇ)'!H67 -> 0 | I67: ='IlumCusto (ORÇ)'!I67 -> 0 | J67: ='IlumCusto (ORÇ)'!J67 -> 0 | K67: 0 | L67: 0 | P67: 60 | V67: 0 | W67: 0 | X67: =IF(AND(K67>0,'Custo Contábil'!$D$7>0),ROUND(K67*('Custo Contábil'!$D$20/'Custo Contábil'!$D$7)*W67,2),0) -> 0 | Y67: 0
B68: 61 | C68: =IF(ISBLANK('IlumCusto (ORÇ)'!C68)," ",'IlumCusto (ORÇ)'!C68) ->  | H68: ='IlumCusto (ORÇ)'!H68 -> 0 | I68: ='IlumCusto (ORÇ)'!I68 -> 0 | J68: ='IlumCusto (ORÇ)'!J68 -> 0 | K68: 0 | L68: 0 | P68: 61 | V68: 0 | W68: 0 | X68: =IF(AND(K68>0,'Custo Contábil'!$D$7>0),ROUND(K68*('Custo Contábil'!$D$20/'Custo Contábil'!$D$7)*W68,2),0) -> 0 | Y68: 0
B69: 62 | C69: =IF(ISBLANK('IlumCusto (ORÇ)'!C69)," ",'IlumCusto (ORÇ)'!C69) ->  | H69: ='IlumCusto (ORÇ)'!H69 -> 0 | I69: ='IlumCusto (ORÇ)'!I69 -> 0 | J69: ='IlumCusto (ORÇ)'!J69 -> 0 | K69: 0 | L69: 0 | P69: 62 | V69: 0 | W69: 0 | X69: =IF(AND(K69>0,'Custo Contábil'!$D$7>0),ROUND(K69*('Custo Contábil'!$D$20/'Custo Contábil'!$D$7)*W69,2),0) -> 0 | Y69: 0
B70: 63 | C70: =IF(ISBLANK('IlumCusto (ORÇ)'!C70)," ",'IlumCusto (ORÇ)'!C70) ->  | H70: ='IlumCusto (ORÇ)'!H70 -> 0 | I70: ='IlumCusto (ORÇ)'!I70 -> 0 | J70: ='IlumCusto (ORÇ)'!J70 -> 0 | K70: 0 | L70: 0 | P70: 63 | V70: 0 | W70: 0 | X70: =IF(AND(K70>0,'Custo Contábil'!$D$7>0),ROUND(K70*('Custo Contábil'!$D$20/'Custo Contábil'!$D$7)*W70,2),0) -> 0 | Y70: 0
B71: 64 | C71: =IF(ISBLANK('IlumCusto (ORÇ)'!C71)," ",'IlumCusto (ORÇ)'!C71) ->  | H71: ='IlumCusto (ORÇ)'!H71 -> 0 | I71: ='IlumCusto (ORÇ)'!I71 -> 0 | J71: ='IlumCusto (ORÇ)'!J71 -> 0 | K71: 0 | L71: 0 | P71: 64 | V71: 0 | W71: 0 | X71: =IF(AND(K71>0,'Custo Contábil'!$D$7>0),ROUND(K71*('Custo Contábil'!$D$20/'Custo Contábil'!$D$7)*W71,2),0) -> 0 | Y71: 0
B72: 65 | C72: =IF(ISBLANK('IlumCusto (ORÇ)'!C72)," ",'IlumCusto (ORÇ)'!C72) ->  | H72: ='IlumCusto (ORÇ)'!H72 -> 0 | I72: ='IlumCusto (ORÇ)'!I72 -> 0 | J72: ='IlumCusto (ORÇ)'!J72 -> 0 | K72: 0 | L72: 0 | P72: 65 | V72: 0 | W72: =IF(OR(V72="",V72=0),0,(Desc*((1+Desc)^V72))/(((1+Desc)^V72)-1)) -> 0 | X72: =IF(AND(K72>0,'Custo Contábil'!$D$7>0),ROUND(K72*('Custo Contábil'!$D$20/'Custo Contábil'!$D$7)*W72,2),0) -> 0 | Y72: 0
B73: 66 | C73: =IF(ISBLANK('IlumCusto (ORÇ)'!C73)," ",'IlumCusto (ORÇ)'!C73) ->  | H73: ='IlumCusto (ORÇ)'!H73 -> 0 | I73: ='IlumCusto (ORÇ)'!I73 -> 0 | J73: ='IlumCusto (ORÇ)'!J73 -> 0 | K73: =I73*J73 -> 0 | L73: =K73-M73-N73 -> 0 | P73: 66 | Q73: =IF(OR(C73=0,C73=""),"",C73) ->  | V73: =IF(H73="",0,H73) -> 0 | W73: 0 | X73: =IF(AND(K73>0,'Custo Contábil'!$D$7>0),ROUND(K73*('Custo Contábil'!$D$20/'Custo Contábil'!$D$7)*W73,2),0) -> 0 | Y73: =V73*X73 -> 0
B74: 67 | C74: =IF(ISBLANK('IlumCusto (ORÇ)'!C74)," ",'IlumCusto (ORÇ)'!C74) ->  | H74: ='IlumCusto (ORÇ)'!H74 -> 0 | I74: ='IlumCusto (ORÇ)'!I74 -> 0 | J74: ='IlumCusto (ORÇ)'!J74 -> 0 | K74: 0 | L74: 0 | P74: 67 | V74: 0 | W74: 0 | X74: =IF(AND(K74>0,'Custo Contábil'!$D$7>0),ROUND(K74*('Custo Contábil'!$D$20/'Custo Contábil'!$D$7)*W74,2),0) -> 0 | Y74: 0
B75: 68 | C75: =IF(ISBLANK('IlumCusto (ORÇ)'!C75)," ",'IlumCusto (ORÇ)'!C75) ->  | H75: ='IlumCusto (ORÇ)'!H75 -> 0 | I75: ='IlumCusto (ORÇ)'!I75 -> 0 | J75: ='IlumCusto (ORÇ)'!J75 -> 0 | K75: 0 | L75: 0 | P75: 68 | V75: 0 | W75: 0 | X75: =IF(AND(K75>0,'Custo Contábil'!$D$7>0),ROUND(K75*('Custo Contábil'!$D$20/'Custo Contábil'!$D$7)*W75,2),0) -> 0 | Y75: 0
B76: 69 | C76: =IF(ISBLANK('IlumCusto (ORÇ)'!C76)," ",'IlumCusto (ORÇ)'!C76) ->  | H76: ='IlumCusto (ORÇ)'!H76 -> 0 | I76: ='IlumCusto (ORÇ)'!I76 -> 0 | J76: ='IlumCusto (ORÇ)'!J76 -> 0 | K76: 0 | L76: 0 | P76: 69 | V76: 0 | W76: 0 | X76: =IF(AND(K76>0,'Custo Contábil'!$D$7>0),ROUND(K76*('Custo Contábil'!$D$20/'Custo Contábil'!$D$7)*W76,2),0) -> 0 | Y76: 0
B77: 70 | C77: =IF(ISBLANK('IlumCusto (ORÇ)'!C77)," ",'IlumCusto (ORÇ)'!C77) ->  | H77: ='IlumCusto (ORÇ)'!H77 -> 0 | I77: ='IlumCusto (ORÇ)'!I77 -> 0 | J77: ='IlumCusto (ORÇ)'!J77 -> 0 | K77: 0 | L77: 0 | P77: 70 | V77: 0 | W77: 0 | X77: =IF(AND(K77>0,'Custo Contábil'!$D$7>0),ROUND(K77*('Custo Contábil'!$D$20/'Custo Contábil'!$D$7)*W77,2),0) -> 0 | Y77: 0
B78: 71 | C78: =IF(ISBLANK('IlumCusto (ORÇ)'!C78)," ",'IlumCusto (ORÇ)'!C78) ->  | H78: ='IlumCusto (ORÇ)'!H78 -> 0 | I78: ='IlumCusto (ORÇ)'!I78 -> 0 | J78: ='IlumCusto (ORÇ)'!J78 -> 0 | K78: 0 | L78: 0 | P78: 71 | V78: 0 | W78: 0 | X78: =IF(AND(K78>0,'Custo Contábil'!$D$7>0),ROUND(K78*('Custo Contábil'!$D$20/'Custo Contábil'!$D$7)*W78,2),0) -> 0 | Y78: 0
B79: 72 | C79: =IF(ISBLANK('IlumCusto (ORÇ)'!C79)," ",'IlumCusto (ORÇ)'!C79) ->  | H79: ='IlumCusto (ORÇ)'!H79 -> 0 | I79: ='IlumCusto (ORÇ)'!I79 -> 0 | J79: ='IlumCusto (ORÇ)'!J79 -> 0 | K79: 0 | L79: 0 | P79: 72 | V79: 0 | W79: 0 | X79: =IF(AND(K79>0,'Custo Contábil'!$D$7>0),ROUND(K79*('Custo Contábil'!$D$20/'Custo Contábil'!$D$7)*W79,2),0) -> 0 | Y79: 0
B80: 73 | C80: =IF(ISBLANK('IlumCusto (ORÇ)'!C80)," ",'IlumCusto (ORÇ)'!C80) ->  | H80: ='IlumCusto (ORÇ)'!H80 -> 0 | I80: ='IlumCusto (ORÇ)'!I80 -> 0 | J80: ='IlumCusto (ORÇ)'!J80 -> 0 | K80: 0 | L80: 0 | P80: 73 | V80: 0 | W80: 0 | X80: =IF(AND(K80>0,'Custo Contábil'!$D$7>0),ROUND(K80*('Custo Contábil'!$D$20/'Custo Contábil'!$D$7)*W80,2),0) -> 0 | Y80: 0
B81: 74 | C81: =IF(ISBLANK('IlumCusto (ORÇ)'!C81)," ",'IlumCusto (ORÇ)'!C81) ->  | H81: ='IlumCusto (ORÇ)'!H81 -> 0 | I81: ='IlumCusto (ORÇ)'!I81 -> 0 | J81: ='IlumCusto (ORÇ)'!J81 -> 0 | K81: 0 | L81: 0 | P81: 74 | V81: 0 | W81: 0 | X81: =IF(AND(K81>0,'Custo Contábil'!$D$7>0),ROUND(K81*('Custo Contábil'!$D$20/'Custo Contábil'!$D$7)*W81,2),0) -> 0 | Y81: 0
B82: 75 | C82: =IF(ISBLANK('IlumCusto (ORÇ)'!C82)," ",'IlumCusto (ORÇ)'!C82) ->  | H82: ='IlumCusto (ORÇ)'!H82 -> 0 | I82: ='IlumCusto (ORÇ)'!I82 -> 0 | J82: ='IlumCusto (ORÇ)'!J82 -> 0 | K82: 0 | L82: 0 | P82: 75 | V82: 0 | W82: 0 | X82: =IF(AND(K82>0,'Custo Contábil'!$D$7>0),ROUND(K82*('Custo Contábil'!$D$20/'Custo Contábil'!$D$7)*W82,2),0) -> 0 | Y82: 0
B83: 76 | C83: =IF(ISBLANK('IlumCusto (ORÇ)'!C83)," ",'IlumCusto (ORÇ)'!C83) ->  | H83: ='IlumCusto (ORÇ)'!H83 -> 0 | I83: ='IlumCusto (ORÇ)'!I83 -> 0 | J83: ='IlumCusto (ORÇ)'!J83 -> 0 | K83: 0 | L83: 0 | P83: 76 | V83: 0 | W83: 0 | X83: =IF(AND(K83>0,'Custo Contábil'!$D$7>0),ROUND(K83*('Custo Contábil'!$D$20/'Custo Contábil'!$D$7)*W83,2),0) -> 0 | Y83: 0
B84: 77 | C84: =IF(ISBLANK('IlumCusto (ORÇ)'!C84)," ",'IlumCusto (ORÇ)'!C84) ->  | H84: ='IlumCusto (ORÇ)'!H84 -> 0 | I84: ='IlumCusto (ORÇ)'!I84 -> 0 | J84: ='IlumCusto (ORÇ)'!J84 -> 0 | K84: 0 | L84: 0 | P84: 77 | V84: 0 | W84: 0 | X84: =IF(AND(K84>0,'Custo Contábil'!$D$7>0),ROUND(K84*('Custo Contábil'!$D$20/'Custo Contábil'!$D$7)*W84,2),0) -> 0 | Y84: 0
B85: 78 | C85: =IF(ISBLANK('IlumCusto (ORÇ)'!C85)," ",'IlumCusto (ORÇ)'!C85) ->  | H85: ='IlumCusto (ORÇ)'!H85 -> 0 | I85: ='IlumCusto (ORÇ)'!I85 -> 0 | J85: ='IlumCusto (ORÇ)'!J85 -> 0 | K85: 0 | L85: 0 | P85: 78 | V85: 0 | W85: 0 | X85: =IF(AND(K85>0,'Custo Contábil'!$D$7>0),ROUND(K85*('Custo Contábil'!$D$20/'Custo Contábil'!$D$7)*W85,2),0) -> 0 | Y85: 0
B86: 79 | C86: =IF(ISBLANK('IlumCusto (ORÇ)'!C86)," ",'IlumCusto (ORÇ)'!C86) ->  | H86: ='IlumCusto (ORÇ)'!H86 -> 0 | I86: ='IlumCusto (ORÇ)'!I86 -> 0 | J86: ='IlumCusto (ORÇ)'!J86 -> 0 | K86: 0 | L86: 0 | P86: 79 | V86: 0 | W86: 0 | X86: =IF(AND(K86>0,'Custo Contábil'!$D$7>0),ROUND(K86*('Custo Contábil'!$D$20/'Custo Contábil'!$D$7)*W86,2),0) -> 0 | Y86: 0
B87: 80 | C87: =IF(ISBLANK('IlumCusto (ORÇ)'!C87)," ",'IlumCusto (ORÇ)'!C87) ->  | H87: ='IlumCusto (ORÇ)'!H87 -> 0 | I87: ='IlumCusto (ORÇ)'!I87 -> 0 | J87: ='IlumCusto (ORÇ)'!J87 -> 0 | K87: 0 | L87: 0 | P87: 80 | V87: 0 | W87: 0 | X87: =IF(AND(K87>0,'Custo Contábil'!$D$7>0),ROUND(K87*('Custo Contábil'!$D$20/'Custo Contábil'!$D$7)*W87,2),0) -> 0 | Y87: 0
B88: 81 | C88: =IF(ISBLANK('IlumCusto (ORÇ)'!C88)," ",'IlumCusto (ORÇ)'!C88) ->  | H88: ='IlumCusto (ORÇ)'!H88 -> 0 | I88: ='IlumCusto (ORÇ)'!I88 -> 0 | J88: ='IlumCusto (ORÇ)'!J88 -> 0 | K88: 0 | L88: 0 | P88: 81 | V88: 0 | W88: 0 | X88: =IF(AND(K88>0,'Custo Contábil'!$D$7>0),ROUND(K88*('Custo Contábil'!$D$20/'Custo Contábil'!$D$7)*W88,2),0) -> 0 | Y88: 0
B89: 82 | C89: =IF(ISBLANK('IlumCusto (ORÇ)'!C89)," ",'IlumCusto (ORÇ)'!C89) ->  | H89: ='IlumCusto (ORÇ)'!H89 -> 0 | I89: ='IlumCusto (ORÇ)'!I89 -> 0 | J89: ='IlumCusto (ORÇ)'!J89 -> 0 | K89: 0 | L89: 0 | P89: 82 | V89: 0 | W89: 0 | X89: =IF(AND(K89>0,'Custo Contábil'!$D$7>0),ROUND(K89*('Custo Contábil'!$D$20/'Custo Contábil'!$D$7)*W89,2),0) -> 0 | Y89: 0
B90: 83 | C90: =IF(ISBLANK('IlumCusto (ORÇ)'!C90)," ",'IlumCusto (ORÇ)'!C90) ->  | H90: ='IlumCusto (ORÇ)'!H90 -> 0 | I90: ='IlumCusto (ORÇ)'!I90 -> 0 | J90: ='IlumCusto (ORÇ)'!J90 -> 0 | K90: 0 | L90: 0 | P90: 83 | V90: 0 | W90: 0 | X90: =IF(AND(K90>0,'Custo Contábil'!$D$7>0),ROUND(K90*('Custo Contábil'!$D$20/'Custo Contábil'!$D$7)*W90,2),0) -> 0 | Y90: 0
B91: 84 | C91: =IF(ISBLANK('IlumCusto (ORÇ)'!C91)," ",'IlumCusto (ORÇ)'!C91) ->  | H91: ='IlumCusto (ORÇ)'!H91 -> 0 | I91: ='IlumCusto (ORÇ)'!I91 -> 0 | J91: ='IlumCusto (ORÇ)'!J91 -> 0 | K91: 0 | L91: 0 | P91: 84 | V91: 0 | W91: 0 | X91: =IF(AND(K91>0,'Custo Contábil'!$D$7>0),ROUND(K91*('Custo Contábil'!$D$20/'Custo Contábil'!$D$7)*W91,2),0) -> 0 | Y91: 0
B92: 85 | C92: =IF(ISBLANK('IlumCusto (ORÇ)'!C92)," ",'IlumCusto (ORÇ)'!C92) ->  | H92: ='IlumCusto (ORÇ)'!H92 -> 0 | I92: ='IlumCusto (ORÇ)'!I92 -> 0 | J92: ='IlumCusto (ORÇ)'!J92 -> 0 | K92: 0 | L92: 0 | P92: 85 | V92: 0 | W92: 0 | X92: =IF(AND(K92>0,'Custo Contábil'!$D$7>0),ROUND(K92*('Custo Contábil'!$D$20/'Custo Contábil'!$D$7)*W92,2),0) -> 0 | Y92: 0
B93: 86 | C93: =IF(ISBLANK('IlumCusto (ORÇ)'!C93)," ",'IlumCusto (ORÇ)'!C93) ->  | H93: ='IlumCusto (ORÇ)'!H93 -> 0 | I93: ='IlumCusto (ORÇ)'!I93 -> 0 | J93: ='IlumCusto (ORÇ)'!J93 -> 0 | K93: 0 | L93: 0 | P93: 86 | V93: 0 | W93: 0 | X93: =IF(AND(K93>0,'Custo Contábil'!$D$7>0),ROUND(K93*('Custo Contábil'!$D$20/'Custo Contábil'!$D$7)*W93,2),0) -> 0 | Y93: 0
B94: 87 | C94: =IF(ISBLANK('IlumCusto (ORÇ)'!C94)," ",'IlumCusto (ORÇ)'!C94) ->  | H94: ='IlumCusto (ORÇ)'!H94 -> 0 | I94: ='IlumCusto (ORÇ)'!I94 -> 0 | J94: ='IlumCusto (ORÇ)'!J94 -> 0 | K94: 0 | L94: 0 | P94: 87 | V94: 0 | W94: 0 | X94: =IF(AND(K94>0,'Custo Contábil'!$D$7>0),ROUND(K94*('Custo Contábil'!$D$20/'Custo Contábil'!$D$7)*W94,2),0) -> 0 | Y94: 0
B95: 88 | C95: =IF(ISBLANK('IlumCusto (ORÇ)'!C95)," ",'IlumCusto (ORÇ)'!C95) ->  | H95: ='IlumCusto (ORÇ)'!H95 -> 0 | I95: ='IlumCusto (ORÇ)'!I95 -> 0 | J95: ='IlumCusto (ORÇ)'!J95 -> 0 | K95: 0 | L95: 0 | P95: 88 | V95: 0 | W95: 0 | X95: =IF(AND(K95>0,'Custo Contábil'!$D$7>0),ROUND(K95*('Custo Contábil'!$D$20/'Custo Contábil'!$D$7)*W95,2),0) -> 0 | Y95: 0
B96: 89 | C96: =IF(ISBLANK('IlumCusto (ORÇ)'!C96)," ",'IlumCusto (ORÇ)'!C96) ->  | H96: ='IlumCusto (ORÇ)'!H96 -> 0 | I96: ='IlumCusto (ORÇ)'!I96 -> 0 | J96: ='IlumCusto (ORÇ)'!J96 -> 0 | K96: 0 | L96: 0 | P96: 89 | V96: 0 | W96: 0 | X96: =IF(AND(K96>0,'Custo Contábil'!$D$7>0),ROUND(K96*('Custo Contábil'!$D$20/'Custo Contábil'!$D$7)*W96,2),0) -> 0 | Y96: 0
B97: 90 | C97: =IF(ISBLANK('IlumCusto (ORÇ)'!C97)," ",'IlumCusto (ORÇ)'!C97) ->  | H97: ='IlumCusto (ORÇ)'!H97 -> 0 | I97: ='IlumCusto (ORÇ)'!I97 -> 0 | J97: ='IlumCusto (ORÇ)'!J97 -> 0 | K97: 0 | L97: 0 | P97: 90 | V97: 0 | W97: 0 | X97: =IF(AND(K97>0,'Custo Contábil'!$D$7>0),ROUND(K97*('Custo Contábil'!$D$20/'Custo Contábil'!$D$7)*W97,2),0) -> 0 | Y97: 0
B98: 91 | C98: =IF(ISBLANK('IlumCusto (ORÇ)'!C98)," ",'IlumCusto (ORÇ)'!C98) ->  | H98: ='IlumCusto (ORÇ)'!H98 -> 0 | I98: ='IlumCusto (ORÇ)'!I98 -> 0 | J98: ='IlumCusto (ORÇ)'!J98 -> 0 | K98: 0 | L98: 0 | P98: 91 | V98: 0 | W98: 0 | X98: =IF(AND(K98>0,'Custo Contábil'!$D$7>0),ROUND(K98*('Custo Contábil'!$D$20/'Custo Contábil'!$D$7)*W98,2),0) -> 0 | Y98: 0
B99: 92 | C99: =IF(ISBLANK('IlumCusto (ORÇ)'!C99)," ",'IlumCusto (ORÇ)'!C99) ->  | H99: ='IlumCusto (ORÇ)'!H99 -> 0 | I99: ='IlumCusto (ORÇ)'!I99 -> 0 | J99: ='IlumCusto (ORÇ)'!J99 -> 0 | K99: 0 | L99: 0 | P99: 92 | V99: 0 | W99: 0 | X99: =IF(AND(K99>0,'Custo Contábil'!$D$7>0),ROUND(K99*('Custo Contábil'!$D$20/'Custo Contábil'!$D$7)*W99,2),0) -> 0 | Y99: 0
B100: 93 | C100: =IF(ISBLANK('IlumCusto (ORÇ)'!C100)," ",'IlumCusto (ORÇ)'!C100) ->  | H100: ='IlumCusto (ORÇ)'!H100 -> 0 | I100: ='IlumCusto (ORÇ)'!I100 -> 0 | J100: ='IlumCusto (ORÇ)'!J100 -> 0 | K100: 0 | L100: 0 | P100: 93 | V100: 0 | W100: 0 | X100: =IF(AND(K100>0,'Custo Contábil'!$D$7>0),ROUND(K100*('Custo Contábil'!$D$20/'Custo Contábil'!$D$7)*W100,2),0) -> 0 | Y100: 0
B101: 94 | C101: =IF(ISBLANK('IlumCusto (ORÇ)'!C101)," ",'IlumCusto (ORÇ)'!C101) ->  | H101: ='IlumCusto (ORÇ)'!H101 -> 0 | I101: ='IlumCusto (ORÇ)'!I101 -> 0 | J101: ='IlumCusto (ORÇ)'!J101 -> 0 | K101: 0 | L101: 0 | P101: 94 | V101: 0 | W101: 0 | X101: =IF(AND(K101>0,'Custo Contábil'!$D$7>0),ROUND(K101*('Custo Contábil'!$D$20/'Custo Contábil'!$D$7)*W101,2),0) -> 0 | Y101: 0
B102: 95 | C102: =IF(ISBLANK('IlumCusto (ORÇ)'!C102)," ",'IlumCusto (ORÇ)'!C102) ->  | H102: ='IlumCusto (ORÇ)'!H102 -> 0 | I102: ='IlumCusto (ORÇ)'!I102 -> 0 | J102: ='IlumCusto (ORÇ)'!J102 -> 0 | K102: 0 | L102: 0 | P102: 95 | V102: 0 | W102: 0 | X102: =IF(AND(K102>0,'Custo Contábil'!$D$7>0),ROUND(K102*('Custo Contábil'!$D$20/'Custo Contábil'!$D$7)*W102,2),0) -> 0 | Y102: 0
B103: 96 | C103: =IF(ISBLANK('IlumCusto (ORÇ)'!C103)," ",'IlumCusto (ORÇ)'!C103) ->  | H103: ='IlumCusto (ORÇ)'!H103 -> 0 | I103: ='IlumCusto (ORÇ)'!I103 -> 0 | J103: ='IlumCusto (ORÇ)'!J103 -> 0 | K103: 0 | L103: 0 | P103: 96 | V103: 0 | W103: 0 | X103: =IF(AND(K103>0,'Custo Contábil'!$D$7>0),ROUND(K103*('Custo Contábil'!$D$20/'Custo Contábil'!$D$7)*W103,2),0) -> 0 | Y103: 0
B104: 97 | C104: =IF(ISBLANK('IlumCusto (ORÇ)'!C104)," ",'IlumCusto (ORÇ)'!C104) ->  | H104: ='IlumCusto (ORÇ)'!H104 -> 0 | I104: ='IlumCusto (ORÇ)'!I104 -> 0 | J104: ='IlumCusto (ORÇ)'!J104 -> 0 | K104: 0 | L104: 0 | P104: 97 | V104: 0 | W104: =IF(OR(V104="",V104=0),0,(Desc*((1+Desc)^V104))/(((1+Desc)^V104)-1)) -> 0 | X104: =IF(AND(K104>0,'Custo Contábil'!$D$7>0),ROUND(K104*('Custo Contábil'!$D$20/'Custo Contábil'!$D$7)*W104,2),0) -> 0 | Y104: 0
B105: 98 | C105: =IF(ISBLANK('IlumCusto (ORÇ)'!C105)," ",'IlumCusto (ORÇ)'!C105) ->  | H105: ='IlumCusto (ORÇ)'!H105 -> 0 | I105: ='IlumCusto (ORÇ)'!I105 -> 0 | J105: ='IlumCusto (ORÇ)'!J105 -> 0 | K105: 0 | L105: 0 | P105: 98 | V105: 0 | W105: =IF(OR(V105="",V105=0),0,(Desc*((1+Desc)^V105))/(((1+Desc)^V105)-1)) -> 0 | X105: =IF(AND(K105>0,'Custo Contábil'!$D$7>0),ROUND(K105*('Custo Contábil'!$D$20/'Custo Contábil'!$D$7)*W105,2),0) -> 0 | Y105: 0
B106: 99 | C106: =IF(ISBLANK('IlumCusto (ORÇ)'!C106)," ",'IlumCusto (ORÇ)'!C106) ->  | H106: ='IlumCusto (ORÇ)'!H106 -> 0 | I106: ='IlumCusto (ORÇ)'!I106 -> 0 | J106: ='IlumCusto (ORÇ)'!J106 -> 0 | K106: 0 | L106: 0 | P106: 99 | V106: 0 | W106: =IF(OR(V106="",V106=0),0,(Desc*((1+Desc)^V106))/(((1+Desc)^V106)-1)) -> 0 | X106: =IF(AND(K106>0,'Custo Contábil'!$D$7>0),ROUND(K106*('Custo Contábil'!$D$20/'Custo Contábil'!$D$7)*W106,2),0) -> 0 | Y106: 0
B107: 100 | C107: =IF(ISBLANK('IlumCusto (ORÇ)'!C107)," ",'IlumCusto (ORÇ)'!C107) ->  | H107: ='IlumCusto (ORÇ)'!H107 -> 0 | I107: ='IlumCusto (ORÇ)'!I107 -> 0 | J107: ='IlumCusto (ORÇ)'!J107 -> 0 | K107: 0 | L107: 0 | P107: =B107 -> 100 | V107: 0 | W107: =IF(OR(V107="",V107=0),0,(Desc*((1+Desc)^V107))/(((1+Desc)^V107)-1)) -> 0 | X107: =IF(AND(K107>0,'Custo Contábil'!$D$7>0),ROUND(K107*('Custo Contábil'!$D$20/'Custo Contábil'!$D$7)*W107,2),0) -> 0 | Y107: 0
C108: =IF(ISBLANK('IlumCusto (ORÇ)'!C108)," ",'IlumCusto (ORÇ)'!C108) -> Acessórios | H108: ='IlumCusto (ORÇ)'!H108 -> 20 | I108: ='IlumCusto (ORÇ)'!I108 -> 0 | J108: ='IlumCusto (ORÇ)'!J108 -> 0 | K108: 0 | L108: 0 | Q108: =IF(OR(C108=0,C108=""),"",C108) -> Acessórios | V108: =IF(H108="",0,H108) -> 20 | W108: =IF(OR(V108="",V108=0),0,(Desc*((1+Desc)^V108))/(((1+Desc)^V108)-1)) -> 0.1018522088 | X108: =IF(AND(K108>0,'Custo Contábil'!$D$7>0),ROUND(K108*('Custo Contábil'!$D$20/'Custo Contábil'!$D$7)*W108,2),0) -> 0 | Y108: 0
C109: Sub total - Materiais e equipamentos iluminação | K109: =SUM(K8:K108) -> 0 | L109: =SUM(L8:L108) -> 0 | M109: =SUM(M8:M108) -> 0 | N109: =SUM(N8:N108) -> 0 | P109: Custo anualizado total iluminação | W109: CAT_ILUM | X109: =SUM(X8:X108) -> 0
B110: MÃO DE OBRA | P110: Custo anualizado PEE iluminação | W110: CAPEE_ILUM | X110: =IFERROR(X109*($L$146/$K$146),0) -> 0
B111: Tipo de custo | K111: Custo total | L111: PEE | M111: Terceiros | N111: Consumidor
C112: Mão de obra própria | K112: =SUM(L112:N112) -> 0 | L112: ='Custo Contábil'!D41 -> 0 | M112: 0 | N112: 0 | P112: RCBILUMINAÇÃO_PEE | R112: =RCB!G5 -> 0 | T112: Vida Útil Média | V112: =IFERROR(SUM(Y8:Y108)/X109,0) -> 0
C113: Elaboração do Projeto (pré-diagnóstico e diagnóstico) | K113: =SUM(L113:N113) -> 0 | L113: =Diagnóstico!M13 -> 0 | M113: =Diagnóstico!N13 -> 0 | N113: =Diagnóstico!O13 -> 0 | P113: RCBILUMINAÇÃO_TOTAL | R113: =RCB!J5 -> 0
C114: Mão de obra de terceiros | H114: Quantidade | I114: Horas | J114: Valor da hora | K114: Custo total | L114: PEE | M114: Terceiros | N114: Consumidor
B115: 1 | C115: =IF(ISBLANK('IlumCusto (ORÇ)'!C120)," ",'IlumCusto (ORÇ)'!C120) ->  | H115: ='IlumCusto (ORÇ)'!H120 -> 0 | I115: ='IlumCusto (ORÇ)'!I120 -> 0 | J115: ='IlumCusto (ORÇ)'!J120 -> 0 | K115: =H115*I115*J115 -> 0 | L115: =K115-M115-N115 -> 0
B116: 2 | C116: =IF(ISBLANK('IlumCusto (ORÇ)'!C121)," ",'IlumCusto (ORÇ)'!C121) ->  | H116: ='IlumCusto (ORÇ)'!H121 -> 0 | I116: ='IlumCusto (ORÇ)'!I121 -> 0 | J116: ='IlumCusto (ORÇ)'!J121 -> 0 | K116: =H116*I116*J116 -> 0 | L116: =K116-M116-N116 -> 0
B117: 3 | C117: =IF(ISBLANK('IlumCusto (ORÇ)'!C122)," ",'IlumCusto (ORÇ)'!C122) ->  | H117: ='IlumCusto (ORÇ)'!H122 -> 0 | I117: ='IlumCusto (ORÇ)'!I122 -> 0 | J117: ='IlumCusto (ORÇ)'!J122 -> 0 | K117: =H117*I117*J117 -> 0 | L117: =K117-M117-N117 -> 0
B118: 4 | C118: =IF(ISBLANK('IlumCusto (ORÇ)'!C123)," ",'IlumCusto (ORÇ)'!C123) ->  | H118: ='IlumCusto (ORÇ)'!H123 -> 0 | I118: ='IlumCusto (ORÇ)'!I123 -> 0 | J118: ='IlumCusto (ORÇ)'!J123 -> 0 | K118: =H118*I118*J118 -> 0 | L118: =K118-M118-N118 -> 0
B119: 5 | C119: =IF(ISBLANK('IlumCusto (ORÇ)'!C124)," ",'IlumCusto (ORÇ)'!C124) ->  | H119: ='IlumCusto (ORÇ)'!H124 -> 0 | I119: ='IlumCusto (ORÇ)'!I124 -> 0 | J119: ='IlumCusto (ORÇ)'!J124 -> 0 | K119: =H119*I119*J119 -> 0 | L119: =K119-M119-N119 -> 0
C120: Sub total - Mão de obra de terceiros iluminação | K120: =SUM(K115:K119) -> 0 | L120: =SUM(L115:L119) -> 0 | M120: =SUM(M115:M119) -> 0 | N120: =SUM(N115:N119) -> 0
C121: Sub total - Mão de obra iluminação | K121: =SUM(K120,K112:K113) -> 0 | L121: =SUM(L120,L112:L113) -> 0 | M121: =SUM(M120,M112:M113) -> 0 | N121: =SUM(N120,N112:N113) -> 0
B122: TRANSPORTE E OUTROS CUSTOS DIRETOS
B123: Tipo de custo | K123: Custo total | L123: PEE | M123: Terceiros | N123: Consumidor
C124: Transporte | K124: =SUM(L124:N124) -> 0 | L124: ='Custo Contábil'!D43 -> 0 | M124: 0 | N124: 0
C125: Outros custos diretos | I125: Quantidade | J125: Valor | K125: Custo total | L125: PEE | M125: Terceiros | N125: Consumidor
B126: 1 | C126: =IF(ISBLANK('IlumCusto (ORÇ)'!C136)," ",'IlumCusto (ORÇ)'!C136) ->  | I126: ='IlumCusto (ORÇ)'!I136 -> 0 | J126: ='IlumCusto (ORÇ)'!J136 -> 0 | K126: =I126*J126 -> 0 | L126: =K126-M126-N126 -> 0
B127: 2 | C127: =IF(ISBLANK('IlumCusto (ORÇ)'!C137)," ",'IlumCusto (ORÇ)'!C137) ->  | I127: ='IlumCusto (ORÇ)'!I137 -> 0 | J127: ='IlumCusto (ORÇ)'!J137 -> 0 | K127: =I127*J127 -> 0 | L127: =K127-M127-N127 -> 0
B128: 3 | C128: =IF(ISBLANK('IlumCusto (ORÇ)'!C138)," ",'IlumCusto (ORÇ)'!C138) ->  | I128: ='IlumCusto (ORÇ)'!I138 -> 0 | J128: ='IlumCusto (ORÇ)'!J138 -> 0 | K128: =I128*J128 -> 0 | L128: =K128-M128-N128 -> 0
C129: Sub total - Outros custos diretos iluminação | K129: =SUM(K126:K128) -> 0 | L129: =SUM(L126:L128) -> 0 | M129: =SUM(M126:M128) -> 0 | N129: =SUM(N126:N128) -> 0
C130: Sub total - Transporte e outros custos diretos iluminação | K130: =SUM(K124,K129) -> 0 | L130: =SUM(L124,L129) -> 0 | M130: =SUM(M124,M129) -> 0 | N130: =SUM(N124,N129) -> 0
C131: Sub total - Custos diretos iluminação | K131: =SUM(K109,K121,K130) -> 0 | L131: =SUM(L109,L121,L130) -> 0 | M131: =SUM(M109,M121,M130) -> 0 | N131: =SUM(N109,N121,N130) -> 0
B132: CUSTOS INDIRETOS
B133: Tipo de custo | K133: Custo total | L133: PEE | M133: Terceiros | N133: Consumidor
C134: Administração própria | K134: =SUM(L134:N134) -> 0 | L134: ='Custo Contábil'!$D$39*'Custo Contábil'!F13 -> 0 | M134: 0 | N134: 0
C135: Auditoria Contábil Financeira | K135: 0 | L135: ='Custo Contábil'!D47 -> 0 | M135: 0 | N135: 0
C136: Marketing (Divulgação) | K136: 0 | L136: =Marketing!L18 -> 0 | M136: =Marketing!M18 -> 0 | N136: =Marketing!N18 -> 0
C137: Treinamento e capacitação | K137: 0 | L137: =Treinamento!L32 -> 0 | M137: =Treinamento!M32 -> 0 | N137: =Treinamento!N32 -> 0
C138: Descarte de materiais | K138: 0 | L138: =Descarte!L17 -> 0 | M138: =Descarte!M17 -> 0 | N138: =Descarte!N17 -> 0
C139: Medição e verificação | K139: 0 | L139: ='M&V'!N114 -> 0 | M139: ='M&V'!O114 -> 0 | N139: ='M&V'!P114 -> 0
B140: Outros custos indiretos | I140: Quantidade | J140: Valor | K140: Custo total | L140: PEE | M140: Terceiros | N140: Consumidor
B141: 1 | C141: =IF(ISBLANK('IlumCusto (ORÇ)'!C150)," ",'IlumCusto (ORÇ)'!C150) ->  | I141: ='IlumCusto (ORÇ)'!I150 -> 0 | J141: ='IlumCusto (ORÇ)'!J150 -> 0 | K141: =I141*J141 -> 0 | L141: =K141-M141-N141 -> 0
B142: 2 | C142: =IF(ISBLANK('IlumCusto (ORÇ)'!C151)," ",'IlumCusto (ORÇ)'!C151) ->  | I142: ='IlumCusto (ORÇ)'!I151 -> 0 | J142: ='IlumCusto (ORÇ)'!J151 -> 0 | K142: =I142*J142 -> 0 | L142: =K142-M142-N142 -> 0
B143: 3 | C143: =IF(ISBLANK('IlumCusto (ORÇ)'!C152)," ",'IlumCusto (ORÇ)'!C152) ->  | I143: ='IlumCusto (ORÇ)'!I152 -> 0 | J143: ='IlumCusto (ORÇ)'!J152 -> 0 | K143: =I143*J143 -> 0 | L143: =K143-M143-N143 -> 0
C144: Sub total - Outros custos indiretos iluminação | K144: =SUM(K141:K143) -> 0 | L144: =SUM(L141:L143) -> 0 | M144: =SUM(M141:M143) -> 0 | N144: =SUM(N141:N143) -> 0
C145: Sub total - Custos indiretos iluminação | K145: =SUM(K134:K139,K144) -> 0 | L145: =SUM(L134:L139,L144) -> 0 | M145: =SUM(M134:M139,M144) -> 0 | N145: =SUM(N134:N139,N144) -> 0
C146: Sub total - Custos iluminação | K146: =SUM(K131,K145) -> 0 | L146: =SUM(L131,L145) -> 0 | M146: =SUM(M131,M145) -> 0 | N146: =SUM(N131,N145) -> 0

Sheet IlumBenef
B2: BENEFÍCIOS - ILUMINAÇÃO
B3: ILUMINAÇÃO | G3: TOTAL | H3: ilumin 1 | I3: ilumin 2 | J3: ilumin 3 | K3: ilumin 4 | L3: ilumin 5 | M3: ilumin 6 | N3: ilumin 7 | O3: ilumin 8 | P3: ilumin 9 | Q3: ilumin 10 | R3: ilumin 11 | S3: ilumin 12 | T3: ilumin 13 | U3: ilumin 14 | V3: ilumin 15 | W3: ilumin 16 | X3: ilumin 17 | Y3: ilumin 18 | Z3: ilumin 19 | AA3: ilumin 20 | AB3: ilumin 21 | AC3: ilumin 22 | AD3: ilumin 23 | AE3: ilumin 24 | AF3: ilumin 25 | AG3: ilumin 26 | AH3: ilumin 27 | AI3: ilumin 28 | AJ3: ilumin 29 | AK3: ilumin 30 | AL3: ilumin 31 | AM3: ilumin 32 | AN3: ilumin 33 | AO3: ilumin 34 | AP3: ilumin 35 | AQ3: ilumin 36 | AR3: ilumin 37 | AS3: ilumin 38 | AT3: ilumin 39 | AU3: ilumin 40 | AV3: ilumin 41 | AW3: ilumin 42 | AX3: ilumin 43 | AY3: ilumin 44 | AZ3: ilumin 45 | BA3: ilumin 46 | BB3: ilumin 47 | BC3: ilumin 48 | BD3: ilumin 49 | BE3: ilumin 50
B4: SISTEMA ATUAL | G4: TOTAL | H4: ilumin 1 | I4: ilumin 2 | J4: ilumin 3 | K4: ilumin 4 | L4: ilumin 5 | M4: ilumin 6 | N4: ilumin 7 | O4: ilumin 8 | P4: ilumin 9 | Q4: ilumin 10 | R4: ilumin 11 | S4: ilumin 12 | T4: ilumin 13 | U4: ilumin 14 | V4: ilumin 15 | W4: ilumin 16 | X4: ilumin 17 | Y4: ilumin 18 | Z4: ilumin 19 | AA4: ilumin 20 | AB4: ilumin 21 | AC4: ilumin 22 | AD4: ilumin 23 | AE4: ilumin 24 | AF4: ilumin 25 | AG4: ilumin 26 | AH4: ilumin 27 | AI4: ilumin 28 | AJ4: ilumin 29 | AK4: ilumin 30 | AL4: ilumin 31 | AM4: ilumin 32 | AN4: ilumin 33 | AO4: ilumin 34 | AP4: ilumin 35 | AQ4: ilumin 36 | AR4: ilumin 37 | AS4: ilumin 38 | AT4: ilumin 39 | AU4: ilumin 40 | AV4: ilumin 41 | AW4: ilumin 42 | AX4: ilumin 43 | AY4: ilumin 44 | AZ4: ilumin 45 | BA4: ilumin 46 | BB4: ilumin 47 | BC4: ilumin 48 | BD4: ilumin 49 | BE4: ilumin 50
B5: 1 | C5: Tipo de equipamento / tecnologia
B6: =B5+1 -> 2 | C6: Lâmpadas | D6: Potência | E6: W | F6: plai | G6: =SUM(H6:BE6) -> 0
D7: Quantidade | F7: qlai | G7: =SUM(H7:BE7) -> 0
B8: =B6+1 -> 3 | C8: Reatores | D8: Potência | E8: W | F8: prai | G8: =SUM(H8:BE8) -> 0
D9: Quantidade | F9: qrai | G9: =SUM(H9:BE9) -> 0
B10: =B8+1 -> 4 | C10: Potência instalada | E10: kW | F10: Pai | G10: =SUM(H10:BE10) -> 0 | H10: =(H6*H7+H8*H9)/1000 -> 0 | I10: =(I6*I7+I8*I9)/1000 -> 0 | J10: 0 | K10: 0 | L10: 0 | M10: 0 | N10: 0 | O10: 0 | P10: 0 | Q10: 0 | R10: 0 | S10: 0 | T10: 0 | U10: 0 | V10: 0 | W10: 0 | X10: 0 | Y10: 0 | Z10: 0 | AA10: 0 | AB10: 0 | AC10: 0 | AD10: 0 | AE10: 0 | AF10: 0 | AG10: 0 | AH10: 0 | AI10: 0 | AJ10: 0 | AK10: 0 | AL10: 0 | AM10: 0 | AN10: 0 | AO10: 0 | AP10: 0 | AQ10: 0 | AR10: 0 | AS10: 0 | AT10: 0 | AU10: 0 | AV10: 0 | AW10: 0 | AX10: 0 | AY10: 0 | AZ10: 0 | BA10: 0 | BB10: 0 | BC10: 0 | BD10: 0 | BE10: 0
B11: =B10+1 -> 5 | C11: Tempo de utilização do sistema, em um dia | E11: h/dia
C12: Dias de utilização do sistema, em um ano | E12: dia/ano
C13: Funcionamento | E13: h/ano | F13: hai | H13: =H11*H12 -> 0 | I13: =I11*I12 -> 0 | J13: 0 | K13: 0 | L13: 0 | M13: 0 | N13: 0 | O13: 0 | P13: 0 | Q13: 0 | R13: 0 | S13: 0 | T13: 0 | U13: 0 | V13: 0 | W13: 0 | X13: 0 | Y13: 0 | Z13: 0 | AA13: 0 | AB13: 0 | AC13: 0 | AD13: 0 | AE13: 0 | AF13: 0 | AG13: 0 | AH13: 0 | AI13: 0 | AJ13: 0 | AK13: 0 | AL13: 0 | AM13: 0 | AN13: 0 | AO13: 0 | AP13: 0 | AQ13: 0 | AR13: 0 | AS13: 0 | AT13: 0 | AU13: 0 | AV13: 0 | AW13: 0 | AX13: 0 | AY13: 0 | AZ13: 0 | BA13: 0 | BB13: 0 | BC13: 0 | BD13: 0 | BE13: 0
B14: =B11+1 -> 6 | C14: Meses no ano, de utilização do Sistema no horário de Ponta | E14: meses | F14: NM | G14: 12
C15: Dias úteis no mês, de utilização do Sistema no horário de Ponta | E15: dias | F15: ND | G15: 22
C16: Horas por dia, de utilização do Sistema no horário de Ponta | E16: horas | F16: NUP | G16: 3
C17: Potência média na ponta | E17: kW | F17: dai | G17: =SUM(H17:BE17) -> 0 | H17: =H10*((H14*H15*H16)/($G$14*$G$15*$G$16)) -> 0 | I17: =I10*((I14*I15*I16)/($G$14*$G$15*$G$16)) -> 0 | J17: 0 | K17: 0 | L17: 0 | M17: 0 | N17: 0 | O17: 0 | P17: 0 | Q17: 0 | R17: 0 | S17: 0 | T17: 0 | U17: 0 | V17: 0 | W17: 0 | X17: 0 | Y17: 0 | Z17: 0 | AA17: 0 | AB17: 0 | AC17: 0 | AD17: 0 | AE17: 0 | AF17: 0 | AG17: 0 | AH17: 0 | AI17: 0 | AJ17: 0 | AK17: 0 | AL17: 0 | AM17: 0 | AN17: 0 | AO17: 0 | AP17: 0 | AQ17: 0 | AR17: 0 | AS17: 0 | AT17: 0 | AU17: 0 | AV17: 0 | AW17: 0 | AX17: 0 | AY17: 0 | AZ17: 0 | BA17: 0 | BB17: 0 | BC17: 0 | BD17: 0 | BE17: 0
C18: Fator de coincidência na ponta | F18: FCPai | G18: =IF(LARGE(H18:BE18,1)>1,"ERRO","") ->  | H18: =IFERROR(H17/H10,0) -> 0 | I18: =IFERROR(I17/I10,0) -> 0 | J18: 0 | K18: 0 | L18: 0 | M18: 0 | N18: 0 | O18: 0 | P18: 0 | Q18: 0 | R18: 0 | S18: 0 | T18: 0 | U18: 0 | V18: 0 | W18: 0 | X18: 0 | Y18: 0 | Z18: 0 | AA18: 0 | AB18: 0 | AC18: 0 | AD18: 0 | AE18: 0 | AF18: 0 | AG18: 0 | AH18: 0 | AI18: 0 | AJ18: 0 | AK18: 0 | AL18: 0 | AM18: 0 | AN18: 0 | AO18: 0 | AP18: 0 | AQ18: 0 | AR18: 0 | AS18: 0 | AT18: 0 | AU18: 0 | AV18: 0 | AW18: 0 | AX18: 0 | AY18: 0 | AZ18: 0 | BA18: 0 | BB18: 0 | BC18: 0 | BD18: 0 | BE18: 0
B19: =B14+1 -> 7 | C19: Energia consumida | E19: MWh/ano | F19: Eai | G19: =SUM(H19:BE19) -> 0 | H19: =(H10*H13)/1000 -> 0 | I19: =(I10*I13)/1000 -> 0 | J19: 0 | K19: 0 | L19: 0 | M19: 0 | N19: 0 | O19: 0 | P19: 0 | Q19: 0 | R19: 0 | S19: 0 | T19: 0 | U19: 0 | V19: 0 | W19: 0 | X19: 0 | Y19: 0 | Z19: 0 | AA19: 0 | AB19: 0 | AC19: 0 | AD19: 0 | AE19: 0 | AF19: 0 | AG19: 0 | AH19: 0 | AI19: 0 | AJ19: 0 | AK19: 0 | AL19: 0 | AM19: 0 | AN19: 0 | AO19: 0 | AP19: 0 | AQ19: 0 | AR19: 0 | AS19: 0 | AT19: 0 | AU19: 0 | AV19: 0 | AW19: 0 | AX19: 0 | AY19: 0 | AZ19: 0 | BA19: 0 | BB19: 0 | BC19: 0 | BD19: 0 | BE19: 0
B20: =B19+1 -> 8 | C20: Demanda média na ponta | E20: kW | F20: Dai | G20: =SUM(H20:BE20) -> 0 | H20: =H10*H18 -> 0 | I20: =I10*I18 -> 0 | J20: 0 | K20: 0 | L20: 0 | M20: 0 | N20: 0 | O20: 0 | P20: 0 | Q20: 0 | R20: 0 | S20: 0 | T20: 0 | U20: 0 | V20: 0 | W20: 0 | X20: 0 | Y20: 0 | Z20: 0 | AA20: 0 | AB20: 0 | AC20: 0 | AD20: 0 | AE20: 0 | AF20: 0 | AG20: 0 | AH20: 0 | AI20: 0 | AJ20: 0 | AK20: 0 | AL20: 0 | AM20: 0 | AN20: 0 | AO20: 0 | AP20: 0 | AQ20: 0 | AR20: 0 | AS20: 0 | AT20: 0 | AU20: 0 | AV20: 0 | AW20: 0 | AX20: 0 | AY20: 0 | AZ20: 0 | BA20: 0 | BB20: 0 | BC20: 0 | BD20: 0 | BE20: 0
B22: SISTEMA PROPOSTO
H23: ilumin 1 | I23: ilumin 2 | J23: ilumin 3 | K23: ilumin 4 | L23: ilumin 5 | M23: ilumin 6 | N23: ilumin 7 | O23: ilumin 8 | P23: ilumin 9 | Q23: ilumin 10 | R23: ilumin 11 | S23: ilumin 12 | T23: ilumin 13 | U23: ilumin 14 | V23: ilumin 15 | W23: ilumin 16 | X23: ilumin 17 | Y23: ilumin 18 | Z23: ilumin 19 | AA23: ilumin 20 | AB23: ilumin 21 | AC23: ilumin 22 | AD23: ilumin 23 | AE23: ilumin 24 | AF23: ilumin 25 | AG23: ilumin 26 | AH23: ilumin 27 | AI23: ilumin 28 | AJ23: ilumin 29 | AK23: ilumin 30 | AL23: ilumin 31 | AM23: ilumin 32 | AN23: ilumin 33 | AO23: ilumin 34 | AP23: ilumin 35 | AQ23: ilumin 36 | AR23: ilumin 37 | AS23: ilumin 38 | AT23: ilumin 39 | AU23: ilumin 40 | AV23: ilumin 41 | AW23: ilumin 42 | AX23: ilumin 43 | AY23: ilumin 44 | AZ23: ilumin 45 | BA23: ilumin 46 | BB23: ilumin 47 | BC23: ilumin 48 | BD23: ilumin 49 | BE23: ilumin 50
B24: =B20+1 -> 9 | C24: Tipo de equipamento / tecnologia
B25: =B24+1 -> 10 | C25: Lâmpadas | D25: Potência | E25: W | F25: plpi | G25: =SUM(H25:BE25) -> 0
D26: Quantidade | F26: qlpi | G26: =SUM(H26:BE26) -> 0
B27: =B25+1 -> 11 | C27: Reatores | D27: Potência | E27: W | F27: prpi | G27: =SUM(H27:BE27) -> 0
D28: Quantidade | F28: qrpi | G28: =SUM(H28:BE28) -> 0
B29: =B27+1 -> 12 | C29: Potência instalada | E29: kW | F29: Ppi | G29: =SUM(H29:BE29) -> 0 | H29: =(H25*H26+H27*H28)/1000 -> 0 | I29: =(I25*I26+I27*I28)/1000 -> 0 | J29: 0 | K29: 0 | L29: 0 | M29: 0 | N29: 0 | O29: 0 | P29: 0 | Q29: 0 | R29: 0 | S29: 0 | T29: 0 | U29: 0 | V29: 0 | W29: 0 | X29: 0 | Y29: 0 | Z29: 0 | AA29: 0 | AB29: 0 | AC29: 0 | AD29: 0 | AE29: 0 | AF29: 0 | AG29: 0 | AH29: 0 | AI29: 0 | AJ29: 0 | AK29: 0 | AL29: 0 | AM29: 0 | AN29: 0 | AO29: 0 | AP29: 0 | AQ29: 0 | AR29: 0 | AS29: 0 | AT29: 0 | AU29: 0 | AV29: 0 | AW29: 0 | AX29: 0 | AY29: 0 | AZ29: 0 | BA29: 0 | BB29: 0 | BC29: 0 | BD29: 0 | BE29: 0
B30: =B29+1 -> 13 | C30: Tempo de utilização do sistema, em um dia | E30: h/dia
C31: Dias de utilização do sistema, em um ano | E31: dia/ano
C32: Funcionamento | E32: h/ano | F32: hpi | H32: =H30*H31 -> 0 | I32: =I30*I31 -> 0 | J32: 0 | K32: 0 | L32: 0 | M32: 0 | N32: 0 | O32: 0 | P32: 0 | Q32: 0 | R32: 0 | S32: 0 | T32: 0 | U32: 0 | V32: 0 | W32: 0 | X32: 0 | Y32: 0 | Z32: 0 | AA32: 0 | AB32: 0 | AC32: 0 | AD32: 0 | AE32: 0 | AF32: 0 | AG32: 0 | AH32: 0 | AI32: 0 | AJ32: 0 | AK32: 0 | AL32: 0 | AM32: 0 | AN32: 0 | AO32: 0 | AP32: 0 | AQ32: 0 | AR32: 0 | AS32: 0 | AT32: 0 | AU32: 0 | AV32: 0 | AW32: 0 | AX32: 0 | AY32: 0 | AZ32: 0 | BA32: 0 | BB32: 0 | BC32: 0 | BD32: 0 | BE32: 0
B33: =B30+1 -> 14 | C33: Meses no ano, de utilização do Sistema no horário de Ponta | E33: meses | F33: NM | G33: 12
C34: Dias úteis no mês, de utilização do Sistema no horário de Ponta | E34: dias | F34: ND | G34: 22
C35: Horas por dia, de utilização do Sistema no horário de Ponta | E35: horas | F35: NUP | G35: 3
C36: Potência média na ponta | E36: kW | F36: dpi | G36: =SUM(H36:BE36) -> 0 | H36: =H29*((H33*H34*H35)/($G$33*$G$34*$G$35)) -> 0 | I36: =I29*((I33*I34*I35)/($G$33*$G$34*$G$35)) -> 0 | J36: 0 | K36: 0 | L36: 0 | M36: 0 | N36: 0 | O36: 0 | P36: 0 | Q36: 0 | R36: 0 | S36: 0 | T36: 0 | U36: 0 | V36: 0 | W36: 0 | X36: 0 | Y36: 0 | Z36: 0 | AA36: 0 | AB36: 0 | AC36: 0 | AD36: 0 | AE36: 0 | AF36: 0 | AG36: 0 | AH36: 0 | AI36: 0 | AJ36: 0 | AK36: 0 | AL36: 0 | AM36: 0 | AN36: 0 | AO36: 0 | AP36: 0 | AQ36: 0 | AR36: 0 | AS36: 0 | AT36: 0 | AU36: 0 | AV36: 0 | AW36: 0 | AX36: 0 | AY36: 0 | AZ36: 0 | BA36: 0 | BB36: 0 | BC36: 0 | BD36: 0 | BE36: 0
C37: Fator de coincidência na ponta | F37: FCPpi | G37: =IF(LARGE(H37:BE37,1)>1,"ERRO","") ->  | H37: =IFERROR(H36/H29,0) -> 0 | I37: =IF(I29=0,0,ROUND(I36/I29,2)) -> 0 | J37: 0 | K37: 0 | L37: 0 | M37: 0 | N37: 0 | O37: 0 | P37: 0 | Q37: 0 | R37: 0 | S37: 0 | T37: 0 | U37: 0 | V37: 0 | W37: 0 | X37: 0 | Y37: 0 | Z37: 0 | AA37: 0 | AB37: 0 | AC37: 0 | AD37: 0 | AE37: 0 | AF37: 0 | AG37: 0 | AH37: 0 | AI37: 0 | AJ37: 0 | AK37: 0 | AL37: 0 | AM37: 0 | AN37: 0 | AO37: 0 | AP37: 0 | AQ37: 0 | AR37: 0 | AS37: 0 | AT37: 0 | AU37: 0 | AV37: 0 | AW37: 0 | AX37: 0 | AY37: 0 | AZ37: 0 | BA37: 0 | BB37: 0 | BC37: 0 | BD37: 0 | BE37: 0
B38: =B33+1 -> 15 | C38: Energia consumida | E38: MWh/ano | F38: Epi | G38: =SUM(H38:BE38) -> 0 | H38: =(H29*H32)/1000 -> 0 | I38: =(I29*I32)/1000 -> 0 | J38: 0 | K38: 0 | L38: 0 | M38: 0 | N38: 0 | O38: 0 | P38: 0 | Q38: 0 | R38: 0 | S38: 0 | T38: 0 | U38: 0 | V38: 0 | W38: 0 | X38: 0 | Y38: 0 | Z38: 0 | AA38: 0 | AB38: 0 | AC38: 0 | AD38: 0 | AE38: 0 | AF38: 0 | AG38: 0 | AH38: 0 | AI38: 0 | AJ38: 0 | AK38: 0 | AL38: 0 | AM38: 0 | AN38: 0 | AO38: 0 | AP38: 0 | AQ38: 0 | AR38: 0 | AS38: 0 | AT38: 0 | AU38: 0 | AV38: 0 | AW38: 0 | AX38: 0 | AY38: 0 | AZ38: 0 | BA38: 0 | BB38: 0 | BC38: 0 | BD38: 0 | BE38: 0
B39: =B38+1 -> 16 | C39: Demanda média na ponta | E39: kW | F39: Dpi | G39: =SUM(H39:BE39) -> 0 | H39: =H29*H37 -> 0 | I39: =I29*I37 -> 0 | J39: 0 | K39: 0 | L39: 0 | M39: 0 | N39: 0 | O39: 0 | P39: 0 | Q39: 0 | R39: 0 | S39: 0 | T39: 0 | U39: 0 | V39: 0 | W39: 0 | X39: 0 | Y39: 0 | Z39: 0 | AA39: 0 | AB39: 0 | AC39: 0 | AD39: 0 | AE39: 0 | AF39: 0 | AG39: 0 | AH39: 0 | AI39: 0 | AJ39: 0 | AK39: 0 | AL39: 0 | AM39: 0 | AN39: 0 | AO39: 0 | AP39: 0 | AQ39: 0 | AR39: 0 | AS39: 0 | AT39: 0 | AU39: 0 | AV39: 0 | AW39: 0 | AX39: 0 | AY39: 0 | AZ39: 0 | BA39: 0 | BB39: 0 | BC39: 0 | BD39: 0 | BE39: 0
B41: RESULTADOS ESPERADOS
G42: TOTAL | H42: ilumin 1 | I42: ilumin 2 | J42: ilumin 3 | K42: ilumin 4 | L42: ilumin 5 | M42: ilumin 6 | N42: ilumin 7 | O42: ilumin 8 | P42: ilumin 9 | Q42: ilumin 10 | R42: ilumin 11 | S42: ilumin 12 | T42: ilumin 13 | U42: ilumin 14 | V42: ilumin 15 | W42: ilumin 16 | X42: ilumin 17 | Y42: ilumin 18 | Z42: ilumin 19 | AA42: ilumin 20 | AB42: ilumin 21 | AC42: ilumin 22 | AD42: ilumin 23 | AE42: ilumin 24 | AF42: ilumin 25 | AG42: ilumin 26 | AH42: ilumin 27 | AI42: ilumin 28 | AJ42: ilumin 29 | AK42: ilumin 30 | AL42: ilumin 31 | AM42: ilumin 32 | AN42: ilumin 33 | AO42: ilumin 34 | AP42: ilumin 35 | AQ42: ilumin 36 | AR42: ilumin 37 | AS42: ilumin 38 | AT42: ilumin 39 | AU42: ilumin 40 | AV42: ilumin 41 | AW42: ilumin 42 | AX42: ilumin 43 | AY42: ilumin 44 | AZ42: ilumin 45 | BA42: ilumin 46 | BB42: ilumin 47 | BC42: ilumin 48 | BD42: ilumin 49 | BE42: ilumin 50
B43: =B39+1 -> 17 | C43: Redução de demanda na ponta | E43: kW | F43: RDPi | G43: =SUM(H43:BE43) -> 0 | H43: =H20-H39 -> 0 | I43: =I20-I39 -> 0 | J43: 0 | K43: 0 | L43: 0 | M43: 0 | N43: 0 | O43: 0 | P43: 0 | Q43: 0 | R43: 0 | S43: 0 | T43: 0 | U43: 0 | V43: 0 | W43: 0 | X43: 0 | Y43: 0 | Z43: 0 | AA43: 0 | AB43: 0 | AC43: 0 | AD43: 0 | AE43: 0 | AF43: 0 | AG43: 0 | AH43: 0 | AI43: 0 | AJ43: 0 | AK43: 0 | AL43: 0 | AM43: 0 | AN43: 0 | AO43: 0 | AP43: 0 | AQ43: 0 | AR43: 0 | AS43: 0 | AT43: 0 | AU43: 0 | AV43: 0 | AW43: 0 | AX43: 0 | AY43: 0 | AZ43: 0 | BA43: 0 | BB43: 0 | BC43: 0 | BD43: 0 | BE43: 0
B44: =B43+1 -> 18 | C44: Custo evitado de demanda (CED) = | D44: =CED -> 1906.44 | E44: % | F44: RDPi% | G44: =IF(G20=0,0,G43/G20) -> 0 | H44: =IFERROR(H43/H20,0) -> 0 | I44: =IFERROR(I43/I20,0) -> 0 | J44: 0 | K44: 0 | L44: 0 | M44: 0 | N44: 0 | O44: 0 | P44: 0 | Q44: 0 | R44: 0 | S44: 0 | T44: 0 | U44: 0 | V44: 0 | W44: 0 | X44: 0 | Y44: 0 | Z44: 0 | AA44: 0 | AB44: 0 | AC44: 0 | AD44: 0 | AE44: 0 | AF44: 0 | AG44: 0 | AH44: 0 | AI44: 0 | AJ44: 0 | AK44: 0 | AL44: 0 | AM44: 0 | AN44: 0 | AO44: 0 | AP44: 0 | AQ44: 0 | AR44: 0 | AS44: 0 | AT44: 0 | AU44: 0 | AV44: 0 | AW44: 0 | AX44: 0 | AY44: 0 | AZ44: 0 | BA44: 0 | BB44: 0 | BC44: 0 | BD44: 0 | BE44: 0
B45: =B44+1 -> 19 | C45: Energia economizada | E45: MWh/ano | F45: EEi | G45: =SUM(H45:BE45) -> 0 | H45: =H19-H38 -> 0 | I45: =I19-I38 -> 0 | J45: 0 | K45: 0 | L45: 0 | M45: 0 | N45: 0 | O45: 0 | P45: 0 | Q45: 0 | R45: 0 | S45: 0 | T45: 0 | U45: 0 | V45: 0 | W45: 0 | X45: 0 | Y45: 0 | Z45: 0 | AA45: 0 | AB45: 0 | AC45: 0 | AD45: 0 | AE45: 0 | AF45: 0 | AG45: 0 | AH45: 0 | AI45: 0 | AJ45: 0 | AK45: 0 | AL45: 0 | AM45: 0 | AN45: 0 | AO45: 0 | AP45: 0 | AQ45: 0 | AR45: 0 | AS45: 0 | AT45: 0 | AU45: 0 | AV45: 0 | AW45: 0 | AX45: 0 | AY45: 0 | AZ45: 0 | BA45: 0 | BB45: 0 | BC45: 0 | BD45: 0 | BE45: 0
B46: =B45+1 -> 20 | C46: Custo da energia evitada (CEE) = | D46: =CEE -> 797.57 | E46: % | F46: EEi% | G46: =IF(G19=0,0,G45/G19) -> 0 | H46: =IFERROR(H45/H19,0) -> 0 | I46: =IFERROR(I45/I19,0) -> 0 | J46: 0 | K46: 0 | L46: 0 | M46: 0 | N46: 0 | O46: 0 | P46: 0 | Q46: 0 | R46: 0 | S46: 0 | T46: 0 | U46: 0 | V46: 0 | W46: 0 | X46: 0 | Y46: 0 | Z46: 0 | AA46: 0 | AB46: 0 | AC46: 0 | AD46: 0 | AE46: 0 | AF46: 0 | AG46: 0 | AH46: 0 | AI46: 0 | AJ46: 0 | AK46: 0 | AL46: 0 | AM46: 0 | AN46: 0 | AO46: 0 | AP46: 0 | AQ46: 0 | AR46: 0 | AS46: 0 | AT46: 0 | AU46: 0 | AV46: 0 | AW46: 0 | AX46: 0 | AY46: 0 | AZ46: 0 | BA46: 0 | BB46: 0 | BC46: 0 | BD46: 0 | BE46: 0
C47: Benefício anualizado iluminação | E47: R$ | F47: BILUM | G47: =SUM(H47:BE47) -> 0 | H47: =H43*$D$44+H45*$D$46 -> 0 | I47: =I43*$D$44+I45*$D$46 -> 0 | J47: 0 | K47: 0 | L47: 0 | M47: 0 | N47: 0 | O47: 0 | P47: 0 | Q47: 0 | R47: 0 | S47: 0 | T47: 0 | U47: 0 | V47: 0 | W47: 0 | X47: 0 | Y47: 0 | Z47: 0 | AA47: 0 | AB47: 0 | AC47: 0 | AD47: 0 | AE47: 0 | AF47: 0 | AG47: 0 | AH47: 0 | AI47: 0 | AJ47: 0 | AK47: 0 | AL47: 0 | AM47: 0 | AN47: 0 | AO47: 0 | AP47: 0 | AQ47: 0 | AR47: 0 | AS47: 0 | AT47: 0 | AU47: 0 | AV47: 0 | AW47: 0 | AX47: 0 | AY47: 0 | AZ47: 0 | BA47: 0 | BB47: 0 | BC47: 0 | BD47: 0 | BE47: 0
E49: RCBILUMINAÇÃO_PEE | G49: =RCB!G5 -> 0
E50: RCBILUMINAÇÃO_TOTAL | G50: =RCB!J5 -> 0
B53: ECONOMIA MENSAL PARA O CONSUMIDOR (SIMULAÇÃO)
G54: TOTAL | H54: ilumin 1 | I54: ilumin 2 | J54: ilumin 3 | K54: ilumin 4 | L54: ilumin 5 | M54: ilumin 6 | N54: ilumin 7 | O54: ilumin 8 | P54: ilumin 9 | Q54: ilumin 10 | R54: ilumin 11 | S54: ilumin 12 | T54: ilumin 13 | U54: ilumin 14 | V54: ilumin 15 | W54: ilumin 16 | X54: ilumin 17 | Y54: ilumin 18 | Z54: ilumin 19 | AA54: ilumin 20 | AB54: ilumin 21 | AC54: ilumin 22 | AD54: ilumin 23 | AE54: ilumin 24 | AF54: ilumin 25 | AG54: ilumin 26 | AH54: ilumin 27 | AI54: ilumin 28 | AJ54: ilumin 29 | AK54: ilumin 30 | AL54: ilumin 31 | AM54: ilumin 32 | AN54: ilumin 33 | AO54: ilumin 34 | AP54: ilumin 35 | AQ54: ilumin 36 | AR54: ilumin 37 | AS54: ilumin 38 | AT54: ilumin 39 | AU54: ilumin 40 | AV54: ilumin 41 | AW54: ilumin 42 | AX54: ilumin 43 | AY54: ilumin 44 | AZ54: ilumin 45 | BA54: ilumin 46 | BB54: ilumin 47 | BC54: ilumin 48 | BD54: ilumin 49 | BE54: ilumin 50
B55: =B46+1 -> 21 | C55: Tempo de utilização do sistema, em um dia | E55: h/dia | H55: =H30 -> 0 | I55: =I30 -> 0 | J55: 0 | K55: 0 | L55: 0 | M55: 0 | N55: 0 | O55: 0 | P55: 0 | Q55: 0 | R55: 0 | S55: 0 | T55: 0 | U55: 0 | V55: 0 | W55: 0 | X55: 0 | Y55: 0 | Z55: 0 | AA55: 0 | AB55: 0 | AC55: 0 | AD55: 0 | AE55: 0 | AF55: 0 | AG55: 0 | AH55: 0 | AI55: 0 | AJ55: 0 | AK55: 0 | AL55: 0 | AM55: 0 | AN55: 0 | AO55: 0 | AP55: 0 | AQ55: 0 | AR55: 0 | AS55: 0 | AT55: 0 | AU55: 0 | AV55: 0 | AW55: 0 | AX55: 0 | AY55: 0 | AZ55: 0 | BA55: 0 | BB55: 0 | BC55: 0 | BD55: 0 | BE55: 0
B56: =B55+1 -> 22 | C56: Dias úteis por mês de utilização do sistema na ponta | E56: 22 | H56: =H34 -> 0 | I56: =I34 -> 0 | J56: 0 | K56: 0 | L56: 0 | M56: 0 | N56: 0 | O56: 0 | P56: 0 | Q56: 0 | R56: 0 | S56: 0 | T56: 0 | U56: 0 | V56: 0 | W56: 0 | X56: 0 | Y56: 0 | Z56: 0 | AA56: 0 | AB56: 0 | AC56: 0 | AD56: 0 | AE56: 0 | AF56: 0 | AG56: 0 | AH56: 0 | AI56: 0 | AJ56: 0 | AK56: 0 | AL56: 0 | AM56: 0 | AN56: 0 | AO56: 0 | AP56: 0 | AQ56: 0 | AR56: 0 | AS56: 0 | AT56: 0 | AU56: 0 | AV56: 0 | AW56: 0 | AX56: 0 | AY56: 0 | AZ56: 0 | BA56: 0 | BB56: 0 | BC56: 0 | BD56: 0 | BE56: 0
B57: =B56+1 -> 23 | C57: Horas por dia de utilização do sistema na ponta | E57: 3 | H57: =H35 -> 0 | I57: =I35 -> 0 | J57: 0 | K57: 0 | L57: 0 | M57: 0 | N57: 0 | O57: 0 | P57: 0 | Q57: 0 | R57: 0 | S57: 0 | T57: 0 | U57: 0 | V57: 0 | W57: 0 | X57: 0 | Y57: 0 | Z57: 0 | AA57: 0 | AB57: 0 | AC57: 0 | AD57: 0 | AE57: 0 | AF57: 0 | AG57: 0 | AH57: 0 | AI57: 0 | AJ57: 0 | AK57: 0 | AL57: 0 | AM57: 0 | AN57: 0 | AO57: 0 | AP57: 0 | AQ57: 0 | AR57: 0 | AS57: 0 | AT57: 0 | AU57: 0 | AV57: 0 | AW57: 0 | AX57: 0 | AY57: 0 | AZ57: 0 | BA57: 0 | BB57: 0 | BC57: 0 | BD57: 0 | BE57: 0
B58: 24 | C58: Dias com funcionamento na ponta em um mês | E58: % | H58: =H56/30 -> 0 | I58: =I56/30 -> 0 | J58: 0 | K58: 0 | L58: 0 | M58: 0 | N58: 0 | O58: 0 | P58: 0 | Q58: 0 | R58: 0 | S58: 0 | T58: 0 | U58: 0 | V58: 0 | W58: 0 | X58: 0 | Y58: 0 | Z58: 0 | AA58: 0 | AB58: 0 | AC58: 0 | AD58: 0 | AE58: 0 | AF58: 0 | AG58: 0 | AH58: 0 | AI58: 0 | AJ58: 0 | AK58: 0 | AL58: 0 | AM58: 0 | AN58: 0 | AO58: 0 | AP58: 0 | AQ58: 0 | AR58: 0 | AS58: 0 | AT58: 0 | AU58: 0 | AV58: 0 | AW58: 0 | AX58: 0 | AY58: 0 | AZ58: 0 | BA58: 0 | BB58: 0 | BC58: 0 | BD58: 0 | BE58: 0
B59: 25 | C59: Horas com funcionamento na ponta em um dia | E59: % | H59: =IFERROR((H57/H55),0) -> 0 | I59: =IFERROR((I57/I55),0) -> 0 | J59: 0 | K59: 0 | L59: 0 | M59: 0 | N59: 0 | O59: 0 | P59: 0 | Q59: 0 | R59: 0 | S59: 0 | T59: 0 | U59: 0 | V59: 0 | W59: 0 | X59: 0 | Y59: 0 | Z59: 0 | AA59: 0 | AB59: 0 | AC59: 0 | AD59: 0 | AE59: 0 | AF59: 0 | AG59: 0 | AH59: 0 | AI59: 0 | AJ59: 0 | AK59: 0 | AL59: 0 | AM59: 0 | AN59: 0 | AO59: 0 | AP59: 0 | AQ59: 0 | AR59: 0 | AS59: 0 | AT59: 0 | AU59: 0 | AV59: 0 | AW59: 0 | AX59: 0 | AY59: 0 | AZ59: 0 | BA59: 0 | BB59: 0 | BC59: 0 | BD59: 0 | BE59: 0
B60: 26 | C60: Funcionamento mensal em horário de ponta | E60: % | H60: =H58*H59 -> 0 | I60: =I58*I59 -> 0 | J60: 0 | K60: 0 | L60: 0 | M60: 0 | N60: 0 | O60: 0 | P60: 0 | Q60: 0 | R60: 0 | S60: 0 | T60: 0 | U60: 0 | V60: 0 | W60: 0 | X60: 0 | Y60: 0 | Z60: 0 | AA60: 0 | AB60: 0 | AC60: 0 | AD60: 0 | AE60: 0 | AF60: 0 | AG60: 0 | AH60: 0 | AI60: 0 | AJ60: 0 | AK60: 0 | AL60: 0 | AM60: 0 | AN60: 0 | AO60: 0 | AP60: 0 | AQ60: 0 | AR60: 0 | AS60: 0 | AT60: 0 | AU60: 0 | AV60: 0 | AW60: 0 | AX60: 0 | AY60: 0 | AZ60: 0 | BA60: 0 | BB60: 0 | BC60: 0 | BD60: 0 | BE60: 0
B61: 27 | C61: Energia economizada mensal | E61: MWh/mês | G61: =ROUND(SUM(H61:BE61),2) -> 0 | H61: =H45/12 -> 0 | I61: =I45/12 -> 0 | J61: 0 | K61: 0 | L61: 0 | M61: 0 | N61: 0 | O61: 0 | P61: 0 | Q61: 0 | R61: 0 | S61: 0 | T61: 0 | U61: 0 | V61: 0 | W61: 0 | X61: 0 | Y61: 0 | Z61: 0 | AA61: 0 | AB61: 0 | AC61: 0 | AD61: 0 | AE61: 0 | AF61: 0 | AG61: 0 | AH61: 0 | AI61: 0 | AJ61: 0 | AK61: 0 | AL61: 0 | AM61: 0 | AN61: 0 | AO61: 0 | AP61: 0 | AQ61: 0 | AR61: 0 | AS61: 0 | AT61: 0 | AU61: 0 | AV61: 0 | AW61: 0 | AX61: 0 | AY61: 0 | AZ61: 0 | BA61: 0 | BB61: 0 | BC61: 0 | BD61: 0 | BE61: 0
B62: 28 | C62: Energia economizada em horário de ponta | E62: MWh/mês | G62: 0 | H62: =H61*H60 -> 0 | I62: =I61*I60 -> 0 | J62: 0 | K62: 0 | L62: 0 | M62: 0 | N62: 0 | O62: 0 | P62: 0 | Q62: 0 | R62: 0 | S62: 0 | T62: 0 | U62: 0 | V62: 0 | W62: 0 | X62: 0 | Y62: 0 | Z62: 0 | AA62: 0 | AB62: 0 | AC62: 0 | AD62: 0 | AE62: 0 | AF62: 0 | AG62: 0 | AH62: 0 | AI62: 0 | AJ62: 0 | AK62: 0 | AL62: 0 | AM62: 0 | AN62: 0 | AO62: 0 | AP62: 0 | AQ62: 0 | AR62: 0 | AS62: 0 | AT62: 0 | AU62: 0 | AV62: 0 | AW62: 0 | AX62: 0 | AY62: 0 | AZ62: 0 | BA62: 0 | BB62: 0 | BC62: 0 | BD62: 0 | BE62: 0
B63: 29 | C63: Energia economizada em horário fora de ponta | E63: MWh/mês | G63: 0 | H63: =H61-H62 -> 0 | I63: =I61-I62 -> 0 | J63: 0 | K63: 0 | L63: 0 | M63: 0 | N63: 0 | O63: 0 | P63: 0 | Q63: 0 | R63: 0 | S63: 0 | T63: 0 | U63: 0 | V63: 0 | W63: 0 | X63: 0 | Y63: 0 | Z63: 0 | AA63: 0 | AB63: 0 | AC63: 0 | AD63: 0 | AE63: 0 | AF63: 0 | AG63: 0 | AH63: 0 | AI63: 0 | AJ63: 0 | AK63: 0 | AL63: 0 | AM63: 0 | AN63: 0 | AO63: 0 | AP63: 0 | AQ63: 0 | AR63: 0 | AS63: 0 | AT63: 0 | AU63: 0 | AV63: 0 | AW63: 0 | AX63: 0 | AY63: 0 | AZ63: 0 | BA63: 0 | BB63: 0 | BC63: 0 | BD63: 0 | BE63: 0
B64: 30 | C64: Redução de Demanda mensal | E64: kW/mês | G64: 0 | H64: =H10-H29 -> 0 | I64: =I10-I29 -> 0 | J64: 0 | K64: 0 | L64: 0 | M64: 0 | N64: 0 | O64: 0 | P64: 0 | Q64: 0 | R64: 0 | S64: 0 | T64: 0 | U64: 0 | V64: 0 | W64: 0 | X64: 0 | Y64: 0 | Z64: 0 | AA64: 0 | AB64: 0 | AC64: 0 | AD64: 0 | AE64: 0 | AF64: 0 | AG64: 0 | AH64: 0 | AI64: 0 | AJ64: 0 | AK64: 0 | AL64: 0 | AM64: 0 | AN64: 0 | AO64: 0 | AP64: 0 | AQ64: 0 | AR64: 0 | AS64: 0 | AT64: 0 | AU64: 0 | AV64: 0 | AW64: 0 | AX64: 0 | AY64: 0 | AZ64: 0 | BA64: 0 | BB64: 0 | BC64: 0 | BD64: 0 | BE64: 0
B65: =B64+1 -> 31 | C65: Redução de Demanda em horário de ponta | E65: kW/mês | G65: 0 | H65: =H43 -> 0 | I65: =I43 -> 0 | J65: 0 | K65: 0 | L65: 0 | M65: 0 | N65: 0 | O65: 0 | P65: 0 | Q65: 0 | R65: 0 | S65: 0 | T65: 0 | U65: 0 | V65: 0 | W65: 0 | X65: 0 | Y65: 0 | Z65: 0 | AA65: 0 | AB65: 0 | AC65: 0 | AD65: 0 | AE65: 0 | AF65: 0 | AG65: 0 | AH65: 0 | AI65: 0 | AJ65: 0 | AK65: 0 | AL65: 0 | AM65: 0 | AN65: 0 | AO65: 0 | AP65: 0 | AQ65: 0 | AR65: 0 | AS65: 0 | AT65: 0 | AU65: 0 | AV65: 0 | AW65: 0 | AX65: 0 | AY65: 0 | AZ65: 0 | BA65: 0 | BB65: 0 | BC65: 0 | BD65: 0 | BE65: 0
B66: =B65+1 -> 32 | C66: Redução de Demanda em horário fora de ponta | E66: kW/mês | G66: 0 | H66: =H64 -> 0 | I66: =I64 -> 0 | J66: 0 | K66: 0 | L66: 0 | M66: 0 | N66: 0 | O66: 0 | P66: 0 | Q66: 0 | R66: 0 | S66: 0 | T66: 0 | U66: 0 | V66: 0 | W66: 0 | X66: 0 | Y66: 0 | Z66: 0 | AA66: 0 | AB66: 0 | AC66: 0 | AD66: 0 | AE66: 0 | AF66: 0 | AG66: 0 | AH66: 0 | AI66: 0 | AJ66: 0 | AK66: 0 | AL66: 0 | AM66: 0 | AN66: 0 | AO66: 0 | AP66: 0 | AQ66: 0 | AR66: 0 | AS66: 0 | AT66: 0 | AU66: 0 | AV66: 0 | AW66: 0 | AX66: 0 | AY66: 0 | AZ66: 0 | BA66: 0 | BB66: 0 | BC66: 0 | BD66: 0 | BE66: 0

Sheet CondAmbCusto (ORÇ)
D2: CUSTOS - CONDICIONAMENTO AMBIENTAL (ORÇAMENTOS)
B3: TIPOS DE CUSTOS | K3: FORNECEDOR
K4: Fornecedor 1 | L4: Fornecedor 2 | M4: Fornecedor 3 | N4: Fornecedor 4 | O4: Fornecedor 5 | P4: Fornecedor 6
B5: CUSTOS DIRETOS
B6: MATERIAIS E EQUIPAMENTOS | K6: Fornecedor 1 | L6: Fornecedor 2 | M6: Fornecedor 3 | N6: Fornecedor 4 | O6: Fornecedor 5 | P6: Fornecedor 6
B7: Materiais e equipamentos | H7: Vida útil | I7: Quantidade | J7: Menor Preço Unitário | K7: Preço Unitário | L7: Preço Unitário | M7: Preço Unitário | N7: Preço Unitário | O7: Preço Unitário | P7: Preço Unitário
B8: 1 | J8: =IFERROR(SMALL(K8:P8,1),0) -> 0
B9: 2 | J9: =IFERROR(SMALL(K9:P9,1),0) -> 0
B10: 3 | J10: 0
B11: 4 | J11: 0
B12: 5 | J12: 0
B13: 6 | J13: 0
B14: 7 | J14: 0
B15: 8 | J15: 0
B16: 9 | J16: 0
B17: 10 | J17: 0
B18: 11 | J18: 0
B19: 12 | J19: 0
B20: 13 | J20: 0
B21: 14 | J21: 0
B22: 15 | J22: 0
B23: 16 | J23: 0
B24: 17 | J24: 0
B25: 18 | J25: 0
B26: 19 | J26: 0
B27: 20 | J27: 0
B28: 21 | J28: 0
B29: 22 | J29: 0
B30: 23 | J30: 0
B31: 24 | J31: 0
B32: 25 | J32: 0
B33: 26 | J33: 0
B34: 27 | J34: 0
B35: 28 | J35: 0
B36: 29 | J36: 0
B37: 30 | J37: 0
B38: 31 | J38: 0
B39: 32 | J39: 0
B40: 33 | J40: 0
B41: 34 | J41: 0
B42: 35 | J42: 0
B43: 36 | J43: 0
B44: 37 | J44: 0
B45: 38 | J45: 0
B46: 39 | J46: 0
B47: 40 | J47: 0
C48: Acessórios | H48: 20 | J48: =IFERROR(SMALL(K48:P48,1),0) -> 0
C49: DADOS DO FORNECEDOR | K49: Fornecedor 1 | L49: Fornecedor 2 | M49: Fornecedor 3 | N49: Fornecedor 4 | O49: Fornecedor 5 | P49: Fornecedor 6
B50: Nome do fornecedor
B51: CNPJ do fornecedor
B52: Data da proposta
B53: Validade da proposta
B54: Pessoa de contato
B55: Telefone
B56: e-mail
B57: Critério de julgamento | K57: Menor Valor Unitário | N57: Menor Valor Unitário
B58: MÃO DE OBRA | K58: Fornecedor 1 | L58: Fornecedor 2 | M58: Fornecedor 3 | N58: Fornecedor 4 | O58: Fornecedor 5 | P58: Fornecedor 6
C59: Mão de obra de terceiros | H59: Quantidade | I59: Horas | J59: Menor Preço Unitário (Valor da hora) | K59: Preço Unitário (Valor da hora) | L59: Preço Unitário (Valor da hora) | M59: Preço Unitário (Valor da hora) | N59: Preço Unitário (Valor da hora) | O59: Preço Unitário (Valor da hora) | P59: Preço Unitário (Valor da hora)
B60: 1 | J60: =IFERROR(SMALL(K60:P60,1),0) -> 0
B61: 2 | J61: =IFERROR(SMALL(K61:P61,1),0) -> 0
B62: 3 | J62: =IFERROR(SMALL(K62:P62,1),0) -> 0
B63: 4 | J63: =IFERROR(SMALL(K63:P63,1),0) -> 0
B64: 5 | J64: =IFERROR(SMALL(K64:P64,1),0) -> 0
C65: DADOS DO FORNECEDOR | K65: Fornecedor 1 | L65: Fornecedor 2 | M65: Fornecedor 3 | N65: Fornecedor 4 | O65: Fornecedor 5 | P65: Fornecedor 6
B66: Nome do fornecedor
B67: CNPJ do fornecedor
B68: Data da proposta
B69: Validade da proposta
B70: Pessoa de contato
B71: Telefone
B72: e-mail
B73: Critério de julgamento | K73: Menor Valor Unitário | N73: Menor Valor Unitário
B74: TRANSPORTE E OUTROS CUSTOS DIRETOS | K74: Fornecedor 1 | L74: Fornecedor 2 | M74: Fornecedor 3 | N74: Fornecedor 4 | O74: Fornecedor 5 | P74: Fornecedor 6
C75: Outros custos diretos | I75: Quantidade | J75: Menor Preço Unitário | K75: Preço Unitário | L75: Preço Unitário | M75: Preço Unitário | N75: Preço Unitário | O75: Preço Unitário | P75: Preço Unitário
B76: 1 | J76: =IFERROR(SMALL(K76:P76,1),0) -> 0
B77: 2 | J77: =IFERROR(SMALL(K77:P77,1),0) -> 0
B78: 3 | J78: =IFERROR(SMALL(K78:P78,1),0) -> 0
C79: DADOS DO FORNECEDOR | K79: Fornecedor 1 | L79: Fornecedor 2 | M79: Fornecedor 3 | N79: Fornecedor 4 | O79: Fornecedor 5 | P79: Fornecedor 6
B80: Nome do fornecedor
B81: CNPJ do fornecedor
B82: Data da proposta
B83: Validade da proposta
B84: Pessoa de contato
B85: Telefone
B86: e-mail
B87: Critério de julgamento | K87: Menor Valor Unitário | N87: Menor Valor Unitário
B88: CUSTOS INDIRETOS | K88: Fornecedor 1 | L88: Fornecedor 2 | M88: Fornecedor 3 | N88: Fornecedor 4 | O88: Fornecedor 5 | P88: Fornecedor 6
B89: Outros custos indiretos | I89: Quantidade | J89: Menor Preço Unitário | K89: Preço Unitário | L89: Preço Unitário | M89: Preço Unitário | N89: Preço Unitário | O89: Preço Unitário | P89: Preço Unitário
B90: 1 | J90: =IFERROR(SMALL(K90:P90,1),0) -> 0
B91: 2 | J91: =IFERROR(SMALL(K91:P91,1),0) -> 0
B92: 3 | J92: =IFERROR(SMALL(K92:P92,1),0) -> 0
C93: DADOS DO FORNECEDOR | K93: Fornecedor 1 | L93: Fornecedor 2 | M93: Fornecedor 3 | N93: Fornecedor 4 | O93: Fornecedor 5 | P93: Fornecedor 6
B94: Nome do fornecedor
B95: CNPJ do fornecedor
B96: Data da proposta
B97: Validade da proposta
B98: Pessoa de contato
B99: Telefone
B100: e-mail
B101: Critério de julgamento | K101: Menor Valor Unitário | N101: Menor Valor Unitário

Sheet CondAmbCusto
B2: CUSTOS - CONDICIONAMENTO AMBIENTAL (ORIGEM DOS RECURSOS) | P2: =B2 -> CUSTOS - CONDICIONAMENTO AMBIENTAL (ORIGEM DOS RECURSOS)
B3: TIPOS DE CUSTOS | L3: ORIGEM DOS RECURSOS | P3: CUSTOS ANUALIZADOS
L4: PEE | M4: Terceiros | N4: Consumidor
B5: CUSTOS DIRETOS
B6: MATERIAIS E EQUIPAMENTOS | P6: MATERIAIS E EQUIPAMENTOS
B7: Materiais e equipamentos | H7: Vida útil | I7: Quantidade | J7: Preço unitário | K7: Custo total | L7: PEE | M7: Terceiros | N7: Consumidor | P7: =B7 -> Materiais e equipamentos | V7: Vida útil | W7: FRC | X7: CA
B8: 1 | C8: =IF(ISBLANK('CondAmbCusto (ORÇ)'!C8)," ",'CondAmbCusto (ORÇ)'!C8) ->  | H8: ='CondAmbCusto (ORÇ)'!H8 -> 0 | I8: ='CondAmbCusto (ORÇ)'!I8 -> 0 | J8: ='CondAmbCusto (ORÇ)'!J8 -> 0 | K8: =I8*J8 -> 0 | L8: =K8-M8-N8 -> 0 | P8: =B8 -> 1 | Q8: =IF(OR(C8=0,C8=""),"",C8) ->  | V8: =IF(H8="",0,H8) -> 0 | W8: =IF(OR(V8="",V8=0),0,(Desc*((1+Desc)^V8))/(((1+Desc)^V8)-1)) -> 0 | X8: =IF(AND(K8>0,'Custo Contábil'!$D$7>0),ROUND(K8*('Custo Contábil'!$D$20/'Custo Contábil'!$D$7)*W8,2),0) -> 0 | Y8: =V8*X8 -> 0
B9: 2 | C9: =IF(ISBLANK('CondAmbCusto (ORÇ)'!C9)," ",'CondAmbCusto (ORÇ)'!C9) ->  | H9: ='CondAmbCusto (ORÇ)'!H9 -> 0 | I9: ='CondAmbCusto (ORÇ)'!I9 -> 0 | J9: ='CondAmbCusto (ORÇ)'!J9 -> 0 | K9: =I9*J9 -> 0 | L9: =K9-M9-N9 -> 0 | P9: =B9 -> 2 | Q9: =IF(OR(C9=0,C9=""),"",C9) ->  | V9: =IF(H9="",0,H9) -> 0 | W9: =IF(OR(V9="",V9=0),0,(Desc*((1+Desc)^V9))/(((1+Desc)^V9)-1)) -> 0 | X9: =IF(AND(K9>0,'Custo Contábil'!$D$7>0),ROUND(K9*('Custo Contábil'!$D$20/'Custo Contábil'!$D$7)*W9,2),0) -> 0 | Y9: =V9*X9 -> 0
B10: 3 | C10: =IF(ISBLANK('CondAmbCusto (ORÇ)'!C10)," ",'CondAmbCusto (ORÇ)'!C10) ->  | H10: ='CondAmbCusto (ORÇ)'!H10 -> 0 | I10: ='CondAmbCusto (ORÇ)'!I10 -> 0 | J10: ='CondAmbCusto (ORÇ)'!J10 -> 0 | K10: 0 | L10: 0 | P10: 3 | V10: 0 | W10: 0 | X10: =IF(AND(K10>0,'Custo Contábil'!$D$7>0),ROUND(K10*('Custo Contábil'!$D$20/'Custo Contábil'!$D$7)*W10,2),0) -> 0 | Y10: 0
B11: 4 | C11: =IF(ISBLANK('CondAmbCusto (ORÇ)'!C11)," ",'CondAmbCusto (ORÇ)'!C11) ->  | H11: ='CondAmbCusto (ORÇ)'!H11 -> 0 | I11: ='CondAmbCusto (ORÇ)'!I11 -> 0 | J11: ='CondAmbCusto (ORÇ)'!J11 -> 0 | K11: 0 | L11: 0 | P11: 4 | V11: 0 | W11: 0 | X11: =IF(AND(K11>0,'Custo Contábil'!$D$7>0),ROUND(K11*('Custo Contábil'!$D$20/'Custo Contábil'!$D$7)*W11,2),0) -> 0 | Y11: 0
B12: 5 | C12: =IF(ISBLANK('CondAmbCusto (ORÇ)'!C12)," ",'CondAmbCusto (ORÇ)'!C12) ->  | H12: ='CondAmbCusto (ORÇ)'!H12 -> 0 | I12: ='CondAmbCusto (ORÇ)'!I12 -> 0 | J12: ='CondAmbCusto (ORÇ)'!J12 -> 0 | K12: 0 | L12: 0 | P12: 5 | V12: 0 | W12: 0 | X12: =IF(AND(K12>0,'Custo Contábil'!$D$7>0),ROUND(K12*('Custo Contábil'!$D$20/'Custo Contábil'!$D$7)*W12,2),0) -> 0 | Y12: 0
B13: 6 | C13: =IF(ISBLANK('CondAmbCusto (ORÇ)'!C13)," ",'CondAmbCusto (ORÇ)'!C13) ->  | H13: ='CondAmbCusto (ORÇ)'!H13 -> 0 | I13: ='CondAmbCusto (ORÇ)'!I13 -> 0 | J13: ='CondAmbCusto (ORÇ)'!J13 -> 0 | K13: 0 | L13: 0 | P13: 6 | V13: 0 | W13: 0 | X13: =IF(AND(K13>0,'Custo Contábil'!$D$7>0),ROUND(K13*('Custo Contábil'!$D$20/'Custo Contábil'!$D$7)*W13,2),0) -> 0 | Y13: 0
B14: 7 | C14: =IF(ISBLANK('CondAmbCusto (ORÇ)'!C14)," ",'CondAmbCusto (ORÇ)'!C14) ->  | H14: ='CondAmbCusto (ORÇ)'!H14 -> 0 | I14: ='CondAmbCusto (ORÇ)'!I14 -> 0 | J14: ='CondAmbCusto (ORÇ)'!J14 -> 0 | K14: 0 | L14: 0 | P14: 7 | V14: 0 | W14: 0 | X14: =IF(AND(K14>0,'Custo Contábil'!$D$7>0),ROUND(K14*('Custo Contábil'!$D$20/'Custo Contábil'!$D$7)*W14,2),0) -> 0 | Y14: 0
B15: 8 | C15: =IF(ISBLANK('CondAmbCusto (ORÇ)'!C15)," ",'CondAmbCusto (ORÇ)'!C15) ->  | H15: ='CondAmbCusto (ORÇ)'!H15 -> 0 | I15: ='CondAmbCusto (ORÇ)'!I15 -> 0 | J15: ='CondAmbCusto (ORÇ)'!J15 -> 0 | K15: 0 | L15: 0 | P15: 8 | V15: 0 | W15: 0 | X15: =IF(AND(K15>0,'Custo Contábil'!$D$7>0),ROUND(K15*('Custo Contábil'!$D$20/'Custo Contábil'!$D$7)*W15,2),0) -> 0 | Y15: 0
B16: 9 | C16: =IF(ISBLANK('CondAmbCusto (ORÇ)'!C16)," ",'CondAmbCusto (ORÇ)'!C16) ->  | H16: ='CondAmbCusto (ORÇ)'!H16 -> 0 | I16: ='CondAmbCusto (ORÇ)'!I16 -> 0 | J16: ='CondAmbCusto (ORÇ)'!J16 -> 0 | K16: 0 | L16: 0 | P16: 9 | V16: 0 | W16: 0 | X16: =IF(AND(K16>0,'Custo Contábil'!$D$7>0),ROUND(K16*('Custo Contábil'!$D$20/'Custo Contábil'!$D$7)*W16,2),0) -> 0 | Y16: 0
B17: 10 | C17: =IF(ISBLANK('CondAmbCusto (ORÇ)'!C17)," ",'CondAmbCusto (ORÇ)'!C17) ->  | H17: ='CondAmbCusto (ORÇ)'!H17 -> 0 | I17: ='CondAmbCusto (ORÇ)'!I17 -> 0 | J17: ='CondAmbCusto (ORÇ)'!J17 -> 0 | K17: 0 | L17: 0 | P17: 10 | V17: 0 | W17: 0 | X17: =IF(AND(K17>0,'Custo Contábil'!$D$7>0),ROUND(K17*('Custo Contábil'!$D$20/'Custo Contábil'!$D$7)*W17,2),0) -> 0 | Y17: 0
B18: 11 | C18: =IF(ISBLANK('CondAmbCusto (ORÇ)'!C18)," ",'CondAmbCusto (ORÇ)'!C18) ->  | H18: ='CondAmbCusto (ORÇ)'!H18 -> 0 | I18: ='CondAmbCusto (ORÇ)'!I18 -> 0 | J18: ='CondAmbCusto (ORÇ)'!J18 -> 0 | K18: 0 | L18: 0 | P18: 11 | V18: 0 | W18: 0 | X18: =IF(AND(K18>0,'Custo Contábil'!$D$7>0),ROUND(K18*('Custo Contábil'!$D$20/'Custo Contábil'!$D$7)*W18,2),0) -> 0 | Y18: 0
B19: 12 | C19: =IF(ISBLANK('CondAmbCusto (ORÇ)'!C19)," ",'CondAmbCusto (ORÇ)'!C19) ->  | H19: ='CondAmbCusto (ORÇ)'!H19 -> 0 | I19: ='CondAmbCusto (ORÇ)'!I19 -> 0 | J19: ='CondAmbCusto (ORÇ)'!J19 -> 0 | K19: 0 | L19: 0 | P19: 12 | V19: 0 | W19: 0 | X19: =IF(AND(K19>0,'Custo Contábil'!$D$7>0),ROUND(K19*('Custo Contábil'!$D$20/'Custo Contábil'!$D$7)*W19,2),0) -> 0 | Y19: 0
B20: 13 | C20: =IF(ISBLANK('CondAmbCusto (ORÇ)'!C20)," ",'CondAmbCusto (ORÇ)'!C20) ->  | H20: ='CondAmbCusto (ORÇ)'!H20 -> 0 | I20: ='CondAmbCusto (ORÇ)'!I20 -> 0 | J20: ='CondAmbCusto (ORÇ)'!J20 -> 0 | K20: 0 | L20: 0 | P20: 13 | V20: 0 | W20: 0 | X20: =IF(AND(K20>0,'Custo Contábil'!$D$7>0),ROUND(K20*('Custo Contábil'!$D$20/'Custo Contábil'!$D$7)*W20,2),0) -> 0 | Y20: 0
B21: 14 | C21: =IF(ISBLANK('CondAmbCusto (ORÇ)'!C21)," ",'CondAmbCusto (ORÇ)'!C21) ->  | H21: ='CondAmbCusto (ORÇ)'!H21 -> 0 | I21: ='CondAmbCusto (ORÇ)'!I21 -> 0 | J21: ='CondAmbCusto (ORÇ)'!J21 -> 0 | K21: 0 | L21: 0 | P21: 14 | V21: 0 | W21: 0 | X21: =IF(AND(K21>0,'Custo Contábil'!$D$7>0),ROUND(K21*('Custo Contábil'!$D$20/'Custo Contábil'!$D$7)*W21,2),0) -> 0 | Y21: 0
B22: 15 | C22: =IF(ISBLANK('CondAmbCusto (ORÇ)'!C22)," ",'CondAmbCusto (ORÇ)'!C22) ->  | H22: ='CondAmbCusto (ORÇ)'!H22 -> 0 | I22: ='CondAmbCusto (ORÇ)'!I22 -> 0 | J22: ='CondAmbCusto (ORÇ)'!J22 -> 0 | K22: 0 | L22: 0 | P22: 15 | V22: 0 | W22: 0 | X22: =IF(AND(K22>0,'Custo Contábil'!$D$7>0),ROUND(K22*('Custo Contábil'!$D$20/'Custo Contábil'!$D$7)*W22,2),0) -> 0 | Y22: 0
B23: 16 | C23: =IF(ISBLANK('CondAmbCusto (ORÇ)'!C23)," ",'CondAmbCusto (ORÇ)'!C23) ->  | H23: ='CondAmbCusto (ORÇ)'!H23 -> 0 | I23: ='CondAmbCusto (ORÇ)'!I23 -> 0 | J23: ='CondAmbCusto (ORÇ)'!J23 -> 0 | K23: 0 | L23: 0 | P23: 16 | V23: 0 | W23: 0 | X23: =IF(AND(K23>0,'Custo Contábil'!$D$7>0),ROUND(K23*('Custo Contábil'!$D$20/'Custo Contábil'!$D$7)*W23,2),0) -> 0 | Y23: 0
B24: 17 | C24: =IF(ISBLANK('CondAmbCusto (ORÇ)'!C24)," ",'CondAmbCusto (ORÇ)'!C24) ->  | H24: ='CondAmbCusto (ORÇ)'!H24 -> 0 | I24: ='CondAmbCusto (ORÇ)'!I24 -> 0 | J24: ='CondAmbCusto (ORÇ)'!J24 -> 0 | K24: 0 | L24: 0 | P24: 17 | V24: 0 | W24: 0 | X24: =IF(AND(K24>0,'Custo Contábil'!$D$7>0),ROUND(K24*('Custo Contábil'!$D$20/'Custo Contábil'!$D$7)*W24,2),0) -> 0 | Y24: 0
B25: 18 | C25: =IF(ISBLANK('CondAmbCusto (ORÇ)'!C25)," ",'CondAmbCusto (ORÇ)'!C25) ->  | H25: ='CondAmbCusto (ORÇ)'!H25 -> 0 | I25: ='CondAmbCusto (ORÇ)'!I25 -> 0 | J25: ='CondAmbCusto (ORÇ)'!J25 -> 0 | K25: 0 | L25: 0 | P25: 18 | V25: 0 | W25: 0 | X25: =IF(AND(K25>0,'Custo Contábil'!$D$7>0),ROUND(K25*('Custo Contábil'!$D$20/'Custo Contábil'!$D$7)*W25,2),0) -> 0 | Y25: 0
B26: 19 | C26: =IF(ISBLANK('CondAmbCusto (ORÇ)'!C26)," ",'CondAmbCusto (ORÇ)'!C26) ->  | H26: ='CondAmbCusto (ORÇ)'!H26 -> 0 | I26: ='CondAmbCusto (ORÇ)'!I26 -> 0 | J26: ='CondAmbCusto (ORÇ)'!J26 -> 0 | K26: 0 | L26: 0 | P26: 19 | V26: 0 | W26: 0 | X26: =IF(AND(K26>0,'Custo Contábil'!$D$7>0),ROUND(K26*('Custo Contábil'!$D$20/'Custo Contábil'!$D$7)*W26,2),0) -> 0 | Y26: 0
B27: 20 | C27: =IF(ISBLANK('CondAmbCusto (ORÇ)'!C27)," ",'CondAmbCusto (ORÇ)'!C27) ->  | H27: ='CondAmbCusto (ORÇ)'!H27 -> 0 | I27: ='CondAmbCusto (ORÇ)'!I27 -> 0 | J27: ='CondAmbCusto (ORÇ)'!J27 -> 0 | K27: 0 | L27: 0 | P27: 20 | V27: 0 | W27: 0 | X27: =IF(AND(K27>0,'Custo Contábil'!$D$7>0),ROUND(K27*('Custo Contábil'!$D$20/'Custo Contábil'!$D$7)*W27,2),0) -> 0 | Y27: 0
B28: 21 | C28: =IF(ISBLANK('CondAmbCusto (ORÇ)'!C28)," ",'CondAmbCusto (ORÇ)'!C28) ->  | H28: ='CondAmbCusto (ORÇ)'!H28 -> 0 | I28: ='CondAmbCusto (ORÇ)'!I28 -> 0 | J28: ='CondAmbCusto (ORÇ)'!J28 -> 0 | K28: 0 | L28: 0 | P28: 21 | V28: 0 | W28: 0 | X28: =IF(AND(K28>0,'Custo Contábil'!$D$7>0),ROUND(K28*('Custo Contábil'!$D$20/'Custo Contábil'!$D$7)*W28,2),0) -> 0 | Y28: 0
B29: 22 | C29: =IF(ISBLANK('CondAmbCusto (ORÇ)'!C29)," ",'CondAmbCusto (ORÇ)'!C29) ->  | H29: ='CondAmbCusto (ORÇ)'!H29 -> 0 | I29: ='CondAmbCusto (ORÇ)'!I29 -> 0 | J29: ='CondAmbCusto (ORÇ)'!J29 -> 0 | K29: 0 | L29: 0 | P29: 22 | V29: 0 | W29: 0 | X29: =IF(AND(K29>0,'Custo Contábil'!$D$7>0),ROUND(K29*('Custo Contábil'!$D$20/'Custo Contábil'!$D$7)*W29,2),0) -> 0 | Y29: 0
B30: 23 | C30: =IF(ISBLANK('CondAmbCusto (ORÇ)'!C30)," ",'CondAmbCusto (ORÇ)'!C30) ->  | H30: ='CondAmbCusto (ORÇ)'!H30 -> 0 | I30: ='CondAmbCusto (ORÇ)'!I30 -> 0 | J30: ='CondAmbCusto (ORÇ)'!J30 -> 0 | K30: 0 | L30: 0 | P30: 23 | V30: 0 | W30: 0 | X30: =IF(AND(K30>0,'Custo Contábil'!$D$7>0),ROUND(K30*('Custo Contábil'!$D$20/'Custo Contábil'!$D$7)*W30,2),0) -> 0 | Y30: 0
B31: 24 | C31: =IF(ISBLANK('CondAmbCusto (ORÇ)'!C31)," ",'CondAmbCusto (ORÇ)'!C31) ->  | H31: ='CondAmbCusto (ORÇ)'!H31 -> 0 | I31: ='CondAmbCusto (ORÇ)'!I31 -> 0 | J31: ='CondAmbCusto (ORÇ)'!J31 -> 0 | K31: 0 | L31: 0 | P31: 24 | V31: 0 | W31: 0 | X31: =IF(AND(K31>0,'Custo Contábil'!$D$7>0),ROUND(K31*('Custo Contábil'!$D$20/'Custo Contábil'!$D$7)*W31,2),0) -> 0 | Y31: 0
B32: 25 | C32: =IF(ISBLANK('CondAmbCusto (ORÇ)'!C32)," ",'CondAmbCusto (ORÇ)'!C32) ->  | H32: ='CondAmbCusto (ORÇ)'!H32 -> 0 | I32: ='CondAmbCusto (ORÇ)'!I32 -> 0 | J32: ='CondAmbCusto (ORÇ)'!J32 -> 0 | K32: 0 | L32: 0 | P32: 25 | V32: 0 | W32: 0 | X32: =IF(AND(K32>0,'Custo Contábil'!$D$7>0),ROUND(K32*('Custo Contábil'!$D$20/'Custo Contábil'!$D$7)*W32,2),0) -> 0 | Y32: 0
B33: 26 | C33: =IF(ISBLANK('CondAmbCusto (ORÇ)'!C33)," ",'CondAmbCusto (ORÇ)'!C33) ->  | H33: ='CondAmbCusto (ORÇ)'!H33 -> 0 | I33: ='CondAmbCusto (ORÇ)'!I33 -> 0 | J33: ='CondAmbCusto (ORÇ)'!J33 -> 0 | K33: 0 | L33: 0 | P33: 26 | V33: 0 | W33: 0 | X33: =IF(AND(K33>0,'Custo Contábil'!$D$7>0),ROUND(K33*('Custo Contábil'!$D$20/'Custo Contábil'!$D$7)*W33,2),0) -> 0 | Y33: 0
B34: 27 | C34: =IF(ISBLANK('CondAmbCusto (ORÇ)'!C34)," ",'CondAmbCusto (ORÇ)'!C34) ->  | H34: ='CondAmbCusto (ORÇ)'!H34 -> 0 | I34: ='CondAmbCusto (ORÇ)'!I34 -> 0 | J34: ='CondAmbCusto (ORÇ)'!J34 -> 0 | K34: 0 | L34: 0 | P34: 27 | V34: 0 | W34: 0 | X34: =IF(AND(K34>0,'Custo Contábil'!$D$7>0),ROUND(K34*('Custo Contábil'!$D$20/'Custo Contábil'!$D$7)*W34,2),0) -> 0 | Y34: 0
B35: 28 | C35: =IF(ISBLANK('CondAmbCusto (ORÇ)'!C35)," ",'CondAmbCusto (ORÇ)'!C35) ->  | H35: ='CondAmbCusto (ORÇ)'!H35 -> 0 | I35: ='CondAmbCusto (ORÇ)'!I35 -> 0 | J35: ='CondAmbCusto (ORÇ)'!J35 -> 0 | K35: 0 | L35: 0 | P35: 28 | V35: 0 | W35: 0 | X35: =IF(AND(K35>0,'Custo Contábil'!$D$7>0),ROUND(K35*('Custo Contábil'!$D$20/'Custo Contábil'!$D$7)*W35,2),0) -> 0 | Y35: 0
B36: 29 | C36: =IF(ISBLANK('CondAmbCusto (ORÇ)'!C36)," ",'CondAmbCusto (ORÇ)'!C36) ->  | H36: ='CondAmbCusto (ORÇ)'!H36 -> 0 | I36: ='CondAmbCusto (ORÇ)'!I36 -> 0 | J36: ='CondAmbCusto (ORÇ)'!J36 -> 0 | K36: 0 | L36: 0 | P36: 29 | V36: 0 | W36: 0 | X36: =IF(AND(K36>0,'Custo Contábil'!$D$7>0),ROUND(K36*('Custo Contábil'!$D$20/'Custo Contábil'!$D$7)*W36,2),0) -> 0 | Y36: 0
B37: 30 | C37: =IF(ISBLANK('CondAmbCusto (ORÇ)'!C37)," ",'CondAmbCusto (ORÇ)'!C37) ->  | H37: ='CondAmbCusto (ORÇ)'!H37 -> 0 | I37: ='CondAmbCusto (ORÇ)'!I37 -> 0 | J37: ='CondAmbCusto (ORÇ)'!J37 -> 0 | K37: 0 | L37: 0 | P37: 30 | V37: 0 | W37: 0 | X37: =IF(AND(K37>0,'Custo Contábil'!$D$7>0),ROUND(K37*('Custo Contábil'!$D$20/'Custo Contábil'!$D$7)*W37,2),0) -> 0 | Y37: 0
B38: 31 | C38: =IF(ISBLANK('CondAmbCusto (ORÇ)'!C38)," ",'CondAmbCusto (ORÇ)'!C38) ->  | H38: ='CondAmbCusto (ORÇ)'!H38 -> 0 | I38: ='CondAmbCusto (ORÇ)'!I38 -> 0 | J38: ='CondAmbCusto (ORÇ)'!J38 -> 0 | K38: 0 | L38: 0 | P38: 31 | V38: 0 | W38: 0 | X38: =IF(AND(K38>0,'Custo Contábil'!$D$7>0),ROUND(K38*('Custo Contábil'!$D$20/'Custo Contábil'!$D$7)*W38,2),0) -> 0 | Y38: 0
B39: 32 | C39: =IF(ISBLANK('CondAmbCusto (ORÇ)'!C39)," ",'CondAmbCusto (ORÇ)'!C39) ->  | H39: ='CondAmbCusto (ORÇ)'!H39 -> 0 | I39: ='CondAmbCusto (ORÇ)'!I39 -> 0 | J39: ='CondAmbCusto (ORÇ)'!J39 -> 0 | K39: 0 | L39: 0 | P39: 32 | V39: 0 | W39: 0 | X39: =IF(AND(K39>0,'Custo Contábil'!$D$7>0),ROUND(K39*('Custo Contábil'!$D$20/'Custo Contábil'!$D$7)*W39,2),0) -> 0 | Y39: 0
B40: 33 | C40: =IF(ISBLANK('CondAmbCusto (ORÇ)'!C40)," ",'CondAmbCusto (ORÇ)'!C40) ->  | H40: ='CondAmbCusto (ORÇ)'!H40 -> 0 | I40: ='CondAmbCusto (ORÇ)'!I40 -> 0 | J40: ='CondAmbCusto (ORÇ)'!J40 -> 0 | K40: 0 | L40: 0 | P40: 33 | V40: 0 | W40: 0 | X40: =IF(AND(K40>0,'Custo Contábil'!$D$7>0),ROUND(K40*('Custo Contábil'!$D$20/'Custo Contábil'!$D$7)*W40,2),0) -> 0 | Y40: 0
B41: 34 | C41: =IF(ISBLANK('CondAmbCusto (ORÇ)'!C41)," ",'CondAmbCusto (ORÇ)'!C41) ->  | H41: ='CondAmbCusto (ORÇ)'!H41 -> 0 | I41: ='CondAmbCusto (ORÇ)'!I41 -> 0 | J41: ='CondAmbCusto (ORÇ)'!J41 -> 0 | K41: 0 | L41: 0 | P41: 34 | V41: 0 | W41: 0 | X41: =IF(AND(K41>0,'Custo Contábil'!$D$7>0),ROUND(K41*('Custo Contábil'!$D$20/'Custo Contábil'!$D$7)*W41,2),0) -> 0 | Y41: 0
B42: 35 | C42: =IF(ISBLANK('CondAmbCusto (ORÇ)'!C42)," ",'CondAmbCusto (ORÇ)'!C42) ->  | H42: ='CondAmbCusto (ORÇ)'!H42 -> 0 | I42: ='CondAmbCusto (ORÇ)'!I42 -> 0 | J42: ='CondAmbCusto (ORÇ)'!J42 -> 0 | K42: 0 | L42: 0 | P42: 35 | V42: 0 | W42: 0 | X42: =IF(AND(K42>0,'Custo Contábil'!$D$7>0),ROUND(K42*('Custo Contábil'!$D$20/'Custo Contábil'!$D$7)*W42,2),0) -> 0 | Y42: 0
B43: 36 | C43: =IF(ISBLANK('CondAmbCusto (ORÇ)'!C43)," ",'CondAmbCusto (ORÇ)'!C43) ->  | H43: ='CondAmbCusto (ORÇ)'!H43 -> 0 | I43: ='CondAmbCusto (ORÇ)'!I43 -> 0 | J43: ='CondAmbCusto (ORÇ)'!J43 -> 0 | K43: 0 | L43: 0 | P43: 36 | V43: 0 | W43: 0 | X43: =IF(AND(K43>0,'Custo Contábil'!$D$7>0),ROUND(K43*('Custo Contábil'!$D$20/'Custo Contábil'!$D$7)*W43,2),0) -> 0 | Y43: 0
B44: 37 | C44: =IF(ISBLANK('CondAmbCusto (ORÇ)'!C44)," ",'CondAmbCusto (ORÇ)'!C44) ->  | H44: ='CondAmbCusto (ORÇ)'!H44 -> 0 | I44: ='CondAmbCusto (ORÇ)'!I44 -> 0 | J44: ='CondAmbCusto (ORÇ)'!J44 -> 0 | K44: 0 | L44: 0 | P44: 37 | V44: 0 | W44: 0 | X44: =IF(AND(K44>0,'Custo Contábil'!$D$7>0),ROUND(K44*('Custo Contábil'!$D$20/'Custo Contábil'!$D$7)*W44,2),0) -> 0 | Y44: 0
B45: 38 | C45: =IF(ISBLANK('CondAmbCusto (ORÇ)'!C45)," ",'CondAmbCusto (ORÇ)'!C45) ->  | H45: ='CondAmbCusto (ORÇ)'!H45 -> 0 | I45: ='CondAmbCusto (ORÇ)'!I45 -> 0 | J45: ='CondAmbCusto (ORÇ)'!J45 -> 0 | K45: 0 | L45: 0 | P45: 38 | V45: 0 | W45: 0 | X45: =IF(AND(K45>0,'Custo Contábil'!$D$7>0),ROUND(K45*('Custo Contábil'!$D$20/'Custo Contábil'!$D$7)*W45,2),0) -> 0 | Y45: 0
B46: 39 | C46: =IF(ISBLANK('CondAmbCusto (ORÇ)'!C46)," ",'CondAmbCusto (ORÇ)'!C46) ->  | H46: ='CondAmbCusto (ORÇ)'!H46 -> 0 | I46: ='CondAmbCusto (ORÇ)'!I46 -> 0 | J46: ='CondAmbCusto (ORÇ)'!J46 -> 0 | K46: 0 | L46: 0 | P46: 39 | V46: 0 | W46: 0 | X46: =IF(AND(K46>0,'Custo Contábil'!$D$7>0),ROUND(K46*('Custo Contábil'!$D$20/'Custo Contábil'!$D$7)*W46,2),0) -> 0 | Y46: 0
B47: 40 | C47: =IF(ISBLANK('CondAmbCusto (ORÇ)'!C47)," ",'CondAmbCusto (ORÇ)'!C47) ->  | H47: ='CondAmbCusto (ORÇ)'!H47 -> 0 | I47: ='CondAmbCusto (ORÇ)'!I47 -> 0 | J47: ='CondAmbCusto (ORÇ)'!J47 -> 0 | K47: 0 | L47: 0 | P47: 40 | V47: 0 | W47: 0 | X47: =IF(AND(K47>0,'Custo Contábil'!$D$7>0),ROUND(K47*('Custo Contábil'!$D$20/'Custo Contábil'!$D$7)*W47,2),0) -> 0 | Y47: 0
C48: =IF(ISBLANK('CondAmbCusto (ORÇ)'!C48)," ",'CondAmbCusto (ORÇ)'!C48) -> Acessórios | H48: ='CondAmbCusto (ORÇ)'!H48 -> 20 | I48: ='CondAmbCusto (ORÇ)'!I48 -> 0 | J48: ='CondAmbCusto (ORÇ)'!J48 -> 0 | K48: 0 | L48: 0 | Q48: =IF(OR(C48=0,C48=""),"",C48) -> Acessórios | V48: =IF(H48="",0,H48) -> 20 | W48: 0.1018522088 | X48: =IF(AND(K48>0,'Custo Contábil'!$D$7>0),ROUND(K48*('Custo Contábil'!$D$20/'Custo Contábil'!$D$7)*W48,2),0) -> 0 | Y48: 0
C49: Sub total - Materiais e equipamentos condicionamento ambiental | K49: =SUM(K8:K48) -> 0 | L49: =SUM(L8:L48) -> 0 | M49: =SUM(M8:M48) -> 0 | N49: =SUM(N8:N48) -> 0 | P49: Custo anualizado total condicionamento ambiental | W49: CAT_COND | X49: =SUM(X8:X48) -> 0
B50: MÃO DE OBRA | P50: Custo anualizado PEE condicionamento ambiental | W50: CAPEE_COND | X50: =IFERROR(X49*($L$86/$K$86),0) -> 0
B51: Tipo de custo | K51: Custo total | L51: PEE | M51: Terceiros | N51: Consumidor
C52: Mão de obra própria | K52: =SUM(L52:N52) -> 0 | L52: ='Custo Contábil'!E41 -> 0 | M52: 0 | N52: 0 | P52: RCBCOND_AMB_PEE | R52: =RCB!G6 -> 0 | T52: Vida Útil Média | V52: =IFERROR(SUM(Y8:Y48)/X49,0) -> 0
C53: Elaboração do Projeto (pré-diagnóstico e diagnóstico) | K53: =SUM(L53:N53) -> 0 | L53: =Diagnóstico!M14 -> 0 | M53: =Diagnóstico!N14 -> 0 | N53: =Diagnóstico!O14 -> 0 | P53: RCBCOND_AMB_TOTAL | R53: =RCB!J6 -> 0
C54: Mão de obra de terceiros | H54: Quantidade | I54: Horas | J54: Valor da hora | K54: Custo total | L54: PEE | M54: Terceiros | N54: Consumidor
B55: 1 | C55: =IF(ISBLANK('CondAmbCusto (ORÇ)'!C60)," ",'CondAmbCusto (ORÇ)'!C60) ->  | H55: ='CondAmbCusto (ORÇ)'!H60 -> 0 | I55: ='CondAmbCusto (ORÇ)'!I60 -> 0 | J55: ='CondAmbCusto (ORÇ)'!J60 -> 0 | K55: =H55*I55*J55 -> 0 | L55: =K55-M55-N55 -> 0
B56: 2 | C56: =IF(ISBLANK('CondAmbCusto (ORÇ)'!C61)," ",'CondAmbCusto (ORÇ)'!C61) ->  | H56: ='CondAmbCusto (ORÇ)'!H61 -> 0 | I56: ='CondAmbCusto (ORÇ)'!I61 -> 0 | J56: ='CondAmbCusto (ORÇ)'!J61 -> 0 | K56: =H56*I56*J56 -> 0 | L56: =K56-M56-N56 -> 0
B57: 3 | C57: =IF(ISBLANK('CondAmbCusto (ORÇ)'!C62)," ",'CondAmbCusto (ORÇ)'!C62) ->  | H57: ='CondAmbCusto (ORÇ)'!H62 -> 0 | I57: ='CondAmbCusto (ORÇ)'!I62 -> 0 | J57: ='CondAmbCusto (ORÇ)'!J62 -> 0 | K57: =H57*I57*J57 -> 0 | L57: =K57-M57-N57 -> 0
B58: 4 | C58: =IF(ISBLANK('CondAmbCusto (ORÇ)'!C63)," ",'CondAmbCusto (ORÇ)'!C63) ->  | H58: ='CondAmbCusto (ORÇ)'!H63 -> 0 | I58: ='CondAmbCusto (ORÇ)'!I63 -> 0 | J58: ='CondAmbCusto (ORÇ)'!J63 -> 0 | K58: =H58*I58*J58 -> 0 | L58: =K58-M58-N58 -> 0
B59: 5 | C59: =IF(ISBLANK('CondAmbCusto (ORÇ)'!C64)," ",'CondAmbCusto (ORÇ)'!C64) ->  | H59: ='CondAmbCusto (ORÇ)'!H64 -> 0 | I59: ='CondAmbCusto (ORÇ)'!I64 -> 0 | J59: ='CondAmbCusto (ORÇ)'!J64 -> 0 | K59: =H59*I59*J59 -> 0 | L59: =K59-M59-N59 -> 0
C60: Sub total - Mão de obra de terceiros condicionamento ambiental | K60: =SUM(K55:K59) -> 0 | L60: =SUM(L55:L59) -> 0 | M60: =SUM(M55:M59) -> 0 | N60: =SUM(N55:N59) -> 0
C61: Sub total - Mão de obra condicionamento ambiental | K61: =SUM(K60,K52:K53) -> 0 | L61: =SUM(L60,L52:L53) -> 0 | M61: =SUM(M60,M52:M53) -> 0 | N61: =SUM(N60,N52:N53) -> 0
B62: TRANSPORTE E OUTROS CUSTOS DIRETOS
B63: Tipo de custo | K63: Custo total | L63: PEE | M63: Terceiros | N63: Consumidor
C64: Transporte | K64: =SUM(L64:N64) -> 0 | L64: ='Custo Contábil'!E43 -> 0 | M64: 0 | N64: 0
C65: Outros custos diretos | I65: Quantidade | J65: Valor | K65: Custo total | L65: PEE | M65: Terceiros | N65: Consumidor
B66: 1 | C66: =IF(ISBLANK('CondAmbCusto (ORÇ)'!C76)," ",'CondAmbCusto (ORÇ)'!C76) ->  | I66: ='CondAmbCusto (ORÇ)'!I76 -> 0 | J66: ='CondAmbCusto (ORÇ)'!J76 -> 0 | K66: =I66*J66 -> 0 | L66: =K66-M66-N66 -> 0
B67: 2 | C67: =IF(ISBLANK('CondAmbCusto (ORÇ)'!C77)," ",'CondAmbCusto (ORÇ)'!C77) ->  | I67: ='CondAmbCusto (ORÇ)'!I77 -> 0 | J67: ='CondAmbCusto (ORÇ)'!J77 -> 0 | K67: =I67*J67 -> 0 | L67: =K67-M67-N67 -> 0
B68: 3 | C68: =IF(ISBLANK('CondAmbCusto (ORÇ)'!C78)," ",'CondAmbCusto (ORÇ)'!C78) ->  | I68: ='CondAmbCusto (ORÇ)'!I78 -> 0 | J68: ='CondAmbCusto (ORÇ)'!J78 -> 0 | K68: =I68*J68 -> 0 | L68: =K68-M68-N68 -> 0
C69: Sub total - Outros custos diretos condicionamento ambiental | K69: =SUM(K66:K68) -> 0 | L69: =SUM(L66:L68) -> 0 | M69: =SUM(M66:M68) -> 0 | N69: =SUM(N66:N68) -> 0
C70: Sub total - Transporte e outros custos diretos condicionamento ambiental | K70: =SUM(K64,K69) -> 0 | L70: =SUM(L64,L69) -> 0 | M70: =M69 -> 0 | N70: =N69 -> 0
C71: Sub total - Custos diretos condicionamento ambiental | K71: =SUM(K49,K61,K70) -> 0 | L71: =SUM(L49,L61,L70) -> 0 | M71: =SUM(M49,M61,M70) -> 0 | N71: =SUM(N49,N61,N70) -> 0
B72: CUSTOS INDIRETOS
B73: Tipo de custo | K73: Custo total | L73: PEE | M73: Terceiros | N73: Consumidor
C74: Administração própria | K74: =SUM(L74:N74) -> 0 | L74: ='Custo Contábil'!$E$39*'Custo Contábil'!F13 -> 0 | M74: ='Custo Contábil'!$E$39*'Custo Contábil'!G13 -> 0 | N74: ='Custo Contábil'!$E$39*'Custo Contábil'!H13 -> 0
C75: Auditoria Contábil Financeira | K75: 0 | L75: ='Custo Contábil'!E47 -> 0 | M75: 0 | N75: 0
C76: Marketing (Divulgação) | K76: 0 | L76: ='Custo Contábil'!$E$39*'Custo Contábil'!F14 -> 0 | M76: ='Custo Contábil'!$E$39*'Custo Contábil'!G14 -> 0 | N76: ='Custo Contábil'!$E$39*'Custo Contábil'!H14 -> 0
C77: Treinamento e capacitação | K77: 0 | L77: ='Custo Contábil'!$E$39*'Custo Contábil'!F18 -> 0 | M77: ='Custo Contábil'!$E$39*'Custo Contábil'!G18 -> 0 | N77: ='Custo Contábil'!$E$39*'Custo Contábil'!H18 -> 0
C78: Descarte de materiais | K78: 0 | L78: =Descarte!L30 -> 0 | M78: =Descarte!M30 -> 0 | N78: =Descarte!N30 -> 0
C79: Medição e verificação | K79: 0 | L79: ='M&V'!N162 -> 0 | M79: ='M&V'!O162 -> 0 | N79: ='M&V'!P162 -> 0
B80: Outros custos indiretos | I80: Quantidade | J80: Valor | K80: Custo total | L80: PEE | M80: Terceiros | N80: Consumidor
B81: 1 | C81: =IF(ISBLANK('CondAmbCusto (ORÇ)'!C90)," ",'CondAmbCusto (ORÇ)'!C90) ->  | I81: ='CondAmbCusto (ORÇ)'!I90 -> 0 | J81: ='CondAmbCusto (ORÇ)'!J90 -> 0 | K81: =I81*J81 -> 0 | L81: =K81-M81-N81 -> 0
B82: 2 | C82: =IF(ISBLANK('CondAmbCusto (ORÇ)'!C91)," ",'CondAmbCusto (ORÇ)'!C91) ->  | I82: ='CondAmbCusto (ORÇ)'!I91 -> 0 | J82: ='CondAmbCusto (ORÇ)'!J91 -> 0 | K82: =I82*J82 -> 0 | L82: =K82-M82-N82 -> 0
B83: 3 | C83: =IF(ISBLANK('CondAmbCusto (ORÇ)'!C92)," ",'CondAmbCusto (ORÇ)'!C92) ->  | I83: ='CondAmbCusto (ORÇ)'!I92 -> 0 | J83: ='CondAmbCusto (ORÇ)'!J92 -> 0 | K83: =I83*J83 -> 0 | L83: =K83-M83-N83 -> 0
C84: Sub total - Outros custos indiretos condicionamento ambiental | K84: =SUM(K81:K83) -> 0 | L84: =SUM(L81:L83) -> 0 | M84: =SUM(M81:M83) -> 0 | N84: =SUM(N81:N83) -> 0
C85: Sub total - Custos indiretos condicionamento ambiental | K85: =SUM(K74:K79,K84) -> 0 | L85: =SUM(L74:L79,L84) -> 0 | M85: =SUM(M74:M79,M84) -> 0 | N85: =SUM(N74:N79,N84) -> 0
C86: Sub total - Custos condicionamento ambiental | K86: =SUM(K71,K85) -> 0 | L86: =SUM(L71,L85) -> 0 | M86: =SUM(M71,M85) -> 0 | N86: =SUM(N71,N85) -> 0

Sheet CondAmbBenef
B2: BENEFÍCIOS - CONDICIONAMENTO AMBIENTAL
B3: CONDICIONAMENTO AMBIENTAL | G3: TOTAL | H3: cond 1 | I3: cond 2 | J3: cond 3 | K3: cond 4 | L3: cond 5 | M3: cond 6 | N3: cond 7 | O3: cond 8 | P3: cond 9 | Q3: cond 10 | R3: cond 11 | S3: cond 12 | T3: cond 13 | U3: cond 14 | V3: cond 15 | W3: cond 16 | X3: cond 17 | Y3: cond 18 | Z3: cond 19 | AA3: cond 20 | AB3: cond 21 | AC3: cond 22 | AD3: cond 23 | AE3: cond 24 | AF3: cond 25 | AG3: cond 26 | AH3: cond 27 | AI3: cond 28 | AJ3: cond 29 | AK3: cond 30 | AL3: cond 31 | AM3: cond 32 | AN3: cond 33 | AO3: cond 34 | AP3: cond 35 | AQ3: cond 36 | AR3: cond 37 | AS3: cond 38 | AT3: cond 39 | AU3: cond 40 | AV3: cond 41 | AW3: cond 42 | AX3: cond 43 | AY3: cond 44 | AZ3: cond 45 | BA3: cond 46 | BB3: cond 47 | BC3: cond 48 | BD3: cond 49 | BE3: cond 50 | BF3: cond 51 | BG3: cond 52 | BH3: cond 53 | BI3: cond 54 | BJ3: cond 55 | BK3: cond 56 | BL3: cond 57 | BM3: cond 58 | BN3: cond 59 | BO3: cond 60 | BP3: cond 61 | BQ3: cond 62 | BR3: cond 63 | BS3: cond 64 | BT3: cond 65 | BU3: cond 66 | BV3: cond 67 | BW3: cond 68 | BX3: cond 69 | BY3: cond 70 | BZ3: cond 71 | CA3: cond 72 | CB3: cond 73 | CC3: cond 74 | CD3: cond 75 | CE3: cond 76 | CF3: cond 77 | CG3: cond 78 | CH3: cond 79 | CI3: cond 80
B4: SITUAÇÃO ATUAL | G4: TOTAL | H4: cond 1 | I4: cond 2 | J4: cond 3 | K4: cond 4 | L4: cond 5 | M4: cond 6 | N4: cond 7 | O4: cond 8 | P4: cond 9 | Q4: cond 10 | R4: cond 11 | S4: cond 12 | T4: cond 13 | U4: cond 14 | V4: cond 15 | W4: cond 16 | X4: cond 17 | Y4: cond 18 | Z4: cond 19 | AA4: cond 20 | AB4: cond 21 | AC4: cond 22 | AD4: cond 23 | AE4: cond 24 | AF4: cond 25 | AG4: cond 26 | AH4: cond 27 | AI4: cond 28 | AJ4: cond 29 | AK4: cond 30 | AL4: cond 31 | AM4: cond 32 | AN4: cond 33 | AO4: cond 34 | AP4: cond 35 | AQ4: cond 36 | AR4: cond 37 | AS4: cond 38 | AT4: cond 39 | AU4: cond 40 | AV4: cond 41 | AW4: cond 42 | AX4: cond 43 | AY4: cond 44 | AZ4: cond 45 | BA4: cond 46 | BB4: cond 47 | BC4: cond 48 | BD4: cond 49 | BE4: cond 50 | BF4: cond 51 | BG4: cond 52 | BH4: cond 53 | BI4: cond 54 | BJ4: cond 55 | BK4: cond 56 | BL4: cond 57 | BM4: cond 58 | BN4: cond 59 | BO4: cond 60 | BP4: cond 61 | BQ4: cond 62 | BR4: cond 63 | BS4: cond 64 | BT4: cond 65 | BU4: cond 66 | BV4: cond 67 | BW4: cond 68 | BX4: cond 69 | BY4: cond 70 | BZ4: cond 71 | CA4: cond 72 | CB4: cond 73 | CC4: cond 74 | CD4: cond 75 | CE4: cond 76 | CF4: cond 77 | CG4: cond 78 | CH4: cond 79 | CI4: cond 80
B5: 1 | C5: Tipo de equipamento / tecnologia
B6: =B5+1 -> 2 | C6: Potência nominal de refrigeração | E6: BTU/h | F6: pai | G6: =SUM(H6:CI6) -> 0
B7: =B6+1 -> 3 | C7: Coefiente de eficiência energética | E7: W/W | F7: cai
B8: =B7+1 -> 4 | C8: Quantidade | F8: qai | G8: =SUM(H8:CI8) -> 0
B9: =B8+1 -> 5 | C9: Potência instalada | E9: kW | F9: Pai | G9: =SUM(H9:CI9) -> 0 | H9: =IF(H7=0,0,((H6*0.293*H8)/(1000*H7))) -> 0 | I9: =IF(I7=0,0,((I6*0.293*I8)/(1000*I7))) -> 0 | J9: 0 | K9: 0 | L9: 0 | M9: 0 | N9: 0 | O9: 0 | P9: 0 | Q9: 0 | R9: 0 | S9: 0 | T9: 0 | U9: 0 | V9: 0 | W9: 0 | X9: 0 | Y9: 0 | Z9: 0 | AA9: 0 | AB9: =IF(AB7=0,0,((AB6*0.293*AB8)/(1000*AB7))) -> 0 | AC9: =IF(AC7=0,0,((AC6*0.293*AC8)/(1000*AC7))) -> 0 | AD9: =IF(AD7=0,0,((AD6*0.293*AD8)/(1000*AD7))) -> 0 | AE9: 0 | AF9: 0 | AG9: 0 | AH9: 0 | AI9: =IF(AI7=0,0,((AI6*0.293*AI8)/(1000*AI7))) -> 0 | AJ9: 0 | AK9: 0 | AL9: 0 | AM9: 0 | AN9: 0 | AO9: 0 | AP9: 0 | AQ9: 0 | AR9: 0 | AS9: 0 | AT9: 0 | AU9: 0 | AV9: 0 | AW9: 0 | AX9: 0 | AY9: 0 | AZ9: 0 | BA9: 0 | BB9: 0 | BC9: 0 | BD9: 0 | BE9: =IF(BE7=0,0,((BE6*0.293*BE8)/(1000*BE7))) -> 0 | BF9: 0 | BG9: 0 | BH9: 0 | BI9: 0 | BJ9: 0 | BK9: 0 | BL9: 0 | BM9: 0 | BN9: 0 | BO9: 0 | BP9: 0 | BQ9: 0 | BR9: 0 | BS9: 0 | BT9: 0 | BU9: 0 | BV9: 0 | BW9: 0 | BX9: 0 | BY9: 0 | BZ9: 0 | CA9: 0 | CB9: 0 | CC9: 0 | CD9: 0 | CE9: 0 | CF9: 0 | CG9: 0 | CH9: 0 | CI9: 0
B10: =B9+1 -> 6 | C10: Fator de utilização | F10: FUai
C11: Potência média utilizada | E11: kW | F11: Puai | G11: =SUM(H11:CI11) -> 0 | H11: =H9*H10 -> 0 | I11: =I9*I10 -> 0 | J11: 0 | K11: 0 | L11: 0 | M11: 0 | N11: 0 | O11: 0 | P11: 0 | Q11: 0 | R11: 0 | S11: 0 | T11: 0 | U11: 0 | V11: 0 | W11: 0 | X11: 0 | Y11: 0 | Z11: 0 | AA11: 0 | AB11: =AB9*AB10 -> 0 | AC11: =AC9*AC10 -> 0 | AD11: =AD9*AD10 -> 0 | AE11: 0 | AF11: 0 | AG11: 0 | AH11: 0 | AI11: =AI9*AI10 -> 0 | AJ11: 0 | AK11: 0 | AL11: 0 | AM11: 0 | AN11: 0 | AO11: 0 | AP11: 0 | AQ11: 0 | AR11: 0 | AS11: 0 | AT11: 0 | AU11: 0 | AV11: 0 | AW11: 0 | AX11: 0 | AY11: 0 | AZ11: 0 | BA11: 0 | BB11: 0 | BC11: 0 | BD11: 0 | BE11: =BE9*BE10 -> 0 | BF11: 0 | BG11: 0 | BH11: 0 | BI11: 0 | BJ11: 0 | BK11: 0 | BL11: 0 | BM11: 0 | BN11: 0 | BO11: 0 | BP11: 0 | BQ11: 0 | BR11: 0 | BS11: 0 | BT11: 0 | BU11: 0 | BV11: 0 | BW11: 0 | BX11: 0 | BY11: 0 | BZ11: 0 | CA11: 0 | CB11: 0 | CC11: 0 | CD11: 0 | CE11: 0 | CF11: 0 | CG11: 0 | CH11: 0 | CI11: 0
B12: =B10+1 -> 7 | C12: Tempo de utilização do sistema, em um dia | E12: h/dia
C13: Dias de utilização do sistema, em um ano | E13: dia/ano
C14: Funcionamento | E14: h/ano | F14: hai | H14: =H12*H13 -> 0 | I14: =I12*I13 -> 0 | J14: 0 | K14: 0 | L14: 0 | M14: 0 | N14: 0 | O14: 0 | P14: 0 | Q14: 0 | R14: 0 | S14: 0 | T14: 0 | U14: 0 | V14: 0 | W14: 0 | X14: 0 | Y14: 0 | Z14: 0 | AA14: 0 | AB14: =AB12*AB13 -> 0 | AC14: =AC12*AC13 -> 0 | AD14: =AD12*AD13 -> 0 | AE14: 0 | AF14: 0 | AG14: 0 | AH14: 0 | AI14: =AI12*AI13 -> 0 | AJ14: 0 | AK14: 0 | AL14: 0 | AM14: 0 | AN14: 0 | AO14: 0 | AP14: 0 | AQ14: 0 | AR14: 0 | AS14: 0 | AT14: 0 | AU14: 0 | AV14: 0 | AW14: 0 | AX14: 0 | AY14: 0 | AZ14: 0 | BA14: 0 | BB14: 0 | BC14: 0 | BD14: 0 | BE14: =BE12*BE13 -> 0 | BF14: 0 | BG14: 0 | BH14: 0 | BI14: 0 | BJ14: 0 | BK14: 0 | BL14: 0 | BM14: 0 | BN14: 0 | BO14: 0 | BP14: 0 | BQ14: 0 | BR14: 0 | BS14: 0 | BT14: 0 | BU14: 0 | BV14: 0 | BW14: 0 | BX14: 0 | BY14: 0 | BZ14: 0 | CA14: 0 | CB14: 0 | CC14: 0 | CD14: 0 | CE14: 0 | CF14: 0 | CG14: 0 | CH14: 0 | CI14: 0
B15: =B12+1 -> 8 | C15: Meses no ano, de utilização do Sistema no horário de Ponta | E15: meses | F15: NM | G15: 12
C16: Dias úteis no mês, de utilização do Sistema no horário de Ponta | E16: dias | F16: ND | G16: 22
C17: Horas por dia, de utilização do Sistema no horário de Ponta | E17: horas | F17: NUP | G17: 3
C18: Potência média na ponta | E18: kW | F18: dai | G18: =SUM(H18:CI18) -> 0 | H18: =H11*((H15*H16*H17)/($G$15*$G$16*$G$17)) -> 0 | I18: =I11*((I15*I16*I17)/($G$15*$G$16*$G$17)) -> 0 | J18: 0 | K18: 0 | L18: 0 | M18: 0 | N18: 0 | O18: 0 | P18: 0 | Q18: 0 | R18: 0 | S18: 0 | T18: 0 | U18: 0 | V18: 0 | W18: 0 | X18: 0 | Y18: 0 | Z18: 0 | AA18: 0 | AB18: =AB11*((AB15*AB16*AB17)/($G$15*$G$16*$G$17)) -> 0 | AC18: =AC11*((AC15*AC16*AC17)/($G$15*$G$16*$G$17)) -> 0 | AD18: =AD11*((AD15*AD16*AD17)/($G$15*$G$16*$G$17)) -> 0 | AE18: 0 | AF18: 0 | AG18: 0 | AH18: 0 | AI18: =AI11*((AI15*AI16*AI17)/($G$15*$G$16*$G$17)) -> 0 | AJ18: 0 | AK18: 0 | AL18: 0 | AM18: 0 | AN18: 0 | AO18: 0 | AP18: 0 | AQ18: 0 | AR18: 0 | AS18: 0 | AT18: 0 | AU18: 0 | AV18: 0 | AW18: 0 | AX18: 0 | AY18: 0 | AZ18: 0 | BA18: 0 | BB18: 0 | BC18: 0 | BD18: 0 | BE18: =BE11*((BE15*BE16*BE17)/($G$15*$G$16*$G$17)) -> 0 | BF18: 0 | BG18: 0 | BH18: 0 | BI18: 0 | BJ18: 0 | BK18: 0 | BL18: 0 | BM18: 0 | BN18: 0 | BO18: 0 | BP18: 0 | BQ18: 0 | BR18: 0 | BS18: 0 | BT18: 0 | BU18: 0 | BV18: 0 | BW18: 0 | BX18: 0 | BY18: 0 | BZ18: 0 | CA18: 0 | CB18: 0 | CC18: 0 | CD18: 0 | CE18: 0 | CF18: 0 | CG18: 0 | CH18: 0 | CI18: 0
C19: Fator de coincidência na ponta | F19: FCPai | G19: =IF(LARGE(H19:CI19,1)>1,"ERRO","") ->  | H19: =IFERROR(H18/H11,0) -> 0 | I19: =IFERROR(I18/I11,0) -> 0 | J19: 0 | K19: 0 | L19: 0 | M19: 0 | N19: 0 | O19: 0 | P19: 0 | Q19: 0 | R19: 0 | S19: 0 | T19: 0 | U19: 0 | V19: 0 | W19: 0 | X19: 0 | Y19: 0 | Z19: 0 | AA19: 0 | AB19: =IFERROR(AB18/AB11,0) -> 0 | AC19: =IFERROR(AC18/AC11,0) -> 0 | AD19: =IFERROR(AD18/AD11,0) -> 0 | AE19: 0 | AF19: 0 | AG19: 0 | AH19: 0 | AI19: =IFERROR(AI18/AI11,0) -> 0 | AJ19: 0 | AK19: 0 | AL19: 0 | AM19: 0 | AN19: 0 | AO19: 0 | AP19: 0 | AQ19: 0 | AR19: 0 | AS19: 0 | AT19: 0 | AU19: 0 | AV19: 0 | AW19: 0 | AX19: 0 | AY19: 0 | AZ19: 0 | BA19: 0 | BB19: 0 | BC19: 0 | BD19: 0 | BE19: =IFERROR(BE18/BE11,0) -> 0 | BF19: 0 | BG19: 0 | BH19: 0 | BI19: 0 | BJ19: 0 | BK19: 0 | BL19: 0 | BM19: 0 | BN19: 0 | BO19: 0 | BP19: 0 | BQ19: 0 | BR19: 0 | BS19: 0 | BT19: 0 | BU19: 0 | BV19: 0 | BW19: 0 | BX19: 0 | BY19: 0 | BZ19: 0 | CA19: 0 | CB19: 0 | CC19: 0 | CD19: 0 | CE19: 0 | CF19: 0 | CG19: 0 | CH19: 0 | CI19: 0
B20: =B15+1 -> 9 | C20: Energia consumida | E20: MWh/ano | F20: Eai | G20: =SUM(H20:CI20) -> 0 | H20: =(H11*H14)/1000 -> 0 | I20: =(I11*I14)/1000 -> 0 | J20: 0 | K20: 0 | L20: 0 | M20: 0 | N20: 0 | O20: 0 | P20: 0 | Q20: 0 | R20: 0 | S20: 0 | T20: 0 | U20: 0 | V20: 0 | W20: 0 | X20: 0 | Y20: 0 | Z20: 0 | AA20: 0 | AB20: =(AB11*AB14)/1000 -> 0 | AC20: =(AC11*AC14)/1000 -> 0 | AD20: =(AD11*AD14)/1000 -> 0 | AE20: 0 | AF20: 0 | AG20: 0 | AH20: 0 | AI20: =(AI11*AI14)/1000 -> 0 | AJ20: 0 | AK20: 0 | AL20: 0 | AM20: 0 | AN20: 0 | AO20: 0 | AP20: 0 | AQ20: 0 | AR20: 0 | AS20: 0 | AT20: 0 | AU20: 0 | AV20: 0 | AW20: 0 | AX20: 0 | AY20: 0 | AZ20: 0 | BA20: 0 | BB20: 0 | BC20: 0 | BD20: 0 | BE20: =(BE11*BE14)/1000 -> 0 | BF20: 0 | BG20: 0 | BH20: 0 | BI20: 0 | BJ20: 0 | BK20: 0 | BL20: 0 | BM20: 0 | BN20: 0 | BO20: 0 | BP20: 0 | BQ20: 0 | BR20: 0 | BS20: 0 | BT20: 0 | BU20: 0 | BV20: 0 | BW20: 0 | BX20: 0 | BY20: 0 | BZ20: 0 | CA20: 0 | CB20: 0 | CC20: 0 | CD20: 0 | CE20: 0 | CF20: 0 | CG20: 0 | CH20: 0 | CI20: 0
B21: =B20+1 -> 10 | C21: Demanda média na ponta | E21: kW | F21: Dai | G21: =SUM(H21:CI21) -> 0 | H21: =H11*H19 -> 0 | I21: =I11*I19 -> 0 | J21: 0 | K21: 0 | L21: 0 | M21: 0 | N21: 0 | O21: 0 | P21: 0 | Q21: 0 | R21: 0 | S21: 0 | T21: 0 | U21: 0 | V21: 0 | W21: 0 | X21: 0 | Y21: 0 | Z21: 0 | AA21: 0 | AB21: =AB11*AB19 -> 0 | AC21: =AC11*AC19 -> 0 | AD21: =AD11*AD19 -> 0 | AE21: 0 | AF21: 0 | AG21: 0 | AH21: 0 | AI21: =AI11*AI19 -> 0 | AJ21: 0 | AK21: 0 | AL21: 0 | AM21: 0 | AN21: 0 | AO21: 0 | AP21: 0 | AQ21: 0 | AR21: 0 | AS21: 0 | AT21: 0 | AU21: 0 | AV21: 0 | AW21: 0 | AX21: 0 | AY21: 0 | AZ21: 0 | BA21: 0 | BB21: 0 | BC21: 0 | BD21: 0 | BE21: =BE11*BE19 -> 0 | BF21: 0 | BG21: 0 | BH21: 0 | BI21: 0 | BJ21: 0 | BK21: 0 | BL21: 0 | BM21: 0 | BN21: 0 | BO21: 0 | BP21: 0 | BQ21: 0 | BR21: 0 | BS21: 0 | BT21: 0 | BU21: 0 | BV21: 0 | BW21: 0 | BX21: 0 | BY21: 0 | BZ21: 0 | CA21: 0 | CB21: 0 | CC21: 0 | CD21: 0 | CE21: 0 | CF21: 0 | CG21: 0 | CH21: 0 | CI21: 0
B23: SISTEMA PROPOSTO
G24: TOTAL | H24: cond 1 | I24: cond 2 | J24: cond 3 | K24: cond 4 | L24: cond 5 | M24: cond 6 | N24: cond 7 | O24: cond 8 | P24: cond 9 | Q24: cond 10 | R24: cond 11 | S24: cond 12 | T24: cond 13 | U24: cond 14 | V24: cond 15 | W24: cond 16 | X24: cond 17 | Y24: cond 18 | Z24: cond 19 | AA24: cond 20 | AB24: cond 21 | AC24: cond 22 | AD24: cond 23 | AE24: cond 24 | AF24: cond 25 | AG24: cond 26 | AH24: cond 27 | AI24: cond 28 | AJ24: cond 29 | AK24: cond 30 | AL24: cond 31 | AM24: cond 32 | AN24: cond 33 | AO24: cond 34 | AP24: cond 35 | AQ24: cond 36 | AR24: cond 37 | AS24: cond 38 | AT24: cond 39 | AU24: cond 40 | AV24: cond 41 | AW24: cond 42 | AX24: cond 43 | AY24: cond 44 | AZ24: cond 45 | BA24: cond 46 | BB24: cond 47 | BC24: cond 48 | BD24: cond 49 | BE24: cond 50 | BF24: cond 51 | BG24: cond 52 | BH24: cond 53 | BI24: cond 54 | BJ24: cond 55 | BK24: cond 56 | BL24: cond 57 | BM24: cond 58 | BN24: cond 59 | BO24: cond 60 | BP24: cond 61 | BQ24: cond 62 | BR24: cond 63 | BS24: cond 64 | BT24: cond 65 | BU24: cond 66 | BV24: cond 67 | BW24: cond 68 | BX24: cond 69 | BY24: cond 70 | BZ24: cond 71 | CA24: cond 72 | CB24: cond 73 | CC24: cond 74 | CD24: cond 75 | CE24: cond 76 | CF24: cond 77 | CG24: cond 78 | CH24: cond 79 | CI24: cond 80
B25: =B21+1 -> 11 | C25: Tipo de equipamento / tecnologia
B26: =B25+1 -> 12 | C26: Potência nominal de refrigeração | E26: BTU/h | F26: ppi | G26: =SUM(H26:CI26) -> 0
B27: =B26+1 -> 13 | C27: Coefiente de eficiência energética | E27: W/W | F27: cpi
B28: =B27+1 -> 14 | C28: Quantidade | F28: qpi | G28: =SUM(H28:CI28) -> 0
B29: =B28+1 -> 15 | C29: Potência instalada | E29: kW | F29: Ppi | G29: =SUM(H29:CI29) -> 0 | H29: =IF(H27=0,0,((H26*0.293*H28)/(1000*H27))) -> 0 | I29: =IF(I27=0,0,((I26*0.293*I28)/(1000*I27))) -> 0 | J29: 0 | K29: 0 | L29: 0 | M29: 0 | N29: 0 | O29: 0 | P29: 0 | Q29: 0 | R29: 0 | S29: 0 | T29: 0 | U29: 0 | V29: 0 | W29: 0 | X29: 0 | Y29: 0 | Z29: 0 | AA29: 0 | AB29: =IF(AB27=0,0,((AB26*0.293*AB28)/(1000*AB27))) -> 0 | AC29: =IF(AC27=0,0,((AC26*0.293*AC28)/(1000*AC27))) -> 0 | AD29: =IF(AD27=0,0,((AD26*0.293*AD28)/(1000*AD27))) -> 0 | AE29: 0 | AF29: 0 | AG29: 0 | AH29: 0 | AI29: =IF(AI27=0,0,((AI26*0.293*AI28)/(1000*AI27))) -> 0 | AJ29: 0 | AK29: 0 | AL29: 0 | AM29: 0 | AN29: 0 | AO29: 0 | AP29: 0 | AQ29: 0 | AR29: 0 | AS29: 0 | AT29: 0 | AU29: 0 | AV29: 0 | AW29: 0 | AX29: 0 | AY29: 0 | AZ29: 0 | BA29: 0 | BB29: 0 | BC29: 0 | BD29: 0 | BE29: =IF(BE27=0,0,((BE26*0.293*BE28)/(1000*BE27))) -> 0 | BF29: 0 | BG29: 0 | BH29: 0 | BI29: 0 | BJ29: 0 | BK29: 0 | BL29: 0 | BM29: 0 | BN29: 0 | BO29: 0 | BP29: 0 | BQ29: 0 | BR29: 0 | BS29: 0 | BT29: 0 | BU29: 0 | BV29: 0 | BW29: 0 | BX29: 0 | BY29: 0 | BZ29: 0 | CA29: 0 | CB29: 0 | CC29: 0 | CD29: 0 | CE29: 0 | CF29: 0 | CG29: 0 | CH29: 0 | CI29: 0
B30: =B29+1 -> 16 | C30: Fator de utilização | F30: FUpi
C31: Potência média utilizada | E31: kW | F31: Pupi | G31: =SUM(H31:CI31) -> 0 | H31: =H29*H30 -> 0 | I31: =I29*I30 -> 0 | J31: 0 | K31: 0 | L31: 0 | M31: 0 | N31: 0 | O31: 0 | P31: 0 | Q31: 0 | R31: 0 | S31: 0 | T31: 0 | U31: 0 | V31: 0 | W31: 0 | X31: 0 | Y31: 0 | Z31: 0 | AA31: 0 | AB31: =AB29*AB30 -> 0 | AC31: =AC29*AC30 -> 0 | AD31: =AD29*AD30 -> 0 | AE31: 0 | AF31: 0 | AG31: 0 | AH31: 0 | AI31: =AI29*AI30 -> 0 | AJ31: 0 | AK31: 0 | AL31: 0 | AM31: 0 | AN31: 0 | AO31: 0 | AP31: 0 | AQ31: 0 | AR31: 0 | AS31: 0 | AT31: 0 | AU31: 0 | AV31: 0 | AW31: 0 | AX31: 0 | AY31: 0 | AZ31: 0 | BA31: 0 | BB31: 0 | BC31: 0 | BD31: 0 | BE31: =BE29*BE30 -> 0 | BF31: 0 | BG31: 0 | BH31: 0 | BI31: 0 | BJ31: 0 | BK31: 0 | BL31: 0 | BM31: 0 | BN31: 0 | BO31: 0 | BP31: 0 | BQ31: 0 | BR31: 0 | BS31: 0 | BT31: 0 | BU31: 0 | BV31: 0 | BW31: 0 | BX31: 0 | BY31: 0 | BZ31: 0 | CA31: 0 | CB31: 0 | CC31: 0 | CD31: 0 | CE31: 0 | CF31: 0 | CG31: 0 | CH31: 0 | CI31: 0
B32: =B30+1 -> 17 | C32: Tempo de utilização do sistema, em um dia | E32: h/dia
C33: Dias de utilização do sistema, em um ano | E33: dia/ano
C34: Funcionamento | E34: h/ano | F34: hpi | H34: =H32*H33 -> 0 | I34: =I32*I33 -> 0 | J34: 0 | K34: 0 | L34: 0 | M34: 0 | N34: 0 | O34: 0 | P34: 0 | Q34: 0 | R34: 0 | S34: 0 | T34: 0 | U34: 0 | V34: 0 | W34: 0 | X34: 0 | Y34: 0 | Z34: 0 | AA34: 0 | AB34: =AB32*AB33 -> 0 | AC34: =AC32*AC33 -> 0 | AD34: =AD32*AD33 -> 0 | AE34: 0 | AF34: 0 | AG34: 0 | AH34: 0 | AI34: =AI32*AI33 -> 0 | AJ34: 0 | AK34: 0 | AL34: 0 | AM34: 0 | AN34: 0 | AO34: 0 | AP34: 0 | AQ34: 0 | AR34: 0 | AS34: 0 | AT34: 0 | AU34: 0 | AV34: 0 | AW34: 0 | AX34: 0 | AY34: 0 | AZ34: 0 | BA34: 0 | BB34: 0 | BC34: 0 | BD34: 0 | BE34: =BE32*BE33 -> 0 | BF34: 0 | BG34: 0 | BH34: 0 | BI34: 0 | BJ34: 0 | BK34: 0 | BL34: 0 | BM34: 0 | BN34: 0 | BO34: 0 | BP34: 0 | BQ34: 0 | BR34: 0 | BS34: 0 | BT34: 0 | BU34: 0 | BV34: 0 | BW34: 0 | BX34: 0 | BY34: 0 | BZ34: 0 | CA34: 0 | CB34: 0 | CC34: 0 | CD34: 0 | CE34: 0 | CF34: 0 | CG34: 0 | CH34: 0 | CI34: 0
B35: =B32+1 -> 18 | C35: Meses no ano, de utilização do Sistema no horário de Ponta | E35: meses | F35: NM | G35: 12
C36: Dias úteis no mês, de utilização do Sistema no horário de Ponta | E36: dias | F36: ND | G36: 22
C37: Horas por dia, de utilização do Sistema no horário de Ponta | E37: horas | F37: NUP | G37: 3
C38: Potência média na ponta | E38: kW | F38: dpi | G38: =SUM(H38:CI38) -> 0 | H38: =H31*((H35*H36*H37)/($G$35*$G$36*$G$37)) -> 0 | I38: =I31*((I35*I36*I37)/($G$35*$G$36*$G$37)) -> 0 | J38: 0 | K38: 0 | L38: 0 | M38: 0 | N38: 0 | O38: 0 | P38: 0 | Q38: 0 | R38: 0 | S38: 0 | T38: 0 | U38: 0 | V38: 0 | W38: 0 | X38: 0 | Y38: 0 | Z38: 0 | AA38: 0 | AB38: =AB31*((AB35*AB36*AB37)/($G$35*$G$36*$G$37)) -> 0 | AC38: =AC31*((AC35*AC36*AC37)/($G$35*$G$36*$G$37)) -> 0 | AD38: =AD31*((AD35*AD36*AD37)/($G$35*$G$36*$G$37)) -> 0 | AE38: 0 | AF38: 0 | AG38: 0 | AH38: 0 | AI38: =AI31*((AI35*AI36*AI37)/($G$35*$G$36*$G$37)) -> 0 | AJ38: 0 | AK38: 0 | AL38: 0 | AM38: 0 | AN38: 0 | AO38: 0 | AP38: 0 | AQ38: 0 | AR38: 0 | AS38: 0 | AT38: 0 | AU38: 0 | AV38: 0 | AW38: 0 | AX38: 0 | AY38: 0 | AZ38: 0 | BA38: 0 | BB38: 0 | BC38: 0 | BD38: 0 | BE38: =BE31*((BE35*BE36*BE37)/($G$35*$G$36*$G$37)) -> 0 | BF38: 0 | BG38: 0 | BH38: 0 | BI38: 0 | BJ38: 0 | BK38: 0 | BL38: 0 | BM38: 0 | BN38: 0 | BO38: 0 | BP38: 0 | BQ38: 0 | BR38: 0 | BS38: 0 | BT38: 0 | BU38: 0 | BV38: 0 | BW38: 0 | BX38: 0 | BY38: 0 | BZ38: 0 | CA38: 0 | CB38: 0 | CC38: 0 | CD38: 0 | CE38: 0 | CF38: 0 | CG38: 0 | CH38: 0 | CI38: 0
C39: Fator de coincidência na ponta | F39: FCPpi | G39: =IF(LARGE(H39:CI39,1)>1,"ERRO","") ->  | H39: =IFERROR(H38/H31,0) -> 0 | I39: =IFERROR(I38/I31,0) -> 0 | J39: 0 | K39: 0 | L39: 0 | M39: 0 | N39: 0 | O39: 0 | P39: 0 | Q39: 0 | R39: 0 | S39: 0 | T39: 0 | U39: 0 | V39: 0 | W39: 0 | X39: 0 | Y39: 0 | Z39: 0 | AA39: 0 | AB39: =IFERROR(AB38/AB31,0) -> 0 | AC39: =IFERROR(AC38/AC31,0) -> 0 | AD39: =IFERROR(AD38/AD31,0) -> 0 | AE39: 0 | AF39: 0 | AG39: 0 | AH39: 0 | AI39: =IFERROR(AI38/AI31,0) -> 0 | AJ39: 0 | AK39: 0 | AL39: 0 | AM39: 0 | AN39: 0 | AO39: 0 | AP39: 0 | AQ39: 0 | AR39: 0 | AS39: 0 | AT39: 0 | AU39: 0 | AV39: 0 | AW39: 0 | AX39: 0 | AY39: 0 | AZ39: 0 | BA39: 0 | BB39: 0 | BC39: 0 | BD39: 0 | BE39: =IFERROR(BE38/BE31,0) -> 0 | BF39: 0 | BG39: 0 | BH39: 0 | BI39: 0 | BJ39: 0 | BK39: 0 | BL39: 0 | BM39: 0 | BN39: 0 | BO39: 0 | BP39: 0 | BQ39: 0 | BR39: 0 | BS39: 0 | BT39: 0 | BU39: 0 | BV39: 0 | BW39: 0 | BX39: 0 | BY39: 0 | BZ39: 0 | CA39: 0 | CB39: 0 | CC39: 0 | CD39: 0 | CE39: 0 | CF39: 0 | CG39: 0 | CH39: 0 | CI39: 0
B40: =B35+1 -> 19 | C40: Energia consumida | E40: MWh/ano | F40: Epi | G40: =SUM(H40:CI40) -> 0 | H40: =(H31*H34)/1000 -> 0 | I40: =(I31*I34)/1000 -> 0 | J40: 0 | K40: 0 | L40: 0 | M40: 0 | N40: 0 | O40: 0 | P40: 0 | Q40: 0 | R40: 0 | S40: 0 | T40: 0 | U40: 0 | V40: 0 | W40: 0 | X40: 0 | Y40: 0 | Z40: 0 | AA40: 0 | AB40: =(AB31*AB34)/1000 -> 0 | AC40: =(AC31*AC34)/1000 -> 0 | AD40: =(AD31*AD34)/1000 -> 0 | AE40: 0 | AF40: 0 | AG40: 0 | AH40: 0 | AI40: =(AI31*AI34)/1000 -> 0 | AJ40: 0 | AK40: 0 | AL40: 0 | AM40: 0 | AN40: 0 | AO40: 0 | AP40: 0 | AQ40: 0 | AR40: 0 | AS40: 0 | AT40: 0 | AU40: 0 | AV40: 0 | AW40: 0 | AX40: 0 | AY40: 0 | AZ40: 0 | BA40: 0 | BB40: 0 | BC40: 0 | BD40: 0 | BE40: =(BE31*BE34)/1000 -> 0 | BF40: 0 | BG40: 0 | BH40: 0 | BI40: 0 | BJ40: 0 | BK40: 0 | BL40: 0 | BM40: 0 | BN40: 0 | BO40: 0 | BP40: 0 | BQ40: 0 | BR40: 0 | BS40: 0 | BT40: 0 | BU40: 0 | BV40: 0 | BW40: 0 | BX40: 0 | BY40: 0 | BZ40: 0 | CA40: 0 | CB40: 0 | CC40: 0 | CD40: 0 | CE40: 0 | CF40: 0 | CG40: 0 | CH40: 0 | CI40: 0
B41: =B40+1 -> 20 | C41: Demanda média na ponta | E41: kW | F41: Dpi | G41: =SUM(H41:CI41) -> 0 | H41: =H31*H39 -> 0 | I41: =I31*I39 -> 0 | J41: 0 | K41: 0 | L41: 0 | M41: 0 | N41: 0 | O41: 0 | P41: 0 | Q41: 0 | R41: 0 | S41: 0 | T41: 0 | U41: 0 | V41: 0 | W41: 0 | X41: 0 | Y41: 0 | Z41: 0 | AA41: 0 | AB41: =AB31*AB39 -> 0 | AC41: =AC31*AC39 -> 0 | AD41: =AD31*AD39 -> 0 | AE41: 0 | AF41: 0 | AG41: 0 | AH41: 0 | AI41: =AI31*AI39 -> 0 | AJ41: 0 | AK41: 0 | AL41: 0 | AM41: 0 | AN41: 0 | AO41: 0 | AP41: 0 | AQ41: 0 | AR41: 0 | AS41: 0 | AT41: 0 | AU41: 0 | AV41: 0 | AW41: 0 | AX41: 0 | AY41: 0 | AZ41: 0 | BA41: 0 | BB41: 0 | BC41: 0 | BD41: 0 | BE41: =BE31*BE39 -> 0 | BF41: 0 | BG41: 0 | BH41: 0 | BI41: 0 | BJ41: 0 | BK41: 0 | BL41: 0 | BM41: 0 | BN41: 0 | BO41: 0 | BP41: 0 | BQ41: 0 | BR41: 0 | BS41: 0 | BT41: 0 | BU41: 0 | BV41: 0 | BW41: 0 | BX41: 0 | BY41: 0 | BZ41: 0 | CA41: 0 | CB41: 0 | CC41: 0 | CD41: 0 | CE41: 0 | CF41: 0 | CG41: 0 | CH41: 0 | CI41: 0
B43: RESULTADOS ESPERADOS
G44: TOTAL | H44: cond 1 | I44: cond 2 | J44: cond 3 | K44: cond 4 | L44: cond 5 | M44: cond 6 | N44: cond 7 | O44: cond 8 | P44: cond 9 | Q44: cond 10 | R44: cond 11 | S44: cond 12 | T44: cond 13 | U44: cond 14 | V44: cond 15 | W44: cond 16 | X44: cond 17 | Y44: cond 18 | Z44: cond 19 | AA44: cond 20 | AB44: cond 21 | AC44: cond 22 | AD44: cond 23 | AE44: cond 24 | AF44: cond 25 | AG44: cond 26 | AH44: cond 27 | AI44: cond 28 | AJ44: cond 29 | AK44: cond 30 | AL44: cond 31 | AM44: cond 32 | AN44: cond 33 | AO44: cond 34 | AP44: cond 35 | AQ44: cond 36 | AR44: cond 37 | AS44: cond 38 | AT44: cond 39 | AU44: cond 40 | AV44: cond 41 | AW44: cond 42 | AX44: cond 43 | AY44: cond 44 | AZ44: cond 45 | BA44: cond 46 | BB44: cond 47 | BC44: cond 48 | BD44: cond 49 | BE44: cond 50 | BF44: cond 51 | BG44: cond 52 | BH44: cond 53 | BI44: cond 54 | BJ44: cond 55 | BK44: cond 56 | BL44: cond 57 | BM44: cond 58 | BN44: cond 59 | BO44: cond 60 | BP44: cond 61 | BQ44: cond 62 | BR44: cond 63 | BS44: cond 64 | BT44: cond 65 | BU44: cond 66 | BV44: cond 67 | BW44: cond 68 | BX44: cond 69 | BY44: cond 70 | BZ44: cond 71 | CA44: cond 72 | CB44: cond 73 | CC44: cond 74 | CD44: cond 75 | CE44: cond 76 | CF44: cond 77 | CG44: cond 78 | CH44: cond 79 | CI44: cond 80
B45: =B41+1 -> 21 | C45: Redução de demanda na ponta | E45: kW | F45: RDPi | G45: =SUM(H45:CI45) -> 0 | H45: =H21-H41 -> 0 | I45: =I21-I41 -> 0 | J45: 0 | K45: 0 | L45: 0 | M45: 0 | N45: 0 | O45: 0 | P45: 0 | Q45: 0 | R45: 0 | S45: 0 | T45: 0 | U45: 0 | V45: 0 | W45: 0 | X45: 0 | Y45: 0 | Z45: 0 | AA45: 0 | AB45: =AB21-AB41 -> 0 | AC45: =AC21-AC41 -> 0 | AD45: =AD21-AD41 -> 0 | AE45: 0 | AF45: 0 | AG45: 0 | AH45: 0 | AI45: =AI21-AI41 -> 0 | AJ45: 0 | AK45: 0 | AL45: 0 | AM45: 0 | AN45: 0 | AO45: 0 | AP45: 0 | AQ45: 0 | AR45: 0 | AS45: 0 | AT45: 0 | AU45: 0 | AV45: 0 | AW45: 0 | AX45: 0 | AY45: 0 | AZ45: 0 | BA45: 0 | BB45: 0 | BC45: 0 | BD45: 0 | BE45: =BE21-BE41 -> 0 | BF45: 0 | BG45: 0 | BH45: 0 | BI45: 0 | BJ45: 0 | BK45: 0 | BL45: 0 | BM45: 0 | BN45: 0 | BO45: 0 | BP45: 0 | BQ45: 0 | BR45: 0 | BS45: 0 | BT45: 0 | BU45: 0 | BV45: 0 | BW45: 0 | BX45: 0 | BY45: 0 | BZ45: 0 | CA45: 0 | CB45: 0 | CC45: 0 | CD45: 0 | CE45: 0 | CF45: 0 | CG45: 0 | CH45: 0 | CI45: 0
B46: =B45+1 -> 22 | C46: Custo evitado de demanda (CED) = | D46: =CED -> 1906.44 | E46: % | F46: RDPi% | G46: =IF(G21=0,0,G45/G21) -> 0 | H46: =IFERROR(H45/H21,0) -> 0 | I46: =IFERROR(I45/I21,0) -> 0 | J46: 0 | K46: 0 | L46: 0 | M46: 0 | N46: 0 | O46: 0 | P46: 0 | Q46: 0 | R46: 0 | S46: 0 | T46: 0 | U46: 0 | V46: 0 | W46: 0 | X46: 0 | Y46: 0 | Z46: 0 | AA46: 0 | AB46: =IFERROR(AB45/AB21,0) -> 0 | AC46: =IFERROR(AC45/AC21,0) -> 0 | AD46: =IFERROR(AD45/AD21,0) -> 0 | AE46: 0 | AF46: 0 | AG46: 0 | AH46: 0 | AI46: =IFERROR(AI45/AI21,0) -> 0 | AJ46: 0 | AK46: 0 | AL46: 0 | AM46: 0 | AN46: 0 | AO46: 0 | AP46: 0 | AQ46: 0 | AR46: 0 | AS46: 0 | AT46: 0 | AU46: 0 | AV46: 0 | AW46: 0 | AX46: 0 | AY46: 0 | AZ46: 0 | BA46: 0 | BB46: 0 | BC46: 0 | BD46: 0 | BE46: =IFERROR(BE45/BE21,0) -> 0 | BF46: 0 | BG46: 0 | BH46: 0 | BI46: 0 | BJ46: 0 | BK46: 0 | BL46: 0 | BM46: 0 | BN46: 0 | BO46: 0 | BP46: 0 | BQ46: 0 | BR46: 0 | BS46: 0 | BT46: 0 | BU46: 0 | BV46: 0 | BW46: 0 | BX46: 0 | BY46: 0 | BZ46: 0 | CA46: 0 | CB46: 0 | CC46: 0 | CD46: 0 | CE46: 0 | CF46: 0 | CG46: 0 | CH46: 0 | CI46: 0
B47: =B46+1 -> 23 | C47: Energia economizada | E47: MWh/ano | F47: EEi | G47: =SUM(H47:CI47) -> 0 | H47: =H20-H40 -> 0 | I47: =I20-I40 -> 0 | J47: 0 | K47: 0 | L47: 0 | M47: 0 | N47: 0 | O47: 0 | P47: 0 | Q47: 0 | R47: 0 | S47: 0 | T47: 0 | U47: 0 | V47: 0 | W47: 0 | X47: 0 | Y47: 0 | Z47: 0 | AA47: 0 | AB47: =AB20-AB40 -> 0 | AC47: =AC20-AC40 -> 0 | AD47: =AD20-AD40 -> 0 | AE47: 0 | AF47: 0 | AG47: 0 | AH47: 0 | AI47: =AI20-AI40 -> 0 | AJ47: 0 | AK47: 0 | AL47: 0 | AM47: 0 | AN47: 0 | AO47: 0 | AP47: 0 | AQ47: 0 | AR47: 0 | AS47: 0 | AT47: 0 | AU47: 0 | AV47: 0 | AW47: 0 | AX47: 0 | AY47: 0 | AZ47: 0 | BA47: 0 | BB47: 0 | BC47: 0 | BD47: 0 | BE47: =BE20-BE40 -> 0 | BF47: 0 | BG47: 0 | BH47: 0 | BI47: 0 | BJ47: 0 | BK47: 0 | BL47: 0 | BM47: 0 | BN47: 0 | BO47: 0 | BP47: 0 | BQ47: 0 | BR47: 0 | BS47: 0 | BT47: 0 | BU47: 0 | BV47: 0 | BW47: 0 | BX47: 0 | BY47: 0 | BZ47: 0 | CA47: 0 | CB47: 0 | CC47: 0 | CD47: 0 | CE47: 0 | CF47: 0 | CG47: 0 | CH47: 0 | CI47: 0
B48: =B47+1 -> 24 | C48: Custo da energia evitada (CEE) = | D48: =CEE -> 797.57 | E48: % | F48: EEi% | G48: =IF(G20=0,0,G47/G20) -> 0 | H48: =IFERROR(H47/H20,0) -> 0 | I48: =IFERROR(I47/I20,0) -> 0 | J48: 0 | K48: 0 | L48: 0 | M48: 0 | N48: 0 | O48: 0 | P48: 0 | Q48: 0 | R48: 0 | S48: 0 | T48: 0 | U48: 0 | V48: 0 | W48: 0 | X48: 0 | Y48: 0 | Z48: 0 | AA48: 0 | AB48: =IFERROR(AB47/AB20,0) -> 0 | AC48: =IFERROR(AC47/AC20,0) -> 0 | AD48: =IFERROR(AD47/AD20,0) -> 0 | AE48: 0 | AF48: 0 | AG48: 0 | AH48: 0 | AI48: =IFERROR(AI47/AI20,0) -> 0 | AJ48: 0 | AK48: 0 | AL48: 0 | AM48: 0 | AN48: 0 | AO48: 0 | AP48: 0 | AQ48: 0 | AR48: 0 | AS48: 0 | AT48: 0 | AU48: 0 | AV48: 0 | AW48: 0 | AX48: 0 | AY48: 0 | AZ48: 0 | BA48: 0 | BB48: 0 | BC48: 0 | BD48: 0 | BE48: =IFERROR(BE47/BE20,0) -> 0 | BF48: 0 | BG48: 0 | BH48: 0 | BI48: 0 | BJ48: 0 | BK48: 0 | BL48: 0 | BM48: 0 | BN48: 0 | BO48: 0 | BP48: 0 | BQ48: 0 | BR48: 0 | BS48: 0 | BT48: 0 | BU48: 0 | BV48: 0 | BW48: 0 | BX48: 0 | BY48: 0 | BZ48: 0 | CA48: 0 | CB48: 0 | CC48: 0 | CD48: 0 | CE48: 0 | CF48: 0 | CG48: 0 | CH48: 0 | CI48: 0
C49: Benefício anualizado condicionamento ambiental | E49: R$ | F49: BCOND | G49: =SUM(H49:CI49) -> 0 | H49: =H45*$D$46+H47*$D$48 -> 0 | I49: =I45*$D$46+I47*$D$48 -> 0 | J49: 0 | K49: 0 | L49: 0 | M49: 0 | N49: 0 | O49: 0 | P49: 0 | Q49: 0 | R49: 0 | S49: 0 | T49: 0 | U49: 0 | V49: 0 | W49: 0 | X49: 0 | Y49: 0 | Z49: 0 | AA49: 0 | AB49: =AB45*$D$46+AB47*$D$48 -> 0 | AC49: =AC45*$D$46+AC47*$D$48 -> 0 | AD49: =AD45*$D$46+AD47*$D$48 -> 0 | AE49: 0 | AF49: 0 | AG49: 0 | AH49: 0 | AI49: =AI45*$D$46+AI47*$D$48 -> 0 | AJ49: 0 | AK49: 0 | AL49: 0 | AM49: 0 | AN49: 0 | AO49: 0 | AP49: 0 | AQ49: 0 | AR49: 0 | AS49: 0 | AT49: 0 | AU49: 0 | AV49: 0 | AW49: 0 | AX49: 0 | AY49: 0 | AZ49: 0 | BA49: 0 | BB49: 0 | BC49: 0 | BD49: 0 | BE49: =BE45*$D$46+BE47*$D$48 -> 0 | BF49: 0 | BG49: 0 | BH49: 0 | BI49: 0 | BJ49: 0 | BK49: 0 | BL49: 0 | BM49: 0 | BN49: 0 | BO49: 0 | BP49: 0 | BQ49: 0 | BR49: 0 | BS49: 0 | BT49: 0 | BU49: 0 | BV49: 0 | BW49: 0 | BX49: 0 | BY49: 0 | BZ49: 0 | CA49: 0 | CB49: 0 | CC49: 0 | CD49: 0 | CE49: 0 | CF49: 0 | CG49: 0 | CH49: 0 | CI49: 0
E51: RCBCOND_AMB_PEE | G51: =RCB!G6 -> 0
E52: RCBCOND_AMB_TOTAL | G52: =RCB!J6 -> 0
B55: ECONOMIA MENSAL PARA O CONSUMIDOR (SIMULAÇÃO)
G56: TOTAL | H56: cond 1 | I56: cond 2 | J56: cond 3 | K56: cond 4 | L56: cond 5 | M56: cond 6 | N56: cond 7 | O56: cond 8 | P56: cond 9 | Q56: cond 10 | R56: cond 11 | S56: cond 12 | T56: cond 13 | U56: cond 14 | V56: cond 15 | W56: cond 16 | X56: cond 17 | Y56: cond 18 | Z56: cond 19 | AA56: cond 20 | AB56: cond 21 | AC56: cond 22 | AD56: cond 23 | AE56: cond 24 | AF56: cond 25 | AG56: cond 26 | AH56: cond 27 | AI56: cond 28 | AJ56: cond 29 | AK56: cond 30 | AL56: cond 31 | AM56: cond 32 | AN56: cond 33 | AO56: cond 34 | AP56: cond 35 | AQ56: cond 36 | AR56: cond 37 | AS56: cond 38 | AT56: cond 39 | AU56: cond 40 | AV56: cond 41 | AW56: cond 42 | AX56: cond 43 | AY56: cond 44 | AZ56: cond 45 | BA56: cond 46 | BB56: cond 47 | BC56: cond 48 | BD56: cond 49 | BE56: cond 50 | BF56: cond 51 | BG56: cond 52 | BH56: cond 53 | BI56: cond 54 | BJ56: cond 55 | BK56: cond 56 | BL56: cond 57 | BM56: cond 58 | BN56: cond 59 | BO56: cond 60 | BP56: cond 61 | BQ56: cond 62 | BR56: cond 63 | BS56: cond 64 | BT56: cond 65 | BU56: cond 66 | BV56: cond 67 | BW56: cond 68 | BX56: cond 69 | BY56: cond 70 | BZ56: cond 71 | CA56: cond 72 | CB56: cond 73 | CC56: cond 74 | CD56: cond 75 | CE56: cond 76 | CF56: cond 77 | CG56: cond 78 | CH56: cond 79 | CI56: cond 80
B57: =B48+1 -> 25 | C57: Tempo de utilização do sistema, em um dia | E57: h/dia | H57: =H32 -> 0 | I57: =I32 -> 0 | J57: 0 | K57: 0 | L57: 0 | M57: 0 | N57: 0 | O57: 0 | P57: 0 | Q57: 0 | R57: 0 | S57: 0 | T57: 0 | U57: 0 | V57: 0 | W57: 0 | X57: 0 | Y57: 0 | Z57: 0 | AA57: 0 | AB57: =AB32 -> 0 | AC57: =AC32 -> 0 | AD57: =AD32 -> 0 | AE57: 0 | AF57: =AF32 -> 0 | AG57: =AG32 -> 0 | AH57: =AH32 -> 0 | AI57: =AI32 -> 0 | AJ57: 0 | AK57: 0 | AL57: 0 | AM57: 0 | AN57: 0 | AO57: 0 | AP57: 0 | AQ57: 0 | AR57: 0 | AS57: 0 | AT57: 0 | AU57: 0 | AV57: 0 | AW57: 0 | AX57: 0 | AY57: 0 | AZ57: 0 | BA57: 0 | BB57: 0 | BC57: 0 | BD57: 0 | BE57: 0 | BF57: 0 | BG57: 0 | BH57: 0 | BI57: 0 | BJ57: 0 | BK57: 0 | BL57: 0 | BM57: 0 | BN57: 0 | BO57: 0 | BP57: 0 | BQ57: 0 | BR57: 0 | BS57: 0 | BT57: 0 | BU57: 0 | BV57: 0 | BW57: 0 | BX57: 0 | BY57: 0 | BZ57: 0 | CA57: 0 | CB57: 0 | CC57: 0 | CD57: 0 | CE57: 0 | CF57: 0 | CG57: 0 | CH57: 0 | CI57: 0
B58: =B57+1 -> 26 | C58: Dias úteis por mês de utilização do sistema na ponta | E58: 22 | H58: =H36 -> 0 | I58: =I36 -> 0 | J58: 0 | K58: 0 | L58: 0 | M58: 0 | N58: 0 | O58: 0 | P58: 0 | Q58: 0 | R58: 0 | S58: 0 | T58: 0 | U58: 0 | V58: 0 | W58: 0 | X58: 0 | Y58: 0 | Z58: 0 | AA58: 0 | AB58: =AB36 -> 0 | AC58: =AC36 -> 0 | AD58: =AD36 -> 0 | AE58: 0 | AF58: =AF36 -> 0 | AG58: 0 | AH58: 0 | AI58: =AI36 -> 0 | AJ58: 0 | AK58: 0 | AL58: 0 | AM58: 0 | AN58: 0 | AO58: 0 | AP58: 0 | AQ58: 0 | AR58: 0 | AS58: 0 | AT58: 0 | AU58: 0 | AV58: 0 | AW58: 0 | AX58: 0 | AY58: 0 | AZ58: 0 | BA58: 0 | BB58: 0 | BC58: 0 | BD58: 0 | BE58: 0 | BF58: 0 | BG58: 0 | BH58: 0 | BI58: 0 | BJ58: 0 | BK58: 0 | BL58: 0 | BM58: 0 | BN58: 0 | BO58: 0 | BP58: 0 | BQ58: 0 | BR58: 0 | BS58: 0 | BT58: 0 | BU58: 0 | BV58: 0 | BW58: 0 | BX58: 0 | BY58: 0 | BZ58: 0 | CA58: 0 | CB58: 0 | CC58: 0 | CD58: 0 | CE58: 0 | CF58: 0 | CG58: 0 | CH58: 0 | CI58: 0
B59: 27 | C59: Horas por dia de utilização do sistema na ponta | E59: 3 | H59: =H37 -> 0 | I59: =I37 -> 0 | J59: 0 | K59: 0 | L59: 0 | M59: 0 | N59: 0 | O59: 0 | P59: 0 | Q59: 0 | R59: 0 | S59: 0 | T59: 0 | U59: 0 | V59: 0 | W59: 0 | X59: 0 | Y59: 0 | Z59: 0 | AA59: 0 | AB59: =AB37 -> 0 | AC59: =AC37 -> 0 | AD59: =AD37 -> 0 | AE59: 0 | AF59: 0 | AG59: 0 | AH59: 0 | AI59: =AI37 -> 0 | AJ59: 0 | AK59: 0 | AL59: 0 | AM59: 0 | AN59: 0 | AO59: 0 | AP59: 0 | AQ59: 0 | AR59: 0 | AS59: 0 | AT59: 0 | AU59: 0 | AV59: 0 | AW59: 0 | AX59: 0 | AY59: 0 | AZ59: 0 | BA59: 0 | BB59: 0 | BC59: 0 | BD59: 0 | BE59: 0 | BF59: 0 | BG59: 0 | BH59: 0 | BI59: 0 | BJ59: 0 | BK59: 0 | BL59: 0 | BM59: 0 | BN59: 0 | BO59: 0 | BP59: 0 | BQ59: 0 | BR59: 0 | BS59: 0 | BT59: 0 | BU59: 0 | BV59: 0 | BW59: 0 | BX59: 0 | BY59: 0 | BZ59: 0 | CA59: 0 | CB59: 0 | CC59: 0 | CD59: 0 | CE59: 0 | CF59: 0 | CG59: 0 | CH59: 0 | CI59: =CI37 -> 0
B60: 28 | C60: Dias com funcionamento na ponta em um mês | E60: % | H60: =H58/30 -> 0 | I60: =I58/30 -> 0 | J60: 0 | K60: 0 | L60: 0 | M60: 0 | N60: 0 | O60: 0 | P60: 0 | Q60: 0 | R60: 0 | S60: 0 | T60: 0 | U60: 0 | V60: 0 | W60: 0 | X60: 0 | Y60: 0 | Z60: 0 | AA60: 0 | AB60: =AB58/30 -> 0 | AC60: =AC58/30 -> 0 | AD60: =AD58/30 -> 0 | AE60: 0 | AF60: =AF58/30 -> 0 | AG60: =AG58/30 -> 0 | AH60: =AH58/30 -> 0 | AI60: =AI58/30 -> 0 | AJ60: 0 | AK60: 0 | AL60: 0 | AM60: 0 | AN60: 0 | AO60: 0 | AP60: 0 | AQ60: 0 | AR60: 0 | AS60: 0 | AT60: 0 | AU60: 0 | AV60: 0 | AW60: 0 | AX60: 0 | AY60: 0 | AZ60: 0 | BA60: 0 | BB60: 0 | BC60: 0 | BD60: 0 | BE60: 0 | BF60: 0 | BG60: 0 | BH60: 0 | BI60: 0 | BJ60: 0 | BK60: 0 | BL60: 0 | BM60: 0 | BN60: 0 | BO60: 0 | BP60: 0 | BQ60: 0 | BR60: 0 | BS60: 0 | BT60: 0 | BU60: 0 | BV60: 0 | BW60: 0 | BX60: 0 | BY60: 0 | BZ60: 0 | CA60: 0 | CB60: 0 | CC60: 0 | CD60: 0 | CE60: 0 | CF60: 0 | CG60: 0 | CH60: 0 | CI60: 0
B61: 29 | C61: Horas com funcionamento na ponta em um dia | E61: % | H61: =IFERROR(H59/H57,0) -> 0 | I61: =IFERROR(I59/I57,0) -> 0 | J61: 0 | K61: 0 | L61: 0 | M61: 0 | N61: 0 | O61: 0 | P61: 0 | Q61: 0 | R61: 0 | S61: 0 | T61: 0 | U61: 0 | V61: 0 | W61: 0 | X61: 0 | Y61: 0 | Z61: 0 | AA61: 0 | AB61: =IFERROR(AB59/AB57,0) -> 0 | AC61: =IFERROR(AC59/AC57,0) -> 0 | AD61: =IFERROR(AD59/AD57,0) -> 0 | AE61: 0 | AF61: =IFERROR(AF59/AF57,0) -> 0 | AG61: =IFERROR(AG59/AG57,0) -> 0 | AH61: =IFERROR(AH59/AH57,0) -> 0 | AI61: =IFERROR(AI59/AI57,0) -> 0 | AJ61: 0 | AK61: 0 | AL61: 0 | AM61: 0 | AN61: 0 | AO61: 0 | AP61: 0 | AQ61: 0 | AR61: 0 | AS61: 0 | AT61: 0 | AU61: 0 | AV61: 0 | AW61: 0 | AX61: 0 | AY61: 0 | AZ61: 0 | BA61: 0 | BB61: 0 | BC61: 0 | BD61: 0 | BE61: 0 | BF61: 0 | BG61: 0 | BH61: 0 | BI61: 0 | BJ61: 0 | BK61: 0 | BL61: 0 | BM61: 0 | BN61: 0 | BO61: 0 | BP61: 0 | BQ61: 0 | BR61: 0 | BS61: 0 | BT61: 0 | BU61: 0 | BV61: 0 | BW61: 0 | BX61: 0 | BY61: 0 | BZ61: 0 | CA61: 0 | CB61: 0 | CC61: 0 | CD61: 0 | CE61: 0 | CF61: 0 | CG61: 0 | CH61: 0 | CI61: 0
B62: 30 | C62: Funcionamento mensal em horário de ponta | E62: % | H62: =H60*H61 -> 0 | I62: =I60*I61 -> 0 | J62: 0 | K62: 0 | L62: 0 | M62: 0 | N62: 0 | O62: 0 | P62: 0 | Q62: 0 | R62: 0 | S62: 0 | T62: 0 | U62: 0 | V62: 0 | W62: 0 | X62: 0 | Y62: 0 | Z62: 0 | AA62: 0 | AB62: =AB60*AB61 -> 0 | AC62: =AC60*AC61 -> 0 | AD62: =AD60*AD61 -> 0 | AE62: 0 | AF62: =AF60*AF61 -> 0 | AG62: =AG60*AG61 -> 0 | AH62: =AH60*AH61 -> 0 | AI62: =AI60*AI61 -> 0 | AJ62: 0 | AK62: 0 | AL62: 0 | AM62: 0 | AN62: 0 | AO62: 0 | AP62: 0 | AQ62: 0 | AR62: 0 | AS62: 0 | AT62: 0 | AU62: 0 | AV62: 0 | AW62: 0 | AX62: 0 | AY62: 0 | AZ62: 0 | BA62: 0 | BB62: 0 | BC62: 0 | BD62: 0 | BE62: 0 | BF62: 0 | BG62: 0 | BH62: 0 | BI62: 0 | BJ62: 0 | BK62: 0 | BL62: 0 | BM62: 0 | BN62: 0 | BO62: 0 | BP62: 0 | BQ62: 0 | BR62: 0 | BS62: 0 | BT62: 0 | BU62: 0 | BV62: 0 | BW62: 0 | BX62: 0 | BY62: 0 | BZ62: 0 | CA62: 0 | CB62: 0 | CC62: 0 | CD62: 0 | CE62: 0 | CF62: 0 | CG62: 0 | CH62: 0 | CI62: =CI60*CI61 -> 0
B63: 31 | C63: Energia economizada mensal | E63: MWh/mês | G63: =ROUND(SUM(H63:CI63),2) -> 0 | H63: =H47/12 -> 0 | I63: =I47/12 -> 0 | J63: 0 | K63: 0 | L63: 0 | M63: 0 | N63: 0 | O63: 0 | P63: 0 | Q63: 0 | R63: 0 | S63: 0 | T63: 0 | U63: 0 | V63: 0 | W63: 0 | X63: 0 | Y63: 0 | Z63: 0 | AA63: 0 | AB63: =AB47/12 -> 0 | AC63: =AC47/12 -> 0 | AD63: =AD47/12 -> 0 | AE63: 0 | AF63: =AF47/12 -> 0 | AG63: =AG47/12 -> 0 | AH63: =AH47/12 -> 0 | AI63: =AI47/12 -> 0 | AJ63: 0 | AK63: 0 | AL63: 0 | AM63: 0 | AN63: 0 | AO63: 0 | AP63: 0 | AQ63: 0 | AR63: 0 | AS63: 0 | AT63: 0 | AU63: 0 | AV63: 0 | AW63: 0 | AX63: 0 | AY63: 0 | AZ63: 0 | BA63: 0 | BB63: 0 | BC63: 0 | BD63: 0 | BE63: 0 | BF63: 0 | BG63: 0 | BH63: 0 | BI63: 0 | BJ63: 0 | BK63: 0 | BL63: 0 | BM63: 0 | BN63: 0 | BO63: 0 | BP63: 0 | BQ63: 0 | BR63: 0 | BS63: 0 | BT63: 0 | BU63: 0 | BV63: 0 | BW63: 0 | BX63: 0 | BY63: 0 | BZ63: 0 | CA63: 0 | CB63: 0 | CC63: 0 | CD63: 0 | CE63: 0 | CF63: 0 | CG63: 0 | CH63: 0 | CI63: 0
B64: 32 | C64: Energia utilizada em horário de ponta | E64: MWh/mês | G64: 0 | H64: =H63*H62 -> 0 | I64: =I63*I62 -> 0 | J64: 0 | K64: 0 | L64: 0 | M64: 0 | N64: 0 | O64: 0 | P64: 0 | Q64: 0 | R64: 0 | S64: 0 | T64: 0 | U64: 0 | V64: 0 | W64: 0 | X64: 0 | Y64: 0 | Z64: 0 | AA64: 0 | AB64: =AB63*AB62 -> 0 | AC64: =AC63*AC62 -> 0 | AD64: =AD63*AD62 -> 0 | AE64: 0 | AF64: =AF63*AF62 -> 0 | AG64: =AG63*AG62 -> 0 | AH64: =AH63*AH62 -> 0 | AI64: =AI63*AI62 -> 0 | AJ64: 0 | AK64: 0 | AL64: 0 | AM64: 0 | AN64: 0 | AO64: 0 | AP64: 0 | AQ64: 0 | AR64: 0 | AS64: 0 | AT64: 0 | AU64: 0 | AV64: 0 | AW64: 0 | AX64: 0 | AY64: 0 | AZ64: 0 | BA64: 0 | BB64: 0 | BC64: 0 | BD64: 0 | BE64: 0 | BF64: 0 | BG64: 0 | BH64: 0 | BI64: 0 | BJ64: 0 | BK64: 0 | BL64: 0 | BM64: 0 | BN64: 0 | BO64: 0 | BP64: 0 | BQ64: 0 | BR64: 0 | BS64: 0 | BT64: 0 | BU64: 0 | BV64: 0 | BW64: 0 | BX64: 0 | BY64: 0 | BZ64: 0 | CA64: 0 | CB64: 0 | CC64: 0 | CD64: 0 | CE64: 0 | CF64: 0 | CG64: 0 | CH64: 0 | CI64: 0
B65: 33 | C65: Energia utilizada em horário fora de ponta | E65: MWh/mês | G65: 0 | H65: =H63-H64 -> 0 | I65: =I63-I64 -> 0 | J65: 0 | K65: 0 | L65: 0 | M65: 0 | N65: 0 | O65: 0 | P65: 0 | Q65: 0 | R65: 0 | S65: 0 | T65: 0 | U65: 0 | V65: 0 | W65: 0 | X65: 0 | Y65: 0 | Z65: 0 | AA65: 0 | AB65: =AB63-AB64 -> 0 | AC65: =AC63-AC64 -> 0 | AD65: =AD63-AD64 -> 0 | AE65: 0 | AF65: =AF63-AF64 -> 0 | AG65: =AG63-AG64 -> 0 | AH65: =AH63-AH64 -> 0 | AI65: =AI63-AI64 -> 0 | AJ65: 0 | AK65: 0 | AL65: 0 | AM65: 0 | AN65: 0 | AO65: 0 | AP65: 0 | AQ65: 0 | AR65: 0 | AS65: 0 | AT65: 0 | AU65: 0 | AV65: 0 | AW65: 0 | AX65: 0 | AY65: 0 | AZ65: 0 | BA65: 0 | BB65: 0 | BC65: 0 | BD65: 0 | BE65: 0 | BF65: 0 | BG65: 0 | BH65: 0 | BI65: 0 | BJ65: 0 | BK65: 0 | BL65: 0 | BM65: 0 | BN65: 0 | BO65: 0 | BP65: 0 | BQ65: 0 | BR65: 0 | BS65: 0 | BT65: 0 | BU65: 0 | BV65: 0 | BW65: 0 | BX65: 0 | BY65: 0 | BZ65: 0 | CA65: 0 | CB65: 0 | CC65: 0 | CD65: 0 | CE65: 0 | CF65: 0 | CG65: 0 | CH65: 0 | CI65: =CI63-CI64 -> 0
B66: =B65+1 -> 34 | C66: Redução de Demanda mensal | E66: kW/mês | G66: 0 | H66: =H11-H31 -> 0 | I66: =I11-I31 -> 0 | J66: 0 | K66: 0 | L66: 0 | M66: 0 | N66: 0 | O66: 0 | P66: 0 | Q66: 0 | R66: 0 | S66: 0 | T66: 0 | U66: 0 | V66: 0 | W66: 0 | X66: 0 | Y66: 0 | Z66: 0 | AA66: 0 | AB66: =AB11-AB31 -> 0 | AC66: =AC11-AC31 -> 0 | AD66: =AD11-AD31 -> 0 | AE66: 0 | AF66: =AF11-AF31 -> 0 | AG66: =AG11-AG31 -> 0 | AH66: =AH11-AH31 -> 0 | AI66: =AI11-AI31 -> 0 | AJ66: 0 | AK66: 0 | AL66: 0 | AM66: 0 | AN66: 0 | AO66: 0 | AP66: 0 | AQ66: 0 | AR66: 0 | AS66: 0 | AT66: 0 | AU66: 0 | AV66: 0 | AW66: 0 | AX66: 0 | AY66: 0 | AZ66: 0 | BA66: 0 | BB66: 0 | BC66: 0 | BD66: 0 | BE66: 0 | BF66: 0 | BG66: 0 | BH66: 0 | BI66: 0 | BJ66: 0 | BK66: 0 | BL66: 0 | BM66: 0 | BN66: 0 | BO66: 0 | BP66: 0 | BQ66: 0 | BR66: 0 | BS66: 0 | BT66: 0 | BU66: 0 | BV66: 0 | BW66: 0 | BX66: 0 | BY66: 0 | BZ66: 0 | CA66: 0 | CB66: 0 | CC66: 0 | CD66: 0 | CE66: 0 | CF66: 0 | CG66: 0 | CH66: 0 | CI66: 0
B67: =B66+1 -> 35 | C67: Redução de Demanda em horário de ponta | E67: kW/mês | G67: 0 | H67: =H45 -> 0 | I67: =I45 -> 0 | J67: 0 | K67: 0 | L67: 0 | M67: 0 | N67: 0 | O67: 0 | P67: 0 | Q67: 0 | R67: 0 | S67: 0 | T67: 0 | U67: 0 | V67: 0 | W67: 0 | X67: 0 | Y67: 0 | Z67: 0 | AA67: 0 | AB67: =AB45 -> 0 | AC67: =AC45 -> 0 | AD67: =AD45 -> 0 | AE67: 0 | AF67: =AF45 -> 0 | AG67: =AG45 -> 0 | AH67: =AH45 -> 0 | AI67: =AI45 -> 0 | AJ67: 0 | AK67: 0 | AL67: 0 | AM67: 0 | AN67: 0 | AO67: 0 | AP67: 0 | AQ67: 0 | AR67: 0 | AS67: 0 | AT67: 0 | AU67: 0 | AV67: 0 | AW67: 0 | AX67: 0 | AY67: 0 | AZ67: 0 | BA67: 0 | BB67: 0 | BC67: 0 | BD67: 0 | BE67: 0 | BF67: 0 | BG67: 0 | BH67: 0 | BI67: 0 | BJ67: 0 | BK67: 0 | BL67: 0 | BM67: 0 | BN67: 0 | BO67: 0 | BP67: 0 | BQ67: 0 | BR67: 0 | BS67: 0 | BT67: 0 | BU67: 0 | BV67: 0 | BW67: 0 | BX67: 0 | BY67: 0 | BZ67: 0 | CA67: 0 | CB67: 0 | CC67: 0 | CD67: 0 | CE67: 0 | CF67: 0 | CG67: 0 | CH67: 0 | CI67: 0
B68: =B67+1 -> 36 | C68: Redução de Demanda em horário fora de ponta | E68: kW/mês | G68: 0 | H68: =H66 -> 0 | I68: =I66 -> 0 | J68: 0 | K68: 0 | L68: 0 | M68: 0 | N68: 0 | O68: 0 | P68: 0 | Q68: 0 | R68: 0 | S68: 0 | T68: 0 | U68: 0 | V68: 0 | W68: 0 | X68: 0 | Y68: 0 | Z68: 0 | AA68: 0 | AB68: =AB66 -> 0 | AC68: =AC66 -> 0 | AD68: =AD66 -> 0 | AE68: 0 | AF68: =AF66 -> 0 | AG68: =AG66 -> 0 | AH68: =AH66 -> 0 | AI68: =AI66 -> 0 | AJ68: 0 | AK68: 0 | AL68: 0 | AM68: 0 | AN68: 0 | AO68: 0 | AP68: 0 | AQ68: 0 | AR68: 0 | AS68: 0 | AT68: 0 | AU68: 0 | AV68: 0 | AW68: 0 | AX68: 0 | AY68: 0 | AZ68: 0 | BA68: 0 | BB68: 0 | BC68: 0 | BD68: 0 | BE68: 0 | BF68: 0 | BG68: 0 | BH68: 0 | BI68: 0 | BJ68: 0 | BK68: 0 | BL68: 0 | BM68: 0 | BN68: 0 | BO68: 0 | BP68: 0 | BQ68: 0 | BR68: 0 | BS68: 0 | BT68: 0 | BU68: 0 | BV68: 0 | BW68: 0 | BX68: 0 | BY68: 0 | BZ68: 0 | CA68: 0 | CB68: 0 | CC68: 0 | CD68: 0 | CE68: 0 | CF68: 0 | CG68: 0 | CH68: 0 | CI68: =CI66 -> 0

Sheet MotorCusto (ORÇ)
B2: CUSTOS - MOTOR (ORÇAMENTOS)
B3: TIPOS DE CUSTOS | K3: FORNECEDOR
K4: Fornecedor 1 | L4: Fornecedor 2 | M4: Fornecedor 3 | N4: Fornecedor 4 | O4: Fornecedor 5 | P4: Fornecedor 6
B5: CUSTOS DIRETOS
